Workbook

Sheet rooster en stand
C2: Updated: | D2: 2024-10-08T23:49:44 | F2: © 2024/2025 - Wim Gielis - wim.gielis@gmail.com - https://www.wimgielis.com
C3: LUCYVO | Q3: =P5 -> Alberta Schilde | R3: =P6 -> Antwerp Global | S3: =P7 -> Bar Patron | T3: =P8 -> Bariton | U3: =P9 -> Corum | V3: =P10 -> Daltons | W3: =P11 -> Goka | X3: =P12 -> Hombeek | Y3: =P13 -> Jolika | Z3: =P14 -> Lucyvo | AA3: =P15 -> Racing Emblem | AB3: =P16 -> Sint Anneke | AC3: =P17 -> SC Duffel | AD3: =P18 -> Yerevan United | AE3: =P5 -> Alberta Schilde | AF3: =P6 -> Antwerp Global | AG3: =P7 -> Bar Patron | AH3: =P8 -> Bariton | AI3: =P9 -> Corum | AJ3: =P10 -> Daltons | AK3: =P11 -> Goka | AL3: =P12 -> Hombeek | AM3: =P13 -> Jolika | AN3: =P14 -> Lucyvo | AO3: =P15 -> Racing Emblem | AP3: =P16 -> Sint Anneke | AQ3: =P17 -> SC Duffel | AR3: =P18 -> Yerevan United | AS3: =P5 -> Alberta Schilde | AT3: =P6 -> Antwerp Global | AU3: =P7 -> Bar Patron | AV3: =P8 -> Bariton | AW3: =P9 -> Corum | AX3: =P10 -> Daltons | AY3: =P11 -> Goka | AZ3: =P12 -> Hombeek | BA3: =P13 -> Jolika | BB3: =P14 -> Lucyvo | BC3: =P15 -> Racing Emblem | BD3: =P16 -> Sint Anneke | BE3: =P17 -> SC Duffel | BF3: =P18 -> Yerevan United
D4: Ploeg | E4: P | F4: M | H4: W | I4: V | J4: G | K4: + | L4: - | M4: S | N4: VP | BH4: Coëfficiënt | BI4: Ploeg | BJ4: Punten | BK4: Matchen | BL4: W | BM4: V | BN4: G | BO4: D+ | BP4: D- | BQ4: DS | BR4: Ff | BS4: Nr | BT4: Coëf sorted | BW4: 1 | BX4: 2 | BY4: 3 | BZ4: 4 | CA4: 5 | CB4: 6 | CC4: 7 | CD4: 8 | CE4: 9 | CF4: 10 | CG4: 11 | CH4: 12 | CI4: 13 | CJ4: 14 | CL4: 1 | CM4: 2 | CN4: 3 | CO4: 4 | CP4: 5 | CQ4: 6 | CR4: 7 | CS4: 8 | CT4: 9 | CU4: 10 | CV4: 11 | CW4: 12 | CX4: 13 | CY4: 14
C5: 1 | D5: =VLOOKUP(BT5,HulpberekeningenStand,2,FALSE) -> Daltons | E5: =3*H5+J5 -> 18 | F5: =SUM(H5:J5) -> 6 | G5: =REPT(IF(F5-MODE($F$5:$F$18)<0,"-","+"),ABS(F5-MODE($F$5:$F$18))) ->  | H5: =VLOOKUP(BT5,HulpberekeningenStand,5,FALSE) -> 6 | I5: =VLOOKUP(BT5,HulpberekeningenStand,6,FALSE) -> 0 | J5: =VLOOKUP(BT5,HulpberekeningenStand,7,FALSE) -> 0 | K5: =VLOOKUP(BT5,HulpberekeningenStand,8,FALSE) -> 24 | L5: =VLOOKUP(BT5,HulpberekeningenStand,9,FALSE) -> 6 | M5: =K5-L5 -> 18 | N5: =3*F5-E5 -> 0 | P5: Alberta Schilde | R5: 2-0 | AB5: 8-0 | AD5: 2-2 | AF5: 6 | AG5: 8 | AH5: 18 | AI5: 14 | AJ5: 13 | AK5: 22 | AL5: 25 | AM5: 10 | AN5: 16 | AO5: 20 | AP5: 2 | AQ5: 11 | AR5: 4 | AT5: 2024-10-06 | AU5: 2024-10-20 | AV5: 2025-02-02 | AW5: 2024-12-08 | AX5: 2024-12-01 | AY5: 2025-03-09 | AZ5: 2025-03-30 | BA5: 2024-11-10 | BB5: 2025-01-19 | BC5: 2025-02-16 | BD5: 2024-09-08 | BE5: 2024-11-17 | BF5: 2024-09-22 | BH5: =RANK( BJ5, $BJ$5:$BJ$18, 0 ) - RANK( BK5, $BK$5:$BK$18, 0 ) / 10^2 + RANK( BL5, $BL$5:$BL$18, 0 ) / 10^4 + RANK( BQ5, $BQ$5:$BQ$18, 0 ) / 10^6 + RANK( BO5, $BO$5:$BO$18, 0 ) / 10^8 + BS5 / 10^10 -> 1.99020305 | BI5: =P5 -> Alberta Schilde | BJ5: =3 * BL5 + BN5 -> 13 | BK5: =SUM( BL5:BN5 ) -> 6 | BL5: =CHOOSE(StandBer,COUNTIF(BW35:CJ35,"t")+COUNTIF(BW35:BW48,"u")+COUNTIF(CL35:CY35,"t")+COUNTIF(CL35:CL48,"u"),COUNTIF(BW35:CJ35,"t")+COUNTIF(BW35:BW48,"u"),COUNTIF(CL35:CY35,"t")+COUNTIF(CL35:CL48,"u"),COUNTIF(BW35:CJ35,"t")+COUNTIF(CL35:CY35,"t"),COUNTIF(BW35:BW48,"u")+COUNTIF(CL35:CL48,"u")) -> 4 | BM5: =CHOOSE(StandBer,COUNTIF(BW35:CJ35,"u")+COUNTIF(BW35:BW48,"t")+COUNTIF(CL35:CY35,"u")+COUNTIF(CL35:CL48,"t"),COUNTIF(BW35:CJ35,"u")+COUNTIF(BW35:BW48,"t"),COUNTIF(CL35:CY35,"u")+COUNTIF(CL35:CL48,"t"),COUNTIF(BW35:CJ35,"u")+COUNTIF(CL35:CY35,"u"),COUNTIF(BW35:BW48,"t")+COUNTIF(CL35:CL48,"t"))+BR5 -> 1 | BN5: =CHOOSE(StandBer,COUNTIF(BW35:CJ35,"g")+COUNTIF(BW35:BW48,"g")+COUNTIF(CL35:CY35,"g")+COUNTIF(CL35:CL48,"g"),COUNTIF(BW35:CJ35,"g")+COUNTIF(BW35:BW48,"g"),COUNTIF(CL35:CY35,"g")+COUNTIF(CL35:CL48,"g"),COUNTIF(BW35:CJ35,"g")+COUNTIF(CL35:CY35,"g"),COUNTIF(BW35:BW48,"g")+COUNTIF(CL35:CL48,"g")) -> 1 | BO5: =CHOOSE(StandBer,SUM(BW5:CJ5)+SUM(BW20:BW33)+SUM(CL5:CY5)+SUM(CL20:CL33),SUM(BW5:CJ5)+SUM(BW20:BW33),SUM(CL5:CY5)+SUM(CL20:CL33),SUM(BW5:CJ5)+SUM(CL5:CY5),SUM(BW20:BW33)+SUM(CL20:CL33))-5*BR5 -> 21 | BP5: =CHOOSE(StandBer,SUM(BW5:BW18)+SUM(BW20:CJ20)+SUM(CL5:CL18)+SUM(CL20:CY20),SUM(BW5:BW18)+SUM(BW20:CJ20),SUM(CL5:CL18)+SUM(CL20:CY20),SUM(BW5:BW18)+SUM(CL5:CL18),SUM(BW20:CJ20)+SUM(CL20:CY20)) -> 9 | BQ5: =BO5 - BP5 -> 12 | BR5: =CHOOSE(StandBer,COUNTIF(BW35:CJ35,"ff")+COUNTIF(BW35:BW48,"ff")+COUNTIF(CL35:CY35,"ff")+COUNTIF(CL35:CL48,"ff"),COUNTIF(BW35:CJ35,"ff")+COUNTIF(BW35:BW48,"ff"),COUNTIF(CL35:CY35,"ff")+COUNTIF(CL35:CL48,"ff"),COUNTIF(BW35:CJ35,"ff")+COUNTIF(CL35:CY35,"ff"),COUNTIF(BW35:BW48,"ff")+COUNTIF(CL35:CL48,"ff")) -> 0 | BS5: 1 | BT5: =SMALL( $BH$5:$BH$18, BS5 ) -> 0.9901010406 | BV5: 1 | BX5: =IF(OR(ISERROR(FIND("-",R5)),AF5>'export html'!$AR$7),"",IF(LEFT(R5,1)<>"*",LEFT(R5,FIND("-",R5)-1)-0,MID(R5,2,FIND("-",R5)-2)-0)) -> 2 | BY5: =IF(OR(ISERROR(FIND("-",S5)),AG5>'export html'!$AR$7),"",IF(LEFT(S5,1)<>"*",LEFT(S5,FIND("-",S5)-1)-0,MID(S5,2,FIND("-",S5)-2)-0)) ->  | BZ5: =IF(OR(ISERROR(FIND("-",T5)),AH5>'export html'!$AR$7),"",IF(LEFT(T5,1)<>"*",LEFT(T5,FIND("-",T5)-1)-0,MID(T5,2,FIND("-",T5)-2)-0)) ->  | CA5: =IF(OR(ISERROR(FIND("-",U5)),AI5>'export html'!$AR$7),"",IF(LEFT(U5,1)<>"*",LEFT(U5,FIND("-",U5)-1)-0,MID(U5,2,FIND("-",U5)-2)-0)) ->  | CB5: =IF(OR(ISERROR(FIND("-",V5)),AJ5>'export html'!$AR$7),"",IF(LEFT(V5,1)<>"*",LEFT(V5,FIND("-",V5)-1)-0,MID(V5,2,FIND("-",V5)-2)-0)) ->  | CC5: =IF(OR(ISERROR(FIND("-",W5)),AK5>'export html'!$AR$7),"",IF(LEFT(W5,1)<>"*",LEFT(W5,FIND("-",W5)-1)-0,MID(W5,2,FIND("-",W5)-2)-0)) ->  | CD5: =IF(OR(ISERROR(FIND("-",X5)),AL5>'export html'!$AR$7),"",IF(LEFT(X5,1)<>"*",LEFT(X5,FIND("-",X5)-1)-0,MID(X5,2,FIND("-",X5)-2)-0)) ->  | CE5: =IF(OR(ISERROR(FIND("-",Y5)),AM5>'export html'!$AR$7),"",IF(LEFT(Y5,1)<>"*",LEFT(Y5,FIND("-",Y5)-1)-0,MID(Y5,2,FIND("-",Y5)-2)-0)) ->  | CF5: =IF(OR(ISERROR(FIND("-",Z5)),AN5>'export html'!$AR$7),"",IF(LEFT(Z5,1)<>"*",LEFT(Z5,FIND("-",Z5)-1)-0,MID(Z5,2,FIND("-",Z5)-2)-0)) ->  | CG5: =IF(OR(ISERROR(FIND("-",AA5)),AO5>'export html'!$AR$7),"",IF(LEFT(AA5,1)<>"*",LEFT(AA5,FIND("-",AA5)-1)-0,MID(AA5,2,FIND("-",AA5)-2)-0)) ->  | CH5: =IF(OR(ISERROR(FIND("-",AB5)),AP5>'export html'!$AR$7),"",IF(LEFT(AB5,1)<>"*",LEFT(AB5,FIND("-",AB5)-1)-0,MID(AB5,2,FIND("-",AB5)-2)-0)) -> 8 | CI5: =IF(OR(ISERROR(FIND("-",AC5)),AQ5>'export html'!$AR$7),"",IF(LEFT(AC5,1)<>"*",LEFT(AC5,FIND("-",AC5)-1)-0,MID(AC5,2,FIND("-",AC5)-2)-0)) ->  | CJ5: =IF(OR(ISERROR(FIND("-",AD5)),AR5>'export html'!$AR$7),"",IF(LEFT(AD5,1)<>"*",LEFT(AD5,FIND("-",AD5)-1)-0,MID(AD5,2,FIND("-",AD5)-2)-0)) -> 2 | CK5: 1 | CM5: =IF(OR(ISERROR(FIND("-",R5)),AF5<='export html'!$AR$7),"",IF(LEFT(R5,1)<>"*",LEFT(R5,FIND("-",R5)-1)-0,MID(R5,2,FIND("-",R5)-2)-0)) ->  | CN5: =IF(OR(ISERROR(FIND("-",S5)),AG5<='export html'!$AR$7),"",IF(LEFT(S5,1)<>"*",LEFT(S5,FIND("-",S5)-1)-0,MID(S5,2,FIND("-",S5)-2)-0)) ->  | CO5: =IF(OR(ISERROR(FIND("-",T5)),AH5<='export html'!$AR$7),"",IF(LEFT(T5,1)<>"*",LEFT(T5,FIND("-",T5)-1)-0,MID(T5,2,FIND("-",T5)-2)-0)) ->  | CP5: =IF(OR(ISERROR(FIND("-",U5)),AI5<='export html'!$AR$7),"",IF(LEFT(U5,1)<>"*",LEFT(U5,FIND("-",U5)-1)-0,MID(U5,2,FIND("-",U5)-2)-0)) ->  | CQ5: =IF(OR(ISERROR(FIND("-",V5)),AJ5<='export html'!$AR$7),"",IF(LEFT(V5,1)<>"*",LEFT(V5,FIND("-",V5)-1)-0,MID(V5,2,FIND("-",V5)-2)-0)) ->  | CR5: =IF(OR(ISERROR(FIND("-",W5)),AK5<='export html'!$AR$7),"",IF(LEFT(W5,1)<>"*",LEFT(W5,FIND("-",W5)-1)-0,MID(W5,2,FIND("-",W5)-2)-0)) ->  | CS5: =IF(OR(ISERROR(FIND("-",X5)),AL5<='export html'!$AR$7),"",IF(LEFT(X5,1)<>"*",LEFT(X5,FIND("-",X5)-1)-0,MID(X5,2,FIND("-",X5)-2)-0)) ->  | CT5: =IF(OR(ISERROR(FIND("-",Y5)),AM5<='export html'!$AR$7),"",IF(LEFT(Y5,1)<>"*",LEFT(Y5,FIND("-",Y5)-1)-0,MID(Y5,2,FIND("-",Y5)-2)-0)) ->  | CU5: =IF(OR(ISERROR(FIND("-",Z5)),AN5<='export html'!$AR$7),"",IF(LEFT(Z5,1)<>"*",LEFT(Z5,FIND("-",Z5)-1)-0,MID(Z5,2,FIND("-",Z5)-2)-0)) ->  | CV5: =IF(OR(ISERROR(FIND("-",AA5)),AO5<='export html'!$AR$7),"",IF(LEFT(AA5,1)<>"*",LEFT(AA5,FIND("-",AA5)-1)-0,MID(AA5,2,FIND("-",AA5)-2)-0)) ->  | CW5: =IF(OR(ISERROR(FIND("-",AB5)),AP5<='export html'!$AR$7),"",IF(LEFT(AB5,1)<>"*",LEFT(AB5,FIND("-",AB5)-1)-0,MID(AB5,2,FIND("-",AB5)-2)-0)) ->  | CX5: =IF(OR(ISERROR(FIND("-",AC5)),AQ5<='export html'!$AR$7),"",IF(LEFT(AC5,1)<>"*",LEFT(AC5,FIND("-",AC5)-1)-0,MID(AC5,2,FIND("-",AC5)-2)-0)) ->  | CY5: =IF(OR(ISERROR(FIND("-",AD5)),AR5<='export html'!$AR$7),"",IF(LEFT(AD5,1)<>"*",LEFT(AD5,FIND("-",AD5)-1)-0,MID(AD5,2,FIND("-",AD5)-2)-0)) ->  | CZ5: 1
C6: =IF(RANK(E6,$E$5:$E$18,0)>RANK(E5,$E$5:$E$18,0),RANK(E6,$E$5:$E$18,0),"") -> 2 | D6: =VLOOKUP(BT6,HulpberekeningenStand,2,FALSE) -> Bar Patron | E6: 13 | F6: 6 | G6: =REPT(IF(F6-MODE($F$5:$F$18)<0,"-","+"),ABS(F6-MODE($F$5:$F$18))) ->  | H6: =VLOOKUP(BT6,HulpberekeningenStand,5,FALSE) -> 4 | I6: =VLOOKUP(BT6,HulpberekeningenStand,6,FALSE) -> 1 | J6: =VLOOKUP(BT6,HulpberekeningenStand,7,FALSE) -> 1 | K6: =VLOOKUP(BT6,HulpberekeningenStand,8,FALSE) -> 25 | L6: =VLOOKUP(BT6,HulpberekeningenStand,9,FALSE) -> 13 | M6: 12 | N6: 5 | P6: Antwerp Global | W6: 3-1 | Y6: *5-0 | AA6: 4-3 | AE6: 19 | AG6: 17 | AH6: 14 | AI6: 23 | AJ6: 9 | AK6: 5 | AL6: 21 | AM6: 2 | AN6: 25 | AO6: 3 | AP6: 11 | AQ6: 7 | AR6: 13 | AS6: 2025-02-09 | AU6: 2025-01-26 | AV6: 2024-12-08 | AW6: 2025-03-16 | AX6: 2024-11-03 | AY6: 2024-09-29 | AZ6: 2025-02-23 | BA6: 2024-09-08 | BB6: 2025-03-30 | BC6: 2024-09-15 | BD6: 2024-11-17 | BE6: 2024-10-13 | BF6: 2024-12-01 | BH6: =RANK( BJ6, $BJ$5:$BJ$18, 0 ) - RANK( BK6, $BK$5:$BK$18, 0 ) / 10^2 + RANK( BL6, $BL$5:$BL$18, 0 ) / 10^4 + RANK( BQ6, $BQ$5:$BQ$18, 0 ) / 10^6 + RANK( BO6, $BO$5:$BO$18, 0 ) / 10^8 + BS6 / 10^10 -> 3.99020505 | BI6: Antwerp Global | BJ6: =3 * BL6 + BN6 -> 12 | BK6: =SUM( BL6:BN6 ) -> 6 | BL6: =CHOOSE(StandBer,COUNTIF(BW36:CJ36,"t")+COUNTIF(BX35:BX48,"u")+COUNTIF(CL36:CY36,"t")+COUNTIF(CM35:CM48,"u"),COUNTIF(BW36:CJ36,"t")+COUNTIF(BX35:BX48,"u"),COUNTIF(CL36:CY36,"t")+COUNTIF(CM35:CM48,"u"),COUNTIF(BW36:CJ36,"t")+COUNTIF(CL36:CY36,"t"),COUNTIF(BX35:BX48,"u")+COUNTIF(CM35:CM48,"u")) -> 4 | BM6: =CHOOSE(StandBer,COUNTIF(BW36:CJ36,"u")+COUNTIF(BX35:BX48,"t")+COUNTIF(CL36:CY36,"u")+COUNTIF(CM35:CM48,"t"),COUNTIF(BW36:CJ36,"u")+COUNTIF(BX35:BX48,"t"),COUNTIF(CL36:CY36,"u")+COUNTIF(CM35:CM48,"t"),COUNTIF(BW36:CJ36,"u")+COUNTIF(CL36:CY36,"u"),COUNTIF(BX35:BX48,"t")+COUNTIF(CM35:CM48,"t"))+BR6 -> 2 | BN6: =CHOOSE(StandBer,COUNTIF(BW36:CJ36,"g")+COUNTIF(BX35:BX48,"g")+COUNTIF(CL36:CY36,"g")+COUNTIF(CM35:CM48,"g"),COUNTIF(BW36:CJ36,"g")+COUNTIF(BX35:BX48,"g"),COUNTIF(CL36:CY36,"g")+COUNTIF(CM35:CM48,"g"),COUNTIF(BW36:CJ36,"g")+COUNTIF(CL36:CY36,"g"),COUNTIF(BX35:BX48,"g")+COUNTIF(CM35:CM48,"g")) -> 0 | BO6: =CHOOSE(StandBer,SUM(BW6:CJ6)+SUM(BX20:BX33)+SUM(CL6:CY6)+SUM(CM20:CM33),SUM(BW6:CJ6)+SUM(BX20:BX33),SUM(CL6:CY6)+SUM(CM20:CM33),SUM(BW6:CJ6)+SUM(CL6:CY6),SUM(BX20:BX33)+SUM(CM20:CM33))-5*BR6 -> 21 | BP6: =CHOOSE(StandBer,SUM(BX5:BX18)+SUM(BW21:CJ21)+SUM(CM5:CM18)+SUM(CL21:CY21),SUM(BX5:BX18)+SUM(BW21:CJ21),SUM(CM5:CM18)+SUM(CL21:CY21),SUM(BX5:BX18)+SUM(CM5:CM18),SUM(BW21:CJ21)+SUM(CL21:CY21)) -> 12 | BQ6: =BO6 - BP6 -> 9 | BR6: =CHOOSE(StandBer,COUNTIF(BW36:CJ36,"ff")+COUNTIF(BX35:BX48,"ff")+COUNTIF(CL36:CY36,"ff")+COUNTIF(CM35:CM48,"ff"),COUNTIF(BW36:CJ36,"ff")+COUNTIF(BX35:BX48,"ff"),COUNTIF(CL36:CY36,"ff")+COUNTIF(CM35:CM48,"ff"),COUNTIF(BW36:CJ36,"ff")+COUNTIF(CL36:CY36,"ff"),COUNTIF(BX35:BX48,"ff")+COUNTIF(CM35:CM48,"ff")) -> 0 | BS6: 2 | BT6: =SMALL( $BH$5:$BH$18, BS6 ) -> 1.99020303 | BV6: 2 | BW6: =IF(OR(ISERROR(FIND("-",Q6)),AE6>'export html'!$AR$7),"",IF(LEFT(Q6,1)<>"*",LEFT(Q6,FIND("-",Q6)-1)-0,MID(Q6,2,FIND("-",Q6)-2)-0)) ->  | BY6: =IF(OR(ISERROR(FIND("-",S6)),AG6>'export html'!$AR$7),"",IF(LEFT(S6,1)<>"*",LEFT(S6,FIND("-",S6)-1)-0,MID(S6,2,FIND("-",S6)-2)-0)) ->  | BZ6: =IF(OR(ISERROR(FIND("-",T6)),AH6>'export html'!$AR$7),"",IF(LEFT(T6,1)<>"*",LEFT(T6,FIND("-",T6)-1)-0,MID(T6,2,FIND("-",T6)-2)-0)) ->  | CA6: =IF(OR(ISERROR(FIND("-",U6)),AI6>'export html'!$AR$7),"",IF(LEFT(U6,1)<>"*",LEFT(U6,FIND("-",U6)-1)-0,MID(U6,2,FIND("-",U6)-2)-0)) ->  | CB6: =IF(OR(ISERROR(FIND("-",V6)),AJ6>'export html'!$AR$7),"",IF(LEFT(V6,1)<>"*",LEFT(V6,FIND("-",V6)-1)-0,MID(V6,2,FIND("-",V6)-2)-0)) ->  | CC6: =IF(OR(ISERROR(FIND("-",W6)),AK6>'export html'!$AR$7),"",IF(LEFT(W6,1)<>"*",LEFT(W6,FIND("-",W6)-1)-0,MID(W6,2,FIND("-",W6)-2)-0)) -> 3 | CD6: =IF(OR(ISERROR(FIND("-",X6)),AL6>'export html'!$AR$7),"",IF(LEFT(X6,1)<>"*",LEFT(X6,FIND("-",X6)-1)-0,MID(X6,2,FIND("-",X6)-2)-0)) ->  | CE6: =IF(OR(ISERROR(FIND("-",Y6)),AM6>'export html'!$AR$7),"",IF(LEFT(Y6,1)<>"*",LEFT(Y6,FIND("-",Y6)-1)-0,MID(Y6,2,FIND("-",Y6)-2)-0)) -> 5 | CF6: =IF(OR(ISERROR(FIND("-",Z6)),AN6>'export html'!$AR$7),"",IF(LEFT(Z6,1)<>"*",LEFT(Z6,FIND("-",Z6)-1)-0,MID(Z6,2,FIND("-",Z6)-2)-0)) ->  | CG6: =IF(OR(ISERROR(FIND("-",AA6)),AO6>'export html'!$AR$7),"",IF(LEFT(AA6,1)<>"*",LEFT(AA6,FIND("-",AA6)-1)-0,MID(AA6,2,FIND("-",AA6)-2)-0)) -> 4 | CH6: =IF(OR(ISERROR(FIND("-",AB6)),AP6>'export html'!$AR$7),"",IF(LEFT(AB6,1)<>"*",LEFT(AB6,FIND("-",AB6)-1)-0,MID(AB6,2,FIND("-",AB6)-2)-0)) ->  | CI6: =IF(OR(ISERROR(FIND("-",AC6)),AQ6>'export html'!$AR$7),"",IF(LEFT(AC6,1)<>"*",LEFT(AC6,FIND("-",AC6)-1)-0,MID(AC6,2,FIND("-",AC6)-2)-0)) ->  | CJ6: =IF(OR(ISERROR(FIND("-",AD6)),AR6>'export html'!$AR$7),"",IF(LEFT(AD6,1)<>"*",LEFT(AD6,FIND("-",AD6)-1)-0,MID(AD6,2,FIND("-",AD6)-2)-0)) ->  | CK6: 2 | CL6: =IF(OR(ISERROR(FIND("-",Q6)),AE6<='export html'!$AR$7),"",IF(LEFT(Q6,1)<>"*",LEFT(Q6,FIND("-",Q6)-1)-0,MID(Q6,2,FIND("-",Q6)-2)-0)) ->  | CN6: =IF(OR(ISERROR(FIND("-",S6)),AG6<='export html'!$AR$7),"",IF(LEFT(S6,1)<>"*",LEFT(S6,FIND("-",S6)-1)-0,MID(S6,2,FIND("-",S6)-2)-0)) ->  | CO6: =IF(OR(ISERROR(FIND("-",T6)),AH6<='export html'!$AR$7),"",IF(LEFT(T6,1)<>"*",LEFT(T6,FIND("-",T6)-1)-0,MID(T6,2,FIND("-",T6)-2)-0)) ->  | CP6: =IF(OR(ISERROR(FIND("-",U6)),AI6<='export html'!$AR$7),"",IF(LEFT(U6,1)<>"*",LEFT(U6,FIND("-",U6)-1)-0,MID(U6,2,FIND("-",U6)-2)-0)) ->  | CQ6: =IF(OR(ISERROR(FIND("-",V6)),AJ6<='export html'!$AR$7),"",IF(LEFT(V6,1)<>"*",LEFT(V6,FIND("-",V6)-1)-0,MID(V6,2,FIND("-",V6)-2)-0)) ->  | CR6: =IF(OR(ISERROR(FIND("-",W6)),AK6<='export html'!$AR$7),"",IF(LEFT(W6,1)<>"*",LEFT(W6,FIND("-",W6)-1)-0,MID(W6,2,FIND("-",W6)-2)-0)) ->  | CS6: =IF(OR(ISERROR(FIND("-",X6)),AL6<='export html'!$AR$7),"",IF(LEFT(X6,1)<>"*",LEFT(X6,FIND("-",X6)-1)-0,MID(X6,2,FIND("-",X6)-2)-0)) ->  | CT6: =IF(OR(ISERROR(FIND("-",Y6)),AM6<='export html'!$AR$7),"",IF(LEFT(Y6,1)<>"*",LEFT(Y6,FIND("-",Y6)-1)-0,MID(Y6,2,FIND("-",Y6)-2)-0)) ->  | CU6: =IF(OR(ISERROR(FIND("-",Z6)),AN6<='export html'!$AR$7),"",IF(LEFT(Z6,1)<>"*",LEFT(Z6,FIND("-",Z6)-1)-0,MID(Z6,2,FIND("-",Z6)-2)-0)) ->  | CV6: =IF(OR(ISERROR(FIND("-",AA6)),AO6<='export html'!$AR$7),"",IF(LEFT(AA6,1)<>"*",LEFT(AA6,FIND("-",AA6)-1)-0,MID(AA6,2,FIND("-",AA6)-2)-0)) ->  | CW6: =IF(OR(ISERROR(FIND("-",AB6)),AP6<='export html'!$AR$7),"",IF(LEFT(AB6,1)<>"*",LEFT(AB6,FIND("-",AB6)-1)-0,MID(AB6,2,FIND("-",AB6)-2)-0)) ->  | CX6: =IF(OR(ISERROR(FIND("-",AC6)),AQ6<='export html'!$AR$7),"",IF(LEFT(AC6,1)<>"*",LEFT(AC6,FIND("-",AC6)-1)-0,MID(AC6,2,FIND("-",AC6)-2)-0)) ->  | CY6: =IF(OR(ISERROR(FIND("-",AD6)),AR6<='export html'!$AR$7),"",IF(LEFT(AD6,1)<>"*",LEFT(AD6,FIND("-",AD6)-1)-0,MID(AD6,2,FIND("-",AD6)-2)-0)) ->  | CZ6: 2
C7: =IF(RANK(E7,$E$5:$E$18,0)>RANK(E6,$E$5:$E$18,0),RANK(E7,$E$5:$E$18,0),"") ->  | D7: =VLOOKUP(BT7,HulpberekeningenStand,2,FALSE) -> Alberta Schilde | E7: 13 | F7: 6 | G7: =REPT(IF(F7-MODE($F$5:$F$18)<0,"-","+"),ABS(F7-MODE($F$5:$F$18))) ->  | H7: =VLOOKUP(BT7,HulpberekeningenStand,5,FALSE) -> 4 | I7: =VLOOKUP(BT7,HulpberekeningenStand,6,FALSE) -> 1 | J7: =VLOOKUP(BT7,HulpberekeningenStand,7,FALSE) -> 1 | K7: =VLOOKUP(BT7,HulpberekeningenStand,8,FALSE) -> 21 | L7: =VLOOKUP(BT7,HulpberekeningenStand,9,FALSE) -> 9 | M7: 12 | N7: 5 | P7: Bar Patron | R7: 4-2 | Y7: 6-0 | AD7: 4-4 | AE7: 21 | AF7: 4 | AH7: 16 | AI7: 25 | AJ7: 11 | AK7: 7 | AL7: 23 | AM7: 6 | AN7: 14 | AO7: 18 | AP7: 13 | AQ7: 9 | AR7: 2 | AS7: 2025-02-23 | AT7: 2024-09-22 | AV7: 2025-01-19 | AW7: 2025-03-30 | AX7: 2024-11-17 | AY7: 2024-10-13 | AZ7: 2025-03-16 | BA7: 2024-10-06 | BB7: 2024-12-08 | BC7: 2025-02-02 | BD7: 2024-12-01 | BE7: 2024-11-03 | BF7: 2024-09-08 | BH7: =RANK( BJ7, $BJ$5:$BJ$18, 0 ) - RANK( BK7, $BK$5:$BK$18, 0 ) / 10^2 + RANK( BL7, $BL$5:$BL$18, 0 ) / 10^4 + RANK( BQ7, $BQ$5:$BQ$18, 0 ) / 10^6 + RANK( BO7, $BO$5:$BO$18, 0 ) / 10^8 + BS7 / 10^10 -> 1.99020303 | BI7: Bar Patron | BJ7: 13 | BK7: 6 | BL7: =CHOOSE(StandBer,COUNTIF(BW37:CJ37,"t")+COUNTIF(BY35:BY48,"u")+COUNTIF(CL37:CY37,"t")+COUNTIF(CN35:CN48,"u"),COUNTIF(BW37:CJ37,"t")+COUNTIF(BY35:BY48,"u"),COUNTIF(CL37:CY37,"t")+COUNTIF(CN35:CN48,"u"),COUNTIF(BW37:CJ37,"t")+COUNTIF(CL37:CY37,"t"),COUNTIF(BY35:BY48,"u")+COUNTIF(CN35:CN48,"u")) -> 4 | BM7: =CHOOSE(StandBer,COUNTIF(BW37:CJ37,"u")+COUNTIF(BY35:BY48,"t")+COUNTIF(CL37:CY37,"u")+COUNTIF(CN35:CN48,"t"),COUNTIF(BW37:CJ37,"u")+COUNTIF(BY35:BY48,"t"),COUNTIF(CL37:CY37,"u")+COUNTIF(CN35:CN48,"t"),COUNTIF(BW37:CJ37,"u")+COUNTIF(CL37:CY37,"u"),COUNTIF(BY35:BY48,"t")+COUNTIF(CN35:CN48,"t"))+BR7 -> 1 | BN7: =CHOOSE(StandBer,COUNTIF(BW37:CJ37,"g")+COUNTIF(BY35:BY48,"g")+COUNTIF(CL37:CY37,"g")+COUNTIF(CN35:CN48,"g"),COUNTIF(BW37:CJ37,"g")+COUNTIF(BY35:BY48,"g"),COUNTIF(CL37:CY37,"g")+COUNTIF(CN35:CN48,"g"),COUNTIF(BW37:CJ37,"g")+COUNTIF(CL37:CY37,"g"),COUNTIF(BY35:BY48,"g")+COUNTIF(CN35:CN48,"g")) -> 1 | BO7: =CHOOSE(StandBer,SUM(BW7:CJ7)+SUM(BY20:BY33)+SUM(CL7:CY7)+SUM(CN20:CN33),SUM(BW7:CJ7)+SUM(BY20:BY33),SUM(CL7:CY7)+SUM(CN20:CN33),SUM(BW7:CJ7)+SUM(CL7:CY7),SUM(BY20:BY33)+SUM(CN20:CN33))-5*BR7 -> 25 | BP7: =CHOOSE(StandBer,SUM(BY5:BY18)+SUM(BW22:CJ22)+SUM(CN5:CN18)+SUM(CL22:CY22),SUM(BY5:BY18)+SUM(BW22:CJ22),SUM(CN5:CN18)+SUM(CL22:CY22),SUM(BY5:BY18)+SUM(CN5:CN18),SUM(BW22:CJ22)+SUM(CL22:CY22)) -> 13 | BQ7: 12 | BR7: =CHOOSE(StandBer,COUNTIF(BW37:CJ37,"ff")+COUNTIF(BY35:BY48,"ff")+COUNTIF(CL37:CY37,"ff")+COUNTIF(CN35:CN48,"ff"),COUNTIF(BW37:CJ37,"ff")+COUNTIF(BY35:BY48,"ff"),COUNTIF(CL37:CY37,"ff")+COUNTIF(CN35:CN48,"ff"),COUNTIF(BW37:CJ37,"ff")+COUNTIF(CL37:CY37,"ff"),COUNTIF(BY35:BY48,"ff")+COUNTIF(CN35:CN48,"ff")) -> 0 | BS7: 3 | BT7: =SMALL( $BH$5:$BH$18, BS7 ) -> 1.99020305 | BV7: 3 | BW7: =IF(OR(ISERROR(FIND("-",Q7)),AE7>'export html'!$AR$7),"",IF(LEFT(Q7,1)<>"*",LEFT(Q7,FIND("-",Q7)-1)-0,MID(Q7,2,FIND("-",Q7)-2)-0)) ->  | BX7: =IF(OR(ISERROR(FIND("-",R7)),AF7>'export html'!$AR$7),"",IF(LEFT(R7,1)<>"*",LEFT(R7,FIND("-",R7)-1)-0,MID(R7,2,FIND("-",R7)-2)-0)) -> 4 | BZ7: =IF(OR(ISERROR(FIND("-",T7)),AH7>'export html'!$AR$7),"",IF(LEFT(T7,1)<>"*",LEFT(T7,FIND("-",T7)-1)-0,MID(T7,2,FIND("-",T7)-2)-0)) ->  | CA7: =IF(OR(ISERROR(FIND("-",U7)),AI7>'export html'!$AR$7),"",IF(LEFT(U7,1)<>"*",LEFT(U7,FIND("-",U7)-1)-0,MID(U7,2,FIND("-",U7)-2)-0)) ->  | CB7: =IF(OR(ISERROR(FIND("-",V7)),AJ7>'export html'!$AR$7),"",IF(LEFT(V7,1)<>"*",LEFT(V7,FIND("-",V7)-1)-0,MID(V7,2,FIND("-",V7)-2)-0)) ->  | CC7: =IF(OR(ISERROR(FIND("-",W7)),AK7>'export html'!$AR$7),"",IF(LEFT(W7,1)<>"*",LEFT(W7,FIND("-",W7)-1)-0,MID(W7,2,FIND("-",W7)-2)-0)) ->  | CD7: =IF(OR(ISERROR(FIND("-",X7)),AL7>'export html'!$AR$7),"",IF(LEFT(X7,1)<>"*",LEFT(X7,FIND("-",X7)-1)-0,MID(X7,2,FIND("-",X7)-2)-0)) ->  | CE7: =IF(OR(ISERROR(FIND("-",Y7)),AM7>'export html'!$AR$7),"",IF(LEFT(Y7,1)<>"*",LEFT(Y7,FIND("-",Y7)-1)-0,MID(Y7,2,FIND("-",Y7)-2)-0)) -> 6 | CF7: =IF(OR(ISERROR(FIND("-",Z7)),AN7>'export html'!$AR$7),"",IF(LEFT(Z7,1)<>"*",LEFT(Z7,FIND("-",Z7)-1)-0,MID(Z7,2,FIND("-",Z7)-2)-0)) ->  | CG7: =IF(OR(ISERROR(FIND("-",AA7)),AO7>'export html'!$AR$7),"",IF(LEFT(AA7,1)<>"*",LEFT(AA7,FIND("-",AA7)-1)-0,MID(AA7,2,FIND("-",AA7)-2)-0)) ->  | CH7: =IF(OR(ISERROR(FIND("-",AB7)),AP7>'export html'!$AR$7),"",IF(LEFT(AB7,1)<>"*",LEFT(AB7,FIND("-",AB7)-1)-0,MID(AB7,2,FIND("-",AB7)-2)-0)) ->  | CI7: =IF(OR(ISERROR(FIND("-",AC7)),AQ7>'export html'!$AR$7),"",IF(LEFT(AC7,1)<>"*",LEFT(AC7,FIND("-",AC7)-1)-0,MID(AC7,2,FIND("-",AC7)-2)-0)) ->  | CJ7: =IF(OR(ISERROR(FIND("-",AD7)),AR7>'export html'!$AR$7),"",IF(LEFT(AD7,1)<>"*",LEFT(AD7,FIND("-",AD7)-1)-0,MID(AD7,2,FIND("-",AD7)-2)-0)) -> 4 | CK7: 3 | CL7: =IF(OR(ISERROR(FIND("-",Q7)),AE7<='export html'!$AR$7),"",IF(LEFT(Q7,1)<>"*",LEFT(Q7,FIND("-",Q7)-1)-0,MID(Q7,2,FIND("-",Q7)-2)-0)) ->  | CM7: =IF(OR(ISERROR(FIND("-",R7)),AF7<='export html'!$AR$7),"",IF(LEFT(R7,1)<>"*",LEFT(R7,FIND("-",R7)-1)-0,MID(R7,2,FIND("-",R7)-2)-0)) ->  | CO7: =IF(OR(ISERROR(FIND("-",T7)),AH7<='export html'!$AR$7),"",IF(LEFT(T7,1)<>"*",LEFT(T7,FIND("-",T7)-1)-0,MID(T7,2,FIND("-",T7)-2)-0)) ->  | CP7: =IF(OR(ISERROR(FIND("-",U7)),AI7<='export html'!$AR$7),"",IF(LEFT(U7,1)<>"*",LEFT(U7,FIND("-",U7)-1)-0,MID(U7,2,FIND("-",U7)-2)-0)) ->  | CQ7: =IF(OR(ISERROR(FIND("-",V7)),AJ7<='export html'!$AR$7),"",IF(LEFT(V7,1)<>"*",LEFT(V7,FIND("-",V7)-1)-0,MID(V7,2,FIND("-",V7)-2)-0)) ->  | CR7: =IF(OR(ISERROR(FIND("-",W7)),AK7<='export html'!$AR$7),"",IF(LEFT(W7,1)<>"*",LEFT(W7,FIND("-",W7)-1)-0,MID(W7,2,FIND("-",W7)-2)-0)) ->  | CS7: =IF(OR(ISERROR(FIND("-",X7)),AL7<='export html'!$AR$7),"",IF(LEFT(X7,1)<>"*",LEFT(X7,FIND("-",X7)-1)-0,MID(X7,2,FIND("-",X7)-2)-0)) ->  | CT7: =IF(OR(ISERROR(FIND("-",Y7)),AM7<='export html'!$AR$7),"",IF(LEFT(Y7,1)<>"*",LEFT(Y7,FIND("-",Y7)-1)-0,MID(Y7,2,FIND("-",Y7)-2)-0)) ->  | CU7: =IF(OR(ISERROR(FIND("-",Z7)),AN7<='export html'!$AR$7),"",IF(LEFT(Z7,1)<>"*",LEFT(Z7,FIND("-",Z7)-1)-0,MID(Z7,2,FIND("-",Z7)-2)-0)) ->  | CV7: =IF(OR(ISERROR(FIND("-",AA7)),AO7<='export html'!$AR$7),"",IF(LEFT(AA7,1)<>"*",LEFT(AA7,FIND("-",AA7)-1)-0,MID(AA7,2,FIND("-",AA7)-2)-0)) ->  | CW7: =IF(OR(ISERROR(FIND("-",AB7)),AP7<='export html'!$AR$7),"",IF(LEFT(AB7,1)<>"*",LEFT(AB7,FIND("-",AB7)-1)-0,MID(AB7,2,FIND("-",AB7)-2)-0)) ->  | CX7: =IF(OR(ISERROR(FIND("-",AC7)),AQ7<='export html'!$AR$7),"",IF(LEFT(AC7,1)<>"*",LEFT(AC7,FIND("-",AC7)-1)-0,MID(AC7,2,FIND("-",AC7)-2)-0)) ->  | CY7: =IF(OR(ISERROR(FIND("-",AD7)),AR7<='export html'!$AR$7),"",IF(LEFT(AD7,1)<>"*",LEFT(AD7,FIND("-",AD7)-1)-0,MID(AD7,2,FIND("-",AD7)-2)-0)) ->  | CZ7: 3
C8: 4 | D8: =VLOOKUP(BT8,HulpberekeningenStand,2,FALSE) -> Sint Anneke | E8: =3*H8+J8 -> 12 | F8: =SUM(H8:J8) -> 6 | G8: =REPT(IF(F8-MODE($F$5:$F$18)<0,"-","+"),ABS(F8-MODE($F$5:$F$18))) ->  | H8: =VLOOKUP(BT8,HulpberekeningenStand,5,FALSE) -> 4 | I8: =VLOOKUP(BT8,HulpberekeningenStand,6,FALSE) -> 2 | J8: =VLOOKUP(BT8,HulpberekeningenStand,7,FALSE) -> 0 | K8: =VLOOKUP(BT8,HulpberekeningenStand,8,FALSE) -> 29 | L8: =VLOOKUP(BT8,HulpberekeningenStand,9,FALSE) -> 20 | M8: =K8-L8 -> 9 | N8: =3*F8-E8 -> 6 | P8: Bariton | Q8: 4-1 | R8: 2-7 | S8: 3-7 | AE8: 5 | AF8: 1 | AG8: 3 | AI8: 9 | AJ8: 21 | AK8: 17 | AL8: 7 | AM8: 13 | AN8: 11 | AO8: 15 | AP8: 23 | AQ8: 19 | AR8: 25 | AS8: 2024-09-29 | AT8: 2024-09-01 | AU8: 2024-09-15 | AW8: 2024-11-03 | AX8: 2025-02-23 | AY8: 2025-01-26 | AZ8: 2024-10-13 | BA8: 2024-12-01 | BB8: 2024-11-17 | BC8: 2025-01-12 | BD8: 2025-03-16 | BE8: 2025-02-09 | BF8: 2025-03-30 | BH8: =RANK( BJ8, $BJ$5:$BJ$18, 0 ) - RANK( BK8, $BK$5:$BK$18, 0 ) / 10^2 + RANK( BL8, $BL$5:$BL$18, 0 ) / 10^4 + RANK( BQ8, $BQ$5:$BQ$18, 0 ) / 10^6 + RANK( BO8, $BO$5:$BO$18, 0 ) / 10^8 + BS8 / 10^10 -> 7.99080809 | BI8: Bariton | BJ8: 7 | BK8: 6 | BL8: =CHOOSE(StandBer,COUNTIF(BW38:CJ38,"t")+COUNTIF(BZ35:BZ48,"u")+COUNTIF(CL38:CY38,"t")+COUNTIF(CO35:CO48,"u"),COUNTIF(BW38:CJ38,"t")+COUNTIF(BZ35:BZ48,"u"),COUNTIF(CL38:CY38,"t")+COUNTIF(CO35:CO48,"u"),COUNTIF(BW38:CJ38,"t")+COUNTIF(CL38:CY38,"t"),COUNTIF(BZ35:BZ48,"u")+COUNTIF(CO35:CO48,"u")) -> 2 | BM8: =CHOOSE(StandBer,COUNTIF(BW38:CJ38,"u")+COUNTIF(BZ35:BZ48,"t")+COUNTIF(CL38:CY38,"u")+COUNTIF(CO35:CO48,"t"),COUNTIF(BW38:CJ38,"u")+COUNTIF(BZ35:BZ48,"t"),COUNTIF(CL38:CY38,"u")+COUNTIF(CO35:CO48,"t"),COUNTIF(BW38:CJ38,"u")+COUNTIF(CL38:CY38,"u"),COUNTIF(BZ35:BZ48,"t")+COUNTIF(CO35:CO48,"t"))+BR8 -> 3 | BN8: =CHOOSE(StandBer,COUNTIF(BW38:CJ38,"g")+COUNTIF(BZ35:BZ48,"g")+COUNTIF(CL38:CY38,"g")+COUNTIF(CO35:CO48,"g"),COUNTIF(BW38:CJ38,"g")+COUNTIF(BZ35:BZ48,"g"),COUNTIF(CL38:CY38,"g")+COUNTIF(CO35:CO48,"g"),COUNTIF(BW38:CJ38,"g")+COUNTIF(CL38:CY38,"g"),COUNTIF(BZ35:BZ48,"g")+COUNTIF(CO35:CO48,"g")) -> 1 | BO8: =CHOOSE(StandBer,SUM(BW8:CJ8)+SUM(BZ20:BZ33)+SUM(CL8:CY8)+SUM(CO20:CO33),SUM(BW8:CJ8)+SUM(BZ20:BZ33),SUM(CL8:CY8)+SUM(CO20:CO33),SUM(BW8:CJ8)+SUM(CL8:CY8),SUM(BZ20:BZ33)+SUM(CO20:CO33))-5*BR8 -> 16 | BP8: =CHOOSE(StandBer,SUM(BZ5:BZ18)+SUM(BW23:CJ23)+SUM(CO5:CO18)+SUM(CL23:CY23),SUM(BZ5:BZ18)+SUM(BW23:CJ23),SUM(CO5:CO18)+SUM(CL23:CY23),SUM(BZ5:BZ18)+SUM(CO5:CO18),SUM(BW23:CJ23)+SUM(CL23:CY23)) -> 19 | BQ8: -3 | BR8: =CHOOSE(StandBer,COUNTIF(BW38:CJ38,"ff")+COUNTIF(BZ35:BZ48,"ff")+COUNTIF(CL38:CY38,"ff")+COUNTIF(CO35:CO48,"ff"),COUNTIF(BW38:CJ38,"ff")+COUNTIF(BZ35:BZ48,"ff"),COUNTIF(CL38:CY38,"ff")+COUNTIF(CO35:CO48,"ff"),COUNTIF(BW38:CJ38,"ff")+COUNTIF(CL38:CY38,"ff"),COUNTIF(BZ35:BZ48,"ff")+COUNTIF(CO35:CO48,"ff")) -> 0 | BS8: 4 | BT8: =SMALL( $BH$5:$BH$18, BS8 ) -> 3.990205011 | BV8: 4 | BW8: =IF(OR(ISERROR(FIND("-",Q8)),AE8>'export html'!$AR$7),"",IF(LEFT(Q8,1)<>"*",LEFT(Q8,FIND("-",Q8)-1)-0,MID(Q8,2,FIND("-",Q8)-2)-0)) -> 4 | BX8: =IF(OR(ISERROR(FIND("-",R8)),AF8>'export html'!$AR$7),"",IF(LEFT(R8,1)<>"*",LEFT(R8,FIND("-",R8)-1)-0,MID(R8,2,FIND("-",R8)-2)-0)) -> 2 | BY8: =IF(OR(ISERROR(FIND("-",S8)),AG8>'export html'!$AR$7),"",IF(LEFT(S8,1)<>"*",LEFT(S8,FIND("-",S8)-1)-0,MID(S8,2,FIND("-",S8)-2)-0)) -> 3 | CA8: =IF(OR(ISERROR(FIND("-",U8)),AI8>'export html'!$AR$7),"",IF(LEFT(U8,1)<>"*",LEFT(U8,FIND("-",U8)-1)-0,MID(U8,2,FIND("-",U8)-2)-0)) ->  | CB8: =IF(OR(ISERROR(FIND("-",V8)),AJ8>'export html'!$AR$7),"",IF(LEFT(V8,1)<>"*",LEFT(V8,FIND("-",V8)-1)-0,MID(V8,2,FIND("-",V8)-2)-0)) ->  | CC8: =IF(OR(ISERROR(FIND("-",W8)),AK8>'export html'!$AR$7),"",IF(LEFT(W8,1)<>"*",LEFT(W8,FIND("-",W8)-1)-0,MID(W8,2,FIND("-",W8)-2)-0)) ->  | CD8: =IF(OR(ISERROR(FIND("-",X8)),AL8>'export html'!$AR$7),"",IF(LEFT(X8,1)<>"*",LEFT(X8,FIND("-",X8)-1)-0,MID(X8,2,FIND("-",X8)-2)-0)) ->  | CE8: =IF(OR(ISERROR(FIND("-",Y8)),AM8>'export html'!$AR$7),"",IF(LEFT(Y8,1)<>"*",LEFT(Y8,FIND("-",Y8)-1)-0,MID(Y8,2,FIND("-",Y8)-2)-0)) ->  | CF8: =IF(OR(ISERROR(FIND("-",Z8)),AN8>'export html'!$AR$7),"",IF(LEFT(Z8,1)<>"*",LEFT(Z8,FIND("-",Z8)-1)-0,MID(Z8,2,FIND("-",Z8)-2)-0)) ->  | CG8: =IF(OR(ISERROR(FIND("-",AA8)),AO8>'export html'!$AR$7),"",IF(LEFT(AA8,1)<>"*",LEFT(AA8,FIND("-",AA8)-1)-0,MID(AA8,2,FIND("-",AA8)-2)-0)) ->  | CH8: =IF(OR(ISERROR(FIND("-",AB8)),AP8>'export html'!$AR$7),"",IF(LEFT(AB8,1)<>"*",LEFT(AB8,FIND("-",AB8)-1)-0,MID(AB8,2,FIND("-",AB8)-2)-0)) ->  | CI8: =IF(OR(ISERROR(FIND("-",AC8)),AQ8>'export html'!$AR$7),"",IF(LEFT(AC8,1)<>"*",LEFT(AC8,FIND("-",AC8)-1)-0,MID(AC8,2,FIND("-",AC8)-2)-0)) ->  | CJ8: =IF(OR(ISERROR(FIND("-",AD8)),AR8>'export html'!$AR$7),"",IF(LEFT(AD8,1)<>"*",LEFT(AD8,FIND("-",AD8)-1)-0,MID(AD8,2,FIND("-",AD8)-2)-0)) ->  | CK8: 4 | CL8: =IF(OR(ISERROR(FIND("-",Q8)),AE8<='export html'!$AR$7),"",IF(LEFT(Q8,1)<>"*",LEFT(Q8,FIND("-",Q8)-1)-0,MID(Q8,2,FIND("-",Q8)-2)-0)) ->  | CM8: =IF(OR(ISERROR(FIND("-",R8)),AF8<='export html'!$AR$7),"",IF(LEFT(R8,1)<>"*",LEFT(R8,FIND("-",R8)-1)-0,MID(R8,2,FIND("-",R8)-2)-0)) ->  | CN8: =IF(OR(ISERROR(FIND("-",S8)),AG8<='export html'!$AR$7),"",IF(LEFT(S8,1)<>"*",LEFT(S8,FIND("-",S8)-1)-0,MID(S8,2,FIND("-",S8)-2)-0)) ->  | CP8: =IF(OR(ISERROR(FIND("-",U8)),AI8<='export html'!$AR$7),"",IF(LEFT(U8,1)<>"*",LEFT(U8,FIND("-",U8)-1)-0,MID(U8,2,FIND("-",U8)-2)-0)) ->  | CQ8: =IF(OR(ISERROR(FIND("-",V8)),AJ8<='export html'!$AR$7),"",IF(LEFT(V8,1)<>"*",LEFT(V8,FIND("-",V8)-1)-0,MID(V8,2,FIND("-",V8)-2)-0)) ->  | CR8: =IF(OR(ISERROR(FIND("-",W8)),AK8<='export html'!$AR$7),"",IF(LEFT(W8,1)<>"*",LEFT(W8,FIND("-",W8)-1)-0,MID(W8,2,FIND("-",W8)-2)-0)) ->  | CS8: =IF(OR(ISERROR(FIND("-",X8)),AL8<='export html'!$AR$7),"",IF(LEFT(X8,1)<>"*",LEFT(X8,FIND("-",X8)-1)-0,MID(X8,2,FIND("-",X8)-2)-0)) ->  | CT8: =IF(OR(ISERROR(FIND("-",Y8)),AM8<='export html'!$AR$7),"",IF(LEFT(Y8,1)<>"*",LEFT(Y8,FIND("-",Y8)-1)-0,MID(Y8,2,FIND("-",Y8)-2)-0)) ->  | CU8: =IF(OR(ISERROR(FIND("-",Z8)),AN8<='export html'!$AR$7),"",IF(LEFT(Z8,1)<>"*",LEFT(Z8,FIND("-",Z8)-1)-0,MID(Z8,2,FIND("-",Z8)-2)-0)) ->  | CV8: =IF(OR(ISERROR(FIND("-",AA8)),AO8<='export html'!$AR$7),"",IF(LEFT(AA8,1)<>"*",LEFT(AA8,FIND("-",AA8)-1)-0,MID(AA8,2,FIND("-",AA8)-2)-0)) ->  | CW8: =IF(OR(ISERROR(FIND("-",AB8)),AP8<='export html'!$AR$7),"",IF(LEFT(AB8,1)<>"*",LEFT(AB8,FIND("-",AB8)-1)-0,MID(AB8,2,FIND("-",AB8)-2)-0)) ->  | CX8: =IF(OR(ISERROR(FIND("-",AC8)),AQ8<='export html'!$AR$7),"",IF(LEFT(AC8,1)<>"*",LEFT(AC8,FIND("-",AC8)-1)-0,MID(AC8,2,FIND("-",AC8)-2)-0)) ->  | CY8: =IF(OR(ISERROR(FIND("-",AD8)),AR8<='export html'!$AR$7),"",IF(LEFT(AD8,1)<>"*",LEFT(AD8,FIND("-",AD8)-1)-0,MID(AD8,2,FIND("-",AD8)-2)-0)) ->  | CZ8: 4
D9: Antwerp Global | E9: 12 | F9: 6 | G9: =REPT(IF(F9-MODE($F$5:$F$18)<0,"-","+"),ABS(F9-MODE($F$5:$F$18))) ->  | H9: 4 | I9: 2 | J9: 0 | K9: 21 | L9: 12 | M9: 9 | N9: 6 | P9: Corum | Q9: 2-3 | X9: 4-5 | AB9: 2-10 | AE9: 1 | AF9: 10 | AG9: 12 | AH9: 22 | AJ9: 17 | AK9: 26 | AL9: 3 | AM9: 18 | AN9: 20 | AO9: 24 | AP9: 6 | AQ9: 15 | AR9: 8 | AS9: 2024-09-01 | AT9: 2024-11-10 | AU9: 2024-11-24 | AV9: 2025-03-09 | AX9: 2025-01-26 | AY9: 2025-04-06 | AZ9: 2024-09-15 | BA9: 2025-02-02 | BB9: 2025-02-16 | BC9: 2025-03-23 | BD9: 2024-10-06 | BE9: 2025-01-12 | BF9: 2024-10-20 | BH9: =RANK( BJ9, $BJ$5:$BJ$18, 0 ) - RANK( BK9, $BK$5:$BK$18, 0 ) / 10^2 + RANK( BL9, $BL$5:$BL$18, 0 ) / 10^4 + RANK( BQ9, $BQ$5:$BQ$18, 0 ) / 10^6 + RANK( BO9, $BO$5:$BO$18, 0 ) / 10^8 + BS9 / 10^10 -> 11.99111007 | BI9: Corum | BJ9: 4 | BK9: 6 | BL9: =CHOOSE(StandBer,COUNTIF(BW39:CJ39,"t")+COUNTIF(CA35:CA48,"u")+COUNTIF(CL39:CY39,"t")+COUNTIF(CP35:CP48,"u"),COUNTIF(BW39:CJ39,"t")+COUNTIF(CA35:CA48,"u"),COUNTIF(CL39:CY39,"t")+COUNTIF(CP35:CP48,"u"),COUNTIF(BW39:CJ39,"t")+COUNTIF(CL39:CY39,"t"),COUNTIF(CA35:CA48,"u")+COUNTIF(CP35:CP48,"u")) -> 1 | BM9: =CHOOSE(StandBer,COUNTIF(BW39:CJ39,"u")+COUNTIF(CA35:CA48,"t")+COUNTIF(CL39:CY39,"u")+COUNTIF(CP35:CP48,"t"),COUNTIF(BW39:CJ39,"u")+COUNTIF(CA35:CA48,"t"),COUNTIF(CL39:CY39,"u")+COUNTIF(CP35:CP48,"t"),COUNTIF(BW39:CJ39,"u")+COUNTIF(CL39:CY39,"u"),COUNTIF(CA35:CA48,"t")+COUNTIF(CP35:CP48,"t"))+BR9 -> 4 | BN9: =CHOOSE(StandBer,COUNTIF(BW39:CJ39,"g")+COUNTIF(CA35:CA48,"g")+COUNTIF(CL39:CY39,"g")+COUNTIF(CP35:CP48,"g"),COUNTIF(BW39:CJ39,"g")+COUNTIF(CA35:CA48,"g"),COUNTIF(CL39:CY39,"g")+COUNTIF(CP35:CP48,"g"),COUNTIF(BW39:CJ39,"g")+COUNTIF(CL39:CY39,"g"),COUNTIF(CA35:CA48,"g")+COUNTIF(CP35:CP48,"g")) -> 1 | BO9: =CHOOSE(StandBer,SUM(BW9:CJ9)+SUM(CA20:CA33)+SUM(CL9:CY9)+SUM(CP20:CP33),SUM(BW9:CJ9)+SUM(CA20:CA33),SUM(CL9:CY9)+SUM(CP20:CP33),SUM(BW9:CJ9)+SUM(CL9:CY9),SUM(CA20:CA33)+SUM(CP20:CP33))-5*BR9 -> 20 | BP9: =CHOOSE(StandBer,SUM(CA5:CA18)+SUM(BW24:CJ24)+SUM(CP5:CP18)+SUM(CL24:CY24),SUM(CA5:CA18)+SUM(BW24:CJ24),SUM(CP5:CP18)+SUM(CL24:CY24),SUM(CA5:CA18)+SUM(CP5:CP18),SUM(BW24:CJ24)+SUM(CL24:CY24)) -> 26 | BQ9: -6 | BR9: =CHOOSE(StandBer,COUNTIF(BW39:CJ39,"ff")+COUNTIF(CA35:CA48,"ff")+COUNTIF(CL39:CY39,"ff")+COUNTIF(CP35:CP48,"ff"),COUNTIF(BW39:CJ39,"ff")+COUNTIF(CA35:CA48,"ff"),COUNTIF(CL39:CY39,"ff")+COUNTIF(CP35:CP48,"ff"),COUNTIF(BW39:CJ39,"ff")+COUNTIF(CL39:CY39,"ff"),COUNTIF(CA35:CA48,"ff")+COUNTIF(CP35:CP48,"ff")) -> 0 | BS9: 5 | BT9: =SMALL( $BH$5:$BH$18, BS9 ) -> 3.99020505 | BV9: 5 | BW9: =IF(OR(ISERROR(FIND("-",Q9)),AE9>'export html'!$AR$7),"",IF(LEFT(Q9,1)<>"*",LEFT(Q9,FIND("-",Q9)-1)-0,MID(Q9,2,FIND("-",Q9)-2)-0)) -> 2 | BX9: =IF(OR(ISERROR(FIND("-",R9)),AF9>'export html'!$AR$7),"",IF(LEFT(R9,1)<>"*",LEFT(R9,FIND("-",R9)-1)-0,MID(R9,2,FIND("-",R9)-2)-0)) ->  | BY9: =IF(OR(ISERROR(FIND("-",S9)),AG9>'export html'!$AR$7),"",IF(LEFT(S9,1)<>"*",LEFT(S9,FIND("-",S9)-1)-0,MID(S9,2,FIND("-",S9)-2)-0)) ->  | BZ9: =IF(OR(ISERROR(FIND("-",T9)),AH9>'export html'!$AR$7),"",IF(LEFT(T9,1)<>"*",LEFT(T9,FIND("-",T9)-1)-0,MID(T9,2,FIND("-",T9)-2)-0)) ->  | CB9: =IF(OR(ISERROR(FIND("-",V9)),AJ9>'export html'!$AR$7),"",IF(LEFT(V9,1)<>"*",LEFT(V9,FIND("-",V9)-1)-0,MID(V9,2,FIND("-",V9)-2)-0)) ->  | CC9: =IF(OR(ISERROR(FIND("-",W9)),AK9>'export html'!$AR$7),"",IF(LEFT(W9,1)<>"*",LEFT(W9,FIND("-",W9)-1)-0,MID(W9,2,FIND("-",W9)-2)-0)) ->  | CD9: =IF(OR(ISERROR(FIND("-",X9)),AL9>'export html'!$AR$7),"",IF(LEFT(X9,1)<>"*",LEFT(X9,FIND("-",X9)-1)-0,MID(X9,2,FIND("-",X9)-2)-0)) -> 4 | CE9: =IF(OR(ISERROR(FIND("-",Y9)),AM9>'export html'!$AR$7),"",IF(LEFT(Y9,1)<>"*",LEFT(Y9,FIND("-",Y9)-1)-0,MID(Y9,2,FIND("-",Y9)-2)-0)) ->  | CF9: =IF(OR(ISERROR(FIND("-",Z9)),AN9>'export html'!$AR$7),"",IF(LEFT(Z9,1)<>"*",LEFT(Z9,FIND("-",Z9)-1)-0,MID(Z9,2,FIND("-",Z9)-2)-0)) ->  | CG9: =IF(OR(ISERROR(FIND("-",AA9)),AO9>'export html'!$AR$7),"",IF(LEFT(AA9,1)<>"*",LEFT(AA9,FIND("-",AA9)-1)-0,MID(AA9,2,FIND("-",AA9)-2)-0)) ->  | CH9: =IF(OR(ISERROR(FIND("-",AB9)),AP9>'export html'!$AR$7),"",IF(LEFT(AB9,1)<>"*",LEFT(AB9,FIND("-",AB9)-1)-0,MID(AB9,2,FIND("-",AB9)-2)-0)) -> 2 | CI9: =IF(OR(ISERROR(FIND("-",AC9)),AQ9>'export html'!$AR$7),"",IF(LEFT(AC9,1)<>"*",LEFT(AC9,FIND("-",AC9)-1)-0,MID(AC9,2,FIND("-",AC9)-2)-0)) ->  | CJ9: =IF(OR(ISERROR(FIND("-",AD9)),AR9>'export html'!$AR$7),"",IF(LEFT(AD9,1)<>"*",LEFT(AD9,FIND("-",AD9)-1)-0,MID(AD9,2,FIND("-",AD9)-2)-0)) ->  | CK9: 5 | CL9: =IF(OR(ISERROR(FIND("-",Q9)),AE9<='export html'!$AR$7),"",IF(LEFT(Q9,1)<>"*",LEFT(Q9,FIND("-",Q9)-1)-0,MID(Q9,2,FIND("-",Q9)-2)-0)) ->  | CM9: =IF(OR(ISERROR(FIND("-",R9)),AF9<='export html'!$AR$7),"",IF(LEFT(R9,1)<>"*",LEFT(R9,FIND("-",R9)-1)-0,MID(R9,2,FIND("-",R9)-2)-0)) ->  | CN9: =IF(OR(ISERROR(FIND("-",S9)),AG9<='export html'!$AR$7),"",IF(LEFT(S9,1)<>"*",LEFT(S9,FIND("-",S9)-1)-0,MID(S9,2,FIND("-",S9)-2)-0)) ->  | CO9: =IF(OR(ISERROR(FIND("-",T9)),AH9<='export html'!$AR$7),"",IF(LEFT(T9,1)<>"*",LEFT(T9,FIND("-",T9)-1)-0,MID(T9,2,FIND("-",T9)-2)-0)) ->  | CQ9: =IF(OR(ISERROR(FIND("-",V9)),AJ9<='export html'!$AR$7),"",IF(LEFT(V9,1)<>"*",LEFT(V9,FIND("-",V9)-1)-0,MID(V9,2,FIND("-",V9)-2)-0)) ->  | CR9: =IF(OR(ISERROR(FIND("-",W9)),AK9<='export html'!$AR$7),"",IF(LEFT(W9,1)<>"*",LEFT(W9,FIND("-",W9)-1)-0,MID(W9,2,FIND("-",W9)-2)-0)) ->  | CS9: =IF(OR(ISERROR(FIND("-",X9)),AL9<='export html'!$AR$7),"",IF(LEFT(X9,1)<>"*",LEFT(X9,FIND("-",X9)-1)-0,MID(X9,2,FIND("-",X9)-2)-0)) ->  | CT9: =IF(OR(ISERROR(FIND("-",Y9)),AM9<='export html'!$AR$7),"",IF(LEFT(Y9,1)<>"*",LEFT(Y9,FIND("-",Y9)-1)-0,MID(Y9,2,FIND("-",Y9)-2)-0)) ->  | CU9: =IF(OR(ISERROR(FIND("-",Z9)),AN9<='export html'!$AR$7),"",IF(LEFT(Z9,1)<>"*",LEFT(Z9,FIND("-",Z9)-1)-0,MID(Z9,2,FIND("-",Z9)-2)-0)) ->  | CV9: =IF(OR(ISERROR(FIND("-",AA9)),AO9<='export html'!$AR$7),"",IF(LEFT(AA9,1)<>"*",LEFT(AA9,FIND("-",AA9)-1)-0,MID(AA9,2,FIND("-",AA9)-2)-0)) ->  | CW9: =IF(OR(ISERROR(FIND("-",AB9)),AP9<='export html'!$AR$7),"",IF(LEFT(AB9,1)<>"*",LEFT(AB9,FIND("-",AB9)-1)-0,MID(AB9,2,FIND("-",AB9)-2)-0)) ->  | CX9: =IF(OR(ISERROR(FIND("-",AC9)),AQ9<='export html'!$AR$7),"",IF(LEFT(AC9,1)<>"*",LEFT(AC9,FIND("-",AC9)-1)-0,MID(AC9,2,FIND("-",AC9)-2)-0)) ->  | CY9: =IF(OR(ISERROR(FIND("-",AD9)),AR9<='export html'!$AR$7),"",IF(LEFT(AD9,1)<>"*",LEFT(AD9,FIND("-",AD9)-1)-0,MID(AD9,2,FIND("-",AD9)-2)-0)) ->  | CZ9: 5
D10: =VLOOKUP(BT10,HulpberekeningenStand,2,FALSE) -> Yerevan United | E10: =3*H10+J10 -> 12 | F10: =SUM(H10:J10) -> 6 | G10: =REPT(IF(F10-MODE($F$5:$F$18)<0,"-","+"),ABS(F10-MODE($F$5:$F$18))) ->  | H10: =VLOOKUP(BT10,HulpberekeningenStand,5,FALSE) -> 3 | I10: =VLOOKUP(BT10,HulpberekeningenStand,6,FALSE) -> 0 | J10: =VLOOKUP(BT10,HulpberekeningenStand,7,FALSE) -> 3 | K10: =VLOOKUP(BT10,HulpberekeningenStand,8,FALSE) -> 28 | L10: =VLOOKUP(BT10,HulpberekeningenStand,9,FALSE) -> 13 | M10: =K10-L10 -> 15 | N10: =3*F10-E10 -> 6 | P10: Daltons | U10: 4-1 | Z10: 3-0 | AC10: 4-1 | AE10: 26 | AF10: 22 | AG10: 24 | AH10: 8 | AI10: 4 | AK10: 12 | AL10: 15 | AM10: 16 | AN10: 6 | AO10: 10 | AP10: 18 | AQ10: 1 | AR10: 20 | AS10: 2025-04-06 | AT10: 2025-03-09 | AU10: 2025-03-23 | AV10: 2024-10-20 | AW10: 2024-09-22 | AY10: 2024-11-24 | AZ10: 2025-01-12 | BA10: 2025-01-19 | BB10: 2024-10-06 | BC10: 2024-11-10 | BD10: 2025-02-02 | BE10: 2024-09-01 | BF10: 2025-02-16 | BH10: =RANK( BJ10, $BJ$5:$BJ$18, 0 ) - RANK( BK10, $BK$5:$BK$18, 0 ) / 10^2 + RANK( BL10, $BL$5:$BL$18, 0 ) / 10^4 + RANK( BQ10, $BQ$5:$BQ$18, 0 ) / 10^6 + RANK( BO10, $BO$5:$BO$18, 0 ) / 10^8 + BS10 / 10^10 -> 0.9901010406 | BI10: =P10 -> Daltons | BJ10: =3 * BL10 + BN10 -> 18 | BK10: =SUM( BL10:BN10 ) -> 6 | BL10: =CHOOSE(StandBer,COUNTIF(BW40:CJ40,"t")+COUNTIF(CB35:CB48,"u")+COUNTIF(CL40:CY40,"t")+COUNTIF(CQ35:CQ48,"u"),COUNTIF(BW40:CJ40,"t")+COUNTIF(CB35:CB48,"u"),COUNTIF(CL40:CY40,"t")+COUNTIF(CQ35:CQ48,"u"),COUNTIF(BW40:CJ40,"t")+COUNTIF(CL40:CY40,"t"),COUNTIF(CB35:CB48,"u")+COUNTIF(CQ35:CQ48,"u")) -> 6 | BM10: =CHOOSE(StandBer,COUNTIF(BW40:CJ40,"u")+COUNTIF(CB35:CB48,"t")+COUNTIF(CL40:CY40,"u")+COUNTIF(CQ35:CQ48,"t"),COUNTIF(BW40:CJ40,"u")+COUNTIF(CB35:CB48,"t"),COUNTIF(CL40:CY40,"u")+COUNTIF(CQ35:CQ48,"t"),COUNTIF(BW40:CJ40,"u")+COUNTIF(CL40:CY40,"u"),COUNTIF(CB35:CB48,"t")+COUNTIF(CQ35:CQ48,"t"))+BR10 -> 0 | BN10: =CHOOSE(StandBer,COUNTIF(BW40:CJ40,"g")+COUNTIF(CB35:CB48,"g")+COUNTIF(CL40:CY40,"g")+COUNTIF(CQ35:CQ48,"g"),COUNTIF(BW40:CJ40,"g")+COUNTIF(CB35:CB48,"g"),COUNTIF(CL40:CY40,"g")+COUNTIF(CQ35:CQ48,"g"),COUNTIF(BW40:CJ40,"g")+COUNTIF(CL40:CY40,"g"),COUNTIF(CB35:CB48,"g")+COUNTIF(CQ35:CQ48,"g")) -> 0 | BO10: =CHOOSE(StandBer,SUM(BW10:CJ10)+SUM(CB20:CB33)+SUM(CL10:CY10)+SUM(CQ20:CQ33),SUM(BW10:CJ10)+SUM(CB20:CB33),SUM(CL10:CY10)+SUM(CQ20:CQ33),SUM(BW10:CJ10)+SUM(CL10:CY10),SUM(CB20:CB33)+SUM(CQ20:CQ33))-5*BR10 -> 24 | BP10: =CHOOSE(StandBer,SUM(CB5:CB18)+SUM(BW25:CJ25)+SUM(CQ5:CQ18)+SUM(CL25:CY25),SUM(CB5:CB18)+SUM(BW25:CJ25),SUM(CQ5:CQ18)+SUM(CL25:CY25),SUM(CB5:CB18)+SUM(CQ5:CQ18),SUM(BW25:CJ25)+SUM(CL25:CY25)) -> 6 | BQ10: =BO10 - BP10 -> 18 | BR10: =CHOOSE(StandBer,COUNTIF(BW40:CJ40,"ff")+COUNTIF(CB35:CB48,"ff")+COUNTIF(CL40:CY40,"ff")+COUNTIF(CQ35:CQ48,"ff"),COUNTIF(BW40:CJ40,"ff")+COUNTIF(CB35:CB48,"ff"),COUNTIF(CL40:CY40,"ff")+COUNTIF(CQ35:CQ48,"ff"),COUNTIF(BW40:CJ40,"ff")+COUNTIF(CL40:CY40,"ff"),COUNTIF(CB35:CB48,"ff")+COUNTIF(CQ35:CQ48,"ff")) -> 0 | BS10: 6 | BT10: =SMALL( $BH$5:$BH$18, BS10 ) -> 3.990602021 | BV10: 6 | BW10: =IF(OR(ISERROR(FIND("-",Q10)),AE10>'export html'!$AR$7),"",IF(LEFT(Q10,1)<>"*",LEFT(Q10,FIND("-",Q10)-1)-0,MID(Q10,2,FIND("-",Q10)-2)-0)) ->  | BX10: =IF(OR(ISERROR(FIND("-",R10)),AF10>'export html'!$AR$7),"",IF(LEFT(R10,1)<>"*",LEFT(R10,FIND("-",R10)-1)-0,MID(R10,2,FIND("-",R10)-2)-0)) ->  | BY10: =IF(OR(ISERROR(FIND("-",S10)),AG10>'export html'!$AR$7),"",IF(LEFT(S10,1)<>"*",LEFT(S10,FIND("-",S10)-1)-0,MID(S10,2,FIND("-",S10)-2)-0)) ->  | BZ10: =IF(OR(ISERROR(FIND("-",T10)),AH10>'export html'!$AR$7),"",IF(LEFT(T10,1)<>"*",LEFT(T10,FIND("-",T10)-1)-0,MID(T10,2,FIND("-",T10)-2)-0)) ->  | CA10: =IF(OR(ISERROR(FIND("-",U10)),AI10>'export html'!$AR$7),"",IF(LEFT(U10,1)<>"*",LEFT(U10,FIND("-",U10)-1)-0,MID(U10,2,FIND("-",U10)-2)-0)) -> 4 | CC10: =IF(OR(ISERROR(FIND("-",W10)),AK10>'export html'!$AR$7),"",IF(LEFT(W10,1)<>"*",LEFT(W10,FIND("-",W10)-1)-0,MID(W10,2,FIND("-",W10)-2)-0)) ->  | CD10: =IF(OR(ISERROR(FIND("-",X10)),AL10>'export html'!$AR$7),"",IF(LEFT(X10,1)<>"*",LEFT(X10,FIND("-",X10)-1)-0,MID(X10,2,FIND("-",X10)-2)-0)) ->  | CE10: =IF(OR(ISERROR(FIND("-",Y10)),AM10>'export html'!$AR$7),"",IF(LEFT(Y10,1)<>"*",LEFT(Y10,FIND("-",Y10)-1)-0,MID(Y10,2,FIND("-",Y10)-2)-0)) ->  | CF10: =IF(OR(ISERROR(FIND("-",Z10)),AN10>'export html'!$AR$7),"",IF(LEFT(Z10,1)<>"*",LEFT(Z10,FIND("-",Z10)-1)-0,MID(Z10,2,FIND("-",Z10)-2)-0)) -> 3 | CG10: =IF(OR(ISERROR(FIND("-",AA10)),AO10>'export html'!$AR$7),"",IF(LEFT(AA10,1)<>"*",LEFT(AA10,FIND("-",AA10)-1)-0,MID(AA10,2,FIND("-",AA10)-2)-0)) ->  | CH10: =IF(OR(ISERROR(FIND("-",AB10)),AP10>'export html'!$AR$7),"",IF(LEFT(AB10,1)<>"*",LEFT(AB10,FIND("-",AB10)-1)-0,MID(AB10,2,FIND("-",AB10)-2)-0)) ->  | CI10: =IF(OR(ISERROR(FIND("-",AC10)),AQ10>'export html'!$AR$7),"",IF(LEFT(AC10,1)<>"*",LEFT(AC10,FIND("-",AC10)-1)-0,MID(AC10,2,FIND("-",AC10)-2)-0)) -> 4 | CJ10: =IF(OR(ISERROR(FIND("-",AD10)),AR10>'export html'!$AR$7),"",IF(LEFT(AD10,1)<>"*",LEFT(AD10,FIND("-",AD10)-1)-0,MID(AD10,2,FIND("-",AD10)-2)-0)) ->  | CK10: 6 | CL10: =IF(OR(ISERROR(FIND("-",Q10)),AE10<='export html'!$AR$7),"",IF(LEFT(Q10,1)<>"*",LEFT(Q10,FIND("-",Q10)-1)-0,MID(Q10,2,FIND("-",Q10)-2)-0)) ->  | CM10: =IF(OR(ISERROR(FIND("-",R10)),AF10<='export html'!$AR$7),"",IF(LEFT(R10,1)<>"*",LEFT(R10,FIND("-",R10)-1)-0,MID(R10,2,FIND("-",R10)-2)-0)) ->  | CN10: =IF(OR(ISERROR(FIND("-",S10)),AG10<='export html'!$AR$7),"",IF(LEFT(S10,1)<>"*",LEFT(S10,FIND("-",S10)-1)-0,MID(S10,2,FIND("-",S10)-2)-0)) ->  | CO10: =IF(OR(ISERROR(FIND("-",T10)),AH10<='export html'!$AR$7),"",IF(LEFT(T10,1)<>"*",LEFT(T10,FIND("-",T10)-1)-0,MID(T10,2,FIND("-",T10)-2)-0)) ->  | CP10: =IF(OR(ISERROR(FIND("-",U10)),AI10<='export html'!$AR$7),"",IF(LEFT(U10,1)<>"*",LEFT(U10,FIND("-",U10)-1)-0,MID(U10,2,FIND("-",U10)-2)-0)) ->  | CR10: =IF(OR(ISERROR(FIND("-",W10)),AK10<='export html'!$AR$7),"",IF(LEFT(W10,1)<>"*",LEFT(W10,FIND("-",W10)-1)-0,MID(W10,2,FIND("-",W10)-2)-0)) ->  | CS10: =IF(OR(ISERROR(FIND("-",X10)),AL10<='export html'!$AR$7),"",IF(LEFT(X10,1)<>"*",LEFT(X10,FIND("-",X10)-1)-0,MID(X10,2,FIND("-",X10)-2)-0)) ->  | CT10: =IF(OR(ISERROR(FIND("-",Y10)),AM10<='export html'!$AR$7),"",IF(LEFT(Y10,1)<>"*",LEFT(Y10,FIND("-",Y10)-1)-0,MID(Y10,2,FIND("-",Y10)-2)-0)) ->  | CU10: =IF(OR(ISERROR(FIND("-",Z10)),AN10<='export html'!$AR$7),"",IF(LEFT(Z10,1)<>"*",LEFT(Z10,FIND("-",Z10)-1)-0,MID(Z10,2,FIND("-",Z10)-2)-0)) ->  | CV10: =IF(OR(ISERROR(FIND("-",AA10)),AO10<='export html'!$AR$7),"",IF(LEFT(AA10,1)<>"*",LEFT(AA10,FIND("-",AA10)-1)-0,MID(AA10,2,FIND("-",AA10)-2)-0)) ->  | CW10: =IF(OR(ISERROR(FIND("-",AB10)),AP10<='export html'!$AR$7),"",IF(LEFT(AB10,1)<>"*",LEFT(AB10,FIND("-",AB10)-1)-0,MID(AB10,2,FIND("-",AB10)-2)-0)) ->  | CX10: =IF(OR(ISERROR(FIND("-",AC10)),AQ10<='export html'!$AR$7),"",IF(LEFT(AC10,1)<>"*",LEFT(AC10,FIND("-",AC10)-1)-0,MID(AC10,2,FIND("-",AC10)-2)-0)) ->  | CY10: =IF(OR(ISERROR(FIND("-",AD10)),AR10<='export html'!$AR$7),"",IF(LEFT(AD10,1)<>"*",LEFT(AD10,FIND("-",AD10)-1)-0,MID(AD10,2,FIND("-",AD10)-2)-0)) ->  | CZ10: 6
C11: 7 | D11: Racing Emblem | E11: 9 | F11: 6 | H11: 3 | I11: 3 | J11: 0 | K11: 16 | L11: 20 | M11: -4 | N11: 9 | P11: Goka | T11: 3-1 | Z11: 3-0 | AA11: 2-5 | AE11: 9 | AF11: 18 | AG11: 20 | AH11: 4 | AI11: 13 | AJ11: 25 | AL11: 11 | AM11: 8 | AN11: 2 | AO11: 6 | AP11: 14 | AQ11: 23 | AR11: 16 | AS11: 2024-11-03 | AT11: 2025-02-02 | AU11: 2025-02-16 | AV11: 2024-09-22 | AW11: 2024-12-01 | AX11: 2025-03-30 | AZ11: 2024-11-17 | BA11: 2024-10-20 | BB11: 2024-09-08 | BC11: 2024-10-06 | BD11: 2024-12-08 | BE11: 2025-03-16 | BF11: 2025-01-19 | BH11: 9.990812111 | BI11: Goka | BJ11: 6 | BK11: 6 | BL11: =CHOOSE(StandBer,COUNTIF(BW41:CJ41,"t")+COUNTIF(CC35:CC48,"u")+COUNTIF(CL41:CY41,"t")+COUNTIF(CR35:CR48,"u"),COUNTIF(BW41:CJ41,"t")+COUNTIF(CC35:CC48,"u"),COUNTIF(CL41:CY41,"t")+COUNTIF(CR35:CR48,"u"),COUNTIF(BW41:CJ41,"t")+COUNTIF(CL41:CY41,"t"),COUNTIF(CC35:CC48,"u")+COUNTIF(CR35:CR48,"u")) -> 2 | BM11: =CHOOSE(StandBer,COUNTIF(BW41:CJ41,"u")+COUNTIF(CC35:CC48,"t")+COUNTIF(CL41:CY41,"u")+COUNTIF(CR35:CR48,"t"),COUNTIF(BW41:CJ41,"u")+COUNTIF(CC35:CC48,"t"),COUNTIF(CL41:CY41,"u")+COUNTIF(CR35:CR48,"t"),COUNTIF(BW41:CJ41,"u")+COUNTIF(CL41:CY41,"u"),COUNTIF(CC35:CC48,"t")+COUNTIF(CR35:CR48,"t"))+BR11 -> 4 | BN11: =CHOOSE(StandBer,COUNTIF(BW41:CJ41,"g")+COUNTIF(CC35:CC48,"g")+COUNTIF(CL41:CY41,"g")+COUNTIF(CR35:CR48,"g"),COUNTIF(BW41:CJ41,"g")+COUNTIF(CC35:CC48,"g"),COUNTIF(CL41:CY41,"g")+COUNTIF(CR35:CR48,"g"),COUNTIF(BW41:CJ41,"g")+COUNTIF(CL41:CY41,"g"),COUNTIF(CC35:CC48,"g")+COUNTIF(CR35:CR48,"g")) -> 0 | BO11: =CHOOSE(StandBer,SUM(BW11:CJ11)+SUM(CC20:CC33)+SUM(CL11:CY11)+SUM(CR20:CR33),SUM(BW11:CJ11)+SUM(CC20:CC33),SUM(CL11:CY11)+SUM(CR20:CR33),SUM(BW11:CJ11)+SUM(CL11:CY11),SUM(CC20:CC33)+SUM(CR20:CR33))-5*BR11 -> 14 | BP11: =CHOOSE(StandBer,SUM(CC5:CC18)+SUM(BW26:CJ26)+SUM(CR5:CR18)+SUM(CL26:CY26),SUM(CC5:CC18)+SUM(BW26:CJ26),SUM(CR5:CR18)+SUM(CL26:CY26),SUM(CC5:CC18)+SUM(CR5:CR18),SUM(BW26:CJ26)+SUM(CL26:CY26)) -> 23 | BQ11: -9 | BR11: =CHOOSE(StandBer,COUNTIF(BW41:CJ41,"ff")+COUNTIF(CC35:CC48,"ff")+COUNTIF(CL41:CY41,"ff")+COUNTIF(CR35:CR48,"ff"),COUNTIF(BW41:CJ41,"ff")+COUNTIF(CC35:CC48,"ff"),COUNTIF(CL41:CY41,"ff")+COUNTIF(CR35:CR48,"ff"),COUNTIF(BW41:CJ41,"ff")+COUNTIF(CL41:CY41,"ff"),COUNTIF(CC35:CC48,"ff")+COUNTIF(CR35:CR48,"ff")) -> 0 | BS11: 7 | BT11: 6.990609091 | BV11: 7 | BW11: =IF(OR(ISERROR(FIND("-",Q11)),AE11>'export html'!$AR$7),"",IF(LEFT(Q11,1)<>"*",LEFT(Q11,FIND("-",Q11)-1)-0,MID(Q11,2,FIND("-",Q11)-2)-0)) ->  | BX11: =IF(OR(ISERROR(FIND("-",R11)),AF11>'export html'!$AR$7),"",IF(LEFT(R11,1)<>"*",LEFT(R11,FIND("-",R11)-1)-0,MID(R11,2,FIND("-",R11)-2)-0)) ->  | BY11: =IF(OR(ISERROR(FIND("-",S11)),AG11>'export html'!$AR$7),"",IF(LEFT(S11,1)<>"*",LEFT(S11,FIND("-",S11)-1)-0,MID(S11,2,FIND("-",S11)-2)-0)) ->  | BZ11: =IF(OR(ISERROR(FIND("-",T11)),AH11>'export html'!$AR$7),"",IF(LEFT(T11,1)<>"*",LEFT(T11,FIND("-",T11)-1)-0,MID(T11,2,FIND("-",T11)-2)-0)) -> 3 | CA11: =IF(OR(ISERROR(FIND("-",U11)),AI11>'export html'!$AR$7),"",IF(LEFT(U11,1)<>"*",LEFT(U11,FIND("-",U11)-1)-0,MID(U11,2,FIND("-",U11)-2)-0)) ->  | CB11: =IF(OR(ISERROR(FIND("-",V11)),AJ11>'export html'!$AR$7),"",IF(LEFT(V11,1)<>"*",LEFT(V11,FIND("-",V11)-1)-0,MID(V11,2,FIND("-",V11)-2)-0)) ->  | CD11: =IF(OR(ISERROR(FIND("-",X11)),AL11>'export html'!$AR$7),"",IF(LEFT(X11,1)<>"*",LEFT(X11,FIND("-",X11)-1)-0,MID(X11,2,FIND("-",X11)-2)-0)) ->  | CE11: =IF(OR(ISERROR(FIND("-",Y11)),AM11>'export html'!$AR$7),"",IF(LEFT(Y11,1)<>"*",LEFT(Y11,FIND("-",Y11)-1)-0,MID(Y11,2,FIND("-",Y11)-2)-0)) ->  | CF11: =IF(OR(ISERROR(FIND("-",Z11)),AN11>'export html'!$AR$7),"",IF(LEFT(Z11,1)<>"*",LEFT(Z11,FIND("-",Z11)-1)-0,MID(Z11,2,FIND("-",Z11)-2)-0)) -> 3 | CG11: =IF(OR(ISERROR(FIND("-",AA11)),AO11>'export html'!$AR$7),"",IF(LEFT(AA11,1)<>"*",LEFT(AA11,FIND("-",AA11)-1)-0,MID(AA11,2,FIND("-",AA11)-2)-0)) -> 2 | CH11: =IF(OR(ISERROR(FIND("-",AB11)),AP11>'export html'!$AR$7),"",IF(LEFT(AB11,1)<>"*",LEFT(AB11,FIND("-",AB11)-1)-0,MID(AB11,2,FIND("-",AB11)-2)-0)) ->  | CI11: =IF(OR(ISERROR(FIND("-",AC11)),AQ11>'export html'!$AR$7),"",IF(LEFT(AC11,1)<>"*",LEFT(AC11,FIND("-",AC11)-1)-0,MID(AC11,2,FIND("-",AC11)-2)-0)) ->  | CJ11: =IF(OR(ISERROR(FIND("-",AD11)),AR11>'export html'!$AR$7),"",IF(LEFT(AD11,1)<>"*",LEFT(AD11,FIND("-",AD11)-1)-0,MID(AD11,2,FIND("-",AD11)-2)-0)) ->  | CK11: 7 | CL11: =IF(OR(ISERROR(FIND("-",Q11)),AE11<='export html'!$AR$7),"",IF(LEFT(Q11,1)<>"*",LEFT(Q11,FIND("-",Q11)-1)-0,MID(Q11,2,FIND("-",Q11)-2)-0)) ->  | CM11: =IF(OR(ISERROR(FIND("-",R11)),AF11<='export html'!$AR$7),"",IF(LEFT(R11,1)<>"*",LEFT(R11,FIND("-",R11)-1)-0,MID(R11,2,FIND("-",R11)-2)-0)) ->  | CN11: =IF(OR(ISERROR(FIND("-",S11)),AG11<='export html'!$AR$7),"",IF(LEFT(S11,1)<>"*",LEFT(S11,FIND("-",S11)-1)-0,MID(S11,2,FIND("-",S11)-2)-0)) ->  | CO11: =IF(OR(ISERROR(FIND("-",T11)),AH11<='export html'!$AR$7),"",IF(LEFT(T11,1)<>"*",LEFT(T11,FIND("-",T11)-1)-0,MID(T11,2,FIND("-",T11)-2)-0)) ->  | CP11: =IF(OR(ISERROR(FIND("-",U11)),AI11<='export html'!$AR$7),"",IF(LEFT(U11,1)<>"*",LEFT(U11,FIND("-",U11)-1)-0,MID(U11,2,FIND("-",U11)-2)-0)) ->  | CQ11: =IF(OR(ISERROR(FIND("-",V11)),AJ11<='export html'!$AR$7),"",IF(LEFT(V11,1)<>"*",LEFT(V11,FIND("-",V11)-1)-0,MID(V11,2,FIND("-",V11)-2)-0)) ->  | CS11: =IF(OR(ISERROR(FIND("-",X11)),AL11<='export html'!$AR$7),"",IF(LEFT(X11,1)<>"*",LEFT(X11,FIND("-",X11)-1)-0,MID(X11,2,FIND("-",X11)-2)-0)) ->  | CT11: =IF(OR(ISERROR(FIND("-",Y11)),AM11<='export html'!$AR$7),"",IF(LEFT(Y11,1)<>"*",LEFT(Y11,FIND("-",Y11)-1)-0,MID(Y11,2,FIND("-",Y11)-2)-0)) ->  | CU11: =IF(OR(ISERROR(FIND("-",Z11)),AN11<='export html'!$AR$7),"",IF(LEFT(Z11,1)<>"*",LEFT(Z11,FIND("-",Z11)-1)-0,MID(Z11,2,FIND("-",Z11)-2)-0)) ->  | CV11: =IF(OR(ISERROR(FIND("-",AA11)),AO11<='export html'!$AR$7),"",IF(LEFT(AA11,1)<>"*",LEFT(AA11,FIND("-",AA11)-1)-0,MID(AA11,2,FIND("-",AA11)-2)-0)) ->  | CW11: =IF(OR(ISERROR(FIND("-",AB11)),AP11<='export html'!$AR$7),"",IF(LEFT(AB11,1)<>"*",LEFT(AB11,FIND("-",AB11)-1)-0,MID(AB11,2,FIND("-",AB11)-2)-0)) ->  | CX11: =IF(OR(ISERROR(FIND("-",AC11)),AQ11<='export html'!$AR$7),"",IF(LEFT(AC11,1)<>"*",LEFT(AC11,FIND("-",AC11)-1)-0,MID(AC11,2,FIND("-",AC11)-2)-0)) ->  | CY11: =IF(OR(ISERROR(FIND("-",AD11)),AR11<='export html'!$AR$7),"",IF(LEFT(AD11,1)<>"*",LEFT(AD11,FIND("-",AD11)-1)-0,MID(AD11,2,FIND("-",AD11)-2)-0)) ->  | CZ11: 7
C12: 8 | D12: Hombeek | E12: 7 | F12: 6 | G12: =REPT(IF(F12-MODE($F$5:$F$18)<0,"-","+"),ABS(F12-MODE($F$5:$F$18))) ->  | H12: 2 | I12: 3 | J12: 1 | K12: 17 | L12: 19 | M12: -2 | N12: 11 | P12: Hombeek | V12: 2-3 | AB12: 2-6 | AD12: 1-1 | AE12: 12 | AF12: 8 | AG12: 10 | AH12: 20 | AI12: 16 | AJ12: 2 | AK12: 24 | AM12: 14 | AN12: 18 | AO12: 22 | AP12: 4 | AQ12: 26 | AR12: 6 | AS12: 2024-11-24 | AT12: 2024-10-20 | AU12: 2024-11-10 | AV12: 2025-02-16 | AW12: 2025-01-19 | AX12: 2024-09-08 | AY12: 2025-03-23 | BA12: 2024-12-08 | BB12: 2025-02-02 | BC12: 2025-03-09 | BD12: 2024-09-22 | BE12: 2025-04-06 | BF12: 2024-10-06 | BH12: =RANK( BJ12, $BJ$5:$BJ$18, 0 ) - RANK( BK12, $BK$5:$BK$18, 0 ) / 10^2 + RANK( BL12, $BL$5:$BL$18, 0 ) / 10^4 + RANK( BQ12, $BQ$5:$BQ$18, 0 ) / 10^6 + RANK( BO12, $BO$5:$BO$18, 0 ) / 10^8 + BS12 / 10^10 -> 7.990807081 | BI12: Hombeek | BJ12: 7 | BK12: 6 | BL12: =CHOOSE(StandBer,COUNTIF(BW42:CJ42,"t")+COUNTIF(CD35:CD48,"u")+COUNTIF(CL42:CY42,"t")+COUNTIF(CS35:CS48,"u"),COUNTIF(BW42:CJ42,"t")+COUNTIF(CD35:CD48,"u"),COUNTIF(CL42:CY42,"t")+COUNTIF(CS35:CS48,"u"),COUNTIF(BW42:CJ42,"t")+COUNTIF(CL42:CY42,"t"),COUNTIF(CD35:CD48,"u")+COUNTIF(CS35:CS48,"u")) -> 2 | BM12: =CHOOSE(StandBer,COUNTIF(BW42:CJ42,"u")+COUNTIF(CD35:CD48,"t")+COUNTIF(CL42:CY42,"u")+COUNTIF(CS35:CS48,"t"),COUNTIF(BW42:CJ42,"u")+COUNTIF(CD35:CD48,"t"),COUNTIF(CL42:CY42,"u")+COUNTIF(CS35:CS48,"t"),COUNTIF(BW42:CJ42,"u")+COUNTIF(CL42:CY42,"u"),COUNTIF(CD35:CD48,"t")+COUNTIF(CS35:CS48,"t"))+BR12 -> 3 | BN12: =CHOOSE(StandBer,COUNTIF(BW42:CJ42,"g")+COUNTIF(CD35:CD48,"g")+COUNTIF(CL42:CY42,"g")+COUNTIF(CS35:CS48,"g"),COUNTIF(BW42:CJ42,"g")+COUNTIF(CD35:CD48,"g"),COUNTIF(CL42:CY42,"g")+COUNTIF(CS35:CS48,"g"),COUNTIF(BW42:CJ42,"g")+COUNTIF(CL42:CY42,"g"),COUNTIF(CD35:CD48,"g")+COUNTIF(CS35:CS48,"g")) -> 1 | BO12: =CHOOSE(StandBer,SUM(BW12:CJ12)+SUM(CD20:CD33)+SUM(CL12:CY12)+SUM(CS20:CS33),SUM(BW12:CJ12)+SUM(CD20:CD33),SUM(CL12:CY12)+SUM(CS20:CS33),SUM(BW12:CJ12)+SUM(CL12:CY12),SUM(CD20:CD33)+SUM(CS20:CS33))-5*BR12 -> 17 | BP12: =CHOOSE(StandBer,SUM(CD5:CD18)+SUM(BW27:CJ27)+SUM(CS5:CS18)+SUM(CL27:CY27),SUM(CD5:CD18)+SUM(BW27:CJ27),SUM(CS5:CS18)+SUM(CL27:CY27),SUM(CD5:CD18)+SUM(CS5:CS18),SUM(BW27:CJ27)+SUM(CL27:CY27)) -> 19 | BQ12: -2 | BR12: =CHOOSE(StandBer,COUNTIF(BW42:CJ42,"ff")+COUNTIF(CD35:CD48,"ff")+COUNTIF(CL42:CY42,"ff")+COUNTIF(CS35:CS48,"ff"),COUNTIF(BW42:CJ42,"ff")+COUNTIF(CD35:CD48,"ff"),COUNTIF(CL42:CY42,"ff")+COUNTIF(CS35:CS48,"ff"),COUNTIF(BW42:CJ42,"ff")+COUNTIF(CL42:CY42,"ff"),COUNTIF(CD35:CD48,"ff")+COUNTIF(CS35:CS48,"ff")) -> 0 | BS12: 8 | BT12: =SMALL( $BH$5:$BH$18, BS12 ) -> 7.990807081 | BV12: 8 | BW12: =IF(OR(ISERROR(FIND("-",Q12)),AE12>'export html'!$AR$7),"",IF(LEFT(Q12,1)<>"*",LEFT(Q12,FIND("-",Q12)-1)-0,MID(Q12,2,FIND("-",Q12)-2)-0)) ->  | BX12: =IF(OR(ISERROR(FIND("-",R12)),AF12>'export html'!$AR$7),"",IF(LEFT(R12,1)<>"*",LEFT(R12,FIND("-",R12)-1)-0,MID(R12,2,FIND("-",R12)-2)-0)) ->  | BY12: =IF(OR(ISERROR(FIND("-",S12)),AG12>'export html'!$AR$7),"",IF(LEFT(S12,1)<>"*",LEFT(S12,FIND("-",S12)-1)-0,MID(S12,2,FIND("-",S12)-2)-0)) ->  | BZ12: =IF(OR(ISERROR(FIND("-",T12)),AH12>'export html'!$AR$7),"",IF(LEFT(T12,1)<>"*",LEFT(T12,FIND("-",T12)-1)-0,MID(T12,2,FIND("-",T12)-2)-0)) ->  | CA12: =IF(OR(ISERROR(FIND("-",U12)),AI12>'export html'!$AR$7),"",IF(LEFT(U12,1)<>"*",LEFT(U12,FIND("-",U12)-1)-0,MID(U12,2,FIND("-",U12)-2)-0)) ->  | CB12: =IF(OR(ISERROR(FIND("-",V12)),AJ12>'export html'!$AR$7),"",IF(LEFT(V12,1)<>"*",LEFT(V12,FIND("-",V12)-1)-0,MID(V12,2,FIND("-",V12)-2)-0)) -> 2 | CC12: =IF(OR(ISERROR(FIND("-",W12)),AK12>'export html'!$AR$7),"",IF(LEFT(W12,1)<>"*",LEFT(W12,FIND("-",W12)-1)-0,MID(W12,2,FIND("-",W12)-2)-0)) ->  | CE12: =IF(OR(ISERROR(FIND("-",Y12)),AM12>'export html'!$AR$7),"",IF(LEFT(Y12,1)<>"*",LEFT(Y12,FIND("-",Y12)-1)-0,MID(Y12,2,FIND("-",Y12)-2)-0)) ->  | CF12: =IF(OR(ISERROR(FIND("-",Z12)),AN12>'export html'!$AR$7),"",IF(LEFT(Z12,1)<>"*",LEFT(Z12,FIND("-",Z12)-1)-0,MID(Z12,2,FIND("-",Z12)-2)-0)) ->  | CG12: =IF(OR(ISERROR(FIND("-",AA12)),AO12>'export html'!$AR$7),"",IF(LEFT(AA12,1)<>"*",LEFT(AA12,FIND("-",AA12)-1)-0,MID(AA12,2,FIND("-",AA12)-2)-0)) ->  | CH12: =IF(OR(ISERROR(FIND("-",AB12)),AP12>'export html'!$AR$7),"",IF(LEFT(AB12,1)<>"*",LEFT(AB12,FIND("-",AB12)-1)-0,MID(AB12,2,FIND("-",AB12)-2)-0)) -> 2 | CI12: =IF(OR(ISERROR(FIND("-",AC12)),AQ12>'export html'!$AR$7),"",IF(LEFT(AC12,1)<>"*",LEFT(AC12,FIND("-",AC12)-1)-0,MID(AC12,2,FIND("-",AC12)-2)-0)) ->  | CJ12: =IF(OR(ISERROR(FIND("-",AD12)),AR12>'export html'!$AR$7),"",IF(LEFT(AD12,1)<>"*",LEFT(AD12,FIND("-",AD12)-1)-0,MID(AD12,2,FIND("-",AD12)-2)-0)) -> 1 | CK12: 8 | CL12: =IF(OR(ISERROR(FIND("-",Q12)),AE12<='export html'!$AR$7),"",IF(LEFT(Q12,1)<>"*",LEFT(Q12,FIND("-",Q12)-1)-0,MID(Q12,2,FIND("-",Q12)-2)-0)) ->  | CM12: =IF(OR(ISERROR(FIND("-",R12)),AF12<='export html'!$AR$7),"",IF(LEFT(R12,1)<>"*",LEFT(R12,FIND("-",R12)-1)-0,MID(R12,2,FIND("-",R12)-2)-0)) ->  | CN12: =IF(OR(ISERROR(FIND("-",S12)),AG12<='export html'!$AR$7),"",IF(LEFT(S12,1)<>"*",LEFT(S12,FIND("-",S12)-1)-0,MID(S12,2,FIND("-",S12)-2)-0)) ->  | CO12: =IF(OR(ISERROR(FIND("-",T12)),AH12<='export html'!$AR$7),"",IF(LEFT(T12,1)<>"*",LEFT(T12,FIND("-",T12)-1)-0,MID(T12,2,FIND("-",T12)-2)-0)) ->  | CP12: =IF(OR(ISERROR(FIND("-",U12)),AI12<='export html'!$AR$7),"",IF(LEFT(U12,1)<>"*",LEFT(U12,FIND("-",U12)-1)-0,MID(U12,2,FIND("-",U12)-2)-0)) ->  | CQ12: =IF(OR(ISERROR(FIND("-",V12)),AJ12<='export html'!$AR$7),"",IF(LEFT(V12,1)<>"*",LEFT(V12,FIND("-",V12)-1)-0,MID(V12,2,FIND("-",V12)-2)-0)) ->  | CR12: =IF(OR(ISERROR(FIND("-",W12)),AK12<='export html'!$AR$7),"",IF(LEFT(W12,1)<>"*",LEFT(W12,FIND("-",W12)-1)-0,MID(W12,2,FIND("-",W12)-2)-0)) ->  | CT12: =IF(OR(ISERROR(FIND("-",Y12)),AM12<='export html'!$AR$7),"",IF(LEFT(Y12,1)<>"*",LEFT(Y12,FIND("-",Y12)-1)-0,MID(Y12,2,FIND("-",Y12)-2)-0)) ->  | CU12: =IF(OR(ISERROR(FIND("-",Z12)),AN12<='export html'!$AR$7),"",IF(LEFT(Z12,1)<>"*",LEFT(Z12,FIND("-",Z12)-1)-0,MID(Z12,2,FIND("-",Z12)-2)-0)) ->  | CV12: =IF(OR(ISERROR(FIND("-",AA12)),AO12<='export html'!$AR$7),"",IF(LEFT(AA12,1)<>"*",LEFT(AA12,FIND("-",AA12)-1)-0,MID(AA12,2,FIND("-",AA12)-2)-0)) ->  | CW12: =IF(OR(ISERROR(FIND("-",AB12)),AP12<='export html'!$AR$7),"",IF(LEFT(AB12,1)<>"*",LEFT(AB12,FIND("-",AB12)-1)-0,MID(AB12,2,FIND("-",AB12)-2)-0)) ->  | CX12: =IF(OR(ISERROR(FIND("-",AC12)),AQ12<='export html'!$AR$7),"",IF(LEFT(AC12,1)<>"*",LEFT(AC12,FIND("-",AC12)-1)-0,MID(AC12,2,FIND("-",AC12)-2)-0)) ->  | CY12: =IF(OR(ISERROR(FIND("-",AD12)),AR12<='export html'!$AR$7),"",IF(LEFT(AD12,1)<>"*",LEFT(AD12,FIND("-",AD12)-1)-0,MID(AD12,2,FIND("-",AD12)-2)-0)) ->  | CZ12: 8
D13: =VLOOKUP(BT13,HulpberekeningenStand,2,FALSE) -> Bariton | E13: 7 | F13: 6 | H13: =VLOOKUP(BT13,HulpberekeningenStand,5,FALSE) -> 2 | I13: =VLOOKUP(BT13,HulpberekeningenStand,6,FALSE) -> 3 | J13: =VLOOKUP(BT13,HulpberekeningenStand,7,FALSE) -> 1 | K13: =VLOOKUP(BT13,HulpberekeningenStand,8,FALSE) -> 16 | L13: =VLOOKUP(BT13,HulpberekeningenStand,9,FALSE) -> 19 | M13: -3 | N13: 11 | P13: Jolika | U13: 1-8 | V13: 0-7 | X13: 0-6 | AE13: 23 | AF13: 15 | AG13: 19 | AH13: 26 | AI13: 5 | AJ13: 3 | AK13: 21 | AL13: 1 | AN13: 9 | AO13: 17 | AP13: 7 | AQ13: 12 | AR13: 11 | AS13: 2025-03-16 | AT13: 2025-01-12 | AU13: 2025-02-09 | AV13: 2025-04-06 | AW13: 2024-09-29 | AX13: 2024-09-15 | AY13: 2025-02-23 | AZ13: 2024-09-01 | BB13: 2024-11-03 | BC13: 2025-01-26 | BD13: 2024-10-13 | BE13: 2024-11-24 | BF13: 2024-11-17 | BH13: 13.99141414 | BI13: Jolika | BJ13: 0 | BK13: 6 | BL13: =CHOOSE(StandBer,COUNTIF(BW43:CJ43,"t")+COUNTIF(CE35:CE48,"u")+COUNTIF(CL43:CY43,"t")+COUNTIF(CT35:CT48,"u"),COUNTIF(BW43:CJ43,"t")+COUNTIF(CE35:CE48,"u"),COUNTIF(CL43:CY43,"t")+COUNTIF(CT35:CT48,"u"),COUNTIF(BW43:CJ43,"t")+COUNTIF(CL43:CY43,"t"),COUNTIF(CE35:CE48,"u")+COUNTIF(CT35:CT48,"u")) -> 0 | BM13: =CHOOSE(StandBer,COUNTIF(BW43:CJ43,"u")+COUNTIF(CE35:CE48,"t")+COUNTIF(CL43:CY43,"u")+COUNTIF(CT35:CT48,"t"),COUNTIF(BW43:CJ43,"u")+COUNTIF(CE35:CE48,"t"),COUNTIF(CL43:CY43,"u")+COUNTIF(CT35:CT48,"t"),COUNTIF(BW43:CJ43,"u")+COUNTIF(CL43:CY43,"u"),COUNTIF(CE35:CE48,"t")+COUNTIF(CT35:CT48,"t"))+BR13 -> 6 | BN13: =CHOOSE(StandBer,COUNTIF(BW43:CJ43,"g")+COUNTIF(CE35:CE48,"g")+COUNTIF(CL43:CY43,"g")+COUNTIF(CT35:CT48,"g"),COUNTIF(BW43:CJ43,"g")+COUNTIF(CE35:CE48,"g"),COUNTIF(CL43:CY43,"g")+COUNTIF(CT35:CT48,"g"),COUNTIF(BW43:CJ43,"g")+COUNTIF(CL43:CY43,"g"),COUNTIF(CE35:CE48,"g")+COUNTIF(CT35:CT48,"g")) -> 0 | BO13: =CHOOSE(StandBer,SUM(BW13:CJ13)+SUM(CE20:CE33)+SUM(CL13:CY13)+SUM(CT20:CT33),SUM(BW13:CJ13)+SUM(CE20:CE33),SUM(CL13:CY13)+SUM(CT20:CT33),SUM(BW13:CJ13)+SUM(CL13:CY13),SUM(CE20:CE33)+SUM(CT20:CT33))-5*BR13 -> 2 | BP13: =CHOOSE(StandBer,SUM(CE5:CE18)+SUM(BW28:CJ28)+SUM(CT5:CT18)+SUM(CL28:CY28),SUM(CE5:CE18)+SUM(BW28:CJ28),SUM(CT5:CT18)+SUM(CL28:CY28),SUM(CE5:CE18)+SUM(CT5:CT18),SUM(BW28:CJ28)+SUM(CL28:CY28)) -> 36 | BQ13: -34 | BR13: =CHOOSE(StandBer,COUNTIF(BW43:CJ43,"ff")+COUNTIF(CE35:CE48,"ff")+COUNTIF(CL43:CY43,"ff")+COUNTIF(CT35:CT48,"ff"),COUNTIF(BW43:CJ43,"ff")+COUNTIF(CE35:CE48,"ff"),COUNTIF(CL43:CY43,"ff")+COUNTIF(CT35:CT48,"ff"),COUNTIF(BW43:CJ43,"ff")+COUNTIF(CL43:CY43,"ff"),COUNTIF(CE35:CE48,"ff")+COUNTIF(CT35:CT48,"ff")) -> 0 | BS13: 9 | BT13: 7.99080809 | BV13: 9 | BW13: =IF(OR(ISERROR(FIND("-",Q13)),AE13>'export html'!$AR$7),"",IF(LEFT(Q13,1)<>"*",LEFT(Q13,FIND("-",Q13)-1)-0,MID(Q13,2,FIND("-",Q13)-2)-0)) ->  | BX13: =IF(OR(ISERROR(FIND("-",R13)),AF13>'export html'!$AR$7),"",IF(LEFT(R13,1)<>"*",LEFT(R13,FIND("-",R13)-1)-0,MID(R13,2,FIND("-",R13)-2)-0)) ->  | BY13: =IF(OR(ISERROR(FIND("-",S13)),AG13>'export html'!$AR$7),"",IF(LEFT(S13,1)<>"*",LEFT(S13,FIND("-",S13)-1)-0,MID(S13,2,FIND("-",S13)-2)-0)) ->  | BZ13: =IF(OR(ISERROR(FIND("-",T13)),AH13>'export html'!$AR$7),"",IF(LEFT(T13,1)<>"*",LEFT(T13,FIND("-",T13)-1)-0,MID(T13,2,FIND("-",T13)-2)-0)) ->  | CA13: =IF(OR(ISERROR(FIND("-",U13)),AI13>'export html'!$AR$7),"",IF(LEFT(U13,1)<>"*",LEFT(U13,FIND("-",U13)-1)-0,MID(U13,2,FIND("-",U13)-2)-0)) -> 1 | CB13: =IF(OR(ISERROR(FIND("-",V13)),AJ13>'export html'!$AR$7),"",IF(LEFT(V13,1)<>"*",LEFT(V13,FIND("-",V13)-1)-0,MID(V13,2,FIND("-",V13)-2)-0)) -> 0 | CC13: =IF(OR(ISERROR(FIND("-",W13)),AK13>'export html'!$AR$7),"",IF(LEFT(W13,1)<>"*",LEFT(W13,FIND("-",W13)-1)-0,MID(W13,2,FIND("-",W13)-2)-0)) ->  | CD13: =IF(OR(ISERROR(FIND("-",X13)),AL13>'export html'!$AR$7),"",IF(LEFT(X13,1)<>"*",LEFT(X13,FIND("-",X13)-1)-0,MID(X13,2,FIND("-",X13)-2)-0)) -> 0 | CF13: =IF(OR(ISERROR(FIND("-",Z13)),AN13>'export html'!$AR$7),"",IF(LEFT(Z13,1)<>"*",LEFT(Z13,FIND("-",Z13)-1)-0,MID(Z13,2,FIND("-",Z13)-2)-0)) ->  | CG13: =IF(OR(ISERROR(FIND("-",AA13)),AO13>'export html'!$AR$7),"",IF(LEFT(AA13,1)<>"*",LEFT(AA13,FIND("-",AA13)-1)-0,MID(AA13,2,FIND("-",AA13)-2)-0)) ->  | CH13: =IF(OR(ISERROR(FIND("-",AB13)),AP13>'export html'!$AR$7),"",IF(LEFT(AB13,1)<>"*",LEFT(AB13,FIND("-",AB13)-1)-0,MID(AB13,2,FIND("-",AB13)-2)-0)) ->  | CI13: =IF(OR(ISERROR(FIND("-",AC13)),AQ13>'export html'!$AR$7),"",IF(LEFT(AC13,1)<>"*",LEFT(AC13,FIND("-",AC13)-1)-0,MID(AC13,2,FIND("-",AC13)-2)-0)) ->  | CJ13: =IF(OR(ISERROR(FIND("-",AD13)),AR13>'export html'!$AR$7),"",IF(LEFT(AD13,1)<>"*",LEFT(AD13,FIND("-",AD13)-1)-0,MID(AD13,2,FIND("-",AD13)-2)-0)) ->  | CK13: 9 | CL13: =IF(OR(ISERROR(FIND("-",Q13)),AE13<='export html'!$AR$7),"",IF(LEFT(Q13,1)<>"*",LEFT(Q13,FIND("-",Q13)-1)-0,MID(Q13,2,FIND("-",Q13)-2)-0)) ->  | CM13: =IF(OR(ISERROR(FIND("-",R13)),AF13<='export html'!$AR$7),"",IF(LEFT(R13,1)<>"*",LEFT(R13,FIND("-",R13)-1)-0,MID(R13,2,FIND("-",R13)-2)-0)) ->  | CN13: =IF(OR(ISERROR(FIND("-",S13)),AG13<='export html'!$AR$7),"",IF(LEFT(S13,1)<>"*",LEFT(S13,FIND("-",S13)-1)-0,MID(S13,2,FIND("-",S13)-2)-0)) ->  | CO13: =IF(OR(ISERROR(FIND("-",T13)),AH13<='export html'!$AR$7),"",IF(LEFT(T13,1)<>"*",LEFT(T13,FIND("-",T13)-1)-0,MID(T13,2,FIND("-",T13)-2)-0)) ->  | CP13: =IF(OR(ISERROR(FIND("-",U13)),AI13<='export html'!$AR$7),"",IF(LEFT(U13,1)<>"*",LEFT(U13,FIND("-",U13)-1)-0,MID(U13,2,FIND("-",U13)-2)-0)) ->  | CQ13: =IF(OR(ISERROR(FIND("-",V13)),AJ13<='export html'!$AR$7),"",IF(LEFT(V13,1)<>"*",LEFT(V13,FIND("-",V13)-1)-0,MID(V13,2,FIND("-",V13)-2)-0)) ->  | CR13: =IF(OR(ISERROR(FIND("-",W13)),AK13<='export html'!$AR$7),"",IF(LEFT(W13,1)<>"*",LEFT(W13,FIND("-",W13)-1)-0,MID(W13,2,FIND("-",W13)-2)-0)) ->  | CS13: =IF(OR(ISERROR(FIND("-",X13)),AL13<='export html'!$AR$7),"",IF(LEFT(X13,1)<>"*",LEFT(X13,FIND("-",X13)-1)-0,MID(X13,2,FIND("-",X13)-2)-0)) ->  | CU13: =IF(OR(ISERROR(FIND("-",Z13)),AN13<='export html'!$AR$7),"",IF(LEFT(Z13,1)<>"*",LEFT(Z13,FIND("-",Z13)-1)-0,MID(Z13,2,FIND("-",Z13)-2)-0)) ->  | CV13: =IF(OR(ISERROR(FIND("-",AA13)),AO13<='export html'!$AR$7),"",IF(LEFT(AA13,1)<>"*",LEFT(AA13,FIND("-",AA13)-1)-0,MID(AA13,2,FIND("-",AA13)-2)-0)) ->  | CW13: =IF(OR(ISERROR(FIND("-",AB13)),AP13<='export html'!$AR$7),"",IF(LEFT(AB13,1)<>"*",LEFT(AB13,FIND("-",AB13)-1)-0,MID(AB13,2,FIND("-",AB13)-2)-0)) ->  | CX13: =IF(OR(ISERROR(FIND("-",AC13)),AQ13<='export html'!$AR$7),"",IF(LEFT(AC13,1)<>"*",LEFT(AC13,FIND("-",AC13)-1)-0,MID(AC13,2,FIND("-",AC13)-2)-0)) ->  | CY13: =IF(OR(ISERROR(FIND("-",AD13)),AR13<='export html'!$AR$7),"",IF(LEFT(AD13,1)<>"*",LEFT(AD13,FIND("-",AD13)-1)-0,MID(AD13,2,FIND("-",AD13)-2)-0)) ->  | CZ13: 9
C14: 10 | D14: Goka | E14: =3*H14+J14 -> 6 | F14: =SUM(H14:J14) -> 6 | H14: 2 | I14: 4 | J14: 0 | K14: 14 | L14: 23 | M14: =K14-L14 -> -9 | N14: =3*F14-E14 -> 12 | P14: Lucyvo | Q14: 1-5 | S14: 2-4 | X14: 5-1 | AE14: 3 | AF14: 12 | AG14: 1 | AH14: 24 | AI14: 7 | AJ14: 19 | AK14: 15 | AL14: 5 | AM14: 22 | AO14: 26 | AP14: 21 | AQ14: 17 | AR14: 10 | AS14: 2024-09-15 | AT14: 2024-11-24 | AU14: 2024-09-01 | AV14: 2025-03-23 | AW14: 2024-10-13 | AX14: 2025-02-09 | AY14: 2025-01-12 | AZ14: 2024-09-29 | BA14: 2025-03-09 | BC14: 2025-04-06 | BD14: 2025-02-23 | BE14: 2024-12-22 | BF14: 2024-11-10 | BH14: 12.99111313 | BI14: Lucyvo | BJ14: 3 | BK14: 6 | BL14: =CHOOSE(StandBer,COUNTIF(BW44:CJ44,"t")+COUNTIF(CF35:CF48,"u")+COUNTIF(CL44:CY44,"t")+COUNTIF(CU35:CU48,"u"),COUNTIF(BW44:CJ44,"t")+COUNTIF(CF35:CF48,"u"),COUNTIF(CL44:CY44,"t")+COUNTIF(CU35:CU48,"u"),COUNTIF(BW44:CJ44,"t")+COUNTIF(CL44:CY44,"t"),COUNTIF(CF35:CF48,"u")+COUNTIF(CU35:CU48,"u")) -> 1 | BM14: =CHOOSE(StandBer,COUNTIF(BW44:CJ44,"u")+COUNTIF(CF35:CF48,"t")+COUNTIF(CL44:CY44,"u")+COUNTIF(CU35:CU48,"t"),COUNTIF(BW44:CJ44,"u")+COUNTIF(CF35:CF48,"t"),COUNTIF(CL44:CY44,"u")+COUNTIF(CU35:CU48,"t"),COUNTIF(BW44:CJ44,"u")+COUNTIF(CL44:CY44,"u"),COUNTIF(CF35:CF48,"t")+COUNTIF(CU35:CU48,"t"))+BR14 -> 5 | BN14: =CHOOSE(StandBer,COUNTIF(BW44:CJ44,"g")+COUNTIF(CF35:CF48,"g")+COUNTIF(CL44:CY44,"g")+COUNTIF(CU35:CU48,"g"),COUNTIF(BW44:CJ44,"g")+COUNTIF(CF35:CF48,"g"),COUNTIF(CL44:CY44,"g")+COUNTIF(CU35:CU48,"g"),COUNTIF(BW44:CJ44,"g")+COUNTIF(CL44:CY44,"g"),COUNTIF(CF35:CF48,"g")+COUNTIF(CU35:CU48,"g")) -> 0 | BO14: =CHOOSE(StandBer,SUM(BW14:CJ14)+SUM(CF20:CF33)+SUM(CL14:CY14)+SUM(CU20:CU33),SUM(BW14:CJ14)+SUM(CF20:CF33),SUM(CL14:CY14)+SUM(CU20:CU33),SUM(BW14:CJ14)+SUM(CL14:CY14),SUM(CF20:CF33)+SUM(CU20:CU33))-5*BR14 -> 9 | BP14: =CHOOSE(StandBer,SUM(CF5:CF18)+SUM(BW29:CJ29)+SUM(CU5:CU18)+SUM(CL29:CY29),SUM(CF5:CF18)+SUM(BW29:CJ29),SUM(CU5:CU18)+SUM(CL29:CY29),SUM(CF5:CF18)+SUM(CU5:CU18),SUM(BW29:CJ29)+SUM(CL29:CY29)) -> 19 | BQ14: -10 | BR14: =CHOOSE(StandBer,COUNTIF(BW44:CJ44,"ff")+COUNTIF(CF35:CF48,"ff")+COUNTIF(CL44:CY44,"ff")+COUNTIF(CU35:CU48,"ff"),COUNTIF(BW44:CJ44,"ff")+COUNTIF(CF35:CF48,"ff"),COUNTIF(CL44:CY44,"ff")+COUNTIF(CU35:CU48,"ff"),COUNTIF(BW44:CJ44,"ff")+COUNTIF(CL44:CY44,"ff"),COUNTIF(CF35:CF48,"ff")+COUNTIF(CU35:CU48,"ff")) -> 0 | BS14: 10 | BT14: 9.990812111 | BV14: 10 | BW14: =IF(OR(ISERROR(FIND("-",Q14)),AE14>'export html'!$AR$7),"",IF(LEFT(Q14,1)<>"*",LEFT(Q14,FIND("-",Q14)-1)-0,MID(Q14,2,FIND("-",Q14)-2)-0)) -> 1 | BX14: =IF(OR(ISERROR(FIND("-",R14)),AF14>'export html'!$AR$7),"",IF(LEFT(R14,1)<>"*",LEFT(R14,FIND("-",R14)-1)-0,MID(R14,2,FIND("-",R14)-2)-0)) ->  | BY14: =IF(OR(ISERROR(FIND("-",S14)),AG14>'export html'!$AR$7),"",IF(LEFT(S14,1)<>"*",LEFT(S14,FIND("-",S14)-1)-0,MID(S14,2,FIND("-",S14)-2)-0)) -> 2 | BZ14: =IF(OR(ISERROR(FIND("-",T14)),AH14>'export html'!$AR$7),"",IF(LEFT(T14,1)<>"*",LEFT(T14,FIND("-",T14)-1)-0,MID(T14,2,FIND("-",T14)-2)-0)) ->  | CA14: =IF(OR(ISERROR(FIND("-",U14)),AI14>'export html'!$AR$7),"",IF(LEFT(U14,1)<>"*",LEFT(U14,FIND("-",U14)-1)-0,MID(U14,2,FIND("-",U14)-2)-0)) ->  | CB14: =IF(OR(ISERROR(FIND("-",V14)),AJ14>'export html'!$AR$7),"",IF(LEFT(V14,1)<>"*",LEFT(V14,FIND("-",V14)-1)-0,MID(V14,2,FIND("-",V14)-2)-0)) ->  | CC14: =IF(OR(ISERROR(FIND("-",W14)),AK14>'export html'!$AR$7),"",IF(LEFT(W14,1)<>"*",LEFT(W14,FIND("-",W14)-1)-0,MID(W14,2,FIND("-",W14)-2)-0)) ->  | CD14: =IF(OR(ISERROR(FIND("-",X14)),AL14>'export html'!$AR$7),"",IF(LEFT(X14,1)<>"*",LEFT(X14,FIND("-",X14)-1)-0,MID(X14,2,FIND("-",X14)-2)-0)) -> 5 | CE14: =IF(OR(ISERROR(FIND("-",Y14)),AM14>'export html'!$AR$7),"",IF(LEFT(Y14,1)<>"*",LEFT(Y14,FIND("-",Y14)-1)-0,MID(Y14,2,FIND("-",Y14)-2)-0)) ->  | CG14: =IF(OR(ISERROR(FIND("-",AA14)),AO14>'export html'!$AR$7),"",IF(LEFT(AA14,1)<>"*",LEFT(AA14,FIND("-",AA14)-1)-0,MID(AA14,2,FIND("-",AA14)-2)-0)) ->  | CH14: =IF(OR(ISERROR(FIND("-",AB14)),AP14>'export html'!$AR$7),"",IF(LEFT(AB14,1)<>"*",LEFT(AB14,FIND("-",AB14)-1)-0,MID(AB14,2,FIND("-",AB14)-2)-0)) ->  | CI14: =IF(OR(ISERROR(FIND("-",AC14)),AQ14>'export html'!$AR$7),"",IF(LEFT(AC14,1)<>"*",LEFT(AC14,FIND("-",AC14)-1)-0,MID(AC14,2,FIND("-",AC14)-2)-0)) ->  | CJ14: =IF(OR(ISERROR(FIND("-",AD14)),AR14>'export html'!$AR$7),"",IF(LEFT(AD14,1)<>"*",LEFT(AD14,FIND("-",AD14)-1)-0,MID(AD14,2,FIND("-",AD14)-2)-0)) ->  | CK14: 10 | CL14: =IF(OR(ISERROR(FIND("-",Q14)),AE14<='export html'!$AR$7),"",IF(LEFT(Q14,1)<>"*",LEFT(Q14,FIND("-",Q14)-1)-0,MID(Q14,2,FIND("-",Q14)-2)-0)) ->  | CM14: =IF(OR(ISERROR(FIND("-",R14)),AF14<='export html'!$AR$7),"",IF(LEFT(R14,1)<>"*",LEFT(R14,FIND("-",R14)-1)-0,MID(R14,2,FIND("-",R14)-2)-0)) ->  | CN14: =IF(OR(ISERROR(FIND("-",S14)),AG14<='export html'!$AR$7),"",IF(LEFT(S14,1)<>"*",LEFT(S14,FIND("-",S14)-1)-0,MID(S14,2,FIND("-",S14)-2)-0)) ->  | CO14: =IF(OR(ISERROR(FIND("-",T14)),AH14<='export html'!$AR$7),"",IF(LEFT(T14,1)<>"*",LEFT(T14,FIND("-",T14)-1)-0,MID(T14,2,FIND("-",T14)-2)-0)) ->  | CP14: =IF(OR(ISERROR(FIND("-",U14)),AI14<='export html'!$AR$7),"",IF(LEFT(U14,1)<>"*",LEFT(U14,FIND("-",U14)-1)-0,MID(U14,2,FIND("-",U14)-2)-0)) ->  | CQ14: =IF(OR(ISERROR(FIND("-",V14)),AJ14<='export html'!$AR$7),"",IF(LEFT(V14,1)<>"*",LEFT(V14,FIND("-",V14)-1)-0,MID(V14,2,FIND("-",V14)-2)-0)) ->  | CR14: =IF(OR(ISERROR(FIND("-",W14)),AK14<='export html'!$AR$7),"",IF(LEFT(W14,1)<>"*",LEFT(W14,FIND("-",W14)-1)-0,MID(W14,2,FIND("-",W14)-2)-0)) ->  | CS14: =IF(OR(ISERROR(FIND("-",X14)),AL14<='export html'!$AR$7),"",IF(LEFT(X14,1)<>"*",LEFT(X14,FIND("-",X14)-1)-0,MID(X14,2,FIND("-",X14)-2)-0)) ->  | CT14: =IF(OR(ISERROR(FIND("-",Y14)),AM14<='export html'!$AR$7),"",IF(LEFT(Y14,1)<>"*",LEFT(Y14,FIND("-",Y14)-1)-0,MID(Y14,2,FIND("-",Y14)-2)-0)) ->  | CV14: =IF(OR(ISERROR(FIND("-",AA14)),AO14<='export html'!$AR$7),"",IF(LEFT(AA14,1)<>"*",LEFT(AA14,FIND("-",AA14)-1)-0,MID(AA14,2,FIND("-",AA14)-2)-0)) ->  | CW14: =IF(OR(ISERROR(FIND("-",AB14)),AP14<='export html'!$AR$7),"",IF(LEFT(AB14,1)<>"*",LEFT(AB14,FIND("-",AB14)-1)-0,MID(AB14,2,FIND("-",AB14)-2)-0)) ->  | CX14: =IF(OR(ISERROR(FIND("-",AC14)),AQ14<='export html'!$AR$7),"",IF(LEFT(AC14,1)<>"*",LEFT(AC14,FIND("-",AC14)-1)-0,MID(AC14,2,FIND("-",AC14)-2)-0)) ->  | CY14: =IF(OR(ISERROR(FIND("-",AD14)),AR14<='export html'!$AR$7),"",IF(LEFT(AD14,1)<>"*",LEFT(AD14,FIND("-",AD14)-1)-0,MID(AD14,2,FIND("-",AD14)-2)-0)) ->  | CZ14: 10
C15: 11 | D15: SC Duffel | E15: 5 | F15: 6 | H15: 1 | I15: 3 | J15: 2 | K15: 12 | L15: 19 | M15: -7 | N15: 13 | P15: Racing Emblem | S15: 2-0 | T15: 0-5* | Y15: 4-1 | AE15: 7 | AF15: 16 | AG15: 5 | AH15: 2 | AI15: 11 | AJ15: 23 | AK15: 19 | AL15: 9 | AM15: 4 | AN15: 13 | AP15: 25 | AQ15: 21 | AR15: 14 | AS15: 2024-10-13 | AT15: 2025-01-19 | AU15: 2024-09-29 | AV15: 2024-09-08 | AW15: 2024-11-17 | AX15: 2025-03-16 | AY15: 2025-02-09 | AZ15: 2024-11-03 | BA15: 2024-09-22 | BB15: 2024-12-01 | BD15: 2025-03-30 | BE15: 2025-02-23 | BF15: 2024-12-08 | BH15: 6.990609091 | BI15: Racing Emblem | BJ15: 9 | BK15: 6 | BL15: =CHOOSE(StandBer,COUNTIF(BW45:CJ45,"t")+COUNTIF(CG35:CG48,"u")+COUNTIF(CL45:CY45,"t")+COUNTIF(CV35:CV48,"u"),COUNTIF(BW45:CJ45,"t")+COUNTIF(CG35:CG48,"u"),COUNTIF(CL45:CY45,"t")+COUNTIF(CV35:CV48,"u"),COUNTIF(BW45:CJ45,"t")+COUNTIF(CL45:CY45,"t"),COUNTIF(CG35:CG48,"u")+COUNTIF(CV35:CV48,"u")) -> 3 | BM15: =CHOOSE(StandBer,COUNTIF(BW45:CJ45,"u")+COUNTIF(CG35:CG48,"t")+COUNTIF(CL45:CY45,"u")+COUNTIF(CV35:CV48,"t"),COUNTIF(BW45:CJ45,"u")+COUNTIF(CG35:CG48,"t"),COUNTIF(CL45:CY45,"u")+COUNTIF(CV35:CV48,"t"),COUNTIF(BW45:CJ45,"u")+COUNTIF(CL45:CY45,"u"),COUNTIF(CG35:CG48,"t")+COUNTIF(CV35:CV48,"t"))+BR15 -> 3 | BN15: =CHOOSE(StandBer,COUNTIF(BW45:CJ45,"g")+COUNTIF(CG35:CG48,"g")+COUNTIF(CL45:CY45,"g")+COUNTIF(CV35:CV48,"g"),COUNTIF(BW45:CJ45,"g")+COUNTIF(CG35:CG48,"g"),COUNTIF(CL45:CY45,"g")+COUNTIF(CV35:CV48,"g"),COUNTIF(BW45:CJ45,"g")+COUNTIF(CL45:CY45,"g"),COUNTIF(CG35:CG48,"g")+COUNTIF(CV35:CV48,"g")) -> 0 | BO15: =CHOOSE(StandBer,SUM(BW15:CJ15)+SUM(CG20:CG33)+SUM(CL15:CY15)+SUM(CV20:CV33),SUM(BW15:CJ15)+SUM(CG20:CG33),SUM(CL15:CY15)+SUM(CV20:CV33),SUM(BW15:CJ15)+SUM(CL15:CY15),SUM(CG20:CG33)+SUM(CV20:CV33))-5*BR15 -> 16 | BP15: =CHOOSE(StandBer,SUM(CG5:CG18)+SUM(BW30:CJ30)+SUM(CV5:CV18)+SUM(CL30:CY30),SUM(CG5:CG18)+SUM(BW30:CJ30),SUM(CV5:CV18)+SUM(CL30:CY30),SUM(CG5:CG18)+SUM(CV5:CV18),SUM(BW30:CJ30)+SUM(CL30:CY30)) -> 20 | BQ15: -4 | BR15: =CHOOSE(StandBer,COUNTIF(BW45:CJ45,"ff")+COUNTIF(CG35:CG48,"ff")+COUNTIF(CL45:CY45,"ff")+COUNTIF(CV35:CV48,"ff"),COUNTIF(BW45:CJ45,"ff")+COUNTIF(CG35:CG48,"ff"),COUNTIF(CL45:CY45,"ff")+COUNTIF(CV35:CV48,"ff"),COUNTIF(BW45:CJ45,"ff")+COUNTIF(CL45:CY45,"ff"),COUNTIF(CG35:CG48,"ff")+COUNTIF(CV35:CV48,"ff")) -> 0 | BS15: 11 | BT15: 10.99111112 | BV15: 11 | BW15: =IF(OR(ISERROR(FIND("-",Q15)),AE15>'export html'!$AR$7),"",IF(LEFT(Q15,1)<>"*",LEFT(Q15,FIND("-",Q15)-1)-0,MID(Q15,2,FIND("-",Q15)-2)-0)) ->  | BX15: =IF(OR(ISERROR(FIND("-",R15)),AF15>'export html'!$AR$7),"",IF(LEFT(R15,1)<>"*",LEFT(R15,FIND("-",R15)-1)-0,MID(R15,2,FIND("-",R15)-2)-0)) ->  | BY15: =IF(OR(ISERROR(FIND("-",S15)),AG15>'export html'!$AR$7),"",IF(LEFT(S15,1)<>"*",LEFT(S15,FIND("-",S15)-1)-0,MID(S15,2,FIND("-",S15)-2)-0)) -> 2 | BZ15: =IF(OR(ISERROR(FIND("-",T15)),AH15>'export html'!$AR$7),"",IF(LEFT(T15,1)<>"*",LEFT(T15,FIND("-",T15)-1)-0,MID(T15,2,FIND("-",T15)-2)-0)) -> 0 | CA15: =IF(OR(ISERROR(FIND("-",U15)),AI15>'export html'!$AR$7),"",IF(LEFT(U15,1)<>"*",LEFT(U15,FIND("-",U15)-1)-0,MID(U15,2,FIND("-",U15)-2)-0)) ->  | CB15: =IF(OR(ISERROR(FIND("-",V15)),AJ15>'export html'!$AR$7),"",IF(LEFT(V15,1)<>"*",LEFT(V15,FIND("-",V15)-1)-0,MID(V15,2,FIND("-",V15)-2)-0)) ->  | CC15: =IF(OR(ISERROR(FIND("-",W15)),AK15>'export html'!$AR$7),"",IF(LEFT(W15,1)<>"*",LEFT(W15,FIND("-",W15)-1)-0,MID(W15,2,FIND("-",W15)-2)-0)) ->  | CD15: =IF(OR(ISERROR(FIND("-",X15)),AL15>'export html'!$AR$7),"",IF(LEFT(X15,1)<>"*",LEFT(X15,FIND("-",X15)-1)-0,MID(X15,2,FIND("-",X15)-2)-0)) ->  | CE15: =IF(OR(ISERROR(FIND("-",Y15)),AM15>'export html'!$AR$7),"",IF(LEFT(Y15,1)<>"*",LEFT(Y15,FIND("-",Y15)-1)-0,MID(Y15,2,FIND("-",Y15)-2)-0)) -> 4 | CF15: =IF(OR(ISERROR(FIND("-",Z15)),AN15>'export html'!$AR$7),"",IF(LEFT(Z15,1)<>"*",LEFT(Z15,FIND("-",Z15)-1)-0,MID(Z15,2,FIND("-",Z15)-2)-0)) ->  | CH15: =IF(OR(ISERROR(FIND("-",AB15)),AP15>'export html'!$AR$7),"",IF(LEFT(AB15,1)<>"*",LEFT(AB15,FIND("-",AB15)-1)-0,MID(AB15,2,FIND("-",AB15)-2)-0)) ->  | CI15: =IF(OR(ISERROR(FIND("-",AC15)),AQ15>'export html'!$AR$7),"",IF(LEFT(AC15,1)<>"*",LEFT(AC15,FIND("-",AC15)-1)-0,MID(AC15,2,FIND("-",AC15)-2)-0)) ->  | CJ15: =IF(OR(ISERROR(FIND("-",AD15)),AR15>'export html'!$AR$7),"",IF(LEFT(AD15,1)<>"*",LEFT(AD15,FIND("-",AD15)-1)-0,MID(AD15,2,FIND("-",AD15)-2)-0)) ->  | CK15: 11 | CL15: =IF(OR(ISERROR(FIND("-",Q15)),AE15<='export html'!$AR$7),"",IF(LEFT(Q15,1)<>"*",LEFT(Q15,FIND("-",Q15)-1)-0,MID(Q15,2,FIND("-",Q15)-2)-0)) ->  | CM15: =IF(OR(ISERROR(FIND("-",R15)),AF15<='export html'!$AR$7),"",IF(LEFT(R15,1)<>"*",LEFT(R15,FIND("-",R15)-1)-0,MID(R15,2,FIND("-",R15)-2)-0)) ->  | CN15: =IF(OR(ISERROR(FIND("-",S15)),AG15<='export html'!$AR$7),"",IF(LEFT(S15,1)<>"*",LEFT(S15,FIND("-",S15)-1)-0,MID(S15,2,FIND("-",S15)-2)-0)) ->  | CO15: =IF(OR(ISERROR(FIND("-",T15)),AH15<='export html'!$AR$7),"",IF(LEFT(T15,1)<>"*",LEFT(T15,FIND("-",T15)-1)-0,MID(T15,2,FIND("-",T15)-2)-0)) ->  | CP15: =IF(OR(ISERROR(FIND("-",U15)),AI15<='export html'!$AR$7),"",IF(LEFT(U15,1)<>"*",LEFT(U15,FIND("-",U15)-1)-0,MID(U15,2,FIND("-",U15)-2)-0)) ->  | CQ15: =IF(OR(ISERROR(FIND("-",V15)),AJ15<='export html'!$AR$7),"",IF(LEFT(V15,1)<>"*",LEFT(V15,FIND("-",V15)-1)-0,MID(V15,2,FIND("-",V15)-2)-0)) ->  | CR15: =IF(OR(ISERROR(FIND("-",W15)),AK15<='export html'!$AR$7),"",IF(LEFT(W15,1)<>"*",LEFT(W15,FIND("-",W15)-1)-0,MID(W15,2,FIND("-",W15)-2)-0)) ->  | CS15: =IF(OR(ISERROR(FIND("-",X15)),AL15<='export html'!$AR$7),"",IF(LEFT(X15,1)<>"*",LEFT(X15,FIND("-",X15)-1)-0,MID(X15,2,FIND("-",X15)-2)-0)) ->  | CT15: =IF(OR(ISERROR(FIND("-",Y15)),AM15<='export html'!$AR$7),"",IF(LEFT(Y15,1)<>"*",LEFT(Y15,FIND("-",Y15)-1)-0,MID(Y15,2,FIND("-",Y15)-2)-0)) ->  | CU15: =IF(OR(ISERROR(FIND("-",Z15)),AN15<='export html'!$AR$7),"",IF(LEFT(Z15,1)<>"*",LEFT(Z15,FIND("-",Z15)-1)-0,MID(Z15,2,FIND("-",Z15)-2)-0)) ->  | CW15: =IF(OR(ISERROR(FIND("-",AB15)),AP15<='export html'!$AR$7),"",IF(LEFT(AB15,1)<>"*",LEFT(AB15,FIND("-",AB15)-1)-0,MID(AB15,2,FIND("-",AB15)-2)-0)) ->  | CX15: =IF(OR(ISERROR(FIND("-",AC15)),AQ15<='export html'!$AR$7),"",IF(LEFT(AC15,1)<>"*",LEFT(AC15,FIND("-",AC15)-1)-0,MID(AC15,2,FIND("-",AC15)-2)-0)) ->  | CY15: =IF(OR(ISERROR(FIND("-",AD15)),AR15<='export html'!$AR$7),"",IF(LEFT(AD15,1)<>"*",LEFT(AD15,FIND("-",AD15)-1)-0,MID(AD15,2,FIND("-",AD15)-2)-0)) ->  | CZ15: 11
C16: 12 | D16: Corum | E16: 4 | F16: 6 | H16: 1 | I16: 4 | J16: 1 | K16: 20 | L16: 26 | M16: -6 | N16: 14 | P16: Sint Anneke | V16: 2-3 | W16: 5-2 | AC16: 6-3 | AE16: 15 | AF16: 24 | AG16: 26 | AH16: 10 | AI16: 19 | AJ16: 5 | AK16: 1 | AL16: 17 | AM16: 20 | AN16: 8 | AO16: 12 | AQ16: 3 | AR16: 22 | AS16: 2025-01-12 | AT16: 2025-03-23 | AU16: 2025-04-06 | AV16: 2024-11-10 | AW16: 2025-02-09 | AX16: 2024-09-29 | AY16: 2024-09-01 | AZ16: 2025-01-26 | BA16: 2025-02-16 | BB16: 2024-10-20 | BC16: 2024-11-24 | BE16: 2024-09-15 | BF16: 2025-03-09 | BH16: 3.990205011 | BI16: Sint Anneke | BJ16: 12 | BK16: 6 | BL16: =CHOOSE(StandBer,COUNTIF(BW46:CJ46,"t")+COUNTIF(CH35:CH48,"u")+COUNTIF(CL46:CY46,"t")+COUNTIF(CW35:CW48,"u"),COUNTIF(BW46:CJ46,"t")+COUNTIF(CH35:CH48,"u"),COUNTIF(CL46:CY46,"t")+COUNTIF(CW35:CW48,"u"),COUNTIF(BW46:CJ46,"t")+COUNTIF(CL46:CY46,"t"),COUNTIF(CH35:CH48,"u")+COUNTIF(CW35:CW48,"u")) -> 4 | BM16: =CHOOSE(StandBer,COUNTIF(BW46:CJ46,"u")+COUNTIF(CH35:CH48,"t")+COUNTIF(CL46:CY46,"u")+COUNTIF(CW35:CW48,"t"),COUNTIF(BW46:CJ46,"u")+COUNTIF(CH35:CH48,"t"),COUNTIF(CL46:CY46,"u")+COUNTIF(CW35:CW48,"t"),COUNTIF(BW46:CJ46,"u")+COUNTIF(CL46:CY46,"u"),COUNTIF(CH35:CH48,"t")+COUNTIF(CW35:CW48,"t"))+BR16 -> 2 | BN16: =CHOOSE(StandBer,COUNTIF(BW46:CJ46,"g")+COUNTIF(CH35:CH48,"g")+COUNTIF(CL46:CY46,"g")+COUNTIF(CW35:CW48,"g"),COUNTIF(BW46:CJ46,"g")+COUNTIF(CH35:CH48,"g"),COUNTIF(CL46:CY46,"g")+COUNTIF(CW35:CW48,"g"),COUNTIF(BW46:CJ46,"g")+COUNTIF(CL46:CY46,"g"),COUNTIF(CH35:CH48,"g")+COUNTIF(CW35:CW48,"g")) -> 0 | BO16: =CHOOSE(StandBer,SUM(BW16:CJ16)+SUM(CH20:CH33)+SUM(CL16:CY16)+SUM(CW20:CW33),SUM(BW16:CJ16)+SUM(CH20:CH33),SUM(CL16:CY16)+SUM(CW20:CW33),SUM(BW16:CJ16)+SUM(CL16:CY16),SUM(CH20:CH33)+SUM(CW20:CW33))-5*BR16 -> 29 | BP16: =CHOOSE(StandBer,SUM(CH5:CH18)+SUM(BW31:CJ31)+SUM(CW5:CW18)+SUM(CL31:CY31),SUM(CH5:CH18)+SUM(BW31:CJ31),SUM(CW5:CW18)+SUM(CL31:CY31),SUM(CH5:CH18)+SUM(CW5:CW18),SUM(BW31:CJ31)+SUM(CL31:CY31)) -> 20 | BQ16: 9 | BR16: =CHOOSE(StandBer,COUNTIF(BW46:CJ46,"ff")+COUNTIF(CH35:CH48,"ff")+COUNTIF(CL46:CY46,"ff")+COUNTIF(CW35:CW48,"ff"),COUNTIF(BW46:CJ46,"ff")+COUNTIF(CH35:CH48,"ff"),COUNTIF(CL46:CY46,"ff")+COUNTIF(CW35:CW48,"ff"),COUNTIF(BW46:CJ46,"ff")+COUNTIF(CL46:CY46,"ff"),COUNTIF(CH35:CH48,"ff")+COUNTIF(CW35:CW48,"ff")) -> 0 | BS16: 12 | BT16: 11.99111007 | BV16: 12 | BW16: =IF(OR(ISERROR(FIND("-",Q16)),AE16>'export html'!$AR$7),"",IF(LEFT(Q16,1)<>"*",LEFT(Q16,FIND("-",Q16)-1)-0,MID(Q16,2,FIND("-",Q16)-2)-0)) ->  | BX16: =IF(OR(ISERROR(FIND("-",R16)),AF16>'export html'!$AR$7),"",IF(LEFT(R16,1)<>"*",LEFT(R16,FIND("-",R16)-1)-0,MID(R16,2,FIND("-",R16)-2)-0)) ->  | BY16: =IF(OR(ISERROR(FIND("-",S16)),AG16>'export html'!$AR$7),"",IF(LEFT(S16,1)<>"*",LEFT(S16,FIND("-",S16)-1)-0,MID(S16,2,FIND("-",S16)-2)-0)) ->  | BZ16: =IF(OR(ISERROR(FIND("-",T16)),AH16>'export html'!$AR$7),"",IF(LEFT(T16,1)<>"*",LEFT(T16,FIND("-",T16)-1)-0,MID(T16,2,FIND("-",T16)-2)-0)) ->  | CA16: =IF(OR(ISERROR(FIND("-",U16)),AI16>'export html'!$AR$7),"",IF(LEFT(U16,1)<>"*",LEFT(U16,FIND("-",U16)-1)-0,MID(U16,2,FIND("-",U16)-2)-0)) ->  | CB16: =IF(OR(ISERROR(FIND("-",V16)),AJ16>'export html'!$AR$7),"",IF(LEFT(V16,1)<>"*",LEFT(V16,FIND("-",V16)-1)-0,MID(V16,2,FIND("-",V16)-2)-0)) -> 2 | CC16: =IF(OR(ISERROR(FIND("-",W16)),AK16>'export html'!$AR$7),"",IF(LEFT(W16,1)<>"*",LEFT(W16,FIND("-",W16)-1)-0,MID(W16,2,FIND("-",W16)-2)-0)) -> 5 | CD16: =IF(OR(ISERROR(FIND("-",X16)),AL16>'export html'!$AR$7),"",IF(LEFT(X16,1)<>"*",LEFT(X16,FIND("-",X16)-1)-0,MID(X16,2,FIND("-",X16)-2)-0)) ->  | CE16: =IF(OR(ISERROR(FIND("-",Y16)),AM16>'export html'!$AR$7),"",IF(LEFT(Y16,1)<>"*",LEFT(Y16,FIND("-",Y16)-1)-0,MID(Y16,2,FIND("-",Y16)-2)-0)) ->  | CF16: =IF(OR(ISERROR(FIND("-",Z16)),AN16>'export html'!$AR$7),"",IF(LEFT(Z16,1)<>"*",LEFT(Z16,FIND("-",Z16)-1)-0,MID(Z16,2,FIND("-",Z16)-2)-0)) ->  | CG16: =IF(OR(ISERROR(FIND("-",AA16)),AO16>'export html'!$AR$7),"",IF(LEFT(AA16,1)<>"*",LEFT(AA16,FIND("-",AA16)-1)-0,MID(AA16,2,FIND("-",AA16)-2)-0)) ->  | CI16: =IF(OR(ISERROR(FIND("-",AC16)),AQ16>'export html'!$AR$7),"",IF(LEFT(AC16,1)<>"*",LEFT(AC16,FIND("-",AC16)-1)-0,MID(AC16,2,FIND("-",AC16)-2)-0)) -> 6 | CJ16: =IF(OR(ISERROR(FIND("-",AD16)),AR16>'export html'!$AR$7),"",IF(LEFT(AD16,1)<>"*",LEFT(AD16,FIND("-",AD16)-1)-0,MID(AD16,2,FIND("-",AD16)-2)-0)) ->  | CK16: 12 | CL16: =IF(OR(ISERROR(FIND("-",Q16)),AE16<='export html'!$AR$7),"",IF(LEFT(Q16,1)<>"*",LEFT(Q16,FIND("-",Q16)-1)-0,MID(Q16,2,FIND("-",Q16)-2)-0)) ->  | CM16: =IF(OR(ISERROR(FIND("-",R16)),AF16<='export html'!$AR$7),"",IF(LEFT(R16,1)<>"*",LEFT(R16,FIND("-",R16)-1)-0,MID(R16,2,FIND("-",R16)-2)-0)) ->  | CN16: =IF(OR(ISERROR(FIND("-",S16)),AG16<='export html'!$AR$7),"",IF(LEFT(S16,1)<>"*",LEFT(S16,FIND("-",S16)-1)-0,MID(S16,2,FIND("-",S16)-2)-0)) ->  | CO16: =IF(OR(ISERROR(FIND("-",T16)),AH16<='export html'!$AR$7),"",IF(LEFT(T16,1)<>"*",LEFT(T16,FIND("-",T16)-1)-0,MID(T16,2,FIND("-",T16)-2)-0)) ->  | CP16: =IF(OR(ISERROR(FIND("-",U16)),AI16<='export html'!$AR$7),"",IF(LEFT(U16,1)<>"*",LEFT(U16,FIND("-",U16)-1)-0,MID(U16,2,FIND("-",U16)-2)-0)) ->  | CQ16: =IF(OR(ISERROR(FIND("-",V16)),AJ16<='export html'!$AR$7),"",IF(LEFT(V16,1)<>"*",LEFT(V16,FIND("-",V16)-1)-0,MID(V16,2,FIND("-",V16)-2)-0)) ->  | CR16: =IF(OR(ISERROR(FIND("-",W16)),AK16<='export html'!$AR$7),"",IF(LEFT(W16,1)<>"*",LEFT(W16,FIND("-",W16)-1)-0,MID(W16,2,FIND("-",W16)-2)-0)) ->  | CS16: =IF(OR(ISERROR(FIND("-",X16)),AL16<='export html'!$AR$7),"",IF(LEFT(X16,1)<>"*",LEFT(X16,FIND("-",X16)-1)-0,MID(X16,2,FIND("-",X16)-2)-0)) ->  | CT16: =IF(OR(ISERROR(FIND("-",Y16)),AM16<='export html'!$AR$7),"",IF(LEFT(Y16,1)<>"*",LEFT(Y16,FIND("-",Y16)-1)-0,MID(Y16,2,FIND("-",Y16)-2)-0)) ->  | CU16: =IF(OR(ISERROR(FIND("-",Z16)),AN16<='export html'!$AR$7),"",IF(LEFT(Z16,1)<>"*",LEFT(Z16,FIND("-",Z16)-1)-0,MID(Z16,2,FIND("-",Z16)-2)-0)) ->  | CV16: =IF(OR(ISERROR(FIND("-",AA16)),AO16<='export html'!$AR$7),"",IF(LEFT(AA16,1)<>"*",LEFT(AA16,FIND("-",AA16)-1)-0,MID(AA16,2,FIND("-",AA16)-2)-0)) ->  | CX16: =IF(OR(ISERROR(FIND("-",AC16)),AQ16<='export html'!$AR$7),"",IF(LEFT(AC16,1)<>"*",LEFT(AC16,FIND("-",AC16)-1)-0,MID(AC16,2,FIND("-",AC16)-2)-0)) ->  | CY16: =IF(OR(ISERROR(FIND("-",AD16)),AR16<='export html'!$AR$7),"",IF(LEFT(AD16,1)<>"*",LEFT(AD16,FIND("-",AD16)-1)-0,MID(AD16,2,FIND("-",AD16)-2)-0)) ->  | CZ16: 12
C17: 13 | D17: Lucyvo | E17: =3*H17+J17 -> 3 | F17: =SUM(H17:J17) -> 6 | H17: 1 | I17: 5 | J17: 0 | K17: 9 | L17: 19 | M17: =K17-L17 -> -10 | N17: =3*F17-E17 -> 15 | P17: SC Duffel | T17: 1-1 | U17: 3-3 | Z17: 3-1 | AE17: 24 | AF17: 20 | AG17: 22 | AH17: 6 | AI17: 2 | AJ17: 14 | AK17: 10 | AL17: 13 | AM17: 25 | AN17: 4 | AO17: 8 | AP17: 16 | AR17: 18 | AS17: 2025-03-22 | AT17: 2025-02-15 | AU17: 2025-03-08 | AV17: 2024-10-05 | AW17: 2024-09-07 | AX17: 2024-12-07 | AY17: 2024-11-09 | AZ17: 2024-11-30 | BA17: 2025-03-29 | BB17: 2024-09-21 | BC17: 2024-10-19 | BD17: 2025-01-18 | BF17: 2025-02-01 | BH17: 10.99111112 | BI17: SC Duffel | BJ17: 5 | BK17: 6 | BL17: =CHOOSE(StandBer,COUNTIF(BW47:CJ47,"t")+COUNTIF(CI35:CI48,"u")+COUNTIF(CL47:CY47,"t")+COUNTIF(CX35:CX48,"u"),COUNTIF(BW47:CJ47,"t")+COUNTIF(CI35:CI48,"u"),COUNTIF(CL47:CY47,"t")+COUNTIF(CX35:CX48,"u"),COUNTIF(BW47:CJ47,"t")+COUNTIF(CL47:CY47,"t"),COUNTIF(CI35:CI48,"u")+COUNTIF(CX35:CX48,"u")) -> 1 | BM17: =CHOOSE(StandBer,COUNTIF(BW47:CJ47,"u")+COUNTIF(CI35:CI48,"t")+COUNTIF(CL47:CY47,"u")+COUNTIF(CX35:CX48,"t"),COUNTIF(BW47:CJ47,"u")+COUNTIF(CI35:CI48,"t"),COUNTIF(CL47:CY47,"u")+COUNTIF(CX35:CX48,"t"),COUNTIF(BW47:CJ47,"u")+COUNTIF(CL47:CY47,"u"),COUNTIF(CI35:CI48,"t")+COUNTIF(CX35:CX48,"t"))+BR17 -> 3 | BN17: =CHOOSE(StandBer,COUNTIF(BW47:CJ47,"g")+COUNTIF(CI35:CI48,"g")+COUNTIF(CL47:CY47,"g")+COUNTIF(CX35:CX48,"g"),COUNTIF(BW47:CJ47,"g")+COUNTIF(CI35:CI48,"g"),COUNTIF(CL47:CY47,"g")+COUNTIF(CX35:CX48,"g"),COUNTIF(BW47:CJ47,"g")+COUNTIF(CL47:CY47,"g"),COUNTIF(CI35:CI48,"g")+COUNTIF(CX35:CX48,"g")) -> 2 | BO17: =CHOOSE(StandBer,SUM(BW17:CJ17)+SUM(CI20:CI33)+SUM(CL17:CY17)+SUM(CX20:CX33),SUM(BW17:CJ17)+SUM(CI20:CI33),SUM(CL17:CY17)+SUM(CX20:CX33),SUM(BW17:CJ17)+SUM(CL17:CY17),SUM(CI20:CI33)+SUM(CX20:CX33))-5*BR17 -> 12 | BP17: =CHOOSE(StandBer,SUM(CI5:CI18)+SUM(BW32:CJ32)+SUM(CX5:CX18)+SUM(CL32:CY32),SUM(CI5:CI18)+SUM(BW32:CJ32),SUM(CX5:CX18)+SUM(CL32:CY32),SUM(CI5:CI18)+SUM(CX5:CX18),SUM(BW32:CJ32)+SUM(CL32:CY32)) -> 19 | BQ17: -7 | BR17: =CHOOSE(StandBer,COUNTIF(BW47:CJ47,"ff")+COUNTIF(CI35:CI48,"ff")+COUNTIF(CL47:CY47,"ff")+COUNTIF(CX35:CX48,"ff"),COUNTIF(BW47:CJ47,"ff")+COUNTIF(CI35:CI48,"ff"),COUNTIF(CL47:CY47,"ff")+COUNTIF(CX35:CX48,"ff"),COUNTIF(BW47:CJ47,"ff")+COUNTIF(CL47:CY47,"ff"),COUNTIF(CI35:CI48,"ff")+COUNTIF(CX35:CX48,"ff")) -> 0 | BS17: 13 | BT17: 12.99111313 | BV17: 13 | BW17: =IF(OR(ISERROR(FIND("-",Q17)),AE17>'export html'!$AR$7),"",IF(LEFT(Q17,1)<>"*",LEFT(Q17,FIND("-",Q17)-1)-0,MID(Q17,2,FIND("-",Q17)-2)-0)) ->  | BX17: =IF(OR(ISERROR(FIND("-",R17)),AF17>'export html'!$AR$7),"",IF(LEFT(R17,1)<>"*",LEFT(R17,FIND("-",R17)-1)-0,MID(R17,2,FIND("-",R17)-2)-0)) ->  | BY17: =IF(OR(ISERROR(FIND("-",S17)),AG17>'export html'!$AR$7),"",IF(LEFT(S17,1)<>"*",LEFT(S17,FIND("-",S17)-1)-0,MID(S17,2,FIND("-",S17)-2)-0)) ->  | BZ17: =IF(OR(ISERROR(FIND("-",T17)),AH17>'export html'!$AR$7),"",IF(LEFT(T17,1)<>"*",LEFT(T17,FIND("-",T17)-1)-0,MID(T17,2,FIND("-",T17)-2)-0)) -> 1 | CA17: =IF(OR(ISERROR(FIND("-",U17)),AI17>'export html'!$AR$7),"",IF(LEFT(U17,1)<>"*",LEFT(U17,FIND("-",U17)-1)-0,MID(U17,2,FIND("-",U17)-2)-0)) -> 3 | CB17: =IF(OR(ISERROR(FIND("-",V17)),AJ17>'export html'!$AR$7),"",IF(LEFT(V17,1)<>"*",LEFT(V17,FIND("-",V17)-1)-0,MID(V17,2,FIND("-",V17)-2)-0)) ->  | CC17: =IF(OR(ISERROR(FIND("-",W17)),AK17>'export html'!$AR$7),"",IF(LEFT(W17,1)<>"*",LEFT(W17,FIND("-",W17)-1)-0,MID(W17,2,FIND("-",W17)-2)-0)) ->  | CD17: =IF(OR(ISERROR(FIND("-",X17)),AL17>'export html'!$AR$7),"",IF(LEFT(X17,1)<>"*",LEFT(X17,FIND("-",X17)-1)-0,MID(X17,2,FIND("-",X17)-2)-0)) ->  | CE17: =IF(OR(ISERROR(FIND("-",Y17)),AM17>'export html'!$AR$7),"",IF(LEFT(Y17,1)<>"*",LEFT(Y17,FIND("-",Y17)-1)-0,MID(Y17,2,FIND("-",Y17)-2)-0)) ->  | CF17: =IF(OR(ISERROR(FIND("-",Z17)),AN17>'export html'!$AR$7),"",IF(LEFT(Z17,1)<>"*",LEFT(Z17,FIND("-",Z17)-1)-0,MID(Z17,2,FIND("-",Z17)-2)-0)) -> 3 | CG17: =IF(OR(ISERROR(FIND("-",AA17)),AO17>'export html'!$AR$7),"",IF(LEFT(AA17,1)<>"*",LEFT(AA17,FIND("-",AA17)-1)-0,MID(AA17,2,FIND("-",AA17)-2)-0)) ->  | CH17: =IF(OR(ISERROR(FIND("-",AB17)),AP17>'export html'!$AR$7),"",IF(LEFT(AB17,1)<>"*",LEFT(AB17,FIND("-",AB17)-1)-0,MID(AB17,2,FIND("-",AB17)-2)-0)) ->  | CJ17: =IF(OR(ISERROR(FIND("-",AD17)),AR17>'export html'!$AR$7),"",IF(LEFT(AD17,1)<>"*",LEFT(AD17,FIND("-",AD17)-1)-0,MID(AD17,2,FIND("-",AD17)-2)-0)) ->  | CK17: 13 | CL17: =IF(OR(ISERROR(FIND("-",Q17)),AE17<='export html'!$AR$7),"",IF(LEFT(Q17,1)<>"*",LEFT(Q17,FIND("-",Q17)-1)-0,MID(Q17,2,FIND("-",Q17)-2)-0)) ->  | CM17: =IF(OR(ISERROR(FIND("-",R17)),AF17<='export html'!$AR$7),"",IF(LEFT(R17,1)<>"*",LEFT(R17,FIND("-",R17)-1)-0,MID(R17,2,FIND("-",R17)-2)-0)) ->  | CN17: =IF(OR(ISERROR(FIND("-",S17)),AG17<='export html'!$AR$7),"",IF(LEFT(S17,1)<>"*",LEFT(S17,FIND("-",S17)-1)-0,MID(S17,2,FIND("-",S17)-2)-0)) ->  | CO17: =IF(OR(ISERROR(FIND("-",T17)),AH17<='export html'!$AR$7),"",IF(LEFT(T17,1)<>"*",LEFT(T17,FIND("-",T17)-1)-0,MID(T17,2,FIND("-",T17)-2)-0)) ->  | CP17: =IF(OR(ISERROR(FIND("-",U17)),AI17<='export html'!$AR$7),"",IF(LEFT(U17,1)<>"*",LEFT(U17,FIND("-",U17)-1)-0,MID(U17,2,FIND("-",U17)-2)-0)) ->  | CQ17: =IF(OR(ISERROR(FIND("-",V17)),AJ17<='export html'!$AR$7),"",IF(LEFT(V17,1)<>"*",LEFT(V17,FIND("-",V17)-1)-0,MID(V17,2,FIND("-",V17)-2)-0)) ->  | CR17: =IF(OR(ISERROR(FIND("-",W17)),AK17<='export html'!$AR$7),"",IF(LEFT(W17,1)<>"*",LEFT(W17,FIND("-",W17)-1)-0,MID(W17,2,FIND("-",W17)-2)-0)) ->  | CS17: =IF(OR(ISERROR(FIND("-",X17)),AL17<='export html'!$AR$7),"",IF(LEFT(X17,1)<>"*",LEFT(X17,FIND("-",X17)-1)-0,MID(X17,2,FIND("-",X17)-2)-0)) ->  | CT17: =IF(OR(ISERROR(FIND("-",Y17)),AM17<='export html'!$AR$7),"",IF(LEFT(Y17,1)<>"*",LEFT(Y17,FIND("-",Y17)-1)-0,MID(Y17,2,FIND("-",Y17)-2)-0)) ->  | CU17: =IF(OR(ISERROR(FIND("-",Z17)),AN17<='export html'!$AR$7),"",IF(LEFT(Z17,1)<>"*",LEFT(Z17,FIND("-",Z17)-1)-0,MID(Z17,2,FIND("-",Z17)-2)-0)) ->  | CV17: =IF(OR(ISERROR(FIND("-",AA17)),AO17<='export html'!$AR$7),"",IF(LEFT(AA17,1)<>"*",LEFT(AA17,FIND("-",AA17)-1)-0,MID(AA17,2,FIND("-",AA17)-2)-0)) ->  | CW17: =IF(OR(ISERROR(FIND("-",AB17)),AP17<='export html'!$AR$7),"",IF(LEFT(AB17,1)<>"*",LEFT(AB17,FIND("-",AB17)-1)-0,MID(AB17,2,FIND("-",AB17)-2)-0)) ->  | CY17: =IF(OR(ISERROR(FIND("-",AD17)),AR17<='export html'!$AR$7),"",IF(LEFT(AD17,1)<>"*",LEFT(AD17,FIND("-",AD17)-1)-0,MID(AD17,2,FIND("-",AD17)-2)-0)) ->  | CZ17: 13
C18: 14 | D18: Jolika | E18: 0 | F18: 6 | H18: 0 | I18: 6 | J18: 0 | K18: 2 | L18: 36 | M18: -34 | N18: 18 | P18: Yerevan United | W18: 9-3 | AA18: 8-2 | AC18: 4-1 | AE18: 17 | AF18: 26 | AG18: 15 | AH18: 12 | AI18: 21 | AJ18: 7 | AK18: 3 | AL18: 19 | AM18: 24 | AN18: 23 | AO18: 1 | AP18: 9 | AQ18: 5 | AS18: 2025-01-26 | AT18: 2025-04-06 | AU18: 2025-01-12 | AV18: 2024-11-24 | AW18: 2025-02-23 | AX18: 2024-10-13 | AY18: 2024-09-15 | AZ18: 2025-02-09 | BA18: 2025-03-23 | BB18: 2025-03-16 | BC18: 2024-09-01 | BD18: 2024-11-03 | BE18: 2024-09-29 | BH18: 3.990602021 | BI18: Yerevan United | BJ18: 12 | BK18: 6 | BL18: =CHOOSE(StandBer,COUNTIF(BW48:CJ48,"t")+COUNTIF(CJ35:CJ48,"u")+COUNTIF(CL48:CY48,"t")+COUNTIF(CY35:CY48,"u"),COUNTIF(BW48:CJ48,"t")+COUNTIF(CJ35:CJ48,"u"),COUNTIF(CL48:CY48,"t")+COUNTIF(CY35:CY48,"u"),COUNTIF(BW48:CJ48,"t")+COUNTIF(CL48:CY48,"t"),COUNTIF(CJ35:CJ48,"u")+COUNTIF(CY35:CY48,"u")) -> 3 | BM18: =CHOOSE(StandBer,COUNTIF(BW48:CJ48,"u")+COUNTIF(CJ35:CJ48,"t")+COUNTIF(CL48:CY48,"u")+COUNTIF(CY35:CY48,"t"),COUNTIF(BW48:CJ48,"u")+COUNTIF(CJ35:CJ48,"t"),COUNTIF(CL48:CY48,"u")+COUNTIF(CY35:CY48,"t"),COUNTIF(BW48:CJ48,"u")+COUNTIF(CL48:CY48,"u"),COUNTIF(CJ35:CJ48,"t")+COUNTIF(CY35:CY48,"t"))+BR18 -> 0 | BN18: =CHOOSE(StandBer,COUNTIF(BW48:CJ48,"g")+COUNTIF(CJ35:CJ48,"g")+COUNTIF(CL48:CY48,"g")+COUNTIF(CY35:CY48,"g"),COUNTIF(BW48:CJ48,"g")+COUNTIF(CJ35:CJ48,"g"),COUNTIF(CL48:CY48,"g")+COUNTIF(CY35:CY48,"g"),COUNTIF(BW48:CJ48,"g")+COUNTIF(CL48:CY48,"g"),COUNTIF(CJ35:CJ48,"g")+COUNTIF(CY35:CY48,"g")) -> 3 | BO18: =CHOOSE(StandBer,SUM(BW18:CJ18)+SUM(CJ20:CJ33)+SUM(CL18:CY18)+SUM(CY20:CY33),SUM(BW18:CJ18)+SUM(CJ20:CJ33),SUM(CL18:CY18)+SUM(CY20:CY33),SUM(BW18:CJ18)+SUM(CL18:CY18),SUM(CJ20:CJ33)+SUM(CY20:CY33))-5*BR18 -> 28 | BP18: =CHOOSE(StandBer,SUM(CJ5:CJ18)+SUM(BW33:CJ33)+SUM(CY5:CY18)+SUM(CL33:CY33),SUM(CJ5:CJ18)+SUM(BW33:CJ33),SUM(CY5:CY18)+SUM(CL33:CY33),SUM(CJ5:CJ18)+SUM(CY5:CY18),SUM(BW33:CJ33)+SUM(CL33:CY33)) -> 13 | BQ18: 15 | BR18: =CHOOSE(StandBer,COUNTIF(BW48:CJ48,"ff")+COUNTIF(CJ35:CJ48,"ff")+COUNTIF(CL48:CY48,"ff")+COUNTIF(CY35:CY48,"ff"),COUNTIF(BW48:CJ48,"ff")+COUNTIF(CJ35:CJ48,"ff"),COUNTIF(CL48:CY48,"ff")+COUNTIF(CY35:CY48,"ff"),COUNTIF(BW48:CJ48,"ff")+COUNTIF(CL48:CY48,"ff"),COUNTIF(CJ35:CJ48,"ff")+COUNTIF(CY35:CY48,"ff")) -> 0 | BS18: 14 | BT18: 13.99141414 | BV18: 14 | BW18: =IF(OR(ISERROR(FIND("-",Q18)),AE18>'export html'!$AR$7),"",IF(LEFT(Q18,1)<>"*",LEFT(Q18,FIND("-",Q18)-1)-0,MID(Q18,2,FIND("-",Q18)-2)-0)) ->  | BX18: =IF(OR(ISERROR(FIND("-",R18)),AF18>'export html'!$AR$7),"",IF(LEFT(R18,1)<>"*",LEFT(R18,FIND("-",R18)-1)-0,MID(R18,2,FIND("-",R18)-2)-0)) ->  | BY18: =IF(OR(ISERROR(FIND("-",S18)),AG18>'export html'!$AR$7),"",IF(LEFT(S18,1)<>"*",LEFT(S18,FIND("-",S18)-1)-0,MID(S18,2,FIND("-",S18)-2)-0)) ->  | BZ18: =IF(OR(ISERROR(FIND("-",T18)),AH18>'export html'!$AR$7),"",IF(LEFT(T18,1)<>"*",LEFT(T18,FIND("-",T18)-1)-0,MID(T18,2,FIND("-",T18)-2)-0)) ->  | CA18: =IF(OR(ISERROR(FIND("-",U18)),AI18>'export html'!$AR$7),"",IF(LEFT(U18,1)<>"*",LEFT(U18,FIND("-",U18)-1)-0,MID(U18,2,FIND("-",U18)-2)-0)) ->  | CB18: =IF(OR(ISERROR(FIND("-",V18)),AJ18>'export html'!$AR$7),"",IF(LEFT(V18,1)<>"*",LEFT(V18,FIND("-",V18)-1)-0,MID(V18,2,FIND("-",V18)-2)-0)) ->  | CC18: =IF(OR(ISERROR(FIND("-",W18)),AK18>'export html'!$AR$7),"",IF(LEFT(W18,1)<>"*",LEFT(W18,FIND("-",W18)-1)-0,MID(W18,2,FIND("-",W18)-2)-0)) -> 9 | CD18: =IF(OR(ISERROR(FIND("-",X18)),AL18>'export html'!$AR$7),"",IF(LEFT(X18,1)<>"*",LEFT(X18,FIND("-",X18)-1)-0,MID(X18,2,FIND("-",X18)-2)-0)) ->  | CE18: =IF(OR(ISERROR(FIND("-",Y18)),AM18>'export html'!$AR$7),"",IF(LEFT(Y18,1)<>"*",LEFT(Y18,FIND("-",Y18)-1)-0,MID(Y18,2,FIND("-",Y18)-2)-0)) ->  | CF18: =IF(OR(ISERROR(FIND("-",Z18)),AN18>'export html'!$AR$7),"",IF(LEFT(Z18,1)<>"*",LEFT(Z18,FIND("-",Z18)-1)-0,MID(Z18,2,FIND("-",Z18)-2)-0)) ->  | CG18: =IF(OR(ISERROR(FIND("-",AA18)),AO18>'export html'!$AR$7),"",IF(LEFT(AA18,1)<>"*",LEFT(AA18,FIND("-",AA18)-1)-0,MID(AA18,2,FIND("-",AA18)-2)-0)) -> 8 | CH18: =IF(OR(ISERROR(FIND("-",AB18)),AP18>'export html'!$AR$7),"",IF(LEFT(AB18,1)<>"*",LEFT(AB18,FIND("-",AB18)-1)-0,MID(AB18,2,FIND("-",AB18)-2)-0)) ->  | CI18: =IF(OR(ISERROR(FIND("-",AC18)),AQ18>'export html'!$AR$7),"",IF(LEFT(AC18,1)<>"*",LEFT(AC18,FIND("-",AC18)-1)-0,MID(AC18,2,FIND("-",AC18)-2)-0)) -> 4 | CK18: 14 | CL18: =IF(OR(ISERROR(FIND("-",Q18)),AE18<='export html'!$AR$7),"",IF(LEFT(Q18,1)<>"*",LEFT(Q18,FIND("-",Q18)-1)-0,MID(Q18,2,FIND("-",Q18)-2)-0)) ->  | CM18: =IF(OR(ISERROR(FIND("-",R18)),AF18<='export html'!$AR$7),"",IF(LEFT(R18,1)<>"*",LEFT(R18,FIND("-",R18)-1)-0,MID(R18,2,FIND("-",R18)-2)-0)) ->  | CN18: =IF(OR(ISERROR(FIND("-",S18)),AG18<='export html'!$AR$7),"",IF(LEFT(S18,1)<>"*",LEFT(S18,FIND("-",S18)-1)-0,MID(S18,2,FIND("-",S18)-2)-0)) ->  | CO18: =IF(OR(ISERROR(FIND("-",T18)),AH18<='export html'!$AR$7),"",IF(LEFT(T18,1)<>"*",LEFT(T18,FIND("-",T18)-1)-0,MID(T18,2,FIND("-",T18)-2)-0)) ->  | CP18: =IF(OR(ISERROR(FIND("-",U18)),AI18<='export html'!$AR$7),"",IF(LEFT(U18,1)<>"*",LEFT(U18,FIND("-",U18)-1)-0,MID(U18,2,FIND("-",U18)-2)-0)) ->  | CQ18: =IF(OR(ISERROR(FIND("-",V18)),AJ18<='export html'!$AR$7),"",IF(LEFT(V18,1)<>"*",LEFT(V18,FIND("-",V18)-1)-0,MID(V18,2,FIND("-",V18)-2)-0)) ->  | CR18: =IF(OR(ISERROR(FIND("-",W18)),AK18<='export html'!$AR$7),"",IF(LEFT(W18,1)<>"*",LEFT(W18,FIND("-",W18)-1)-0,MID(W18,2,FIND("-",W18)-2)-0)) ->  | CS18: =IF(OR(ISERROR(FIND("-",X18)),AL18<='export html'!$AR$7),"",IF(LEFT(X18,1)<>"*",LEFT(X18,FIND("-",X18)-1)-0,MID(X18,2,FIND("-",X18)-2)-0)) ->  | CT18: =IF(OR(ISERROR(FIND("-",Y18)),AM18<='export html'!$AR$7),"",IF(LEFT(Y18,1)<>"*",LEFT(Y18,FIND("-",Y18)-1)-0,MID(Y18,2,FIND("-",Y18)-2)-0)) ->  | CU18: =IF(OR(ISERROR(FIND("-",Z18)),AN18<='export html'!$AR$7),"",IF(LEFT(Z18,1)<>"*",LEFT(Z18,FIND("-",Z18)-1)-0,MID(Z18,2,FIND("-",Z18)-2)-0)) ->  | CV18: =IF(OR(ISERROR(FIND("-",AA18)),AO18<='export html'!$AR$7),"",IF(LEFT(AA18,1)<>"*",LEFT(AA18,FIND("-",AA18)-1)-0,MID(AA18,2,FIND("-",AA18)-2)-0)) ->  | CW18: =IF(OR(ISERROR(FIND("-",AB18)),AP18<='export html'!$AR$7),"",IF(LEFT(AB18,1)<>"*",LEFT(AB18,FIND("-",AB18)-1)-0,MID(AB18,2,FIND("-",AB18)-2)-0)) ->  | CX18: =IF(OR(ISERROR(FIND("-",AC18)),AQ18<='export html'!$AR$7),"",IF(LEFT(AC18,1)<>"*",LEFT(AC18,FIND("-",AC18)-1)-0,MID(AC18,2,FIND("-",AC18)-2)-0)) ->  | CZ18: 14
R19: * regeling forfaits | BW19: 1 | BX19: 2 | BY19: 3 | BZ19: 4 | CA19: 5 | CB19: 6 | CC19: 7 | CD19: 8 | CE19: 9 | CF19: 10 | CG19: 11 | CH19: 12 | CI19: 13 | CJ19: 14 | CL19: 1 | CM19: 2 | CN19: 3 | CO19: 4 | CP19: 5 | CQ19: 6 | CR19: 7 | CS19: 8 | CT19: 9 | CU19: 10 | CV19: 11 | CW19: 12 | CX19: 13 | CY19: 14
BV20: 1 | BX20: =IF(OR(ISERROR(FIND("-",R5)),AF5>'export html'!$AR$7),"",IF(RIGHT(R5)<>"*",MID(R5,FIND("-",R5)+1,LEN(R5)-FIND("-",R5))-0,MID(R5,FIND("-",R5)+1,LEN(R5)-FIND("-",R5)-1)-0)) -> 0 | BY20: =IF(OR(ISERROR(FIND("-",S5)),AG5>'export html'!$AR$7),"",IF(RIGHT(S5)<>"*",MID(S5,FIND("-",S5)+1,LEN(S5)-FIND("-",S5))-0,MID(S5,FIND("-",S5)+1,LEN(S5)-FIND("-",S5)-1)-0)) ->  | BZ20: =IF(OR(ISERROR(FIND("-",T5)),AH5>'export html'!$AR$7),"",IF(RIGHT(T5)<>"*",MID(T5,FIND("-",T5)+1,LEN(T5)-FIND("-",T5))-0,MID(T5,FIND("-",T5)+1,LEN(T5)-FIND("-",T5)-1)-0)) ->  | CA20: =IF(OR(ISERROR(FIND("-",U5)),AI5>'export html'!$AR$7),"",IF(RIGHT(U5)<>"*",MID(U5,FIND("-",U5)+1,LEN(U5)-FIND("-",U5))-0,MID(U5,FIND("-",U5)+1,LEN(U5)-FIND("-",U5)-1)-0)) ->  | CB20: =IF(OR(ISERROR(FIND("-",V5)),AJ5>'export html'!$AR$7),"",IF(RIGHT(V5)<>"*",MID(V5,FIND("-",V5)+1,LEN(V5)-FIND("-",V5))-0,MID(V5,FIND("-",V5)+1,LEN(V5)-FIND("-",V5)-1)-0)) ->  | CC20: =IF(OR(ISERROR(FIND("-",W5)),AK5>'export html'!$AR$7),"",IF(RIGHT(W5)<>"*",MID(W5,FIND("-",W5)+1,LEN(W5)-FIND("-",W5))-0,MID(W5,FIND("-",W5)+1,LEN(W5)-FIND("-",W5)-1)-0)) ->  | CD20: =IF(OR(ISERROR(FIND("-",X5)),AL5>'export html'!$AR$7),"",IF(RIGHT(X5)<>"*",MID(X5,FIND("-",X5)+1,LEN(X5)-FIND("-",X5))-0,MID(X5,FIND("-",X5)+1,LEN(X5)-FIND("-",X5)-1)-0)) ->  | CE20: =IF(OR(ISERROR(FIND("-",Y5)),AM5>'export html'!$AR$7),"",IF(RIGHT(Y5)<>"*",MID(Y5,FIND("-",Y5)+1,LEN(Y5)-FIND("-",Y5))-0,MID(Y5,FIND("-",Y5)+1,LEN(Y5)-FIND("-",Y5)-1)-0)) ->  | CF20: =IF(OR(ISERROR(FIND("-",Z5)),AN5>'export html'!$AR$7),"",IF(RIGHT(Z5)<>"*",MID(Z5,FIND("-",Z5)+1,LEN(Z5)-FIND("-",Z5))-0,MID(Z5,FIND("-",Z5)+1,LEN(Z5)-FIND("-",Z5)-1)-0)) ->  | CG20: =IF(OR(ISERROR(FIND("-",AA5)),AO5>'export html'!$AR$7),"",IF(RIGHT(AA5)<>"*",MID(AA5,FIND("-",AA5)+1,LEN(AA5)-FIND("-",AA5))-0,MID(AA5,FIND("-",AA5)+1,LEN(AA5)-FIND("-",AA5)-1)-0)) ->  | CH20: =IF(OR(ISERROR(FIND("-",AB5)),AP5>'export html'!$AR$7),"",IF(RIGHT(AB5)<>"*",MID(AB5,FIND("-",AB5)+1,LEN(AB5)-FIND("-",AB5))-0,MID(AB5,FIND("-",AB5)+1,LEN(AB5)-FIND("-",AB5)-1)-0)) -> 0 | CI20: =IF(OR(ISERROR(FIND("-",AC5)),AQ5>'export html'!$AR$7),"",IF(RIGHT(AC5)<>"*",MID(AC5,FIND("-",AC5)+1,LEN(AC5)-FIND("-",AC5))-0,MID(AC5,FIND("-",AC5)+1,LEN(AC5)-FIND("-",AC5)-1)-0)) ->  | CJ20: =IF(OR(ISERROR(FIND("-",AD5)),AR5>'export html'!$AR$7),"",IF(RIGHT(AD5)<>"*",MID(AD5,FIND("-",AD5)+1,LEN(AD5)-FIND("-",AD5))-0,MID(AD5,FIND("-",AD5)+1,LEN(AD5)-FIND("-",AD5)-1)-0)) -> 2 | CK20: 1 | CM20: =IF(OR(ISERROR(FIND("-",R5)),AF5<='export html'!$AR$7),"",IF(RIGHT(R5)<>"*",MID(R5,FIND("-",R5)+1,LEN(R5)-FIND("-",R5))-0,MID(R5,FIND("-",R5)+1,LEN(R5)-FIND("-",R5)-1)-0)) ->  | CN20: =IF(OR(ISERROR(FIND("-",S5)),AG5<='export html'!$AR$7),"",IF(RIGHT(S5)<>"*",MID(S5,FIND("-",S5)+1,LEN(S5)-FIND("-",S5))-0,MID(S5,FIND("-",S5)+1,LEN(S5)-FIND("-",S5)-1)-0)) ->  | CO20: =IF(OR(ISERROR(FIND("-",T5)),AH5<='export html'!$AR$7),"",IF(RIGHT(T5)<>"*",MID(T5,FIND("-",T5)+1,LEN(T5)-FIND("-",T5))-0,MID(T5,FIND("-",T5)+1,LEN(T5)-FIND("-",T5)-1)-0)) ->  | CP20: =IF(OR(ISERROR(FIND("-",U5)),AI5<='export html'!$AR$7),"",IF(RIGHT(U5)<>"*",MID(U5,FIND("-",U5)+1,LEN(U5)-FIND("-",U5))-0,MID(U5,FIND("-",U5)+1,LEN(U5)-FIND("-",U5)-1)-0)) ->  | CQ20: =IF(OR(ISERROR(FIND("-",V5)),AJ5<='export html'!$AR$7),"",IF(RIGHT(V5)<>"*",MID(V5,FIND("-",V5)+1,LEN(V5)-FIND("-",V5))-0,MID(V5,FIND("-",V5)+1,LEN(V5)-FIND("-",V5)-1)-0)) ->  | CR20: =IF(OR(ISERROR(FIND("-",W5)),AK5<='export html'!$AR$7),"",IF(RIGHT(W5)<>"*",MID(W5,FIND("-",W5)+1,LEN(W5)-FIND("-",W5))-0,MID(W5,FIND("-",W5)+1,LEN(W5)-FIND("-",W5)-1)-0)) ->  | CS20: =IF(OR(ISERROR(FIND("-",X5)),AL5<='export html'!$AR$7),"",IF(RIGHT(X5)<>"*",MID(X5,FIND("-",X5)+1,LEN(X5)-FIND("-",X5))-0,MID(X5,FIND("-",X5)+1,LEN(X5)-FIND("-",X5)-1)-0)) ->  | CT20: =IF(OR(ISERROR(FIND("-",Y5)),AM5<='export html'!$AR$7),"",IF(RIGHT(Y5)<>"*",MID(Y5,FIND("-",Y5)+1,LEN(Y5)-FIND("-",Y5))-0,MID(Y5,FIND("-",Y5)+1,LEN(Y5)-FIND("-",Y5)-1)-0)) ->  | CU20: =IF(OR(ISERROR(FIND("-",Z5)),AN5<='export html'!$AR$7),"",IF(RIGHT(Z5)<>"*",MID(Z5,FIND("-",Z5)+1,LEN(Z5)-FIND("-",Z5))-0,MID(Z5,FIND("-",Z5)+1,LEN(Z5)-FIND("-",Z5)-1)-0)) ->  | CV20: =IF(OR(ISERROR(FIND("-",AA5)),AO5<='export html'!$AR$7),"",IF(RIGHT(AA5)<>"*",MID(AA5,FIND("-",AA5)+1,LEN(AA5)-FIND("-",AA5))-0,MID(AA5,FIND("-",AA5)+1,LEN(AA5)-FIND("-",AA5)-1)-0)) ->  | CW20: =IF(OR(ISERROR(FIND("-",AB5)),AP5<='export html'!$AR$7),"",IF(RIGHT(AB5)<>"*",MID(AB5,FIND("-",AB5)+1,LEN(AB5)-FIND("-",AB5))-0,MID(AB5,FIND("-",AB5)+1,LEN(AB5)-FIND("-",AB5)-1)-0)) ->  | CX20: =IF(OR(ISERROR(FIND("-",AC5)),AQ5<='export html'!$AR$7),"",IF(RIGHT(AC5)<>"*",MID(AC5,FIND("-",AC5)+1,LEN(AC5)-FIND("-",AC5))-0,MID(AC5,FIND("-",AC5)+1,LEN(AC5)-FIND("-",AC5)-1)-0)) ->  | CY20: =IF(OR(ISERROR(FIND("-",AD5)),AR5<='export html'!$AR$7),"",IF(RIGHT(AD5)<>"*",MID(AD5,FIND("-",AD5)+1,LEN(AD5)-FIND("-",AD5))-0,MID(AD5,FIND("-",AD5)+1,LEN(AD5)-FIND("-",AD5)-1)-0)) ->  | CZ20: 1
E21: ='export html'!V1 -> Recentste duels op | F21: 2024-10-08 | Q21: Topschutters: | T21: ="(na " & SUM(spelersstatistieken!AM1) & " match" & IF(SUM(spelersstatistieken!AM1) = 1, "", "en" ) & ")" -> (na 6 matchen) | Z21: Man van het Seizoen: | AD21: ="(na " & COUNTIF( spelersstatistieken!AP47:BO47, ">0" ) & " match" & IF( COUNTIF( spelersstatistieken!AP47:BO47, ">0" ) = 1, "", "en" ) & ")" -> (na 6 matchen) | BV21: 2 | BW21: =IF(OR(ISERROR(FIND("-",Q6)),AE6>'export html'!$AR$7),"",IF(RIGHT(Q6)<>"*",MID(Q6,FIND("-",Q6)+1,LEN(Q6)-FIND("-",Q6))-0,MID(Q6,FIND("-",Q6)+1,LEN(Q6)-FIND("-",Q6)-1)-0)) ->  | BY21: =IF(OR(ISERROR(FIND("-",S6)),AG6>'export html'!$AR$7),"",IF(RIGHT(S6)<>"*",MID(S6,FIND("-",S6)+1,LEN(S6)-FIND("-",S6))-0,MID(S6,FIND("-",S6)+1,LEN(S6)-FIND("-",S6)-1)-0)) ->  | BZ21: =IF(OR(ISERROR(FIND("-",T6)),AH6>'export html'!$AR$7),"",IF(RIGHT(T6)<>"*",MID(T6,FIND("-",T6)+1,LEN(T6)-FIND("-",T6))-0,MID(T6,FIND("-",T6)+1,LEN(T6)-FIND("-",T6)-1)-0)) ->  | CA21: =IF(OR(ISERROR(FIND("-",U6)),AI6>'export html'!$AR$7),"",IF(RIGHT(U6)<>"*",MID(U6,FIND("-",U6)+1,LEN(U6)-FIND("-",U6))-0,MID(U6,FIND("-",U6)+1,LEN(U6)-FIND("-",U6)-1)-0)) ->  | CB21: =IF(OR(ISERROR(FIND("-",V6)),AJ6>'export html'!$AR$7),"",IF(RIGHT(V6)<>"*",MID(V6,FIND("-",V6)+1,LEN(V6)-FIND("-",V6))-0,MID(V6,FIND("-",V6)+1,LEN(V6)-FIND("-",V6)-1)-0)) ->  | CC21: =IF(OR(ISERROR(FIND("-",W6)),AK6>'export html'!$AR$7),"",IF(RIGHT(W6)<>"*",MID(W6,FIND("-",W6)+1,LEN(W6)-FIND("-",W6))-0,MID(W6,FIND("-",W6)+1,LEN(W6)-FIND("-",W6)-1)-0)) -> 1 | CD21: =IF(OR(ISERROR(FIND("-",X6)),AL6>'export html'!$AR$7),"",IF(RIGHT(X6)<>"*",MID(X6,FIND("-",X6)+1,LEN(X6)-FIND("-",X6))-0,MID(X6,FIND("-",X6)+1,LEN(X6)-FIND("-",X6)-1)-0)) ->  | CE21: =IF(OR(ISERROR(FIND("-",Y6)),AM6>'export html'!$AR$7),"",IF(RIGHT(Y6)<>"*",MID(Y6,FIND("-",Y6)+1,LEN(Y6)-FIND("-",Y6))-0,MID(Y6,FIND("-",Y6)+1,LEN(Y6)-FIND("-",Y6)-1)-0)) -> 0 | CF21: =IF(OR(ISERROR(FIND("-",Z6)),AN6>'export html'!$AR$7),"",IF(RIGHT(Z6)<>"*",MID(Z6,FIND("-",Z6)+1,LEN(Z6)-FIND("-",Z6))-0,MID(Z6,FIND("-",Z6)+1,LEN(Z6)-FIND("-",Z6)-1)-0)) ->  | CG21: =IF(OR(ISERROR(FIND("-",AA6)),AO6>'export html'!$AR$7),"",IF(RIGHT(AA6)<>"*",MID(AA6,FIND("-",AA6)+1,LEN(AA6)-FIND("-",AA6))-0,MID(AA6,FIND("-",AA6)+1,LEN(AA6)-FIND("-",AA6)-1)-0)) -> 3 | CH21: =IF(OR(ISERROR(FIND("-",AB6)),AP6>'export html'!$AR$7),"",IF(RIGHT(AB6)<>"*",MID(AB6,FIND("-",AB6)+1,LEN(AB6)-FIND("-",AB6))-0,MID(AB6,FIND("-",AB6)+1,LEN(AB6)-FIND("-",AB6)-1)-0)) ->  | CI21: =IF(OR(ISERROR(FIND("-",AC6)),AQ6>'export html'!$AR$7),"",IF(RIGHT(AC6)<>"*",MID(AC6,FIND("-",AC6)+1,LEN(AC6)-FIND("-",AC6))-0,MID(AC6,FIND("-",AC6)+1,LEN(AC6)-FIND("-",AC6)-1)-0)) ->  | CJ21: =IF(OR(ISERROR(FIND("-",AD6)),AR6>'export html'!$AR$7),"",IF(RIGHT(AD6)<>"*",MID(AD6,FIND("-",AD6)+1,LEN(AD6)-FIND("-",AD6))-0,MID(AD6,FIND("-",AD6)+1,LEN(AD6)-FIND("-",AD6)-1)-0)) ->  | CK21: 2 | CL21: =IF(OR(ISERROR(FIND("-",Q6)),AE6<='export html'!$AR$7),"",IF(RIGHT(Q6)<>"*",MID(Q6,FIND("-",Q6)+1,LEN(Q6)-FIND("-",Q6))-0,MID(Q6,FIND("-",Q6)+1,LEN(Q6)-FIND("-",Q6)-1)-0)) ->  | CN21: =IF(OR(ISERROR(FIND("-",S6)),AG6<='export html'!$AR$7),"",IF(RIGHT(S6)<>"*",MID(S6,FIND("-",S6)+1,LEN(S6)-FIND("-",S6))-0,MID(S6,FIND("-",S6)+1,LEN(S6)-FIND("-",S6)-1)-0)) ->  | CO21: =IF(OR(ISERROR(FIND("-",T6)),AH6<='export html'!$AR$7),"",IF(RIGHT(T6)<>"*",MID(T6,FIND("-",T6)+1,LEN(T6)-FIND("-",T6))-0,MID(T6,FIND("-",T6)+1,LEN(T6)-FIND("-",T6)-1)-0)) ->  | CP21: =IF(OR(ISERROR(FIND("-",U6)),AI6<='export html'!$AR$7),"",IF(RIGHT(U6)<>"*",MID(U6,FIND("-",U6)+1,LEN(U6)-FIND("-",U6))-0,MID(U6,FIND("-",U6)+1,LEN(U6)-FIND("-",U6)-1)-0)) ->  | CQ21: =IF(OR(ISERROR(FIND("-",V6)),AJ6<='export html'!$AR$7),"",IF(RIGHT(V6)<>"*",MID(V6,FIND("-",V6)+1,LEN(V6)-FIND("-",V6))-0,MID(V6,FIND("-",V6)+1,LEN(V6)-FIND("-",V6)-1)-0)) ->  | CR21: =IF(OR(ISERROR(FIND("-",W6)),AK6<='export html'!$AR$7),"",IF(RIGHT(W6)<>"*",MID(W6,FIND("-",W6)+1,LEN(W6)-FIND("-",W6))-0,MID(W6,FIND("-",W6)+1,LEN(W6)-FIND("-",W6)-1)-0)) ->  | CS21: =IF(OR(ISERROR(FIND("-",X6)),AL6<='export html'!$AR$7),"",IF(RIGHT(X6)<>"*",MID(X6,FIND("-",X6)+1,LEN(X6)-FIND("-",X6))-0,MID(X6,FIND("-",X6)+1,LEN(X6)-FIND("-",X6)-1)-0)) ->  | CT21: =IF(OR(ISERROR(FIND("-",Y6)),AM6<='export html'!$AR$7),"",IF(RIGHT(Y6)<>"*",MID(Y6,FIND("-",Y6)+1,LEN(Y6)-FIND("-",Y6))-0,MID(Y6,FIND("-",Y6)+1,LEN(Y6)-FIND("-",Y6)-1)-0)) ->  | CU21: =IF(OR(ISERROR(FIND("-",Z6)),AN6<='export html'!$AR$7),"",IF(RIGHT(Z6)<>"*",MID(Z6,FIND("-",Z6)+1,LEN(Z6)-FIND("-",Z6))-0,MID(Z6,FIND("-",Z6)+1,LEN(Z6)-FIND("-",Z6)-1)-0)) ->  | CV21: =IF(OR(ISERROR(FIND("-",AA6)),AO6<='export html'!$AR$7),"",IF(RIGHT(AA6)<>"*",MID(AA6,FIND("-",AA6)+1,LEN(AA6)-FIND("-",AA6))-0,MID(AA6,FIND("-",AA6)+1,LEN(AA6)-FIND("-",AA6)-1)-0)) ->  | CW21: =IF(OR(ISERROR(FIND("-",AB6)),AP6<='export html'!$AR$7),"",IF(RIGHT(AB6)<>"*",MID(AB6,FIND("-",AB6)+1,LEN(AB6)-FIND("-",AB6))-0,MID(AB6,FIND("-",AB6)+1,LEN(AB6)-FIND("-",AB6)-1)-0)) ->  | CX21: =IF(OR(ISERROR(FIND("-",AC6)),AQ6<='export html'!$AR$7),"",IF(RIGHT(AC6)<>"*",MID(AC6,FIND("-",AC6)+1,LEN(AC6)-FIND("-",AC6))-0,MID(AC6,FIND("-",AC6)+1,LEN(AC6)-FIND("-",AC6)-1)-0)) ->  | CY21: =IF(OR(ISERROR(FIND("-",AD6)),AR6<='export html'!$AR$7),"",IF(RIGHT(AD6)<>"*",MID(AD6,FIND("-",AD6)+1,LEN(AD6)-FIND("-",AD6))-0,MID(AD6,FIND("-",AD6)+1,LEN(AD6)-FIND("-",AD6)-1)-0)) ->  | CZ21: 2
BV22: 3 | BW22: =IF(OR(ISERROR(FIND("-",Q7)),AE7>'export html'!$AR$7),"",IF(RIGHT(Q7)<>"*",MID(Q7,FIND("-",Q7)+1,LEN(Q7)-FIND("-",Q7))-0,MID(Q7,FIND("-",Q7)+1,LEN(Q7)-FIND("-",Q7)-1)-0)) ->  | BX22: =IF(OR(ISERROR(FIND("-",R7)),AF7>'export html'!$AR$7),"",IF(RIGHT(R7)<>"*",MID(R7,FIND("-",R7)+1,LEN(R7)-FIND("-",R7))-0,MID(R7,FIND("-",R7)+1,LEN(R7)-FIND("-",R7)-1)-0)) -> 2 | BZ22: =IF(OR(ISERROR(FIND("-",T7)),AH7>'export html'!$AR$7),"",IF(RIGHT(T7)<>"*",MID(T7,FIND("-",T7)+1,LEN(T7)-FIND("-",T7))-0,MID(T7,FIND("-",T7)+1,LEN(T7)-FIND("-",T7)-1)-0)) ->  | CA22: =IF(OR(ISERROR(FIND("-",U7)),AI7>'export html'!$AR$7),"",IF(RIGHT(U7)<>"*",MID(U7,FIND("-",U7)+1,LEN(U7)-FIND("-",U7))-0,MID(U7,FIND("-",U7)+1,LEN(U7)-FIND("-",U7)-1)-0)) ->  | CB22: =IF(OR(ISERROR(FIND("-",V7)),AJ7>'export html'!$AR$7),"",IF(RIGHT(V7)<>"*",MID(V7,FIND("-",V7)+1,LEN(V7)-FIND("-",V7))-0,MID(V7,FIND("-",V7)+1,LEN(V7)-FIND("-",V7)-1)-0)) ->  | CC22: =IF(OR(ISERROR(FIND("-",W7)),AK7>'export html'!$AR$7),"",IF(RIGHT(W7)<>"*",MID(W7,FIND("-",W7)+1,LEN(W7)-FIND("-",W7))-0,MID(W7,FIND("-",W7)+1,LEN(W7)-FIND("-",W7)-1)-0)) ->  | CD22: =IF(OR(ISERROR(FIND("-",X7)),AL7>'export html'!$AR$7),"",IF(RIGHT(X7)<>"*",MID(X7,FIND("-",X7)+1,LEN(X7)-FIND("-",X7))-0,MID(X7,FIND("-",X7)+1,LEN(X7)-FIND("-",X7)-1)-0)) ->  | CE22: =IF(OR(ISERROR(FIND("-",Y7)),AM7>'export html'!$AR$7),"",IF(RIGHT(Y7)<>"*",MID(Y7,FIND("-",Y7)+1,LEN(Y7)-FIND("-",Y7))-0,MID(Y7,FIND("-",Y7)+1,LEN(Y7)-FIND("-",Y7)-1)-0)) -> 0 | CF22: =IF(OR(ISERROR(FIND("-",Z7)),AN7>'export html'!$AR$7),"",IF(RIGHT(Z7)<>"*",MID(Z7,FIND("-",Z7)+1,LEN(Z7)-FIND("-",Z7))-0,MID(Z7,FIND("-",Z7)+1,LEN(Z7)-FIND("-",Z7)-1)-0)) ->  | CG22: =IF(OR(ISERROR(FIND("-",AA7)),AO7>'export html'!$AR$7),"",IF(RIGHT(AA7)<>"*",MID(AA7,FIND("-",AA7)+1,LEN(AA7)-FIND("-",AA7))-0,MID(AA7,FIND("-",AA7)+1,LEN(AA7)-FIND("-",AA7)-1)-0)) ->  | CH22: =IF(OR(ISERROR(FIND("-",AB7)),AP7>'export html'!$AR$7),"",IF(RIGHT(AB7)<>"*",MID(AB7,FIND("-",AB7)+1,LEN(AB7)-FIND("-",AB7))-0,MID(AB7,FIND("-",AB7)+1,LEN(AB7)-FIND("-",AB7)-1)-0)) ->  | CI22: =IF(OR(ISERROR(FIND("-",AC7)),AQ7>'export html'!$AR$7),"",IF(RIGHT(AC7)<>"*",MID(AC7,FIND("-",AC7)+1,LEN(AC7)-FIND("-",AC7))-0,MID(AC7,FIND("-",AC7)+1,LEN(AC7)-FIND("-",AC7)-1)-0)) ->  | CJ22: =IF(OR(ISERROR(FIND("-",AD7)),AR7>'export html'!$AR$7),"",IF(RIGHT(AD7)<>"*",MID(AD7,FIND("-",AD7)+1,LEN(AD7)-FIND("-",AD7))-0,MID(AD7,FIND("-",AD7)+1,LEN(AD7)-FIND("-",AD7)-1)-0)) -> 4 | CK22: 3 | CL22: =IF(OR(ISERROR(FIND("-",Q7)),AE7<='export html'!$AR$7),"",IF(RIGHT(Q7)<>"*",MID(Q7,FIND("-",Q7)+1,LEN(Q7)-FIND("-",Q7))-0,MID(Q7,FIND("-",Q7)+1,LEN(Q7)-FIND("-",Q7)-1)-0)) ->  | CM22: =IF(OR(ISERROR(FIND("-",R7)),AF7<='export html'!$AR$7),"",IF(RIGHT(R7)<>"*",MID(R7,FIND("-",R7)+1,LEN(R7)-FIND("-",R7))-0,MID(R7,FIND("-",R7)+1,LEN(R7)-FIND("-",R7)-1)-0)) ->  | CO22: =IF(OR(ISERROR(FIND("-",T7)),AH7<='export html'!$AR$7),"",IF(RIGHT(T7)<>"*",MID(T7,FIND("-",T7)+1,LEN(T7)-FIND("-",T7))-0,MID(T7,FIND("-",T7)+1,LEN(T7)-FIND("-",T7)-1)-0)) ->  | CP22: =IF(OR(ISERROR(FIND("-",U7)),AI7<='export html'!$AR$7),"",IF(RIGHT(U7)<>"*",MID(U7,FIND("-",U7)+1,LEN(U7)-FIND("-",U7))-0,MID(U7,FIND("-",U7)+1,LEN(U7)-FIND("-",U7)-1)-0)) ->  | CQ22: =IF(OR(ISERROR(FIND("-",V7)),AJ7<='export html'!$AR$7),"",IF(RIGHT(V7)<>"*",MID(V7,FIND("-",V7)+1,LEN(V7)-FIND("-",V7))-0,MID(V7,FIND("-",V7)+1,LEN(V7)-FIND("-",V7)-1)-0)) ->  | CR22: =IF(OR(ISERROR(FIND("-",W7)),AK7<='export html'!$AR$7),"",IF(RIGHT(W7)<>"*",MID(W7,FIND("-",W7)+1,LEN(W7)-FIND("-",W7))-0,MID(W7,FIND("-",W7)+1,LEN(W7)-FIND("-",W7)-1)-0)) ->  | CS22: =IF(OR(ISERROR(FIND("-",X7)),AL7<='export html'!$AR$7),"",IF(RIGHT(X7)<>"*",MID(X7,FIND("-",X7)+1,LEN(X7)-FIND("-",X7))-0,MID(X7,FIND("-",X7)+1,LEN(X7)-FIND("-",X7)-1)-0)) ->  | CT22: =IF(OR(ISERROR(FIND("-",Y7)),AM7<='export html'!$AR$7),"",IF(RIGHT(Y7)<>"*",MID(Y7,FIND("-",Y7)+1,LEN(Y7)-FIND("-",Y7))-0,MID(Y7,FIND("-",Y7)+1,LEN(Y7)-FIND("-",Y7)-1)-0)) ->  | CU22: =IF(OR(ISERROR(FIND("-",Z7)),AN7<='export html'!$AR$7),"",IF(RIGHT(Z7)<>"*",MID(Z7,FIND("-",Z7)+1,LEN(Z7)-FIND("-",Z7))-0,MID(Z7,FIND("-",Z7)+1,LEN(Z7)-FIND("-",Z7)-1)-0)) ->  | CV22: =IF(OR(ISERROR(FIND("-",AA7)),AO7<='export html'!$AR$7),"",IF(RIGHT(AA7)<>"*",MID(AA7,FIND("-",AA7)+1,LEN(AA7)-FIND("-",AA7))-0,MID(AA7,FIND("-",AA7)+1,LEN(AA7)-FIND("-",AA7)-1)-0)) ->  | CW22: =IF(OR(ISERROR(FIND("-",AB7)),AP7<='export html'!$AR$7),"",IF(RIGHT(AB7)<>"*",MID(AB7,FIND("-",AB7)+1,LEN(AB7)-FIND("-",AB7))-0,MID(AB7,FIND("-",AB7)+1,LEN(AB7)-FIND("-",AB7)-1)-0)) ->  | CX22: =IF(OR(ISERROR(FIND("-",AC7)),AQ7<='export html'!$AR$7),"",IF(RIGHT(AC7)<>"*",MID(AC7,FIND("-",AC7)+1,LEN(AC7)-FIND("-",AC7))-0,MID(AC7,FIND("-",AC7)+1,LEN(AC7)-FIND("-",AC7)-1)-0)) ->  | CY22: =IF(OR(ISERROR(FIND("-",AD7)),AR7<='export html'!$AR$7),"",IF(RIGHT(AD7)<>"*",MID(AD7,FIND("-",AD7)+1,LEN(AD7)-FIND("-",AD7))-0,MID(AD7,FIND("-",AD7)+1,LEN(AD7)-FIND("-",AD7)-1)-0)) ->  | CZ22: 3
D23: =IF('export html'!T3="","",'export html'!T3) -> 2024-10-06 | E23: =IF('export html'!U3="","",'export html'!U3) -> 6 | F23: =IF('export html'!V3="","",'export html'!V3) -> Daltons - Lucyvo | N23: =IF('export html'!W3="","",'export html'!W3) -> 3-0 | Q23: =_xlfn.CHOOSECOLS(_xlfn.ANCHORARRAY( 'export html'!AF3), 2, 1 ) -> 3 | R23: Stijn Hofmans | Z23: =_xlfn.CHOOSECOLS(_xlfn.ANCHORARRAY( spelersstatistieken!AK350), 2, 1 ) -> 60.24183007 | AA23: Maarten Langenaeker | BV23: 4 | BW23: =IF(OR(ISERROR(FIND("-",Q8)),AE8>'export html'!$AR$7),"",IF(RIGHT(Q8)<>"*",MID(Q8,FIND("-",Q8)+1,LEN(Q8)-FIND("-",Q8))-0,MID(Q8,FIND("-",Q8)+1,LEN(Q8)-FIND("-",Q8)-1)-0)) -> 1 | BX23: =IF(OR(ISERROR(FIND("-",R8)),AF8>'export html'!$AR$7),"",IF(RIGHT(R8)<>"*",MID(R8,FIND("-",R8)+1,LEN(R8)-FIND("-",R8))-0,MID(R8,FIND("-",R8)+1,LEN(R8)-FIND("-",R8)-1)-0)) -> 7 | BY23: =IF(OR(ISERROR(FIND("-",S8)),AG8>'export html'!$AR$7),"",IF(RIGHT(S8)<>"*",MID(S8,FIND("-",S8)+1,LEN(S8)-FIND("-",S8))-0,MID(S8,FIND("-",S8)+1,LEN(S8)-FIND("-",S8)-1)-0)) -> 7 | CA23: =IF(OR(ISERROR(FIND("-",U8)),AI8>'export html'!$AR$7),"",IF(RIGHT(U8)<>"*",MID(U8,FIND("-",U8)+1,LEN(U8)-FIND("-",U8))-0,MID(U8,FIND("-",U8)+1,LEN(U8)-FIND("-",U8)-1)-0)) ->  | CB23: =IF(OR(ISERROR(FIND("-",V8)),AJ8>'export html'!$AR$7),"",IF(RIGHT(V8)<>"*",MID(V8,FIND("-",V8)+1,LEN(V8)-FIND("-",V8))-0,MID(V8,FIND("-",V8)+1,LEN(V8)-FIND("-",V8)-1)-0)) ->  | CC23: =IF(OR(ISERROR(FIND("-",W8)),AK8>'export html'!$AR$7),"",IF(RIGHT(W8)<>"*",MID(W8,FIND("-",W8)+1,LEN(W8)-FIND("-",W8))-0,MID(W8,FIND("-",W8)+1,LEN(W8)-FIND("-",W8)-1)-0)) ->  | CD23: =IF(OR(ISERROR(FIND("-",X8)),AL8>'export html'!$AR$7),"",IF(RIGHT(X8)<>"*",MID(X8,FIND("-",X8)+1,LEN(X8)-FIND("-",X8))-0,MID(X8,FIND("-",X8)+1,LEN(X8)-FIND("-",X8)-1)-0)) ->  | CE23: =IF(OR(ISERROR(FIND("-",Y8)),AM8>'export html'!$AR$7),"",IF(RIGHT(Y8)<>"*",MID(Y8,FIND("-",Y8)+1,LEN(Y8)-FIND("-",Y8))-0,MID(Y8,FIND("-",Y8)+1,LEN(Y8)-FIND("-",Y8)-1)-0)) ->  | CF23: =IF(OR(ISERROR(FIND("-",Z8)),AN8>'export html'!$AR$7),"",IF(RIGHT(Z8)<>"*",MID(Z8,FIND("-",Z8)+1,LEN(Z8)-FIND("-",Z8))-0,MID(Z8,FIND("-",Z8)+1,LEN(Z8)-FIND("-",Z8)-1)-0)) ->  | CG23: =IF(OR(ISERROR(FIND("-",AA8)),AO8>'export html'!$AR$7),"",IF(RIGHT(AA8)<>"*",MID(AA8,FIND("-",AA8)+1,LEN(AA8)-FIND("-",AA8))-0,MID(AA8,FIND("-",AA8)+1,LEN(AA8)-FIND("-",AA8)-1)-0)) ->  | CH23: =IF(OR(ISERROR(FIND("-",AB8)),AP8>'export html'!$AR$7),"",IF(RIGHT(AB8)<>"*",MID(AB8,FIND("-",AB8)+1,LEN(AB8)-FIND("-",AB8))-0,MID(AB8,FIND("-",AB8)+1,LEN(AB8)-FIND("-",AB8)-1)-0)) ->  | CI23: =IF(OR(ISERROR(FIND("-",AC8)),AQ8>'export html'!$AR$7),"",IF(RIGHT(AC8)<>"*",MID(AC8,FIND("-",AC8)+1,LEN(AC8)-FIND("-",AC8))-0,MID(AC8,FIND("-",AC8)+1,LEN(AC8)-FIND("-",AC8)-1)-0)) ->  | CJ23: =IF(OR(ISERROR(FIND("-",AD8)),AR8>'export html'!$AR$7),"",IF(RIGHT(AD8)<>"*",MID(AD8,FIND("-",AD8)+1,LEN(AD8)-FIND("-",AD8))-0,MID(AD8,FIND("-",AD8)+1,LEN(AD8)-FIND("-",AD8)-1)-0)) ->  | CK23: 4 | CL23: =IF(OR(ISERROR(FIND("-",Q8)),AE8<='export html'!$AR$7),"",IF(RIGHT(Q8)<>"*",MID(Q8,FIND("-",Q8)+1,LEN(Q8)-FIND("-",Q8))-0,MID(Q8,FIND("-",Q8)+1,LEN(Q8)-FIND("-",Q8)-1)-0)) ->  | CM23: =IF(OR(ISERROR(FIND("-",R8)),AF8<='export html'!$AR$7),"",IF(RIGHT(R8)<>"*",MID(R8,FIND("-",R8)+1,LEN(R8)-FIND("-",R8))-0,MID(R8,FIND("-",R8)+1,LEN(R8)-FIND("-",R8)-1)-0)) ->  | CN23: =IF(OR(ISERROR(FIND("-",S8)),AG8<='export html'!$AR$7),"",IF(RIGHT(S8)<>"*",MID(S8,FIND("-",S8)+1,LEN(S8)-FIND("-",S8))-0,MID(S8,FIND("-",S8)+1,LEN(S8)-FIND("-",S8)-1)-0)) ->  | CP23: =IF(OR(ISERROR(FIND("-",U8)),AI8<='export html'!$AR$7),"",IF(RIGHT(U8)<>"*",MID(U8,FIND("-",U8)+1,LEN(U8)-FIND("-",U8))-0,MID(U8,FIND("-",U8)+1,LEN(U8)-FIND("-",U8)-1)-0)) ->  | CQ23: =IF(OR(ISERROR(FIND("-",V8)),AJ8<='export html'!$AR$7),"",IF(RIGHT(V8)<>"*",MID(V8,FIND("-",V8)+1,LEN(V8)-FIND("-",V8))-0,MID(V8,FIND("-",V8)+1,LEN(V8)-FIND("-",V8)-1)-0)) ->  | CR23: =IF(OR(ISERROR(FIND("-",W8)),AK8<='export html'!$AR$7),"",IF(RIGHT(W8)<>"*",MID(W8,FIND("-",W8)+1,LEN(W8)-FIND("-",W8))-0,MID(W8,FIND("-",W8)+1,LEN(W8)-FIND("-",W8)-1)-0)) ->  | CS23: =IF(OR(ISERROR(FIND("-",X8)),AL8<='export html'!$AR$7),"",IF(RIGHT(X8)<>"*",MID(X8,FIND("-",X8)+1,LEN(X8)-FIND("-",X8))-0,MID(X8,FIND("-",X8)+1,LEN(X8)-FIND("-",X8)-1)-0)) ->  | CT23: =IF(OR(ISERROR(FIND("-",Y8)),AM8<='export html'!$AR$7),"",IF(RIGHT(Y8)<>"*",MID(Y8,FIND("-",Y8)+1,LEN(Y8)-FIND("-",Y8))-0,MID(Y8,FIND("-",Y8)+1,LEN(Y8)-FIND("-",Y8)-1)-0)) ->  | CU23: =IF(OR(ISERROR(FIND("-",Z8)),AN8<='export html'!$AR$7),"",IF(RIGHT(Z8)<>"*",MID(Z8,FIND("-",Z8)+1,LEN(Z8)-FIND("-",Z8))-0,MID(Z8,FIND("-",Z8)+1,LEN(Z8)-FIND("-",Z8)-1)-0)) ->  | CV23: =IF(OR(ISERROR(FIND("-",AA8)),AO8<='export html'!$AR$7),"",IF(RIGHT(AA8)<>"*",MID(AA8,FIND("-",AA8)+1,LEN(AA8)-FIND("-",AA8))-0,MID(AA8,FIND("-",AA8)+1,LEN(AA8)-FIND("-",AA8)-1)-0)) ->  | CW23: =IF(OR(ISERROR(FIND("-",AB8)),AP8<='export html'!$AR$7),"",IF(RIGHT(AB8)<>"*",MID(AB8,FIND("-",AB8)+1,LEN(AB8)-FIND("-",AB8))-0,MID(AB8,FIND("-",AB8)+1,LEN(AB8)-FIND("-",AB8)-1)-0)) ->  | CX23: =IF(OR(ISERROR(FIND("-",AC8)),AQ8<='export html'!$AR$7),"",IF(RIGHT(AC8)<>"*",MID(AC8,FIND("-",AC8)+1,LEN(AC8)-FIND("-",AC8))-0,MID(AC8,FIND("-",AC8)+1,LEN(AC8)-FIND("-",AC8)-1)-0)) ->  | CY23: =IF(OR(ISERROR(FIND("-",AD8)),AR8<='export html'!$AR$7),"",IF(RIGHT(AD8)<>"*",MID(AD8,FIND("-",AD8)+1,LEN(AD8)-FIND("-",AD8))-0,MID(AD8,FIND("-",AD8)+1,LEN(AD8)-FIND("-",AD8)-1)-0)) ->  | CZ23: 4
D24: =IF('export html'!T4="","",'export html'!T4) -> 2024-09-29 | E24: =IF('export html'!U4="","",'export html'!U4) -> 5 | F24: =IF('export html'!V4="","",'export html'!V4) -> Lucyvo - Hombeek | N24: =IF('export html'!W4="","",'export html'!W4) -> 5-1 | Q24: 2 | R24: Jorn Verhellen | Z24: 56.74416433 | AA24: Glenn De Vinster | BV24: 5 | BW24: =IF(OR(ISERROR(FIND("-",Q9)),AE9>'export html'!$AR$7),"",IF(RIGHT(Q9)<>"*",MID(Q9,FIND("-",Q9)+1,LEN(Q9)-FIND("-",Q9))-0,MID(Q9,FIND("-",Q9)+1,LEN(Q9)-FIND("-",Q9)-1)-0)) -> 3 | BX24: =IF(OR(ISERROR(FIND("-",R9)),AF9>'export html'!$AR$7),"",IF(RIGHT(R9)<>"*",MID(R9,FIND("-",R9)+1,LEN(R9)-FIND("-",R9))-0,MID(R9,FIND("-",R9)+1,LEN(R9)-FIND("-",R9)-1)-0)) ->  | BY24: =IF(OR(ISERROR(FIND("-",S9)),AG9>'export html'!$AR$7),"",IF(RIGHT(S9)<>"*",MID(S9,FIND("-",S9)+1,LEN(S9)-FIND("-",S9))-0,MID(S9,FIND("-",S9)+1,LEN(S9)-FIND("-",S9)-1)-0)) ->  | BZ24: =IF(OR(ISERROR(FIND("-",T9)),AH9>'export html'!$AR$7),"",IF(RIGHT(T9)<>"*",MID(T9,FIND("-",T9)+1,LEN(T9)-FIND("-",T9))-0,MID(T9,FIND("-",T9)+1,LEN(T9)-FIND("-",T9)-1)-0)) ->  | CB24: =IF(OR(ISERROR(FIND("-",V9)),AJ9>'export html'!$AR$7),"",IF(RIGHT(V9)<>"*",MID(V9,FIND("-",V9)+1,LEN(V9)-FIND("-",V9))-0,MID(V9,FIND("-",V9)+1,LEN(V9)-FIND("-",V9)-1)-0)) ->  | CC24: =IF(OR(ISERROR(FIND("-",W9)),AK9>'export html'!$AR$7),"",IF(RIGHT(W9)<>"*",MID(W9,FIND("-",W9)+1,LEN(W9)-FIND("-",W9))-0,MID(W9,FIND("-",W9)+1,LEN(W9)-FIND("-",W9)-1)-0)) ->  | CD24: =IF(OR(ISERROR(FIND("-",X9)),AL9>'export html'!$AR$7),"",IF(RIGHT(X9)<>"*",MID(X9,FIND("-",X9)+1,LEN(X9)-FIND("-",X9))-0,MID(X9,FIND("-",X9)+1,LEN(X9)-FIND("-",X9)-1)-0)) -> 5 | CE24: =IF(OR(ISERROR(FIND("-",Y9)),AM9>'export html'!$AR$7),"",IF(RIGHT(Y9)<>"*",MID(Y9,FIND("-",Y9)+1,LEN(Y9)-FIND("-",Y9))-0,MID(Y9,FIND("-",Y9)+1,LEN(Y9)-FIND("-",Y9)-1)-0)) ->  | CF24: =IF(OR(ISERROR(FIND("-",Z9)),AN9>'export html'!$AR$7),"",IF(RIGHT(Z9)<>"*",MID(Z9,FIND("-",Z9)+1,LEN(Z9)-FIND("-",Z9))-0,MID(Z9,FIND("-",Z9)+1,LEN(Z9)-FIND("-",Z9)-1)-0)) ->  | CG24: =IF(OR(ISERROR(FIND("-",AA9)),AO9>'export html'!$AR$7),"",IF(RIGHT(AA9)<>"*",MID(AA9,FIND("-",AA9)+1,LEN(AA9)-FIND("-",AA9))-0,MID(AA9,FIND("-",AA9)+1,LEN(AA9)-FIND("-",AA9)-1)-0)) ->  | CH24: =IF(OR(ISERROR(FIND("-",AB9)),AP9>'export html'!$AR$7),"",IF(RIGHT(AB9)<>"*",MID(AB9,FIND("-",AB9)+1,LEN(AB9)-FIND("-",AB9))-0,MID(AB9,FIND("-",AB9)+1,LEN(AB9)-FIND("-",AB9)-1)-0)) -> 10 | CI24: =IF(OR(ISERROR(FIND("-",AC9)),AQ9>'export html'!$AR$7),"",IF(RIGHT(AC9)<>"*",MID(AC9,FIND("-",AC9)+1,LEN(AC9)-FIND("-",AC9))-0,MID(AC9,FIND("-",AC9)+1,LEN(AC9)-FIND("-",AC9)-1)-0)) ->  | CJ24: =IF(OR(ISERROR(FIND("-",AD9)),AR9>'export html'!$AR$7),"",IF(RIGHT(AD9)<>"*",MID(AD9,FIND("-",AD9)+1,LEN(AD9)-FIND("-",AD9))-0,MID(AD9,FIND("-",AD9)+1,LEN(AD9)-FIND("-",AD9)-1)-0)) ->  | CK24: 5 | CL24: =IF(OR(ISERROR(FIND("-",Q9)),AE9<='export html'!$AR$7),"",IF(RIGHT(Q9)<>"*",MID(Q9,FIND("-",Q9)+1,LEN(Q9)-FIND("-",Q9))-0,MID(Q9,FIND("-",Q9)+1,LEN(Q9)-FIND("-",Q9)-1)-0)) ->  | CM24: =IF(OR(ISERROR(FIND("-",R9)),AF9<='export html'!$AR$7),"",IF(RIGHT(R9)<>"*",MID(R9,FIND("-",R9)+1,LEN(R9)-FIND("-",R9))-0,MID(R9,FIND("-",R9)+1,LEN(R9)-FIND("-",R9)-1)-0)) ->  | CN24: =IF(OR(ISERROR(FIND("-",S9)),AG9<='export html'!$AR$7),"",IF(RIGHT(S9)<>"*",MID(S9,FIND("-",S9)+1,LEN(S9)-FIND("-",S9))-0,MID(S9,FIND("-",S9)+1,LEN(S9)-FIND("-",S9)-1)-0)) ->  | CO24: =IF(OR(ISERROR(FIND("-",T9)),AH9<='export html'!$AR$7),"",IF(RIGHT(T9)<>"*",MID(T9,FIND("-",T9)+1,LEN(T9)-FIND("-",T9))-0,MID(T9,FIND("-",T9)+1,LEN(T9)-FIND("-",T9)-1)-0)) ->  | CQ24: =IF(OR(ISERROR(FIND("-",V9)),AJ9<='export html'!$AR$7),"",IF(RIGHT(V9)<>"*",MID(V9,FIND("-",V9)+1,LEN(V9)-FIND("-",V9))-0,MID(V9,FIND("-",V9)+1,LEN(V9)-FIND("-",V9)-1)-0)) ->  | CR24: =IF(OR(ISERROR(FIND("-",W9)),AK9<='export html'!$AR$7),"",IF(RIGHT(W9)<>"*",MID(W9,FIND("-",W9)+1,LEN(W9)-FIND("-",W9))-0,MID(W9,FIND("-",W9)+1,LEN(W9)-FIND("-",W9)-1)-0)) ->  | CS24: =IF(OR(ISERROR(FIND("-",X9)),AL9<='export html'!$AR$7),"",IF(RIGHT(X9)<>"*",MID(X9,FIND("-",X9)+1,LEN(X9)-FIND("-",X9))-0,MID(X9,FIND("-",X9)+1,LEN(X9)-FIND("-",X9)-1)-0)) ->  | CT24: =IF(OR(ISERROR(FIND("-",Y9)),AM9<='export html'!$AR$7),"",IF(RIGHT(Y9)<>"*",MID(Y9,FIND("-",Y9)+1,LEN(Y9)-FIND("-",Y9))-0,MID(Y9,FIND("-",Y9)+1,LEN(Y9)-FIND("-",Y9)-1)-0)) ->  | CU24: =IF(OR(ISERROR(FIND("-",Z9)),AN9<='export html'!$AR$7),"",IF(RIGHT(Z9)<>"*",MID(Z9,FIND("-",Z9)+1,LEN(Z9)-FIND("-",Z9))-0,MID(Z9,FIND("-",Z9)+1,LEN(Z9)-FIND("-",Z9)-1)-0)) ->  | CV24: =IF(OR(ISERROR(FIND("-",AA9)),AO9<='export html'!$AR$7),"",IF(RIGHT(AA9)<>"*",MID(AA9,FIND("-",AA9)+1,LEN(AA9)-FIND("-",AA9))-0,MID(AA9,FIND("-",AA9)+1,LEN(AA9)-FIND("-",AA9)-1)-0)) ->  | CW24: =IF(OR(ISERROR(FIND("-",AB9)),AP9<='export html'!$AR$7),"",IF(RIGHT(AB9)<>"*",MID(AB9,FIND("-",AB9)+1,LEN(AB9)-FIND("-",AB9))-0,MID(AB9,FIND("-",AB9)+1,LEN(AB9)-FIND("-",AB9)-1)-0)) ->  | CX24: =IF(OR(ISERROR(FIND("-",AC9)),AQ9<='export html'!$AR$7),"",IF(RIGHT(AC9)<>"*",MID(AC9,FIND("-",AC9)+1,LEN(AC9)-FIND("-",AC9))-0,MID(AC9,FIND("-",AC9)+1,LEN(AC9)-FIND("-",AC9)-1)-0)) ->  | CY24: =IF(OR(ISERROR(FIND("-",AD9)),AR9<='export html'!$AR$7),"",IF(RIGHT(AD9)<>"*",MID(AD9,FIND("-",AD9)+1,LEN(AD9)-FIND("-",AD9))-0,MID(AD9,FIND("-",AD9)+1,LEN(AD9)-FIND("-",AD9)-1)-0)) ->  | CZ24: 5
D25: =IF('export html'!T5="","",'export html'!T5) -> 2024-09-21 | E25: =IF('export html'!U5="","",'export html'!U5) -> 4 | F25: =IF('export html'!V5="","",'export html'!V5) -> SC Duffel - Lucyvo | N25: =IF('export html'!W5="","",'export html'!W5) -> 3-1 | Q25: 1 | R25: Wout Beirinckx | Z25: 47.46405229 | AA25: Maarten De Groof | BV25: 6 | BW25: =IF(OR(ISERROR(FIND("-",Q10)),AE10>'export html'!$AR$7),"",IF(RIGHT(Q10)<>"*",MID(Q10,FIND("-",Q10)+1,LEN(Q10)-FIND("-",Q10))-0,MID(Q10,FIND("-",Q10)+1,LEN(Q10)-FIND("-",Q10)-1)-0)) ->  | BX25: =IF(OR(ISERROR(FIND("-",R10)),AF10>'export html'!$AR$7),"",IF(RIGHT(R10)<>"*",MID(R10,FIND("-",R10)+1,LEN(R10)-FIND("-",R10))-0,MID(R10,FIND("-",R10)+1,LEN(R10)-FIND("-",R10)-1)-0)) ->  | BY25: =IF(OR(ISERROR(FIND("-",S10)),AG10>'export html'!$AR$7),"",IF(RIGHT(S10)<>"*",MID(S10,FIND("-",S10)+1,LEN(S10)-FIND("-",S10))-0,MID(S10,FIND("-",S10)+1,LEN(S10)-FIND("-",S10)-1)-0)) ->  | BZ25: =IF(OR(ISERROR(FIND("-",T10)),AH10>'export html'!$AR$7),"",IF(RIGHT(T10)<>"*",MID(T10,FIND("-",T10)+1,LEN(T10)-FIND("-",T10))-0,MID(T10,FIND("-",T10)+1,LEN(T10)-FIND("-",T10)-1)-0)) ->  | CA25: =IF(OR(ISERROR(FIND("-",U10)),AI10>'export html'!$AR$7),"",IF(RIGHT(U10)<>"*",MID(U10,FIND("-",U10)+1,LEN(U10)-FIND("-",U10))-0,MID(U10,FIND("-",U10)+1,LEN(U10)-FIND("-",U10)-1)-0)) -> 1 | CC25: =IF(OR(ISERROR(FIND("-",W10)),AK10>'export html'!$AR$7),"",IF(RIGHT(W10)<>"*",MID(W10,FIND("-",W10)+1,LEN(W10)-FIND("-",W10))-0,MID(W10,FIND("-",W10)+1,LEN(W10)-FIND("-",W10)-1)-0)) ->  | CD25: =IF(OR(ISERROR(FIND("-",X10)),AL10>'export html'!$AR$7),"",IF(RIGHT(X10)<>"*",MID(X10,FIND("-",X10)+1,LEN(X10)-FIND("-",X10))-0,MID(X10,FIND("-",X10)+1,LEN(X10)-FIND("-",X10)-1)-0)) ->  | CE25: =IF(OR(ISERROR(FIND("-",Y10)),AM10>'export html'!$AR$7),"",IF(RIGHT(Y10)<>"*",MID(Y10,FIND("-",Y10)+1,LEN(Y10)-FIND("-",Y10))-0,MID(Y10,FIND("-",Y10)+1,LEN(Y10)-FIND("-",Y10)-1)-0)) ->  | CF25: =IF(OR(ISERROR(FIND("-",Z10)),AN10>'export html'!$AR$7),"",IF(RIGHT(Z10)<>"*",MID(Z10,FIND("-",Z10)+1,LEN(Z10)-FIND("-",Z10))-0,MID(Z10,FIND("-",Z10)+1,LEN(Z10)-FIND("-",Z10)-1)-0)) -> 0 | CG25: =IF(OR(ISERROR(FIND("-",AA10)),AO10>'export html'!$AR$7),"",IF(RIGHT(AA10)<>"*",MID(AA10,FIND("-",AA10)+1,LEN(AA10)-FIND("-",AA10))-0,MID(AA10,FIND("-",AA10)+1,LEN(AA10)-FIND("-",AA10)-1)-0)) ->  | CH25: =IF(OR(ISERROR(FIND("-",AB10)),AP10>'export html'!$AR$7),"",IF(RIGHT(AB10)<>"*",MID(AB10,FIND("-",AB10)+1,LEN(AB10)-FIND("-",AB10))-0,MID(AB10,FIND("-",AB10)+1,LEN(AB10)-FIND("-",AB10)-1)-0)) ->  | CI25: =IF(OR(ISERROR(FIND("-",AC10)),AQ10>'export html'!$AR$7),"",IF(RIGHT(AC10)<>"*",MID(AC10,FIND("-",AC10)+1,LEN(AC10)-FIND("-",AC10))-0,MID(AC10,FIND("-",AC10)+1,LEN(AC10)-FIND("-",AC10)-1)-0)) -> 1 | CJ25: =IF(OR(ISERROR(FIND("-",AD10)),AR10>'export html'!$AR$7),"",IF(RIGHT(AD10)<>"*",MID(AD10,FIND("-",AD10)+1,LEN(AD10)-FIND("-",AD10))-0,MID(AD10,FIND("-",AD10)+1,LEN(AD10)-FIND("-",AD10)-1)-0)) ->  | CK25: 6 | CL25: =IF(OR(ISERROR(FIND("-",Q10)),AE10<='export html'!$AR$7),"",IF(RIGHT(Q10)<>"*",MID(Q10,FIND("-",Q10)+1,LEN(Q10)-FIND("-",Q10))-0,MID(Q10,FIND("-",Q10)+1,LEN(Q10)-FIND("-",Q10)-1)-0)) ->  | CM25: =IF(OR(ISERROR(FIND("-",R10)),AF10<='export html'!$AR$7),"",IF(RIGHT(R10)<>"*",MID(R10,FIND("-",R10)+1,LEN(R10)-FIND("-",R10))-0,MID(R10,FIND("-",R10)+1,LEN(R10)-FIND("-",R10)-1)-0)) ->  | CN25: =IF(OR(ISERROR(FIND("-",S10)),AG10<='export html'!$AR$7),"",IF(RIGHT(S10)<>"*",MID(S10,FIND("-",S10)+1,LEN(S10)-FIND("-",S10))-0,MID(S10,FIND("-",S10)+1,LEN(S10)-FIND("-",S10)-1)-0)) ->  | CO25: =IF(OR(ISERROR(FIND("-",T10)),AH10<='export html'!$AR$7),"",IF(RIGHT(T10)<>"*",MID(T10,FIND("-",T10)+1,LEN(T10)-FIND("-",T10))-0,MID(T10,FIND("-",T10)+1,LEN(T10)-FIND("-",T10)-1)-0)) ->  | CP25: =IF(OR(ISERROR(FIND("-",U10)),AI10<='export html'!$AR$7),"",IF(RIGHT(U10)<>"*",MID(U10,FIND("-",U10)+1,LEN(U10)-FIND("-",U10))-0,MID(U10,FIND("-",U10)+1,LEN(U10)-FIND("-",U10)-1)-0)) ->  | CR25: =IF(OR(ISERROR(FIND("-",W10)),AK10<='export html'!$AR$7),"",IF(RIGHT(W10)<>"*",MID(W10,FIND("-",W10)+1,LEN(W10)-FIND("-",W10))-0,MID(W10,FIND("-",W10)+1,LEN(W10)-FIND("-",W10)-1)-0)) ->  | CS25: =IF(OR(ISERROR(FIND("-",X10)),AL10<='export html'!$AR$7),"",IF(RIGHT(X10)<>"*",MID(X10,FIND("-",X10)+1,LEN(X10)-FIND("-",X10))-0,MID(X10,FIND("-",X10)+1,LEN(X10)-FIND("-",X10)-1)-0)) ->  | CT25: =IF(OR(ISERROR(FIND("-",Y10)),AM10<='export html'!$AR$7),"",IF(RIGHT(Y10)<>"*",MID(Y10,FIND("-",Y10)+1,LEN(Y10)-FIND("-",Y10))-0,MID(Y10,FIND("-",Y10)+1,LEN(Y10)-FIND("-",Y10)-1)-0)) ->  | CU25: =IF(OR(ISERROR(FIND("-",Z10)),AN10<='export html'!$AR$7),"",IF(RIGHT(Z10)<>"*",MID(Z10,FIND("-",Z10)+1,LEN(Z10)-FIND("-",Z10))-0,MID(Z10,FIND("-",Z10)+1,LEN(Z10)-FIND("-",Z10)-1)-0)) ->  | CV25: =IF(OR(ISERROR(FIND("-",AA10)),AO10<='export html'!$AR$7),"",IF(RIGHT(AA10)<>"*",MID(AA10,FIND("-",AA10)+1,LEN(AA10)-FIND("-",AA10))-0,MID(AA10,FIND("-",AA10)+1,LEN(AA10)-FIND("-",AA10)-1)-0)) ->  | CW25: =IF(OR(ISERROR(FIND("-",AB10)),AP10<='export html'!$AR$7),"",IF(RIGHT(AB10)<>"*",MID(AB10,FIND("-",AB10)+1,LEN(AB10)-FIND("-",AB10))-0,MID(AB10,FIND("-",AB10)+1,LEN(AB10)-FIND("-",AB10)-1)-0)) ->  | CX25: =IF(OR(ISERROR(FIND("-",AC10)),AQ10<='export html'!$AR$7),"",IF(RIGHT(AC10)<>"*",MID(AC10,FIND("-",AC10)+1,LEN(AC10)-FIND("-",AC10))-0,MID(AC10,FIND("-",AC10)+1,LEN(AC10)-FIND("-",AC10)-1)-0)) ->  | CY25: =IF(OR(ISERROR(FIND("-",AD10)),AR10<='export html'!$AR$7),"",IF(RIGHT(AD10)<>"*",MID(AD10,FIND("-",AD10)+1,LEN(AD10)-FIND("-",AD10))-0,MID(AD10,FIND("-",AD10)+1,LEN(AD10)-FIND("-",AD10)-1)-0)) ->  | CZ25: 6
D26: =IF('export html'!T6="","",'export html'!T6) -> 2024-09-15 | E26: =IF('export html'!U6="","",'export html'!U6) -> 3 | F26: =IF('export html'!V6="","",'export html'!V6) -> Lucyvo - Alberta Schilde | N26: =IF('export html'!W6="","",'export html'!W6) -> 1-5 | Q26: 1 | R26: Maarten De Groof | Z26: 40.80392157 | AA26: Stijn Hofmans | BV26: 7 | BW26: =IF(OR(ISERROR(FIND("-",Q11)),AE11>'export html'!$AR$7),"",IF(RIGHT(Q11)<>"*",MID(Q11,FIND("-",Q11)+1,LEN(Q11)-FIND("-",Q11))-0,MID(Q11,FIND("-",Q11)+1,LEN(Q11)-FIND("-",Q11)-1)-0)) ->  | BX26: =IF(OR(ISERROR(FIND("-",R11)),AF11>'export html'!$AR$7),"",IF(RIGHT(R11)<>"*",MID(R11,FIND("-",R11)+1,LEN(R11)-FIND("-",R11))-0,MID(R11,FIND("-",R11)+1,LEN(R11)-FIND("-",R11)-1)-0)) ->  | BY26: =IF(OR(ISERROR(FIND("-",S11)),AG11>'export html'!$AR$7),"",IF(RIGHT(S11)<>"*",MID(S11,FIND("-",S11)+1,LEN(S11)-FIND("-",S11))-0,MID(S11,FIND("-",S11)+1,LEN(S11)-FIND("-",S11)-1)-0)) ->  | BZ26: =IF(OR(ISERROR(FIND("-",T11)),AH11>'export html'!$AR$7),"",IF(RIGHT(T11)<>"*",MID(T11,FIND("-",T11)+1,LEN(T11)-FIND("-",T11))-0,MID(T11,FIND("-",T11)+1,LEN(T11)-FIND("-",T11)-1)-0)) -> 1 | CA26: =IF(OR(ISERROR(FIND("-",U11)),AI11>'export html'!$AR$7),"",IF(RIGHT(U11)<>"*",MID(U11,FIND("-",U11)+1,LEN(U11)-FIND("-",U11))-0,MID(U11,FIND("-",U11)+1,LEN(U11)-FIND("-",U11)-1)-0)) ->  | CB26: =IF(OR(ISERROR(FIND("-",V11)),AJ11>'export html'!$AR$7),"",IF(RIGHT(V11)<>"*",MID(V11,FIND("-",V11)+1,LEN(V11)-FIND("-",V11))-0,MID(V11,FIND("-",V11)+1,LEN(V11)-FIND("-",V11)-1)-0)) ->  | CD26: =IF(OR(ISERROR(FIND("-",X11)),AL11>'export html'!$AR$7),"",IF(RIGHT(X11)<>"*",MID(X11,FIND("-",X11)+1,LEN(X11)-FIND("-",X11))-0,MID(X11,FIND("-",X11)+1,LEN(X11)-FIND("-",X11)-1)-0)) ->  | CE26: =IF(OR(ISERROR(FIND("-",Y11)),AM11>'export html'!$AR$7),"",IF(RIGHT(Y11)<>"*",MID(Y11,FIND("-",Y11)+1,LEN(Y11)-FIND("-",Y11))-0,MID(Y11,FIND("-",Y11)+1,LEN(Y11)-FIND("-",Y11)-1)-0)) ->  | CF26: =IF(OR(ISERROR(FIND("-",Z11)),AN11>'export html'!$AR$7),"",IF(RIGHT(Z11)<>"*",MID(Z11,FIND("-",Z11)+1,LEN(Z11)-FIND("-",Z11))-0,MID(Z11,FIND("-",Z11)+1,LEN(Z11)-FIND("-",Z11)-1)-0)) -> 0 | CG26: =IF(OR(ISERROR(FIND("-",AA11)),AO11>'export html'!$AR$7),"",IF(RIGHT(AA11)<>"*",MID(AA11,FIND("-",AA11)+1,LEN(AA11)-FIND("-",AA11))-0,MID(AA11,FIND("-",AA11)+1,LEN(AA11)-FIND("-",AA11)-1)-0)) -> 5 | CH26: =IF(OR(ISERROR(FIND("-",AB11)),AP11>'export html'!$AR$7),"",IF(RIGHT(AB11)<>"*",MID(AB11,FIND("-",AB11)+1,LEN(AB11)-FIND("-",AB11))-0,MID(AB11,FIND("-",AB11)+1,LEN(AB11)-FIND("-",AB11)-1)-0)) ->  | CI26: =IF(OR(ISERROR(FIND("-",AC11)),AQ11>'export html'!$AR$7),"",IF(RIGHT(AC11)<>"*",MID(AC11,FIND("-",AC11)+1,LEN(AC11)-FIND("-",AC11))-0,MID(AC11,FIND("-",AC11)+1,LEN(AC11)-FIND("-",AC11)-1)-0)) ->  | CJ26: =IF(OR(ISERROR(FIND("-",AD11)),AR11>'export html'!$AR$7),"",IF(RIGHT(AD11)<>"*",MID(AD11,FIND("-",AD11)+1,LEN(AD11)-FIND("-",AD11))-0,MID(AD11,FIND("-",AD11)+1,LEN(AD11)-FIND("-",AD11)-1)-0)) ->  | CK26: 7 | CL26: =IF(OR(ISERROR(FIND("-",Q11)),AE11<='export html'!$AR$7),"",IF(RIGHT(Q11)<>"*",MID(Q11,FIND("-",Q11)+1,LEN(Q11)-FIND("-",Q11))-0,MID(Q11,FIND("-",Q11)+1,LEN(Q11)-FIND("-",Q11)-1)-0)) ->  | CM26: =IF(OR(ISERROR(FIND("-",R11)),AF11<='export html'!$AR$7),"",IF(RIGHT(R11)<>"*",MID(R11,FIND("-",R11)+1,LEN(R11)-FIND("-",R11))-0,MID(R11,FIND("-",R11)+1,LEN(R11)-FIND("-",R11)-1)-0)) ->  | CN26: =IF(OR(ISERROR(FIND("-",S11)),AG11<='export html'!$AR$7),"",IF(RIGHT(S11)<>"*",MID(S11,FIND("-",S11)+1,LEN(S11)-FIND("-",S11))-0,MID(S11,FIND("-",S11)+1,LEN(S11)-FIND("-",S11)-1)-0)) ->  | CO26: =IF(OR(ISERROR(FIND("-",T11)),AH11<='export html'!$AR$7),"",IF(RIGHT(T11)<>"*",MID(T11,FIND("-",T11)+1,LEN(T11)-FIND("-",T11))-0,MID(T11,FIND("-",T11)+1,LEN(T11)-FIND("-",T11)-1)-0)) ->  | CP26: =IF(OR(ISERROR(FIND("-",U11)),AI11<='export html'!$AR$7),"",IF(RIGHT(U11)<>"*",MID(U11,FIND("-",U11)+1,LEN(U11)-FIND("-",U11))-0,MID(U11,FIND("-",U11)+1,LEN(U11)-FIND("-",U11)-1)-0)) ->  | CQ26: =IF(OR(ISERROR(FIND("-",V11)),AJ11<='export html'!$AR$7),"",IF(RIGHT(V11)<>"*",MID(V11,FIND("-",V11)+1,LEN(V11)-FIND("-",V11))-0,MID(V11,FIND("-",V11)+1,LEN(V11)-FIND("-",V11)-1)-0)) ->  | CS26: =IF(OR(ISERROR(FIND("-",X11)),AL11<='export html'!$AR$7),"",IF(RIGHT(X11)<>"*",MID(X11,FIND("-",X11)+1,LEN(X11)-FIND("-",X11))-0,MID(X11,FIND("-",X11)+1,LEN(X11)-FIND("-",X11)-1)-0)) ->  | CT26: =IF(OR(ISERROR(FIND("-",Y11)),AM11<='export html'!$AR$7),"",IF(RIGHT(Y11)<>"*",MID(Y11,FIND("-",Y11)+1,LEN(Y11)-FIND("-",Y11))-0,MID(Y11,FIND("-",Y11)+1,LEN(Y11)-FIND("-",Y11)-1)-0)) ->  | CU26: =IF(OR(ISERROR(FIND("-",Z11)),AN11<='export html'!$AR$7),"",IF(RIGHT(Z11)<>"*",MID(Z11,FIND("-",Z11)+1,LEN(Z11)-FIND("-",Z11))-0,MID(Z11,FIND("-",Z11)+1,LEN(Z11)-FIND("-",Z11)-1)-0)) ->  | CV26: =IF(OR(ISERROR(FIND("-",AA11)),AO11<='export html'!$AR$7),"",IF(RIGHT(AA11)<>"*",MID(AA11,FIND("-",AA11)+1,LEN(AA11)-FIND("-",AA11))-0,MID(AA11,FIND("-",AA11)+1,LEN(AA11)-FIND("-",AA11)-1)-0)) ->  | CW26: =IF(OR(ISERROR(FIND("-",AB11)),AP11<='export html'!$AR$7),"",IF(RIGHT(AB11)<>"*",MID(AB11,FIND("-",AB11)+1,LEN(AB11)-FIND("-",AB11))-0,MID(AB11,FIND("-",AB11)+1,LEN(AB11)-FIND("-",AB11)-1)-0)) ->  | CX26: =IF(OR(ISERROR(FIND("-",AC11)),AQ11<='export html'!$AR$7),"",IF(RIGHT(AC11)<>"*",MID(AC11,FIND("-",AC11)+1,LEN(AC11)-FIND("-",AC11))-0,MID(AC11,FIND("-",AC11)+1,LEN(AC11)-FIND("-",AC11)-1)-0)) ->  | CY26: =IF(OR(ISERROR(FIND("-",AD11)),AR11<='export html'!$AR$7),"",IF(RIGHT(AD11)<>"*",MID(AD11,FIND("-",AD11)+1,LEN(AD11)-FIND("-",AD11))-0,MID(AD11,FIND("-",AD11)+1,LEN(AD11)-FIND("-",AD11)-1)-0)) ->  | CZ26: 7
D27: =IF('export html'!T7="","",'export html'!T7) -> 2024-09-08 | E27: =IF('export html'!U7="","",'export html'!U7) -> 2 | F27: =IF('export html'!V7="","",'export html'!V7) -> Goka - Lucyvo | N27: =IF('export html'!W7="","",'export html'!W7) -> 3-0 | Q27: 1 | R27: Glenn De Vinster | Z27: 38.22222222 | AA27: Wannes Nyckees | BV27: 8 | BW27: =IF(OR(ISERROR(FIND("-",Q12)),AE12>'export html'!$AR$7),"",IF(RIGHT(Q12)<>"*",MID(Q12,FIND("-",Q12)+1,LEN(Q12)-FIND("-",Q12))-0,MID(Q12,FIND("-",Q12)+1,LEN(Q12)-FIND("-",Q12)-1)-0)) ->  | BX27: =IF(OR(ISERROR(FIND("-",R12)),AF12>'export html'!$AR$7),"",IF(RIGHT(R12)<>"*",MID(R12,FIND("-",R12)+1,LEN(R12)-FIND("-",R12))-0,MID(R12,FIND("-",R12)+1,LEN(R12)-FIND("-",R12)-1)-0)) ->  | BY27: =IF(OR(ISERROR(FIND("-",S12)),AG12>'export html'!$AR$7),"",IF(RIGHT(S12)<>"*",MID(S12,FIND("-",S12)+1,LEN(S12)-FIND("-",S12))-0,MID(S12,FIND("-",S12)+1,LEN(S12)-FIND("-",S12)-1)-0)) ->  | BZ27: =IF(OR(ISERROR(FIND("-",T12)),AH12>'export html'!$AR$7),"",IF(RIGHT(T12)<>"*",MID(T12,FIND("-",T12)+1,LEN(T12)-FIND("-",T12))-0,MID(T12,FIND("-",T12)+1,LEN(T12)-FIND("-",T12)-1)-0)) ->  | CA27: =IF(OR(ISERROR(FIND("-",U12)),AI12>'export html'!$AR$7),"",IF(RIGHT(U12)<>"*",MID(U12,FIND("-",U12)+1,LEN(U12)-FIND("-",U12))-0,MID(U12,FIND("-",U12)+1,LEN(U12)-FIND("-",U12)-1)-0)) ->  | CB27: =IF(OR(ISERROR(FIND("-",V12)),AJ12>'export html'!$AR$7),"",IF(RIGHT(V12)<>"*",MID(V12,FIND("-",V12)+1,LEN(V12)-FIND("-",V12))-0,MID(V12,FIND("-",V12)+1,LEN(V12)-FIND("-",V12)-1)-0)) -> 3 | CC27: =IF(OR(ISERROR(FIND("-",W12)),AK12>'export html'!$AR$7),"",IF(RIGHT(W12)<>"*",MID(W12,FIND("-",W12)+1,LEN(W12)-FIND("-",W12))-0,MID(W12,FIND("-",W12)+1,LEN(W12)-FIND("-",W12)-1)-0)) ->  | CE27: =IF(OR(ISERROR(FIND("-",Y12)),AM12>'export html'!$AR$7),"",IF(RIGHT(Y12)<>"*",MID(Y12,FIND("-",Y12)+1,LEN(Y12)-FIND("-",Y12))-0,MID(Y12,FIND("-",Y12)+1,LEN(Y12)-FIND("-",Y12)-1)-0)) ->  | CF27: =IF(OR(ISERROR(FIND("-",Z12)),AN12>'export html'!$AR$7),"",IF(RIGHT(Z12)<>"*",MID(Z12,FIND("-",Z12)+1,LEN(Z12)-FIND("-",Z12))-0,MID(Z12,FIND("-",Z12)+1,LEN(Z12)-FIND("-",Z12)-1)-0)) ->  | CG27: =IF(OR(ISERROR(FIND("-",AA12)),AO12>'export html'!$AR$7),"",IF(RIGHT(AA12)<>"*",MID(AA12,FIND("-",AA12)+1,LEN(AA12)-FIND("-",AA12))-0,MID(AA12,FIND("-",AA12)+1,LEN(AA12)-FIND("-",AA12)-1)-0)) ->  | CH27: =IF(OR(ISERROR(FIND("-",AB12)),AP12>'export html'!$AR$7),"",IF(RIGHT(AB12)<>"*",MID(AB12,FIND("-",AB12)+1,LEN(AB12)-FIND("-",AB12))-0,MID(AB12,FIND("-",AB12)+1,LEN(AB12)-FIND("-",AB12)-1)-0)) -> 6 | CI27: =IF(OR(ISERROR(FIND("-",AC12)),AQ12>'export html'!$AR$7),"",IF(RIGHT(AC12)<>"*",MID(AC12,FIND("-",AC12)+1,LEN(AC12)-FIND("-",AC12))-0,MID(AC12,FIND("-",AC12)+1,LEN(AC12)-FIND("-",AC12)-1)-0)) ->  | CJ27: =IF(OR(ISERROR(FIND("-",AD12)),AR12>'export html'!$AR$7),"",IF(RIGHT(AD12)<>"*",MID(AD12,FIND("-",AD12)+1,LEN(AD12)-FIND("-",AD12))-0,MID(AD12,FIND("-",AD12)+1,LEN(AD12)-FIND("-",AD12)-1)-0)) -> 1 | CK27: 8 | CL27: =IF(OR(ISERROR(FIND("-",Q12)),AE12<='export html'!$AR$7),"",IF(RIGHT(Q12)<>"*",MID(Q12,FIND("-",Q12)+1,LEN(Q12)-FIND("-",Q12))-0,MID(Q12,FIND("-",Q12)+1,LEN(Q12)-FIND("-",Q12)-1)-0)) ->  | CM27: =IF(OR(ISERROR(FIND("-",R12)),AF12<='export html'!$AR$7),"",IF(RIGHT(R12)<>"*",MID(R12,FIND("-",R12)+1,LEN(R12)-FIND("-",R12))-0,MID(R12,FIND("-",R12)+1,LEN(R12)-FIND("-",R12)-1)-0)) ->  | CN27: =IF(OR(ISERROR(FIND("-",S12)),AG12<='export html'!$AR$7),"",IF(RIGHT(S12)<>"*",MID(S12,FIND("-",S12)+1,LEN(S12)-FIND("-",S12))-0,MID(S12,FIND("-",S12)+1,LEN(S12)-FIND("-",S12)-1)-0)) ->  | CO27: =IF(OR(ISERROR(FIND("-",T12)),AH12<='export html'!$AR$7),"",IF(RIGHT(T12)<>"*",MID(T12,FIND("-",T12)+1,LEN(T12)-FIND("-",T12))-0,MID(T12,FIND("-",T12)+1,LEN(T12)-FIND("-",T12)-1)-0)) ->  | CP27: =IF(OR(ISERROR(FIND("-",U12)),AI12<='export html'!$AR$7),"",IF(RIGHT(U12)<>"*",MID(U12,FIND("-",U12)+1,LEN(U12)-FIND("-",U12))-0,MID(U12,FIND("-",U12)+1,LEN(U12)-FIND("-",U12)-1)-0)) ->  | CQ27: =IF(OR(ISERROR(FIND("-",V12)),AJ12<='export html'!$AR$7),"",IF(RIGHT(V12)<>"*",MID(V12,FIND("-",V12)+1,LEN(V12)-FIND("-",V12))-0,MID(V12,FIND("-",V12)+1,LEN(V12)-FIND("-",V12)-1)-0)) ->  | CR27: =IF(OR(ISERROR(FIND("-",W12)),AK12<='export html'!$AR$7),"",IF(RIGHT(W12)<>"*",MID(W12,FIND("-",W12)+1,LEN(W12)-FIND("-",W12))-0,MID(W12,FIND("-",W12)+1,LEN(W12)-FIND("-",W12)-1)-0)) ->  | CT27: =IF(OR(ISERROR(FIND("-",Y12)),AM12<='export html'!$AR$7),"",IF(RIGHT(Y12)<>"*",MID(Y12,FIND("-",Y12)+1,LEN(Y12)-FIND("-",Y12))-0,MID(Y12,FIND("-",Y12)+1,LEN(Y12)-FIND("-",Y12)-1)-0)) ->  | CU27: =IF(OR(ISERROR(FIND("-",Z12)),AN12<='export html'!$AR$7),"",IF(RIGHT(Z12)<>"*",MID(Z12,FIND("-",Z12)+1,LEN(Z12)-FIND("-",Z12))-0,MID(Z12,FIND("-",Z12)+1,LEN(Z12)-FIND("-",Z12)-1)-0)) ->  | CV27: =IF(OR(ISERROR(FIND("-",AA12)),AO12<='export html'!$AR$7),"",IF(RIGHT(AA12)<>"*",MID(AA12,FIND("-",AA12)+1,LEN(AA12)-FIND("-",AA12))-0,MID(AA12,FIND("-",AA12)+1,LEN(AA12)-FIND("-",AA12)-1)-0)) ->  | CW27: =IF(OR(ISERROR(FIND("-",AB12)),AP12<='export html'!$AR$7),"",IF(RIGHT(AB12)<>"*",MID(AB12,FIND("-",AB12)+1,LEN(AB12)-FIND("-",AB12))-0,MID(AB12,FIND("-",AB12)+1,LEN(AB12)-FIND("-",AB12)-1)-0)) ->  | CX27: =IF(OR(ISERROR(FIND("-",AC12)),AQ12<='export html'!$AR$7),"",IF(RIGHT(AC12)<>"*",MID(AC12,FIND("-",AC12)+1,LEN(AC12)-FIND("-",AC12))-0,MID(AC12,FIND("-",AC12)+1,LEN(AC12)-FIND("-",AC12)-1)-0)) ->  | CY27: =IF(OR(ISERROR(FIND("-",AD12)),AR12<='export html'!$AR$7),"",IF(RIGHT(AD12)<>"*",MID(AD12,FIND("-",AD12)+1,LEN(AD12)-FIND("-",AD12))-0,MID(AD12,FIND("-",AD12)+1,LEN(AD12)-FIND("-",AD12)-1)-0)) ->  | CZ27: 8
D28: =IF('export html'!T8="","",'export html'!T8) ->  | E28: =IF('export html'!U8="","",'export html'!U8) ->  | F28: =IF('export html'!V8="","",'export html'!V8) ->  | N28: =IF('export html'!W8="","",'export html'!W8) ->  | BV28: 9 | BW28: =IF(OR(ISERROR(FIND("-",Q13)),AE13>'export html'!$AR$7),"",IF(RIGHT(Q13)<>"*",MID(Q13,FIND("-",Q13)+1,LEN(Q13)-FIND("-",Q13))-0,MID(Q13,FIND("-",Q13)+1,LEN(Q13)-FIND("-",Q13)-1)-0)) ->  | BX28: =IF(OR(ISERROR(FIND("-",R13)),AF13>'export html'!$AR$7),"",IF(RIGHT(R13)<>"*",MID(R13,FIND("-",R13)+1,LEN(R13)-FIND("-",R13))-0,MID(R13,FIND("-",R13)+1,LEN(R13)-FIND("-",R13)-1)-0)) ->  | BY28: =IF(OR(ISERROR(FIND("-",S13)),AG13>'export html'!$AR$7),"",IF(RIGHT(S13)<>"*",MID(S13,FIND("-",S13)+1,LEN(S13)-FIND("-",S13))-0,MID(S13,FIND("-",S13)+1,LEN(S13)-FIND("-",S13)-1)-0)) ->  | BZ28: =IF(OR(ISERROR(FIND("-",T13)),AH13>'export html'!$AR$7),"",IF(RIGHT(T13)<>"*",MID(T13,FIND("-",T13)+1,LEN(T13)-FIND("-",T13))-0,MID(T13,FIND("-",T13)+1,LEN(T13)-FIND("-",T13)-1)-0)) ->  | CA28: =IF(OR(ISERROR(FIND("-",U13)),AI13>'export html'!$AR$7),"",IF(RIGHT(U13)<>"*",MID(U13,FIND("-",U13)+1,LEN(U13)-FIND("-",U13))-0,MID(U13,FIND("-",U13)+1,LEN(U13)-FIND("-",U13)-1)-0)) -> 8 | CB28: =IF(OR(ISERROR(FIND("-",V13)),AJ13>'export html'!$AR$7),"",IF(RIGHT(V13)<>"*",MID(V13,FIND("-",V13)+1,LEN(V13)-FIND("-",V13))-0,MID(V13,FIND("-",V13)+1,LEN(V13)-FIND("-",V13)-1)-0)) -> 7 | CC28: =IF(OR(ISERROR(FIND("-",W13)),AK13>'export html'!$AR$7),"",IF(RIGHT(W13)<>"*",MID(W13,FIND("-",W13)+1,LEN(W13)-FIND("-",W13))-0,MID(W13,FIND("-",W13)+1,LEN(W13)-FIND("-",W13)-1)-0)) ->  | CD28: =IF(OR(ISERROR(FIND("-",X13)),AL13>'export html'!$AR$7),"",IF(RIGHT(X13)<>"*",MID(X13,FIND("-",X13)+1,LEN(X13)-FIND("-",X13))-0,MID(X13,FIND("-",X13)+1,LEN(X13)-FIND("-",X13)-1)-0)) -> 6 | CF28: =IF(OR(ISERROR(FIND("-",Z13)),AN13>'export html'!$AR$7),"",IF(RIGHT(Z13)<>"*",MID(Z13,FIND("-",Z13)+1,LEN(Z13)-FIND("-",Z13))-0,MID(Z13,FIND("-",Z13)+1,LEN(Z13)-FIND("-",Z13)-1)-0)) ->  | CG28: =IF(OR(ISERROR(FIND("-",AA13)),AO13>'export html'!$AR$7),"",IF(RIGHT(AA13)<>"*",MID(AA13,FIND("-",AA13)+1,LEN(AA13)-FIND("-",AA13))-0,MID(AA13,FIND("-",AA13)+1,LEN(AA13)-FIND("-",AA13)-1)-0)) ->  | CH28: =IF(OR(ISERROR(FIND("-",AB13)),AP13>'export html'!$AR$7),"",IF(RIGHT(AB13)<>"*",MID(AB13,FIND("-",AB13)+1,LEN(AB13)-FIND("-",AB13))-0,MID(AB13,FIND("-",AB13)+1,LEN(AB13)-FIND("-",AB13)-1)-0)) ->  | CI28: =IF(OR(ISERROR(FIND("-",AC13)),AQ13>'export html'!$AR$7),"",IF(RIGHT(AC13)<>"*",MID(AC13,FIND("-",AC13)+1,LEN(AC13)-FIND("-",AC13))-0,MID(AC13,FIND("-",AC13)+1,LEN(AC13)-FIND("-",AC13)-1)-0)) ->  | CJ28: =IF(OR(ISERROR(FIND("-",AD13)),AR13>'export html'!$AR$7),"",IF(RIGHT(AD13)<>"*",MID(AD13,FIND("-",AD13)+1,LEN(AD13)-FIND("-",AD13))-0,MID(AD13,FIND("-",AD13)+1,LEN(AD13)-FIND("-",AD13)-1)-0)) ->  | CK28: 9 | CL28: =IF(OR(ISERROR(FIND("-",Q13)),AE13<='export html'!$AR$7),"",IF(RIGHT(Q13)<>"*",MID(Q13,FIND("-",Q13)+1,LEN(Q13)-FIND("-",Q13))-0,MID(Q13,FIND("-",Q13)+1,LEN(Q13)-FIND("-",Q13)-1)-0)) ->  | CM28: =IF(OR(ISERROR(FIND("-",R13)),AF13<='export html'!$AR$7),"",IF(RIGHT(R13)<>"*",MID(R13,FIND("-",R13)+1,LEN(R13)-FIND("-",R13))-0,MID(R13,FIND("-",R13)+1,LEN(R13)-FIND("-",R13)-1)-0)) ->  | CN28: =IF(OR(ISERROR(FIND("-",S13)),AG13<='export html'!$AR$7),"",IF(RIGHT(S13)<>"*",MID(S13,FIND("-",S13)+1,LEN(S13)-FIND("-",S13))-0,MID(S13,FIND("-",S13)+1,LEN(S13)-FIND("-",S13)-1)-0)) ->  | CO28: =IF(OR(ISERROR(FIND("-",T13)),AH13<='export html'!$AR$7),"",IF(RIGHT(T13)<>"*",MID(T13,FIND("-",T13)+1,LEN(T13)-FIND("-",T13))-0,MID(T13,FIND("-",T13)+1,LEN(T13)-FIND("-",T13)-1)-0)) ->  | CP28: =IF(OR(ISERROR(FIND("-",U13)),AI13<='export html'!$AR$7),"",IF(RIGHT(U13)<>"*",MID(U13,FIND("-",U13)+1,LEN(U13)-FIND("-",U13))-0,MID(U13,FIND("-",U13)+1,LEN(U13)-FIND("-",U13)-1)-0)) ->  | CQ28: =IF(OR(ISERROR(FIND("-",V13)),AJ13<='export html'!$AR$7),"",IF(RIGHT(V13)<>"*",MID(V13,FIND("-",V13)+1,LEN(V13)-FIND("-",V13))-0,MID(V13,FIND("-",V13)+1,LEN(V13)-FIND("-",V13)-1)-0)) ->  | CR28: =IF(OR(ISERROR(FIND("-",W13)),AK13<='export html'!$AR$7),"",IF(RIGHT(W13)<>"*",MID(W13,FIND("-",W13)+1,LEN(W13)-FIND("-",W13))-0,MID(W13,FIND("-",W13)+1,LEN(W13)-FIND("-",W13)-1)-0)) ->  | CS28: =IF(OR(ISERROR(FIND("-",X13)),AL13<='export html'!$AR$7),"",IF(RIGHT(X13)<>"*",MID(X13,FIND("-",X13)+1,LEN(X13)-FIND("-",X13))-0,MID(X13,FIND("-",X13)+1,LEN(X13)-FIND("-",X13)-1)-0)) ->  | CU28: =IF(OR(ISERROR(FIND("-",Z13)),AN13<='export html'!$AR$7),"",IF(RIGHT(Z13)<>"*",MID(Z13,FIND("-",Z13)+1,LEN(Z13)-FIND("-",Z13))-0,MID(Z13,FIND("-",Z13)+1,LEN(Z13)-FIND("-",Z13)-1)-0)) ->  | CV28: =IF(OR(ISERROR(FIND("-",AA13)),AO13<='export html'!$AR$7),"",IF(RIGHT(AA13)<>"*",MID(AA13,FIND("-",AA13)+1,LEN(AA13)-FIND("-",AA13))-0,MID(AA13,FIND("-",AA13)+1,LEN(AA13)-FIND("-",AA13)-1)-0)) ->  | CW28: =IF(OR(ISERROR(FIND("-",AB13)),AP13<='export html'!$AR$7),"",IF(RIGHT(AB13)<>"*",MID(AB13,FIND("-",AB13)+1,LEN(AB13)-FIND("-",AB13))-0,MID(AB13,FIND("-",AB13)+1,LEN(AB13)-FIND("-",AB13)-1)-0)) ->  | CX28: =IF(OR(ISERROR(FIND("-",AC13)),AQ13<='export html'!$AR$7),"",IF(RIGHT(AC13)<>"*",MID(AC13,FIND("-",AC13)+1,LEN(AC13)-FIND("-",AC13))-0,MID(AC13,FIND("-",AC13)+1,LEN(AC13)-FIND("-",AC13)-1)-0)) ->  | CY28: =IF(OR(ISERROR(FIND("-",AD13)),AR13<='export html'!$AR$7),"",IF(RIGHT(AD13)<>"*",MID(AD13,FIND("-",AD13)+1,LEN(AD13)-FIND("-",AD13))-0,MID(AD13,FIND("-",AD13)+1,LEN(AD13)-FIND("-",AD13)-1)-0)) ->  | CZ28: 9
BV29: 10 | BW29: =IF(OR(ISERROR(FIND("-",Q14)),AE14>'export html'!$AR$7),"",IF(RIGHT(Q14)<>"*",MID(Q14,FIND("-",Q14)+1,LEN(Q14)-FIND("-",Q14))-0,MID(Q14,FIND("-",Q14)+1,LEN(Q14)-FIND("-",Q14)-1)-0)) -> 5 | BX29: =IF(OR(ISERROR(FIND("-",R14)),AF14>'export html'!$AR$7),"",IF(RIGHT(R14)<>"*",MID(R14,FIND("-",R14)+1,LEN(R14)-FIND("-",R14))-0,MID(R14,FIND("-",R14)+1,LEN(R14)-FIND("-",R14)-1)-0)) ->  | BY29: =IF(OR(ISERROR(FIND("-",S14)),AG14>'export html'!$AR$7),"",IF(RIGHT(S14)<>"*",MID(S14,FIND("-",S14)+1,LEN(S14)-FIND("-",S14))-0,MID(S14,FIND("-",S14)+1,LEN(S14)-FIND("-",S14)-1)-0)) -> 4 | BZ29: =IF(OR(ISERROR(FIND("-",T14)),AH14>'export html'!$AR$7),"",IF(RIGHT(T14)<>"*",MID(T14,FIND("-",T14)+1,LEN(T14)-FIND("-",T14))-0,MID(T14,FIND("-",T14)+1,LEN(T14)-FIND("-",T14)-1)-0)) ->  | CA29: =IF(OR(ISERROR(FIND("-",U14)),AI14>'export html'!$AR$7),"",IF(RIGHT(U14)<>"*",MID(U14,FIND("-",U14)+1,LEN(U14)-FIND("-",U14))-0,MID(U14,FIND("-",U14)+1,LEN(U14)-FIND("-",U14)-1)-0)) ->  | CB29: =IF(OR(ISERROR(FIND("-",V14)),AJ14>'export html'!$AR$7),"",IF(RIGHT(V14)<>"*",MID(V14,FIND("-",V14)+1,LEN(V14)-FIND("-",V14))-0,MID(V14,FIND("-",V14)+1,LEN(V14)-FIND("-",V14)-1)-0)) ->  | CC29: =IF(OR(ISERROR(FIND("-",W14)),AK14>'export html'!$AR$7),"",IF(RIGHT(W14)<>"*",MID(W14,FIND("-",W14)+1,LEN(W14)-FIND("-",W14))-0,MID(W14,FIND("-",W14)+1,LEN(W14)-FIND("-",W14)-1)-0)) ->  | CD29: =IF(OR(ISERROR(FIND("-",X14)),AL14>'export html'!$AR$7),"",IF(RIGHT(X14)<>"*",MID(X14,FIND("-",X14)+1,LEN(X14)-FIND("-",X14))-0,MID(X14,FIND("-",X14)+1,LEN(X14)-FIND("-",X14)-1)-0)) -> 1 | CE29: =IF(OR(ISERROR(FIND("-",Y14)),AM14>'export html'!$AR$7),"",IF(RIGHT(Y14)<>"*",MID(Y14,FIND("-",Y14)+1,LEN(Y14)-FIND("-",Y14))-0,MID(Y14,FIND("-",Y14)+1,LEN(Y14)-FIND("-",Y14)-1)-0)) ->  | CG29: =IF(OR(ISERROR(FIND("-",AA14)),AO14>'export html'!$AR$7),"",IF(RIGHT(AA14)<>"*",MID(AA14,FIND("-",AA14)+1,LEN(AA14)-FIND("-",AA14))-0,MID(AA14,FIND("-",AA14)+1,LEN(AA14)-FIND("-",AA14)-1)-0)) ->  | CH29: =IF(OR(ISERROR(FIND("-",AB14)),AP14>'export html'!$AR$7),"",IF(RIGHT(AB14)<>"*",MID(AB14,FIND("-",AB14)+1,LEN(AB14)-FIND("-",AB14))-0,MID(AB14,FIND("-",AB14)+1,LEN(AB14)-FIND("-",AB14)-1)-0)) ->  | CI29: =IF(OR(ISERROR(FIND("-",AC14)),AQ14>'export html'!$AR$7),"",IF(RIGHT(AC14)<>"*",MID(AC14,FIND("-",AC14)+1,LEN(AC14)-FIND("-",AC14))-0,MID(AC14,FIND("-",AC14)+1,LEN(AC14)-FIND("-",AC14)-1)-0)) ->  | CJ29: =IF(OR(ISERROR(FIND("-",AD14)),AR14>'export html'!$AR$7),"",IF(RIGHT(AD14)<>"*",MID(AD14,FIND("-",AD14)+1,LEN(AD14)-FIND("-",AD14))-0,MID(AD14,FIND("-",AD14)+1,LEN(AD14)-FIND("-",AD14)-1)-0)) ->  | CK29: 10 | CL29: =IF(OR(ISERROR(FIND("-",Q14)),AE14<='export html'!$AR$7),"",IF(RIGHT(Q14)<>"*",MID(Q14,FIND("-",Q14)+1,LEN(Q14)-FIND("-",Q14))-0,MID(Q14,FIND("-",Q14)+1,LEN(Q14)-FIND("-",Q14)-1)-0)) ->  | CM29: =IF(OR(ISERROR(FIND("-",R14)),AF14<='export html'!$AR$7),"",IF(RIGHT(R14)<>"*",MID(R14,FIND("-",R14)+1,LEN(R14)-FIND("-",R14))-0,MID(R14,FIND("-",R14)+1,LEN(R14)-FIND("-",R14)-1)-0)) ->  | CN29: =IF(OR(ISERROR(FIND("-",S14)),AG14<='export html'!$AR$7),"",IF(RIGHT(S14)<>"*",MID(S14,FIND("-",S14)+1,LEN(S14)-FIND("-",S14))-0,MID(S14,FIND("-",S14)+1,LEN(S14)-FIND("-",S14)-1)-0)) ->  | CO29: =IF(OR(ISERROR(FIND("-",T14)),AH14<='export html'!$AR$7),"",IF(RIGHT(T14)<>"*",MID(T14,FIND("-",T14)+1,LEN(T14)-FIND("-",T14))-0,MID(T14,FIND("-",T14)+1,LEN(T14)-FIND("-",T14)-1)-0)) ->  | CP29: =IF(OR(ISERROR(FIND("-",U14)),AI14<='export html'!$AR$7),"",IF(RIGHT(U14)<>"*",MID(U14,FIND("-",U14)+1,LEN(U14)-FIND("-",U14))-0,MID(U14,FIND("-",U14)+1,LEN(U14)-FIND("-",U14)-1)-0)) ->  | CQ29: =IF(OR(ISERROR(FIND("-",V14)),AJ14<='export html'!$AR$7),"",IF(RIGHT(V14)<>"*",MID(V14,FIND("-",V14)+1,LEN(V14)-FIND("-",V14))-0,MID(V14,FIND("-",V14)+1,LEN(V14)-FIND("-",V14)-1)-0)) ->  | CR29: =IF(OR(ISERROR(FIND("-",W14)),AK14<='export html'!$AR$7),"",IF(RIGHT(W14)<>"*",MID(W14,FIND("-",W14)+1,LEN(W14)-FIND("-",W14))-0,MID(W14,FIND("-",W14)+1,LEN(W14)-FIND("-",W14)-1)-0)) ->  | CS29: =IF(OR(ISERROR(FIND("-",X14)),AL14<='export html'!$AR$7),"",IF(RIGHT(X14)<>"*",MID(X14,FIND("-",X14)+1,LEN(X14)-FIND("-",X14))-0,MID(X14,FIND("-",X14)+1,LEN(X14)-FIND("-",X14)-1)-0)) ->  | CT29: =IF(OR(ISERROR(FIND("-",Y14)),AM14<='export html'!$AR$7),"",IF(RIGHT(Y14)<>"*",MID(Y14,FIND("-",Y14)+1,LEN(Y14)-FIND("-",Y14))-0,MID(Y14,FIND("-",Y14)+1,LEN(Y14)-FIND("-",Y14)-1)-0)) ->  | CV29: =IF(OR(ISERROR(FIND("-",AA14)),AO14<='export html'!$AR$7),"",IF(RIGHT(AA14)<>"*",MID(AA14,FIND("-",AA14)+1,LEN(AA14)-FIND("-",AA14))-0,MID(AA14,FIND("-",AA14)+1,LEN(AA14)-FIND("-",AA14)-1)-0)) ->  | CW29: =IF(OR(ISERROR(FIND("-",AB14)),AP14<='export html'!$AR$7),"",IF(RIGHT(AB14)<>"*",MID(AB14,FIND("-",AB14)+1,LEN(AB14)-FIND("-",AB14))-0,MID(AB14,FIND("-",AB14)+1,LEN(AB14)-FIND("-",AB14)-1)-0)) ->  | CX29: =IF(OR(ISERROR(FIND("-",AC14)),AQ14<='export html'!$AR$7),"",IF(RIGHT(AC14)<>"*",MID(AC14,FIND("-",AC14)+1,LEN(AC14)-FIND("-",AC14))-0,MID(AC14,FIND("-",AC14)+1,LEN(AC14)-FIND("-",AC14)-1)-0)) ->  | CY29: =IF(OR(ISERROR(FIND("-",AD14)),AR14<='export html'!$AR$7),"",IF(RIGHT(AD14)<>"*",MID(AD14,FIND("-",AD14)+1,LEN(AD14)-FIND("-",AD14))-0,MID(AD14,FIND("-",AD14)+1,LEN(AD14)-FIND("-",AD14)-1)-0)) ->  | CZ29: 10
BV30: 11 | BW30: =IF(OR(ISERROR(FIND("-",Q15)),AE15>'export html'!$AR$7),"",IF(RIGHT(Q15)<>"*",MID(Q15,FIND("-",Q15)+1,LEN(Q15)-FIND("-",Q15))-0,MID(Q15,FIND("-",Q15)+1,LEN(Q15)-FIND("-",Q15)-1)-0)) ->  | BX30: =IF(OR(ISERROR(FIND("-",R15)),AF15>'export html'!$AR$7),"",IF(RIGHT(R15)<>"*",MID(R15,FIND("-",R15)+1,LEN(R15)-FIND("-",R15))-0,MID(R15,FIND("-",R15)+1,LEN(R15)-FIND("-",R15)-1)-0)) ->  | BY30: =IF(OR(ISERROR(FIND("-",S15)),AG15>'export html'!$AR$7),"",IF(RIGHT(S15)<>"*",MID(S15,FIND("-",S15)+1,LEN(S15)-FIND("-",S15))-0,MID(S15,FIND("-",S15)+1,LEN(S15)-FIND("-",S15)-1)-0)) -> 0 | BZ30: =IF(OR(ISERROR(FIND("-",T15)),AH15>'export html'!$AR$7),"",IF(RIGHT(T15)<>"*",MID(T15,FIND("-",T15)+1,LEN(T15)-FIND("-",T15))-0,MID(T15,FIND("-",T15)+1,LEN(T15)-FIND("-",T15)-1)-0)) -> 5 | CA30: =IF(OR(ISERROR(FIND("-",U15)),AI15>'export html'!$AR$7),"",IF(RIGHT(U15)<>"*",MID(U15,FIND("-",U15)+1,LEN(U15)-FIND("-",U15))-0,MID(U15,FIND("-",U15)+1,LEN(U15)-FIND("-",U15)-1)-0)) ->  | CB30: =IF(OR(ISERROR(FIND("-",V15)),AJ15>'export html'!$AR$7),"",IF(RIGHT(V15)<>"*",MID(V15,FIND("-",V15)+1,LEN(V15)-FIND("-",V15))-0,MID(V15,FIND("-",V15)+1,LEN(V15)-FIND("-",V15)-1)-0)) ->  | CC30: =IF(OR(ISERROR(FIND("-",W15)),AK15>'export html'!$AR$7),"",IF(RIGHT(W15)<>"*",MID(W15,FIND("-",W15)+1,LEN(W15)-FIND("-",W15))-0,MID(W15,FIND("-",W15)+1,LEN(W15)-FIND("-",W15)-1)-0)) ->  | CD30: =IF(OR(ISERROR(FIND("-",X15)),AL15>'export html'!$AR$7),"",IF(RIGHT(X15)<>"*",MID(X15,FIND("-",X15)+1,LEN(X15)-FIND("-",X15))-0,MID(X15,FIND("-",X15)+1,LEN(X15)-FIND("-",X15)-1)-0)) ->  | CE30: =IF(OR(ISERROR(FIND("-",Y15)),AM15>'export html'!$AR$7),"",IF(RIGHT(Y15)<>"*",MID(Y15,FIND("-",Y15)+1,LEN(Y15)-FIND("-",Y15))-0,MID(Y15,FIND("-",Y15)+1,LEN(Y15)-FIND("-",Y15)-1)-0)) -> 1 | CF30: =IF(OR(ISERROR(FIND("-",Z15)),AN15>'export html'!$AR$7),"",IF(RIGHT(Z15)<>"*",MID(Z15,FIND("-",Z15)+1,LEN(Z15)-FIND("-",Z15))-0,MID(Z15,FIND("-",Z15)+1,LEN(Z15)-FIND("-",Z15)-1)-0)) ->  | CH30: =IF(OR(ISERROR(FIND("-",AB15)),AP15>'export html'!$AR$7),"",IF(RIGHT(AB15)<>"*",MID(AB15,FIND("-",AB15)+1,LEN(AB15)-FIND("-",AB15))-0,MID(AB15,FIND("-",AB15)+1,LEN(AB15)-FIND("-",AB15)-1)-0)) ->  | CI30: =IF(OR(ISERROR(FIND("-",AC15)),AQ15>'export html'!$AR$7),"",IF(RIGHT(AC15)<>"*",MID(AC15,FIND("-",AC15)+1,LEN(AC15)-FIND("-",AC15))-0,MID(AC15,FIND("-",AC15)+1,LEN(AC15)-FIND("-",AC15)-1)-0)) ->  | CJ30: =IF(OR(ISERROR(FIND("-",AD15)),AR15>'export html'!$AR$7),"",IF(RIGHT(AD15)<>"*",MID(AD15,FIND("-",AD15)+1,LEN(AD15)-FIND("-",AD15))-0,MID(AD15,FIND("-",AD15)+1,LEN(AD15)-FIND("-",AD15)-1)-0)) ->  | CK30: 11 | CL30: =IF(OR(ISERROR(FIND("-",Q15)),AE15<='export html'!$AR$7),"",IF(RIGHT(Q15)<>"*",MID(Q15,FIND("-",Q15)+1,LEN(Q15)-FIND("-",Q15))-0,MID(Q15,FIND("-",Q15)+1,LEN(Q15)-FIND("-",Q15)-1)-0)) ->  | CM30: =IF(OR(ISERROR(FIND("-",R15)),AF15<='export html'!$AR$7),"",IF(RIGHT(R15)<>"*",MID(R15,FIND("-",R15)+1,LEN(R15)-FIND("-",R15))-0,MID(R15,FIND("-",R15)+1,LEN(R15)-FIND("-",R15)-1)-0)) ->  | CN30: =IF(OR(ISERROR(FIND("-",S15)),AG15<='export html'!$AR$7),"",IF(RIGHT(S15)<>"*",MID(S15,FIND("-",S15)+1,LEN(S15)-FIND("-",S15))-0,MID(S15,FIND("-",S15)+1,LEN(S15)-FIND("-",S15)-1)-0)) ->  | CO30: =IF(OR(ISERROR(FIND("-",T15)),AH15<='export html'!$AR$7),"",IF(RIGHT(T15)<>"*",MID(T15,FIND("-",T15)+1,LEN(T15)-FIND("-",T15))-0,MID(T15,FIND("-",T15)+1,LEN(T15)-FIND("-",T15)-1)-0)) ->  | CP30: =IF(OR(ISERROR(FIND("-",U15)),AI15<='export html'!$AR$7),"",IF(RIGHT(U15)<>"*",MID(U15,FIND("-",U15)+1,LEN(U15)-FIND("-",U15))-0,MID(U15,FIND("-",U15)+1,LEN(U15)-FIND("-",U15)-1)-0)) ->  | CQ30: =IF(OR(ISERROR(FIND("-",V15)),AJ15<='export html'!$AR$7),"",IF(RIGHT(V15)<>"*",MID(V15,FIND("-",V15)+1,LEN(V15)-FIND("-",V15))-0,MID(V15,FIND("-",V15)+1,LEN(V15)-FIND("-",V15)-1)-0)) ->  | CR30: =IF(OR(ISERROR(FIND("-",W15)),AK15<='export html'!$AR$7),"",IF(RIGHT(W15)<>"*",MID(W15,FIND("-",W15)+1,LEN(W15)-FIND("-",W15))-0,MID(W15,FIND("-",W15)+1,LEN(W15)-FIND("-",W15)-1)-0)) ->  | CS30: =IF(OR(ISERROR(FIND("-",X15)),AL15<='export html'!$AR$7),"",IF(RIGHT(X15)<>"*",MID(X15,FIND("-",X15)+1,LEN(X15)-FIND("-",X15))-0,MID(X15,FIND("-",X15)+1,LEN(X15)-FIND("-",X15)-1)-0)) ->  | CT30: =IF(OR(ISERROR(FIND("-",Y15)),AM15<='export html'!$AR$7),"",IF(RIGHT(Y15)<>"*",MID(Y15,FIND("-",Y15)+1,LEN(Y15)-FIND("-",Y15))-0,MID(Y15,FIND("-",Y15)+1,LEN(Y15)-FIND("-",Y15)-1)-0)) ->  | CU30: =IF(OR(ISERROR(FIND("-",Z15)),AN15<='export html'!$AR$7),"",IF(RIGHT(Z15)<>"*",MID(Z15,FIND("-",Z15)+1,LEN(Z15)-FIND("-",Z15))-0,MID(Z15,FIND("-",Z15)+1,LEN(Z15)-FIND("-",Z15)-1)-0)) ->  | CW30: =IF(OR(ISERROR(FIND("-",AB15)),AP15<='export html'!$AR$7),"",IF(RIGHT(AB15)<>"*",MID(AB15,FIND("-",AB15)+1,LEN(AB15)-FIND("-",AB15))-0,MID(AB15,FIND("-",AB15)+1,LEN(AB15)-FIND("-",AB15)-1)-0)) ->  | CX30: =IF(OR(ISERROR(FIND("-",AC15)),AQ15<='export html'!$AR$7),"",IF(RIGHT(AC15)<>"*",MID(AC15,FIND("-",AC15)+1,LEN(AC15)-FIND("-",AC15))-0,MID(AC15,FIND("-",AC15)+1,LEN(AC15)-FIND("-",AC15)-1)-0)) ->  | CY30: =IF(OR(ISERROR(FIND("-",AD15)),AR15<='export html'!$AR$7),"",IF(RIGHT(AD15)<>"*",MID(AD15,FIND("-",AD15)+1,LEN(AD15)-FIND("-",AD15))-0,MID(AD15,FIND("-",AD15)+1,LEN(AD15)-FIND("-",AD15)-1)-0)) ->  | CZ30: 11
D31: ='export html'!C2 -> Matchen van speeldag 6 | F31: 6 | BV31: 12 | BW31: =IF(OR(ISERROR(FIND("-",Q16)),AE16>'export html'!$AR$7),"",IF(RIGHT(Q16)<>"*",MID(Q16,FIND("-",Q16)+1,LEN(Q16)-FIND("-",Q16))-0,MID(Q16,FIND("-",Q16)+1,LEN(Q16)-FIND("-",Q16)-1)-0)) ->  | BX31: =IF(OR(ISERROR(FIND("-",R16)),AF16>'export html'!$AR$7),"",IF(RIGHT(R16)<>"*",MID(R16,FIND("-",R16)+1,LEN(R16)-FIND("-",R16))-0,MID(R16,FIND("-",R16)+1,LEN(R16)-FIND("-",R16)-1)-0)) ->  | BY31: =IF(OR(ISERROR(FIND("-",S16)),AG16>'export html'!$AR$7),"",IF(RIGHT(S16)<>"*",MID(S16,FIND("-",S16)+1,LEN(S16)-FIND("-",S16))-0,MID(S16,FIND("-",S16)+1,LEN(S16)-FIND("-",S16)-1)-0)) ->  | BZ31: =IF(OR(ISERROR(FIND("-",T16)),AH16>'export html'!$AR$7),"",IF(RIGHT(T16)<>"*",MID(T16,FIND("-",T16)+1,LEN(T16)-FIND("-",T16))-0,MID(T16,FIND("-",T16)+1,LEN(T16)-FIND("-",T16)-1)-0)) ->  | CA31: =IF(OR(ISERROR(FIND("-",U16)),AI16>'export html'!$AR$7),"",IF(RIGHT(U16)<>"*",MID(U16,FIND("-",U16)+1,LEN(U16)-FIND("-",U16))-0,MID(U16,FIND("-",U16)+1,LEN(U16)-FIND("-",U16)-1)-0)) ->  | CB31: =IF(OR(ISERROR(FIND("-",V16)),AJ16>'export html'!$AR$7),"",IF(RIGHT(V16)<>"*",MID(V16,FIND("-",V16)+1,LEN(V16)-FIND("-",V16))-0,MID(V16,FIND("-",V16)+1,LEN(V16)-FIND("-",V16)-1)-0)) -> 3 | CC31: =IF(OR(ISERROR(FIND("-",W16)),AK16>'export html'!$AR$7),"",IF(RIGHT(W16)<>"*",MID(W16,FIND("-",W16)+1,LEN(W16)-FIND("-",W16))-0,MID(W16,FIND("-",W16)+1,LEN(W16)-FIND("-",W16)-1)-0)) -> 2 | CD31: =IF(OR(ISERROR(FIND("-",X16)),AL16>'export html'!$AR$7),"",IF(RIGHT(X16)<>"*",MID(X16,FIND("-",X16)+1,LEN(X16)-FIND("-",X16))-0,MID(X16,FIND("-",X16)+1,LEN(X16)-FIND("-",X16)-1)-0)) ->  | CE31: =IF(OR(ISERROR(FIND("-",Y16)),AM16>'export html'!$AR$7),"",IF(RIGHT(Y16)<>"*",MID(Y16,FIND("-",Y16)+1,LEN(Y16)-FIND("-",Y16))-0,MID(Y16,FIND("-",Y16)+1,LEN(Y16)-FIND("-",Y16)-1)-0)) ->  | CF31: =IF(OR(ISERROR(FIND("-",Z16)),AN16>'export html'!$AR$7),"",IF(RIGHT(Z16)<>"*",MID(Z16,FIND("-",Z16)+1,LEN(Z16)-FIND("-",Z16))-0,MID(Z16,FIND("-",Z16)+1,LEN(Z16)-FIND("-",Z16)-1)-0)) ->  | CG31: =IF(OR(ISERROR(FIND("-",AA16)),AO16>'export html'!$AR$7),"",IF(RIGHT(AA16)<>"*",MID(AA16,FIND("-",AA16)+1,LEN(AA16)-FIND("-",AA16))-0,MID(AA16,FIND("-",AA16)+1,LEN(AA16)-FIND("-",AA16)-1)-0)) ->  | CI31: =IF(OR(ISERROR(FIND("-",AC16)),AQ16>'export html'!$AR$7),"",IF(RIGHT(AC16)<>"*",MID(AC16,FIND("-",AC16)+1,LEN(AC16)-FIND("-",AC16))-0,MID(AC16,FIND("-",AC16)+1,LEN(AC16)-FIND("-",AC16)-1)-0)) -> 3 | CJ31: =IF(OR(ISERROR(FIND("-",AD16)),AR16>'export html'!$AR$7),"",IF(RIGHT(AD16)<>"*",MID(AD16,FIND("-",AD16)+1,LEN(AD16)-FIND("-",AD16))-0,MID(AD16,FIND("-",AD16)+1,LEN(AD16)-FIND("-",AD16)-1)-0)) ->  | CK31: 12 | CL31: =IF(OR(ISERROR(FIND("-",Q16)),AE16<='export html'!$AR$7),"",IF(RIGHT(Q16)<>"*",MID(Q16,FIND("-",Q16)+1,LEN(Q16)-FIND("-",Q16))-0,MID(Q16,FIND("-",Q16)+1,LEN(Q16)-FIND("-",Q16)-1)-0)) ->  | CM31: =IF(OR(ISERROR(FIND("-",R16)),AF16<='export html'!$AR$7),"",IF(RIGHT(R16)<>"*",MID(R16,FIND("-",R16)+1,LEN(R16)-FIND("-",R16))-0,MID(R16,FIND("-",R16)+1,LEN(R16)-FIND("-",R16)-1)-0)) ->  | CN31: =IF(OR(ISERROR(FIND("-",S16)),AG16<='export html'!$AR$7),"",IF(RIGHT(S16)<>"*",MID(S16,FIND("-",S16)+1,LEN(S16)-FIND("-",S16))-0,MID(S16,FIND("-",S16)+1,LEN(S16)-FIND("-",S16)-1)-0)) ->  | CO31: =IF(OR(ISERROR(FIND("-",T16)),AH16<='export html'!$AR$7),"",IF(RIGHT(T16)<>"*",MID(T16,FIND("-",T16)+1,LEN(T16)-FIND("-",T16))-0,MID(T16,FIND("-",T16)+1,LEN(T16)-FIND("-",T16)-1)-0)) ->  | CP31: =IF(OR(ISERROR(FIND("-",U16)),AI16<='export html'!$AR$7),"",IF(RIGHT(U16)<>"*",MID(U16,FIND("-",U16)+1,LEN(U16)-FIND("-",U16))-0,MID(U16,FIND("-",U16)+1,LEN(U16)-FIND("-",U16)-1)-0)) ->  | CQ31: =IF(OR(ISERROR(FIND("-",V16)),AJ16<='export html'!$AR$7),"",IF(RIGHT(V16)<>"*",MID(V16,FIND("-",V16)+1,LEN(V16)-FIND("-",V16))-0,MID(V16,FIND("-",V16)+1,LEN(V16)-FIND("-",V16)-1)-0)) ->  | CR31: =IF(OR(ISERROR(FIND("-",W16)),AK16<='export html'!$AR$7),"",IF(RIGHT(W16)<>"*",MID(W16,FIND("-",W16)+1,LEN(W16)-FIND("-",W16))-0,MID(W16,FIND("-",W16)+1,LEN(W16)-FIND("-",W16)-1)-0)) ->  | CS31: =IF(OR(ISERROR(FIND("-",X16)),AL16<='export html'!$AR$7),"",IF(RIGHT(X16)<>"*",MID(X16,FIND("-",X16)+1,LEN(X16)-FIND("-",X16))-0,MID(X16,FIND("-",X16)+1,LEN(X16)-FIND("-",X16)-1)-0)) ->  | CT31: =IF(OR(ISERROR(FIND("-",Y16)),AM16<='export html'!$AR$7),"",IF(RIGHT(Y16)<>"*",MID(Y16,FIND("-",Y16)+1,LEN(Y16)-FIND("-",Y16))-0,MID(Y16,FIND("-",Y16)+1,LEN(Y16)-FIND("-",Y16)-1)-0)) ->  | CU31: =IF(OR(ISERROR(FIND("-",Z16)),AN16<='export html'!$AR$7),"",IF(RIGHT(Z16)<>"*",MID(Z16,FIND("-",Z16)+1,LEN(Z16)-FIND("-",Z16))-0,MID(Z16,FIND("-",Z16)+1,LEN(Z16)-FIND("-",Z16)-1)-0)) ->  | CV31: =IF(OR(ISERROR(FIND("-",AA16)),AO16<='export html'!$AR$7),"",IF(RIGHT(AA16)<>"*",MID(AA16,FIND("-",AA16)+1,LEN(AA16)-FIND("-",AA16))-0,MID(AA16,FIND("-",AA16)+1,LEN(AA16)-FIND("-",AA16)-1)-0)) ->  | CX31: =IF(OR(ISERROR(FIND("-",AC16)),AQ16<='export html'!$AR$7),"",IF(RIGHT(AC16)<>"*",MID(AC16,FIND("-",AC16)+1,LEN(AC16)-FIND("-",AC16))-0,MID(AC16,FIND("-",AC16)+1,LEN(AC16)-FIND("-",AC16)-1)-0)) ->  | CY31: =IF(OR(ISERROR(FIND("-",AD16)),AR16<='export html'!$AR$7),"",IF(RIGHT(AD16)<>"*",MID(AD16,FIND("-",AD16)+1,LEN(AD16)-FIND("-",AD16))-0,MID(AD16,FIND("-",AD16)+1,LEN(AD16)-FIND("-",AD16)-1)-0)) ->  | CZ31: 12
BV32: 13 | BW32: =IF(OR(ISERROR(FIND("-",Q17)),AE17>'export html'!$AR$7),"",IF(RIGHT(Q17)<>"*",MID(Q17,FIND("-",Q17)+1,LEN(Q17)-FIND("-",Q17))-0,MID(Q17,FIND("-",Q17)+1,LEN(Q17)-FIND("-",Q17)-1)-0)) ->  | BX32: =IF(OR(ISERROR(FIND("-",R17)),AF17>'export html'!$AR$7),"",IF(RIGHT(R17)<>"*",MID(R17,FIND("-",R17)+1,LEN(R17)-FIND("-",R17))-0,MID(R17,FIND("-",R17)+1,LEN(R17)-FIND("-",R17)-1)-0)) ->  | BY32: =IF(OR(ISERROR(FIND("-",S17)),AG17>'export html'!$AR$7),"",IF(RIGHT(S17)<>"*",MID(S17,FIND("-",S17)+1,LEN(S17)-FIND("-",S17))-0,MID(S17,FIND("-",S17)+1,LEN(S17)-FIND("-",S17)-1)-0)) ->  | BZ32: =IF(OR(ISERROR(FIND("-",T17)),AH17>'export html'!$AR$7),"",IF(RIGHT(T17)<>"*",MID(T17,FIND("-",T17)+1,LEN(T17)-FIND("-",T17))-0,MID(T17,FIND("-",T17)+1,LEN(T17)-FIND("-",T17)-1)-0)) -> 1 | CA32: =IF(OR(ISERROR(FIND("-",U17)),AI17>'export html'!$AR$7),"",IF(RIGHT(U17)<>"*",MID(U17,FIND("-",U17)+1,LEN(U17)-FIND("-",U17))-0,MID(U17,FIND("-",U17)+1,LEN(U17)-FIND("-",U17)-1)-0)) -> 3 | CB32: =IF(OR(ISERROR(FIND("-",V17)),AJ17>'export html'!$AR$7),"",IF(RIGHT(V17)<>"*",MID(V17,FIND("-",V17)+1,LEN(V17)-FIND("-",V17))-0,MID(V17,FIND("-",V17)+1,LEN(V17)-FIND("-",V17)-1)-0)) ->  | CC32: =IF(OR(ISERROR(FIND("-",W17)),AK17>'export html'!$AR$7),"",IF(RIGHT(W17)<>"*",MID(W17,FIND("-",W17)+1,LEN(W17)-FIND("-",W17))-0,MID(W17,FIND("-",W17)+1,LEN(W17)-FIND("-",W17)-1)-0)) ->  | CD32: =IF(OR(ISERROR(FIND("-",X17)),AL17>'export html'!$AR$7),"",IF(RIGHT(X17)<>"*",MID(X17,FIND("-",X17)+1,LEN(X17)-FIND("-",X17))-0,MID(X17,FIND("-",X17)+1,LEN(X17)-FIND("-",X17)-1)-0)) ->  | CE32: =IF(OR(ISERROR(FIND("-",Y17)),AM17>'export html'!$AR$7),"",IF(RIGHT(Y17)<>"*",MID(Y17,FIND("-",Y17)+1,LEN(Y17)-FIND("-",Y17))-0,MID(Y17,FIND("-",Y17)+1,LEN(Y17)-FIND("-",Y17)-1)-0)) ->  | CF32: =IF(OR(ISERROR(FIND("-",Z17)),AN17>'export html'!$AR$7),"",IF(RIGHT(Z17)<>"*",MID(Z17,FIND("-",Z17)+1,LEN(Z17)-FIND("-",Z17))-0,MID(Z17,FIND("-",Z17)+1,LEN(Z17)-FIND("-",Z17)-1)-0)) -> 1 | CG32: =IF(OR(ISERROR(FIND("-",AA17)),AO17>'export html'!$AR$7),"",IF(RIGHT(AA17)<>"*",MID(AA17,FIND("-",AA17)+1,LEN(AA17)-FIND("-",AA17))-0,MID(AA17,FIND("-",AA17)+1,LEN(AA17)-FIND("-",AA17)-1)-0)) ->  | CH32: =IF(OR(ISERROR(FIND("-",AB17)),AP17>'export html'!$AR$7),"",IF(RIGHT(AB17)<>"*",MID(AB17,FIND("-",AB17)+1,LEN(AB17)-FIND("-",AB17))-0,MID(AB17,FIND("-",AB17)+1,LEN(AB17)-FIND("-",AB17)-1)-0)) ->  | CJ32: =IF(OR(ISERROR(FIND("-",AD17)),AR17>'export html'!$AR$7),"",IF(RIGHT(AD17)<>"*",MID(AD17,FIND("-",AD17)+1,LEN(AD17)-FIND("-",AD17))-0,MID(AD17,FIND("-",AD17)+1,LEN(AD17)-FIND("-",AD17)-1)-0)) ->  | CK32: 13 | CL32: =IF(OR(ISERROR(FIND("-",Q17)),AE17<='export html'!$AR$7),"",IF(RIGHT(Q17)<>"*",MID(Q17,FIND("-",Q17)+1,LEN(Q17)-FIND("-",Q17))-0,MID(Q17,FIND("-",Q17)+1,LEN(Q17)-FIND("-",Q17)-1)-0)) ->  | CM32: =IF(OR(ISERROR(FIND("-",R17)),AF17<='export html'!$AR$7),"",IF(RIGHT(R17)<>"*",MID(R17,FIND("-",R17)+1,LEN(R17)-FIND("-",R17))-0,MID(R17,FIND("-",R17)+1,LEN(R17)-FIND("-",R17)-1)-0)) ->  | CN32: =IF(OR(ISERROR(FIND("-",S17)),AG17<='export html'!$AR$7),"",IF(RIGHT(S17)<>"*",MID(S17,FIND("-",S17)+1,LEN(S17)-FIND("-",S17))-0,MID(S17,FIND("-",S17)+1,LEN(S17)-FIND("-",S17)-1)-0)) ->  | CO32: =IF(OR(ISERROR(FIND("-",T17)),AH17<='export html'!$AR$7),"",IF(RIGHT(T17)<>"*",MID(T17,FIND("-",T17)+1,LEN(T17)-FIND("-",T17))-0,MID(T17,FIND("-",T17)+1,LEN(T17)-FIND("-",T17)-1)-0)) ->  | CP32: =IF(OR(ISERROR(FIND("-",U17)),AI17<='export html'!$AR$7),"",IF(RIGHT(U17)<>"*",MID(U17,FIND("-",U17)+1,LEN(U17)-FIND("-",U17))-0,MID(U17,FIND("-",U17)+1,LEN(U17)-FIND("-",U17)-1)-0)) ->  | CQ32: =IF(OR(ISERROR(FIND("-",V17)),AJ17<='export html'!$AR$7),"",IF(RIGHT(V17)<>"*",MID(V17,FIND("-",V17)+1,LEN(V17)-FIND("-",V17))-0,MID(V17,FIND("-",V17)+1,LEN(V17)-FIND("-",V17)-1)-0)) ->  | CR32: =IF(OR(ISERROR(FIND("-",W17)),AK17<='export html'!$AR$7),"",IF(RIGHT(W17)<>"*",MID(W17,FIND("-",W17)+1,LEN(W17)-FIND("-",W17))-0,MID(W17,FIND("-",W17)+1,LEN(W17)-FIND("-",W17)-1)-0)) ->  | CS32: =IF(OR(ISERROR(FIND("-",X17)),AL17<='export html'!$AR$7),"",IF(RIGHT(X17)<>"*",MID(X17,FIND("-",X17)+1,LEN(X17)-FIND("-",X17))-0,MID(X17,FIND("-",X17)+1,LEN(X17)-FIND("-",X17)-1)-0)) ->  | CT32: =IF(OR(ISERROR(FIND("-",Y17)),AM17<='export html'!$AR$7),"",IF(RIGHT(Y17)<>"*",MID(Y17,FIND("-",Y17)+1,LEN(Y17)-FIND("-",Y17))-0,MID(Y17,FIND("-",Y17)+1,LEN(Y17)-FIND("-",Y17)-1)-0)) ->  | CU32: =IF(OR(ISERROR(FIND("-",Z17)),AN17<='export html'!$AR$7),"",IF(RIGHT(Z17)<>"*",MID(Z17,FIND("-",Z17)+1,LEN(Z17)-FIND("-",Z17))-0,MID(Z17,FIND("-",Z17)+1,LEN(Z17)-FIND("-",Z17)-1)-0)) ->  | CV32: =IF(OR(ISERROR(FIND("-",AA17)),AO17<='export html'!$AR$7),"",IF(RIGHT(AA17)<>"*",MID(AA17,FIND("-",AA17)+1,LEN(AA17)-FIND("-",AA17))-0,MID(AA17,FIND("-",AA17)+1,LEN(AA17)-FIND("-",AA17)-1)-0)) ->  | CW32: =IF(OR(ISERROR(FIND("-",AB17)),AP17<='export html'!$AR$7),"",IF(RIGHT(AB17)<>"*",MID(AB17,FIND("-",AB17)+1,LEN(AB17)-FIND("-",AB17))-0,MID(AB17,FIND("-",AB17)+1,LEN(AB17)-FIND("-",AB17)-1)-0)) ->  | CY32: =IF(OR(ISERROR(FIND("-",AD17)),AR17<='export html'!$AR$7),"",IF(RIGHT(AD17)<>"*",MID(AD17,FIND("-",AD17)+1,LEN(AD17)-FIND("-",AD17))-0,MID(AD17,FIND("-",AD17)+1,LEN(AD17)-FIND("-",AD17)-1)-0)) ->  | CZ32: 13
D33: =IF('export html'!A3="","",'export html'!A3) -> 2024-10-05 | E33: =IF('export html'!B3="","",'export html'!B3) -> 6 | F33: =IF('export html'!C3="","",'export html'!C3) -> SC Duffel - Bariton | N33: =IF('export html'!D3="","",'export html'!D3) -> 1-1 | BV33: 14 | BW33: =IF(OR(ISERROR(FIND("-",Q18)),AE18>'export html'!$AR$7),"",IF(RIGHT(Q18)<>"*",MID(Q18,FIND("-",Q18)+1,LEN(Q18)-FIND("-",Q18))-0,MID(Q18,FIND("-",Q18)+1,LEN(Q18)-FIND("-",Q18)-1)-0)) ->  | BX33: =IF(OR(ISERROR(FIND("-",R18)),AF18>'export html'!$AR$7),"",IF(RIGHT(R18)<>"*",MID(R18,FIND("-",R18)+1,LEN(R18)-FIND("-",R18))-0,MID(R18,FIND("-",R18)+1,LEN(R18)-FIND("-",R18)-1)-0)) ->  | BY33: =IF(OR(ISERROR(FIND("-",S18)),AG18>'export html'!$AR$7),"",IF(RIGHT(S18)<>"*",MID(S18,FIND("-",S18)+1,LEN(S18)-FIND("-",S18))-0,MID(S18,FIND("-",S18)+1,LEN(S18)-FIND("-",S18)-1)-0)) ->  | BZ33: =IF(OR(ISERROR(FIND("-",T18)),AH18>'export html'!$AR$7),"",IF(RIGHT(T18)<>"*",MID(T18,FIND("-",T18)+1,LEN(T18)-FIND("-",T18))-0,MID(T18,FIND("-",T18)+1,LEN(T18)-FIND("-",T18)-1)-0)) ->  | CA33: =IF(OR(ISERROR(FIND("-",U18)),AI18>'export html'!$AR$7),"",IF(RIGHT(U18)<>"*",MID(U18,FIND("-",U18)+1,LEN(U18)-FIND("-",U18))-0,MID(U18,FIND("-",U18)+1,LEN(U18)-FIND("-",U18)-1)-0)) ->  | CB33: =IF(OR(ISERROR(FIND("-",V18)),AJ18>'export html'!$AR$7),"",IF(RIGHT(V18)<>"*",MID(V18,FIND("-",V18)+1,LEN(V18)-FIND("-",V18))-0,MID(V18,FIND("-",V18)+1,LEN(V18)-FIND("-",V18)-1)-0)) ->  | CC33: =IF(OR(ISERROR(FIND("-",W18)),AK18>'export html'!$AR$7),"",IF(RIGHT(W18)<>"*",MID(W18,FIND("-",W18)+1,LEN(W18)-FIND("-",W18))-0,MID(W18,FIND("-",W18)+1,LEN(W18)-FIND("-",W18)-1)-0)) -> 3 | CD33: =IF(OR(ISERROR(FIND("-",X18)),AL18>'export html'!$AR$7),"",IF(RIGHT(X18)<>"*",MID(X18,FIND("-",X18)+1,LEN(X18)-FIND("-",X18))-0,MID(X18,FIND("-",X18)+1,LEN(X18)-FIND("-",X18)-1)-0)) ->  | CE33: =IF(OR(ISERROR(FIND("-",Y18)),AM18>'export html'!$AR$7),"",IF(RIGHT(Y18)<>"*",MID(Y18,FIND("-",Y18)+1,LEN(Y18)-FIND("-",Y18))-0,MID(Y18,FIND("-",Y18)+1,LEN(Y18)-FIND("-",Y18)-1)-0)) ->  | CF33: =IF(OR(ISERROR(FIND("-",Z18)),AN18>'export html'!$AR$7),"",IF(RIGHT(Z18)<>"*",MID(Z18,FIND("-",Z18)+1,LEN(Z18)-FIND("-",Z18))-0,MID(Z18,FIND("-",Z18)+1,LEN(Z18)-FIND("-",Z18)-1)-0)) ->  | CG33: =IF(OR(ISERROR(FIND("-",AA18)),AO18>'export html'!$AR$7),"",IF(RIGHT(AA18)<>"*",MID(AA18,FIND("-",AA18)+1,LEN(AA18)-FIND("-",AA18))-0,MID(AA18,FIND("-",AA18)+1,LEN(AA18)-FIND("-",AA18)-1)-0)) -> 2 | CH33: =IF(OR(ISERROR(FIND("-",AB18)),AP18>'export html'!$AR$7),"",IF(RIGHT(AB18)<>"*",MID(AB18,FIND("-",AB18)+1,LEN(AB18)-FIND("-",AB18))-0,MID(AB18,FIND("-",AB18)+1,LEN(AB18)-FIND("-",AB18)-1)-0)) ->  | CI33: =IF(OR(ISERROR(FIND("-",AC18)),AQ18>'export html'!$AR$7),"",IF(RIGHT(AC18)<>"*",MID(AC18,FIND("-",AC18)+1,LEN(AC18)-FIND("-",AC18))-0,MID(AC18,FIND("-",AC18)+1,LEN(AC18)-FIND("-",AC18)-1)-0)) -> 1 | CK33: 14 | CL33: =IF(OR(ISERROR(FIND("-",Q18)),AE18<='export html'!$AR$7),"",IF(RIGHT(Q18)<>"*",MID(Q18,FIND("-",Q18)+1,LEN(Q18)-FIND("-",Q18))-0,MID(Q18,FIND("-",Q18)+1,LEN(Q18)-FIND("-",Q18)-1)-0)) ->  | CM33: =IF(OR(ISERROR(FIND("-",R18)),AF18<='export html'!$AR$7),"",IF(RIGHT(R18)<>"*",MID(R18,FIND("-",R18)+1,LEN(R18)-FIND("-",R18))-0,MID(R18,FIND("-",R18)+1,LEN(R18)-FIND("-",R18)-1)-0)) ->  | CN33: =IF(OR(ISERROR(FIND("-",S18)),AG18<='export html'!$AR$7),"",IF(RIGHT(S18)<>"*",MID(S18,FIND("-",S18)+1,LEN(S18)-FIND("-",S18))-0,MID(S18,FIND("-",S18)+1,LEN(S18)-FIND("-",S18)-1)-0)) ->  | CO33: =IF(OR(ISERROR(FIND("-",T18)),AH18<='export html'!$AR$7),"",IF(RIGHT(T18)<>"*",MID(T18,FIND("-",T18)+1,LEN(T18)-FIND("-",T18))-0,MID(T18,FIND("-",T18)+1,LEN(T18)-FIND("-",T18)-1)-0)) ->  | CP33: =IF(OR(ISERROR(FIND("-",U18)),AI18<='export html'!$AR$7),"",IF(RIGHT(U18)<>"*",MID(U18,FIND("-",U18)+1,LEN(U18)-FIND("-",U18))-0,MID(U18,FIND("-",U18)+1,LEN(U18)-FIND("-",U18)-1)-0)) ->  | CQ33: =IF(OR(ISERROR(FIND("-",V18)),AJ18<='export html'!$AR$7),"",IF(RIGHT(V18)<>"*",MID(V18,FIND("-",V18)+1,LEN(V18)-FIND("-",V18))-0,MID(V18,FIND("-",V18)+1,LEN(V18)-FIND("-",V18)-1)-0)) ->  | CR33: =IF(OR(ISERROR(FIND("-",W18)),AK18<='export html'!$AR$7),"",IF(RIGHT(W18)<>"*",MID(W18,FIND("-",W18)+1,LEN(W18)-FIND("-",W18))-0,MID(W18,FIND("-",W18)+1,LEN(W18)-FIND("-",W18)-1)-0)) ->  | CS33: =IF(OR(ISERROR(FIND("-",X18)),AL18<='export html'!$AR$7),"",IF(RIGHT(X18)<>"*",MID(X18,FIND("-",X18)+1,LEN(X18)-FIND("-",X18))-0,MID(X18,FIND("-",X18)+1,LEN(X18)-FIND("-",X18)-1)-0)) ->  | CT33: =IF(OR(ISERROR(FIND("-",Y18)),AM18<='export html'!$AR$7),"",IF(RIGHT(Y18)<>"*",MID(Y18,FIND("-",Y18)+1,LEN(Y18)-FIND("-",Y18))-0,MID(Y18,FIND("-",Y18)+1,LEN(Y18)-FIND("-",Y18)-1)-0)) ->  | CU33: =IF(OR(ISERROR(FIND("-",Z18)),AN18<='export html'!$AR$7),"",IF(RIGHT(Z18)<>"*",MID(Z18,FIND("-",Z18)+1,LEN(Z18)-FIND("-",Z18))-0,MID(Z18,FIND("-",Z18)+1,LEN(Z18)-FIND("-",Z18)-1)-0)) ->  | CV33: =IF(OR(ISERROR(FIND("-",AA18)),AO18<='export html'!$AR$7),"",IF(RIGHT(AA18)<>"*",MID(AA18,FIND("-",AA18)+1,LEN(AA18)-FIND("-",AA18))-0,MID(AA18,FIND("-",AA18)+1,LEN(AA18)-FIND("-",AA18)-1)-0)) ->  | CW33: =IF(OR(ISERROR(FIND("-",AB18)),AP18<='export html'!$AR$7),"",IF(RIGHT(AB18)<>"*",MID(AB18,FIND("-",AB18)+1,LEN(AB18)-FIND("-",AB18))-0,MID(AB18,FIND("-",AB18)+1,LEN(AB18)-FIND("-",AB18)-1)-0)) ->  | CX33: =IF(OR(ISERROR(FIND("-",AC18)),AQ18<='export html'!$AR$7),"",IF(RIGHT(AC18)<>"*",MID(AC18,FIND("-",AC18)+1,LEN(AC18)-FIND("-",AC18))-0,MID(AC18,FIND("-",AC18)+1,LEN(AC18)-FIND("-",AC18)-1)-0)) ->  | CZ33: 14
D34: =IF('export html'!A4="","",'export html'!A4) -> 2024-10-06 | E34: =IF('export html'!B4="","",'export html'!B4) -> 6 | F34: =IF('export html'!C4="","",'export html'!C4) -> Alberta Schilde - Antwerp Global | N34: =IF('export html'!D4="","",'export html'!D4) -> 2-0 | BW34: 1 | BX34: 2 | BY34: 3 | BZ34: 4 | CA34: 5 | CB34: 6 | CC34: 7 | CD34: 8 | CE34: 9 | CF34: 10 | CG34: 11 | CH34: 12 | CI34: 13 | CJ34: 14 | CL34: 1 | CM34: 2 | CN34: 3 | CO34: 4 | CP34: 5 | CQ34: 6 | CR34: 7 | CS34: 8 | CT34: 9 | CU34: 10 | CV34: 11 | CW34: 12 | CX34: 13 | CY34: 14
D35: =IF('export html'!A5="","",'export html'!A5) -> 2024-10-06 | E35: =IF('export html'!B5="","",'export html'!B5) -> 6 | F35: =IF('export html'!C5="","",'export html'!C5) -> Bar Patron - Jolika | N35: =IF('export html'!D5="","",'export html'!D5) -> 6-0 | BV35: 1 | BX35: =IF(OR(ISERROR(FIND("-",R5)),AF5>'export html'!$AR$7),"",IF(AND(LEFT(R5)="*",RIGHT(R5)="*"),"ff",IF(BX5>BX20,"t",IF(BX5<BX20,"u","g")))) -> t | BY35: =IF(OR(ISERROR(FIND("-",S5)),AG5>'export html'!$AR$7),"",IF(AND(LEFT(S5)="*",RIGHT(S5)="*"),"ff",IF(BY5>BY20,"t",IF(BY5<BY20,"u","g")))) ->  | BZ35: =IF(OR(ISERROR(FIND("-",T5)),AH5>'export html'!$AR$7),"",IF(AND(LEFT(T5)="*",RIGHT(T5)="*"),"ff",IF(BZ5>BZ20,"t",IF(BZ5<BZ20,"u","g")))) ->  | CA35: =IF(OR(ISERROR(FIND("-",U5)),AI5>'export html'!$AR$7),"",IF(AND(LEFT(U5)="*",RIGHT(U5)="*"),"ff",IF(CA5>CA20,"t",IF(CA5<CA20,"u","g")))) ->  | CB35: =IF(OR(ISERROR(FIND("-",V5)),AJ5>'export html'!$AR$7),"",IF(AND(LEFT(V5)="*",RIGHT(V5)="*"),"ff",IF(CB5>CB20,"t",IF(CB5<CB20,"u","g")))) ->  | CC35: =IF(OR(ISERROR(FIND("-",W5)),AK5>'export html'!$AR$7),"",IF(AND(LEFT(W5)="*",RIGHT(W5)="*"),"ff",IF(CC5>CC20,"t",IF(CC5<CC20,"u","g")))) ->  | CD35: =IF(OR(ISERROR(FIND("-",X5)),AL5>'export html'!$AR$7),"",IF(AND(LEFT(X5)="*",RIGHT(X5)="*"),"ff",IF(CD5>CD20,"t",IF(CD5<CD20,"u","g")))) ->  | CE35: =IF(OR(ISERROR(FIND("-",Y5)),AM5>'export html'!$AR$7),"",IF(AND(LEFT(Y5)="*",RIGHT(Y5)="*"),"ff",IF(CE5>CE20,"t",IF(CE5<CE20,"u","g")))) ->  | CF35: =IF(OR(ISERROR(FIND("-",Z5)),AN5>'export html'!$AR$7),"",IF(AND(LEFT(Z5)="*",RIGHT(Z5)="*"),"ff",IF(CF5>CF20,"t",IF(CF5<CF20,"u","g")))) ->  | CG35: =IF(OR(ISERROR(FIND("-",AA5)),AO5>'export html'!$AR$7),"",IF(AND(LEFT(AA5)="*",RIGHT(AA5)="*"),"ff",IF(CG5>CG20,"t",IF(CG5<CG20,"u","g")))) ->  | CH35: =IF(OR(ISERROR(FIND("-",AB5)),AP5>'export html'!$AR$7),"",IF(AND(LEFT(AB5)="*",RIGHT(AB5)="*"),"ff",IF(CH5>CH20,"t",IF(CH5<CH20,"u","g")))) -> t | CI35: =IF(OR(ISERROR(FIND("-",AC5)),AQ5>'export html'!$AR$7),"",IF(AND(LEFT(AC5)="*",RIGHT(AC5)="*"),"ff",IF(CI5>CI20,"t",IF(CI5<CI20,"u","g")))) ->  | CJ35: =IF(OR(ISERROR(FIND("-",AD5)),AR5>'export html'!$AR$7),"",IF(AND(LEFT(AD5)="*",RIGHT(AD5)="*"),"ff",IF(CJ5>CJ20,"t",IF(CJ5<CJ20,"u","g")))) -> g | CK35: 1 | CM35: =IF(OR(ISERROR(FIND("-",R5)),AF5<='export html'!$AR$7),"",IF(AND(LEFT(R5)="*",RIGHT(R5)="*"),"ff",IF(CM5>CM20,"t",IF(CM5<CM20,"u","g")))) ->  | CN35: =IF(OR(ISERROR(FIND("-",S5)),AG5<='export html'!$AR$7),"",IF(AND(LEFT(S5)="*",RIGHT(S5)="*"),"ff",IF(CN5>CN20,"t",IF(CN5<CN20,"u","g")))) ->  | CO35: =IF(OR(ISERROR(FIND("-",T5)),AH5<='export html'!$AR$7),"",IF(AND(LEFT(T5)="*",RIGHT(T5)="*"),"ff",IF(CO5>CO20,"t",IF(CO5<CO20,"u","g")))) ->  | CP35: =IF(OR(ISERROR(FIND("-",U5)),AI5<='export html'!$AR$7),"",IF(AND(LEFT(U5)="*",RIGHT(U5)="*"),"ff",IF(CP5>CP20,"t",IF(CP5<CP20,"u","g")))) ->  | CQ35: =IF(OR(ISERROR(FIND("-",V5)),AJ5<='export html'!$AR$7),"",IF(AND(LEFT(V5)="*",RIGHT(V5)="*"),"ff",IF(CQ5>CQ20,"t",IF(CQ5<CQ20,"u","g")))) ->  | CR35: =IF(OR(ISERROR(FIND("-",W5)),AK5<='export html'!$AR$7),"",IF(AND(LEFT(W5)="*",RIGHT(W5)="*"),"ff",IF(CR5>CR20,"t",IF(CR5<CR20,"u","g")))) ->  | CS35: =IF(OR(ISERROR(FIND("-",X5)),AL5<='export html'!$AR$7),"",IF(AND(LEFT(X5)="*",RIGHT(X5)="*"),"ff",IF(CS5>CS20,"t",IF(CS5<CS20,"u","g")))) ->  | CT35: =IF(OR(ISERROR(FIND("-",Y5)),AM5<='export html'!$AR$7),"",IF(AND(LEFT(Y5)="*",RIGHT(Y5)="*"),"ff",IF(CT5>CT20,"t",IF(CT5<CT20,"u","g")))) ->  | CU35: =IF(OR(ISERROR(FIND("-",Z5)),AN5<='export html'!$AR$7),"",IF(AND(LEFT(Z5)="*",RIGHT(Z5)="*"),"ff",IF(CU5>CU20,"t",IF(CU5<CU20,"u","g")))) ->  | CV35: =IF(OR(ISERROR(FIND("-",AA5)),AO5<='export html'!$AR$7),"",IF(AND(LEFT(AA5)="*",RIGHT(AA5)="*"),"ff",IF(CV5>CV20,"t",IF(CV5<CV20,"u","g")))) ->  | CW35: =IF(OR(ISERROR(FIND("-",AB5)),AP5<='export html'!$AR$7),"",IF(AND(LEFT(AB5)="*",RIGHT(AB5)="*"),"ff",IF(CW5>CW20,"t",IF(CW5<CW20,"u","g")))) ->  | CX35: =IF(OR(ISERROR(FIND("-",AC5)),AQ5<='export html'!$AR$7),"",IF(AND(LEFT(AC5)="*",RIGHT(AC5)="*"),"ff",IF(CX5>CX20,"t",IF(CX5<CX20,"u","g")))) ->  | CY35: =IF(OR(ISERROR(FIND("-",AD5)),AR5<='export html'!$AR$7),"",IF(AND(LEFT(AD5)="*",RIGHT(AD5)="*"),"ff",IF(CY5>CY20,"t",IF(CY5<CY20,"u","g")))) ->  | CZ35: 1
D36: =IF('export html'!A6="","",'export html'!A6) -> 2024-10-06 | E36: =IF('export html'!B6="","",'export html'!B6) -> 6 | F36: =IF('export html'!C6="","",'export html'!C6) -> Corum - Sint Anneke | N36: =IF('export html'!D6="","",'export html'!D6) -> 2-10 | BV36: 2 | BW36: =IF(OR(ISERROR(FIND("-",Q6)),AE6>'export html'!$AR$7),"",IF(AND(LEFT(Q6)="*",RIGHT(Q6)="*"),"ff",IF(BW6>BW21,"t",IF(BW6<BW21,"u","g")))) ->  | BY36: =IF(OR(ISERROR(FIND("-",S6)),AG6>'export html'!$AR$7),"",IF(AND(LEFT(S6)="*",RIGHT(S6)="*"),"ff",IF(BY6>BY21,"t",IF(BY6<BY21,"u","g")))) ->  | BZ36: =IF(OR(ISERROR(FIND("-",T6)),AH6>'export html'!$AR$7),"",IF(AND(LEFT(T6)="*",RIGHT(T6)="*"),"ff",IF(BZ6>BZ21,"t",IF(BZ6<BZ21,"u","g")))) ->  | CA36: =IF(OR(ISERROR(FIND("-",U6)),AI6>'export html'!$AR$7),"",IF(AND(LEFT(U6)="*",RIGHT(U6)="*"),"ff",IF(CA6>CA21,"t",IF(CA6<CA21,"u","g")))) ->  | CB36: =IF(OR(ISERROR(FIND("-",V6)),AJ6>'export html'!$AR$7),"",IF(AND(LEFT(V6)="*",RIGHT(V6)="*"),"ff",IF(CB6>CB21,"t",IF(CB6<CB21,"u","g")))) ->  | CC36: =IF(OR(ISERROR(FIND("-",W6)),AK6>'export html'!$AR$7),"",IF(AND(LEFT(W6)="*",RIGHT(W6)="*"),"ff",IF(CC6>CC21,"t",IF(CC6<CC21,"u","g")))) -> t | CD36: =IF(OR(ISERROR(FIND("-",X6)),AL6>'export html'!$AR$7),"",IF(AND(LEFT(X6)="*",RIGHT(X6)="*"),"ff",IF(CD6>CD21,"t",IF(CD6<CD21,"u","g")))) ->  | CE36: =IF(OR(ISERROR(FIND("-",Y6)),AM6>'export html'!$AR$7),"",IF(AND(LEFT(Y6)="*",RIGHT(Y6)="*"),"ff",IF(CE6>CE21,"t",IF(CE6<CE21,"u","g")))) -> t | CF36: =IF(OR(ISERROR(FIND("-",Z6)),AN6>'export html'!$AR$7),"",IF(AND(LEFT(Z6)="*",RIGHT(Z6)="*"),"ff",IF(CF6>CF21,"t",IF(CF6<CF21,"u","g")))) ->  | CG36: =IF(OR(ISERROR(FIND("-",AA6)),AO6>'export html'!$AR$7),"",IF(AND(LEFT(AA6)="*",RIGHT(AA6)="*"),"ff",IF(CG6>CG21,"t",IF(CG6<CG21,"u","g")))) -> t | CH36: =IF(OR(ISERROR(FIND("-",AB6)),AP6>'export html'!$AR$7),"",IF(AND(LEFT(AB6)="*",RIGHT(AB6)="*"),"ff",IF(CH6>CH21,"t",IF(CH6<CH21,"u","g")))) ->  | CI36: =IF(OR(ISERROR(FIND("-",AC6)),AQ6>'export html'!$AR$7),"",IF(AND(LEFT(AC6)="*",RIGHT(AC6)="*"),"ff",IF(CI6>CI21,"t",IF(CI6<CI21,"u","g")))) ->  | CJ36: =IF(OR(ISERROR(FIND("-",AD6)),AR6>'export html'!$AR$7),"",IF(AND(LEFT(AD6)="*",RIGHT(AD6)="*"),"ff",IF(CJ6>CJ21,"t",IF(CJ6<CJ21,"u","g")))) ->  | CK36: 2 | CL36: =IF(OR(ISERROR(FIND("-",Q6)),AE6<='export html'!$AR$7),"",IF(AND(LEFT(Q6)="*",RIGHT(Q6)="*"),"ff",IF(CL6>CL21,"t",IF(CL6<CL21,"u","g")))) ->  | CN36: =IF(OR(ISERROR(FIND("-",S6)),AG6<='export html'!$AR$7),"",IF(AND(LEFT(S6)="*",RIGHT(S6)="*"),"ff",IF(CN6>CN21,"t",IF(CN6<CN21,"u","g")))) ->  | CO36: =IF(OR(ISERROR(FIND("-",T6)),AH6<='export html'!$AR$7),"",IF(AND(LEFT(T6)="*",RIGHT(T6)="*"),"ff",IF(CO6>CO21,"t",IF(CO6<CO21,"u","g")))) ->  | CP36: =IF(OR(ISERROR(FIND("-",U6)),AI6<='export html'!$AR$7),"",IF(AND(LEFT(U6)="*",RIGHT(U6)="*"),"ff",IF(CP6>CP21,"t",IF(CP6<CP21,"u","g")))) ->  | CQ36: =IF(OR(ISERROR(FIND("-",V6)),AJ6<='export html'!$AR$7),"",IF(AND(LEFT(V6)="*",RIGHT(V6)="*"),"ff",IF(CQ6>CQ21,"t",IF(CQ6<CQ21,"u","g")))) ->  | CR36: =IF(OR(ISERROR(FIND("-",W6)),AK6<='export html'!$AR$7),"",IF(AND(LEFT(W6)="*",RIGHT(W6)="*"),"ff",IF(CR6>CR21,"t",IF(CR6<CR21,"u","g")))) ->  | CS36: =IF(OR(ISERROR(FIND("-",X6)),AL6<='export html'!$AR$7),"",IF(AND(LEFT(X6)="*",RIGHT(X6)="*"),"ff",IF(CS6>CS21,"t",IF(CS6<CS21,"u","g")))) ->  | CT36: =IF(OR(ISERROR(FIND("-",Y6)),AM6<='export html'!$AR$7),"",IF(AND(LEFT(Y6)="*",RIGHT(Y6)="*"),"ff",IF(CT6>CT21,"t",IF(CT6<CT21,"u","g")))) ->  | CU36: =IF(OR(ISERROR(FIND("-",Z6)),AN6<='export html'!$AR$7),"",IF(AND(LEFT(Z6)="*",RIGHT(Z6)="*"),"ff",IF(CU6>CU21,"t",IF(CU6<CU21,"u","g")))) ->  | CV36: =IF(OR(ISERROR(FIND("-",AA6)),AO6<='export html'!$AR$7),"",IF(AND(LEFT(AA6)="*",RIGHT(AA6)="*"),"ff",IF(CV6>CV21,"t",IF(CV6<CV21,"u","g")))) ->  | CW36: =IF(OR(ISERROR(FIND("-",AB6)),AP6<='export html'!$AR$7),"",IF(AND(LEFT(AB6)="*",RIGHT(AB6)="*"),"ff",IF(CW6>CW21,"t",IF(CW6<CW21,"u","g")))) ->  | CX36: =IF(OR(ISERROR(FIND("-",AC6)),AQ6<='export html'!$AR$7),"",IF(AND(LEFT(AC6)="*",RIGHT(AC6)="*"),"ff",IF(CX6>CX21,"t",IF(CX6<CX21,"u","g")))) ->  | CY36: =IF(OR(ISERROR(FIND("-",AD6)),AR6<='export html'!$AR$7),"",IF(AND(LEFT(AD6)="*",RIGHT(AD6)="*"),"ff",IF(CY6>CY21,"t",IF(CY6<CY21,"u","g")))) ->  | CZ36: 2
D37: =IF('export html'!A7="","",'export html'!A7) -> 2024-10-06 | E37: =IF('export html'!B7="","",'export html'!B7) -> 6 | F37: =IF('export html'!C7="","",'export html'!C7) -> Daltons - Lucyvo | N37: =IF('export html'!D7="","",'export html'!D7) -> 3-0 | BV37: 3 | BW37: =IF(OR(ISERROR(FIND("-",Q7)),AE7>'export html'!$AR$7),"",IF(AND(LEFT(Q7)="*",RIGHT(Q7)="*"),"ff",IF(BW7>BW22,"t",IF(BW7<BW22,"u","g")))) ->  | BX37: =IF(OR(ISERROR(FIND("-",R7)),AF7>'export html'!$AR$7),"",IF(AND(LEFT(R7)="*",RIGHT(R7)="*"),"ff",IF(BX7>BX22,"t",IF(BX7<BX22,"u","g")))) -> t | BZ37: =IF(OR(ISERROR(FIND("-",T7)),AH7>'export html'!$AR$7),"",IF(AND(LEFT(T7)="*",RIGHT(T7)="*"),"ff",IF(BZ7>BZ22,"t",IF(BZ7<BZ22,"u","g")))) ->  | CA37: =IF(OR(ISERROR(FIND("-",U7)),AI7>'export html'!$AR$7),"",IF(AND(LEFT(U7)="*",RIGHT(U7)="*"),"ff",IF(CA7>CA22,"t",IF(CA7<CA22,"u","g")))) ->  | CB37: =IF(OR(ISERROR(FIND("-",V7)),AJ7>'export html'!$AR$7),"",IF(AND(LEFT(V7)="*",RIGHT(V7)="*"),"ff",IF(CB7>CB22,"t",IF(CB7<CB22,"u","g")))) ->  | CC37: =IF(OR(ISERROR(FIND("-",W7)),AK7>'export html'!$AR$7),"",IF(AND(LEFT(W7)="*",RIGHT(W7)="*"),"ff",IF(CC7>CC22,"t",IF(CC7<CC22,"u","g")))) ->  | CD37: =IF(OR(ISERROR(FIND("-",X7)),AL7>'export html'!$AR$7),"",IF(AND(LEFT(X7)="*",RIGHT(X7)="*"),"ff",IF(CD7>CD22,"t",IF(CD7<CD22,"u","g")))) ->  | CE37: =IF(OR(ISERROR(FIND("-",Y7)),AM7>'export html'!$AR$7),"",IF(AND(LEFT(Y7)="*",RIGHT(Y7)="*"),"ff",IF(CE7>CE22,"t",IF(CE7<CE22,"u","g")))) -> t | CF37: =IF(OR(ISERROR(FIND("-",Z7)),AN7>'export html'!$AR$7),"",IF(AND(LEFT(Z7)="*",RIGHT(Z7)="*"),"ff",IF(CF7>CF22,"t",IF(CF7<CF22,"u","g")))) ->  | CG37: =IF(OR(ISERROR(FIND("-",AA7)),AO7>'export html'!$AR$7),"",IF(AND(LEFT(AA7)="*",RIGHT(AA7)="*"),"ff",IF(CG7>CG22,"t",IF(CG7<CG22,"u","g")))) ->  | CH37: =IF(OR(ISERROR(FIND("-",AB7)),AP7>'export html'!$AR$7),"",IF(AND(LEFT(AB7)="*",RIGHT(AB7)="*"),"ff",IF(CH7>CH22,"t",IF(CH7<CH22,"u","g")))) ->  | CI37: =IF(OR(ISERROR(FIND("-",AC7)),AQ7>'export html'!$AR$7),"",IF(AND(LEFT(AC7)="*",RIGHT(AC7)="*"),"ff",IF(CI7>CI22,"t",IF(CI7<CI22,"u","g")))) ->  | CJ37: =IF(OR(ISERROR(FIND("-",AD7)),AR7>'export html'!$AR$7),"",IF(AND(LEFT(AD7)="*",RIGHT(AD7)="*"),"ff",IF(CJ7>CJ22,"t",IF(CJ7<CJ22,"u","g")))) -> g | CK37: 3 | CL37: =IF(OR(ISERROR(FIND("-",Q7)),AE7<='export html'!$AR$7),"",IF(AND(LEFT(Q7)="*",RIGHT(Q7)="*"),"ff",IF(CL7>CL22,"t",IF(CL7<CL22,"u","g")))) ->  | CM37: =IF(OR(ISERROR(FIND("-",R7)),AF7<='export html'!$AR$7),"",IF(AND(LEFT(R7)="*",RIGHT(R7)="*"),"ff",IF(CM7>CM22,"t",IF(CM7<CM22,"u","g")))) ->  | CO37: =IF(OR(ISERROR(FIND("-",T7)),AH7<='export html'!$AR$7),"",IF(AND(LEFT(T7)="*",RIGHT(T7)="*"),"ff",IF(CO7>CO22,"t",IF(CO7<CO22,"u","g")))) ->  | CP37: =IF(OR(ISERROR(FIND("-",U7)),AI7<='export html'!$AR$7),"",IF(AND(LEFT(U7)="*",RIGHT(U7)="*"),"ff",IF(CP7>CP22,"t",IF(CP7<CP22,"u","g")))) ->  | CQ37: =IF(OR(ISERROR(FIND("-",V7)),AJ7<='export html'!$AR$7),"",IF(AND(LEFT(V7)="*",RIGHT(V7)="*"),"ff",IF(CQ7>CQ22,"t",IF(CQ7<CQ22,"u","g")))) ->  | CR37: =IF(OR(ISERROR(FIND("-",W7)),AK7<='export html'!$AR$7),"",IF(AND(LEFT(W7)="*",RIGHT(W7)="*"),"ff",IF(CR7>CR22,"t",IF(CR7<CR22,"u","g")))) ->  | CS37: =IF(OR(ISERROR(FIND("-",X7)),AL7<='export html'!$AR$7),"",IF(AND(LEFT(X7)="*",RIGHT(X7)="*"),"ff",IF(CS7>CS22,"t",IF(CS7<CS22,"u","g")))) ->  | CT37: =IF(OR(ISERROR(FIND("-",Y7)),AM7<='export html'!$AR$7),"",IF(AND(LEFT(Y7)="*",RIGHT(Y7)="*"),"ff",IF(CT7>CT22,"t",IF(CT7<CT22,"u","g")))) ->  | CU37: =IF(OR(ISERROR(FIND("-",Z7)),AN7<='export html'!$AR$7),"",IF(AND(LEFT(Z7)="*",RIGHT(Z7)="*"),"ff",IF(CU7>CU22,"t",IF(CU7<CU22,"u","g")))) ->  | CV37: =IF(OR(ISERROR(FIND("-",AA7)),AO7<='export html'!$AR$7),"",IF(AND(LEFT(AA7)="*",RIGHT(AA7)="*"),"ff",IF(CV7>CV22,"t",IF(CV7<CV22,"u","g")))) ->  | CW37: =IF(OR(ISERROR(FIND("-",AB7)),AP7<='export html'!$AR$7),"",IF(AND(LEFT(AB7)="*",RIGHT(AB7)="*"),"ff",IF(CW7>CW22,"t",IF(CW7<CW22,"u","g")))) ->  | CX37: =IF(OR(ISERROR(FIND("-",AC7)),AQ7<='export html'!$AR$7),"",IF(AND(LEFT(AC7)="*",RIGHT(AC7)="*"),"ff",IF(CX7>CX22,"t",IF(CX7<CX22,"u","g")))) ->  | CY37: =IF(OR(ISERROR(FIND("-",AD7)),AR7<='export html'!$AR$7),"",IF(AND(LEFT(AD7)="*",RIGHT(AD7)="*"),"ff",IF(CY7>CY22,"t",IF(CY7<CY22,"u","g")))) ->  | CZ37: 3
D38: =IF('export html'!A8="","",'export html'!A8) -> 2024-10-06 | E38: =IF('export html'!B8="","",'export html'!B8) -> 6 | F38: =IF('export html'!C8="","",'export html'!C8) -> Hombeek - Yerevan United | N38: =IF('export html'!D8="","",'export html'!D8) -> 1-1 | BV38: 4 | BW38: =IF(OR(ISERROR(FIND("-",Q8)),AE8>'export html'!$AR$7),"",IF(AND(LEFT(Q8)="*",RIGHT(Q8)="*"),"ff",IF(BW8>BW23,"t",IF(BW8<BW23,"u","g")))) -> t | BX38: =IF(OR(ISERROR(FIND("-",R8)),AF8>'export html'!$AR$7),"",IF(AND(LEFT(R8)="*",RIGHT(R8)="*"),"ff",IF(BX8>BX23,"t",IF(BX8<BX23,"u","g")))) -> u | BY38: =IF(OR(ISERROR(FIND("-",S8)),AG8>'export html'!$AR$7),"",IF(AND(LEFT(S8)="*",RIGHT(S8)="*"),"ff",IF(BY8>BY23,"t",IF(BY8<BY23,"u","g")))) -> u | CA38: =IF(OR(ISERROR(FIND("-",U8)),AI8>'export html'!$AR$7),"",IF(AND(LEFT(U8)="*",RIGHT(U8)="*"),"ff",IF(CA8>CA23,"t",IF(CA8<CA23,"u","g")))) ->  | CB38: =IF(OR(ISERROR(FIND("-",V8)),AJ8>'export html'!$AR$7),"",IF(AND(LEFT(V8)="*",RIGHT(V8)="*"),"ff",IF(CB8>CB23,"t",IF(CB8<CB23,"u","g")))) ->  | CC38: =IF(OR(ISERROR(FIND("-",W8)),AK8>'export html'!$AR$7),"",IF(AND(LEFT(W8)="*",RIGHT(W8)="*"),"ff",IF(CC8>CC23,"t",IF(CC8<CC23,"u","g")))) ->  | CD38: =IF(OR(ISERROR(FIND("-",X8)),AL8>'export html'!$AR$7),"",IF(AND(LEFT(X8)="*",RIGHT(X8)="*"),"ff",IF(CD8>CD23,"t",IF(CD8<CD23,"u","g")))) ->  | CE38: =IF(OR(ISERROR(FIND("-",Y8)),AM8>'export html'!$AR$7),"",IF(AND(LEFT(Y8)="*",RIGHT(Y8)="*"),"ff",IF(CE8>CE23,"t",IF(CE8<CE23,"u","g")))) ->  | CF38: =IF(OR(ISERROR(FIND("-",Z8)),AN8>'export html'!$AR$7),"",IF(AND(LEFT(Z8)="*",RIGHT(Z8)="*"),"ff",IF(CF8>CF23,"t",IF(CF8<CF23,"u","g")))) ->  | CG38: =IF(OR(ISERROR(FIND("-",AA8)),AO8>'export html'!$AR$7),"",IF(AND(LEFT(AA8)="*",RIGHT(AA8)="*"),"ff",IF(CG8>CG23,"t",IF(CG8<CG23,"u","g")))) ->  | CH38: =IF(OR(ISERROR(FIND("-",AB8)),AP8>'export html'!$AR$7),"",IF(AND(LEFT(AB8)="*",RIGHT(AB8)="*"),"ff",IF(CH8>CH23,"t",IF(CH8<CH23,"u","g")))) ->  | CI38: =IF(OR(ISERROR(FIND("-",AC8)),AQ8>'export html'!$AR$7),"",IF(AND(LEFT(AC8)="*",RIGHT(AC8)="*"),"ff",IF(CI8>CI23,"t",IF(CI8<CI23,"u","g")))) ->  | CJ38: =IF(OR(ISERROR(FIND("-",AD8)),AR8>'export html'!$AR$7),"",IF(AND(LEFT(AD8)="*",RIGHT(AD8)="*"),"ff",IF(CJ8>CJ23,"t",IF(CJ8<CJ23,"u","g")))) ->  | CK38: 4 | CL38: =IF(OR(ISERROR(FIND("-",Q8)),AE8<='export html'!$AR$7),"",IF(AND(LEFT(Q8)="*",RIGHT(Q8)="*"),"ff",IF(CL8>CL23,"t",IF(CL8<CL23,"u","g")))) ->  | CM38: =IF(OR(ISERROR(FIND("-",R8)),AF8<='export html'!$AR$7),"",IF(AND(LEFT(R8)="*",RIGHT(R8)="*"),"ff",IF(CM8>CM23,"t",IF(CM8<CM23,"u","g")))) ->  | CN38: =IF(OR(ISERROR(FIND("-",S8)),AG8<='export html'!$AR$7),"",IF(AND(LEFT(S8)="*",RIGHT(S8)="*"),"ff",IF(CN8>CN23,"t",IF(CN8<CN23,"u","g")))) ->  | CP38: =IF(OR(ISERROR(FIND("-",U8)),AI8<='export html'!$AR$7),"",IF(AND(LEFT(U8)="*",RIGHT(U8)="*"),"ff",IF(CP8>CP23,"t",IF(CP8<CP23,"u","g")))) ->  | CQ38: =IF(OR(ISERROR(FIND("-",V8)),AJ8<='export html'!$AR$7),"",IF(AND(LEFT(V8)="*",RIGHT(V8)="*"),"ff",IF(CQ8>CQ23,"t",IF(CQ8<CQ23,"u","g")))) ->  | CR38: =IF(OR(ISERROR(FIND("-",W8)),AK8<='export html'!$AR$7),"",IF(AND(LEFT(W8)="*",RIGHT(W8)="*"),"ff",IF(CR8>CR23,"t",IF(CR8<CR23,"u","g")))) ->  | CS38: =IF(OR(ISERROR(FIND("-",X8)),AL8<='export html'!$AR$7),"",IF(AND(LEFT(X8)="*",RIGHT(X8)="*"),"ff",IF(CS8>CS23,"t",IF(CS8<CS23,"u","g")))) ->  | CT38: =IF(OR(ISERROR(FIND("-",Y8)),AM8<='export html'!$AR$7),"",IF(AND(LEFT(Y8)="*",RIGHT(Y8)="*"),"ff",IF(CT8>CT23,"t",IF(CT8<CT23,"u","g")))) ->  | CU38: =IF(OR(ISERROR(FIND("-",Z8)),AN8<='export html'!$AR$7),"",IF(AND(LEFT(Z8)="*",RIGHT(Z8)="*"),"ff",IF(CU8>CU23,"t",IF(CU8<CU23,"u","g")))) ->  | CV38: =IF(OR(ISERROR(FIND("-",AA8)),AO8<='export html'!$AR$7),"",IF(AND(LEFT(AA8)="*",RIGHT(AA8)="*"),"ff",IF(CV8>CV23,"t",IF(CV8<CV23,"u","g")))) ->  | CW38: =IF(OR(ISERROR(FIND("-",AB8)),AP8<='export html'!$AR$7),"",IF(AND(LEFT(AB8)="*",RIGHT(AB8)="*"),"ff",IF(CW8>CW23,"t",IF(CW8<CW23,"u","g")))) ->  | CX38: =IF(OR(ISERROR(FIND("-",AC8)),AQ8<='export html'!$AR$7),"",IF(AND(LEFT(AC8)="*",RIGHT(AC8)="*"),"ff",IF(CX8>CX23,"t",IF(CX8<CX23,"u","g")))) ->  | CY38: =IF(OR(ISERROR(FIND("-",AD8)),AR8<='export html'!$AR$7),"",IF(AND(LEFT(AD8)="*",RIGHT(AD8)="*"),"ff",IF(CY8>CY23,"t",IF(CY8<CY23,"u","g")))) ->  | CZ38: 4
D39: =IF('export html'!A9="","",'export html'!A9) -> 2024-10-06 | E39: =IF('export html'!B9="","",'export html'!B9) -> 6 | F39: =IF('export html'!C9="","",'export html'!C9) -> Goka - Racing Emblem | N39: =IF('export html'!D9="","",'export html'!D9) -> 2-5 | BV39: 5 | BW39: =IF(OR(ISERROR(FIND("-",Q9)),AE9>'export html'!$AR$7),"",IF(AND(LEFT(Q9)="*",RIGHT(Q9)="*"),"ff",IF(BW9>BW24,"t",IF(BW9<BW24,"u","g")))) -> u | BX39: =IF(OR(ISERROR(FIND("-",R9)),AF9>'export html'!$AR$7),"",IF(AND(LEFT(R9)="*",RIGHT(R9)="*"),"ff",IF(BX9>BX24,"t",IF(BX9<BX24,"u","g")))) ->  | BY39: =IF(OR(ISERROR(FIND("-",S9)),AG9>'export html'!$AR$7),"",IF(AND(LEFT(S9)="*",RIGHT(S9)="*"),"ff",IF(BY9>BY24,"t",IF(BY9<BY24,"u","g")))) ->  | BZ39: =IF(OR(ISERROR(FIND("-",T9)),AH9>'export html'!$AR$7),"",IF(AND(LEFT(T9)="*",RIGHT(T9)="*"),"ff",IF(BZ9>BZ24,"t",IF(BZ9<BZ24,"u","g")))) ->  | CB39: =IF(OR(ISERROR(FIND("-",V9)),AJ9>'export html'!$AR$7),"",IF(AND(LEFT(V9)="*",RIGHT(V9)="*"),"ff",IF(CB9>CB24,"t",IF(CB9<CB24,"u","g")))) ->  | CC39: =IF(OR(ISERROR(FIND("-",W9)),AK9>'export html'!$AR$7),"",IF(AND(LEFT(W9)="*",RIGHT(W9)="*"),"ff",IF(CC9>CC24,"t",IF(CC9<CC24,"u","g")))) ->  | CD39: =IF(OR(ISERROR(FIND("-",X9)),AL9>'export html'!$AR$7),"",IF(AND(LEFT(X9)="*",RIGHT(X9)="*"),"ff",IF(CD9>CD24,"t",IF(CD9<CD24,"u","g")))) -> u | CE39: =IF(OR(ISERROR(FIND("-",Y9)),AM9>'export html'!$AR$7),"",IF(AND(LEFT(Y9)="*",RIGHT(Y9)="*"),"ff",IF(CE9>CE24,"t",IF(CE9<CE24,"u","g")))) ->  | CF39: =IF(OR(ISERROR(FIND("-",Z9)),AN9>'export html'!$AR$7),"",IF(AND(LEFT(Z9)="*",RIGHT(Z9)="*"),"ff",IF(CF9>CF24,"t",IF(CF9<CF24,"u","g")))) ->  | CG39: =IF(OR(ISERROR(FIND("-",AA9)),AO9>'export html'!$AR$7),"",IF(AND(LEFT(AA9)="*",RIGHT(AA9)="*"),"ff",IF(CG9>CG24,"t",IF(CG9<CG24,"u","g")))) ->  | CH39: =IF(OR(ISERROR(FIND("-",AB9)),AP9>'export html'!$AR$7),"",IF(AND(LEFT(AB9)="*",RIGHT(AB9)="*"),"ff",IF(CH9>CH24,"t",IF(CH9<CH24,"u","g")))) -> u | CI39: =IF(OR(ISERROR(FIND("-",AC9)),AQ9>'export html'!$AR$7),"",IF(AND(LEFT(AC9)="*",RIGHT(AC9)="*"),"ff",IF(CI9>CI24,"t",IF(CI9<CI24,"u","g")))) ->  | CJ39: =IF(OR(ISERROR(FIND("-",AD9)),AR9>'export html'!$AR$7),"",IF(AND(LEFT(AD9)="*",RIGHT(AD9)="*"),"ff",IF(CJ9>CJ24,"t",IF(CJ9<CJ24,"u","g")))) ->  | CK39: 5 | CL39: =IF(OR(ISERROR(FIND("-",Q9)),AE9<='export html'!$AR$7),"",IF(AND(LEFT(Q9)="*",RIGHT(Q9)="*"),"ff",IF(CL9>CL24,"t",IF(CL9<CL24,"u","g")))) ->  | CM39: =IF(OR(ISERROR(FIND("-",R9)),AF9<='export html'!$AR$7),"",IF(AND(LEFT(R9)="*",RIGHT(R9)="*"),"ff",IF(CM9>CM24,"t",IF(CM9<CM24,"u","g")))) ->  | CN39: =IF(OR(ISERROR(FIND("-",S9)),AG9<='export html'!$AR$7),"",IF(AND(LEFT(S9)="*",RIGHT(S9)="*"),"ff",IF(CN9>CN24,"t",IF(CN9<CN24,"u","g")))) ->  | CO39: =IF(OR(ISERROR(FIND("-",T9)),AH9<='export html'!$AR$7),"",IF(AND(LEFT(T9)="*",RIGHT(T9)="*"),"ff",IF(CO9>CO24,"t",IF(CO9<CO24,"u","g")))) ->  | CQ39: =IF(OR(ISERROR(FIND("-",V9)),AJ9<='export html'!$AR$7),"",IF(AND(LEFT(V9)="*",RIGHT(V9)="*"),"ff",IF(CQ9>CQ24,"t",IF(CQ9<CQ24,"u","g")))) ->  | CR39: =IF(OR(ISERROR(FIND("-",W9)),AK9<='export html'!$AR$7),"",IF(AND(LEFT(W9)="*",RIGHT(W9)="*"),"ff",IF(CR9>CR24,"t",IF(CR9<CR24,"u","g")))) ->  | CS39: =IF(OR(ISERROR(FIND("-",X9)),AL9<='export html'!$AR$7),"",IF(AND(LEFT(X9)="*",RIGHT(X9)="*"),"ff",IF(CS9>CS24,"t",IF(CS9<CS24,"u","g")))) ->  | CT39: =IF(OR(ISERROR(FIND("-",Y9)),AM9<='export html'!$AR$7),"",IF(AND(LEFT(Y9)="*",RIGHT(Y9)="*"),"ff",IF(CT9>CT24,"t",IF(CT9<CT24,"u","g")))) ->  | CU39: =IF(OR(ISERROR(FIND("-",Z9)),AN9<='export html'!$AR$7),"",IF(AND(LEFT(Z9)="*",RIGHT(Z9)="*"),"ff",IF(CU9>CU24,"t",IF(CU9<CU24,"u","g")))) ->  | CV39: =IF(OR(ISERROR(FIND("-",AA9)),AO9<='export html'!$AR$7),"",IF(AND(LEFT(AA9)="*",RIGHT(AA9)="*"),"ff",IF(CV9>CV24,"t",IF(CV9<CV24,"u","g")))) ->  | CW39: =IF(OR(ISERROR(FIND("-",AB9)),AP9<='export html'!$AR$7),"",IF(AND(LEFT(AB9)="*",RIGHT(AB9)="*"),"ff",IF(CW9>CW24,"t",IF(CW9<CW24,"u","g")))) ->  | CX39: =IF(OR(ISERROR(FIND("-",AC9)),AQ9<='export html'!$AR$7),"",IF(AND(LEFT(AC9)="*",RIGHT(AC9)="*"),"ff",IF(CX9>CX24,"t",IF(CX9<CX24,"u","g")))) ->  | CY39: =IF(OR(ISERROR(FIND("-",AD9)),AR9<='export html'!$AR$7),"",IF(AND(LEFT(AD9)="*",RIGHT(AD9)="*"),"ff",IF(CY9>CY24,"t",IF(CY9<CY24,"u","g")))) ->  | CZ39: 5
BV40: 6 | BW40: =IF(OR(ISERROR(FIND("-",Q10)),AE10>'export html'!$AR$7),"",IF(AND(LEFT(Q10)="*",RIGHT(Q10)="*"),"ff",IF(BW10>BW25,"t",IF(BW10<BW25,"u","g")))) ->  | BX40: =IF(OR(ISERROR(FIND("-",R10)),AF10>'export html'!$AR$7),"",IF(AND(LEFT(R10)="*",RIGHT(R10)="*"),"ff",IF(BX10>BX25,"t",IF(BX10<BX25,"u","g")))) ->  | BY40: =IF(OR(ISERROR(FIND("-",S10)),AG10>'export html'!$AR$7),"",IF(AND(LEFT(S10)="*",RIGHT(S10)="*"),"ff",IF(BY10>BY25,"t",IF(BY10<BY25,"u","g")))) ->  | BZ40: =IF(OR(ISERROR(FIND("-",T10)),AH10>'export html'!$AR$7),"",IF(AND(LEFT(T10)="*",RIGHT(T10)="*"),"ff",IF(BZ10>BZ25,"t",IF(BZ10<BZ25,"u","g")))) ->  | CA40: =IF(OR(ISERROR(FIND("-",U10)),AI10>'export html'!$AR$7),"",IF(AND(LEFT(U10)="*",RIGHT(U10)="*"),"ff",IF(CA10>CA25,"t",IF(CA10<CA25,"u","g")))) -> t | CC40: =IF(OR(ISERROR(FIND("-",W10)),AK10>'export html'!$AR$7),"",IF(AND(LEFT(W10)="*",RIGHT(W10)="*"),"ff",IF(CC10>CC25,"t",IF(CC10<CC25,"u","g")))) ->  | CD40: =IF(OR(ISERROR(FIND("-",X10)),AL10>'export html'!$AR$7),"",IF(AND(LEFT(X10)="*",RIGHT(X10)="*"),"ff",IF(CD10>CD25,"t",IF(CD10<CD25,"u","g")))) ->  | CE40: =IF(OR(ISERROR(FIND("-",Y10)),AM10>'export html'!$AR$7),"",IF(AND(LEFT(Y10)="*",RIGHT(Y10)="*"),"ff",IF(CE10>CE25,"t",IF(CE10<CE25,"u","g")))) ->  | CF40: =IF(OR(ISERROR(FIND("-",Z10)),AN10>'export html'!$AR$7),"",IF(AND(LEFT(Z10)="*",RIGHT(Z10)="*"),"ff",IF(CF10>CF25,"t",IF(CF10<CF25,"u","g")))) -> t | CG40: =IF(OR(ISERROR(FIND("-",AA10)),AO10>'export html'!$AR$7),"",IF(AND(LEFT(AA10)="*",RIGHT(AA10)="*"),"ff",IF(CG10>CG25,"t",IF(CG10<CG25,"u","g")))) ->  | CH40: =IF(OR(ISERROR(FIND("-",AB10)),AP10>'export html'!$AR$7),"",IF(AND(LEFT(AB10)="*",RIGHT(AB10)="*"),"ff",IF(CH10>CH25,"t",IF(CH10<CH25,"u","g")))) ->  | CI40: =IF(OR(ISERROR(FIND("-",AC10)),AQ10>'export html'!$AR$7),"",IF(AND(LEFT(AC10)="*",RIGHT(AC10)="*"),"ff",IF(CI10>CI25,"t",IF(CI10<CI25,"u","g")))) -> t | CJ40: =IF(OR(ISERROR(FIND("-",AD10)),AR10>'export html'!$AR$7),"",IF(AND(LEFT(AD10)="*",RIGHT(AD10)="*"),"ff",IF(CJ10>CJ25,"t",IF(CJ10<CJ25,"u","g")))) ->  | CK40: 6 | CL40: =IF(OR(ISERROR(FIND("-",Q10)),AE10<='export html'!$AR$7),"",IF(AND(LEFT(Q10)="*",RIGHT(Q10)="*"),"ff",IF(CL10>CL25,"t",IF(CL10<CL25,"u","g")))) ->  | CM40: =IF(OR(ISERROR(FIND("-",R10)),AF10<='export html'!$AR$7),"",IF(AND(LEFT(R10)="*",RIGHT(R10)="*"),"ff",IF(CM10>CM25,"t",IF(CM10<CM25,"u","g")))) ->  | CN40: =IF(OR(ISERROR(FIND("-",S10)),AG10<='export html'!$AR$7),"",IF(AND(LEFT(S10)="*",RIGHT(S10)="*"),"ff",IF(CN10>CN25,"t",IF(CN10<CN25,"u","g")))) ->  | CO40: =IF(OR(ISERROR(FIND("-",T10)),AH10<='export html'!$AR$7),"",IF(AND(LEFT(T10)="*",RIGHT(T10)="*"),"ff",IF(CO10>CO25,"t",IF(CO10<CO25,"u","g")))) ->  | CP40: =IF(OR(ISERROR(FIND("-",U10)),AI10<='export html'!$AR$7),"",IF(AND(LEFT(U10)="*",RIGHT(U10)="*"),"ff",IF(CP10>CP25,"t",IF(CP10<CP25,"u","g")))) ->  | CR40: =IF(OR(ISERROR(FIND("-",W10)),AK10<='export html'!$AR$7),"",IF(AND(LEFT(W10)="*",RIGHT(W10)="*"),"ff",IF(CR10>CR25,"t",IF(CR10<CR25,"u","g")))) ->  | CS40: =IF(OR(ISERROR(FIND("-",X10)),AL10<='export html'!$AR$7),"",IF(AND(LEFT(X10)="*",RIGHT(X10)="*"),"ff",IF(CS10>CS25,"t",IF(CS10<CS25,"u","g")))) ->  | CT40: =IF(OR(ISERROR(FIND("-",Y10)),AM10<='export html'!$AR$7),"",IF(AND(LEFT(Y10)="*",RIGHT(Y10)="*"),"ff",IF(CT10>CT25,"t",IF(CT10<CT25,"u","g")))) ->  | CU40: =IF(OR(ISERROR(FIND("-",Z10)),AN10<='export html'!$AR$7),"",IF(AND(LEFT(Z10)="*",RIGHT(Z10)="*"),"ff",IF(CU10>CU25,"t",IF(CU10<CU25,"u","g")))) ->  | CV40: =IF(OR(ISERROR(FIND("-",AA10)),AO10<='export html'!$AR$7),"",IF(AND(LEFT(AA10)="*",RIGHT(AA10)="*"),"ff",IF(CV10>CV25,"t",IF(CV10<CV25,"u","g")))) ->  | CW40: =IF(OR(ISERROR(FIND("-",AB10)),AP10<='export html'!$AR$7),"",IF(AND(LEFT(AB10)="*",RIGHT(AB10)="*"),"ff",IF(CW10>CW25,"t",IF(CW10<CW25,"u","g")))) ->  | CX40: =IF(OR(ISERROR(FIND("-",AC10)),AQ10<='export html'!$AR$7),"",IF(AND(LEFT(AC10)="*",RIGHT(AC10)="*"),"ff",IF(CX10>CX25,"t",IF(CX10<CX25,"u","g")))) ->  | CY40: =IF(OR(ISERROR(FIND("-",AD10)),AR10<='export html'!$AR$7),"",IF(AND(LEFT(AD10)="*",RIGHT(AD10)="*"),"ff",IF(CY10>CY25,"t",IF(CY10<CY25,"u","g")))) ->  | CZ40: 6
BV41: 7 | BW41: =IF(OR(ISERROR(FIND("-",Q11)),AE11>'export html'!$AR$7),"",IF(AND(LEFT(Q11)="*",RIGHT(Q11)="*"),"ff",IF(BW11>BW26,"t",IF(BW11<BW26,"u","g")))) ->  | BX41: =IF(OR(ISERROR(FIND("-",R11)),AF11>'export html'!$AR$7),"",IF(AND(LEFT(R11)="*",RIGHT(R11)="*"),"ff",IF(BX11>BX26,"t",IF(BX11<BX26,"u","g")))) ->  | BY41: =IF(OR(ISERROR(FIND("-",S11)),AG11>'export html'!$AR$7),"",IF(AND(LEFT(S11)="*",RIGHT(S11)="*"),"ff",IF(BY11>BY26,"t",IF(BY11<BY26,"u","g")))) ->  | BZ41: =IF(OR(ISERROR(FIND("-",T11)),AH11>'export html'!$AR$7),"",IF(AND(LEFT(T11)="*",RIGHT(T11)="*"),"ff",IF(BZ11>BZ26,"t",IF(BZ11<BZ26,"u","g")))) -> t | CA41: =IF(OR(ISERROR(FIND("-",U11)),AI11>'export html'!$AR$7),"",IF(AND(LEFT(U11)="*",RIGHT(U11)="*"),"ff",IF(CA11>CA26,"t",IF(CA11<CA26,"u","g")))) ->  | CB41: =IF(OR(ISERROR(FIND("-",V11)),AJ11>'export html'!$AR$7),"",IF(AND(LEFT(V11)="*",RIGHT(V11)="*"),"ff",IF(CB11>CB26,"t",IF(CB11<CB26,"u","g")))) ->  | CD41: =IF(OR(ISERROR(FIND("-",X11)),AL11>'export html'!$AR$7),"",IF(AND(LEFT(X11)="*",RIGHT(X11)="*"),"ff",IF(CD11>CD26,"t",IF(CD11<CD26,"u","g")))) ->  | CE41: =IF(OR(ISERROR(FIND("-",Y11)),AM11>'export html'!$AR$7),"",IF(AND(LEFT(Y11)="*",RIGHT(Y11)="*"),"ff",IF(CE11>CE26,"t",IF(CE11<CE26,"u","g")))) ->  | CF41: =IF(OR(ISERROR(FIND("-",Z11)),AN11>'export html'!$AR$7),"",IF(AND(LEFT(Z11)="*",RIGHT(Z11)="*"),"ff",IF(CF11>CF26,"t",IF(CF11<CF26,"u","g")))) -> t | CG41: =IF(OR(ISERROR(FIND("-",AA11)),AO11>'export html'!$AR$7),"",IF(AND(LEFT(AA11)="*",RIGHT(AA11)="*"),"ff",IF(CG11>CG26,"t",IF(CG11<CG26,"u","g")))) -> u | CH41: =IF(OR(ISERROR(FIND("-",AB11)),AP11>'export html'!$AR$7),"",IF(AND(LEFT(AB11)="*",RIGHT(AB11)="*"),"ff",IF(CH11>CH26,"t",IF(CH11<CH26,"u","g")))) ->  | CI41: =IF(OR(ISERROR(FIND("-",AC11)),AQ11>'export html'!$AR$7),"",IF(AND(LEFT(AC11)="*",RIGHT(AC11)="*"),"ff",IF(CI11>CI26,"t",IF(CI11<CI26,"u","g")))) ->  | CJ41: =IF(OR(ISERROR(FIND("-",AD11)),AR11>'export html'!$AR$7),"",IF(AND(LEFT(AD11)="*",RIGHT(AD11)="*"),"ff",IF(CJ11>CJ26,"t",IF(CJ11<CJ26,"u","g")))) ->  | CK41: 7 | CL41: =IF(OR(ISERROR(FIND("-",Q11)),AE11<='export html'!$AR$7),"",IF(AND(LEFT(Q11)="*",RIGHT(Q11)="*"),"ff",IF(CL11>CL26,"t",IF(CL11<CL26,"u","g")))) ->  | CM41: =IF(OR(ISERROR(FIND("-",R11)),AF11<='export html'!$AR$7),"",IF(AND(LEFT(R11)="*",RIGHT(R11)="*"),"ff",IF(CM11>CM26,"t",IF(CM11<CM26,"u","g")))) ->  | CN41: =IF(OR(ISERROR(FIND("-",S11)),AG11<='export html'!$AR$7),"",IF(AND(LEFT(S11)="*",RIGHT(S11)="*"),"ff",IF(CN11>CN26,"t",IF(CN11<CN26,"u","g")))) ->  | CO41: =IF(OR(ISERROR(FIND("-",T11)),AH11<='export html'!$AR$7),"",IF(AND(LEFT(T11)="*",RIGHT(T11)="*"),"ff",IF(CO11>CO26,"t",IF(CO11<CO26,"u","g")))) ->  | CP41: =IF(OR(ISERROR(FIND("-",U11)),AI11<='export html'!$AR$7),"",IF(AND(LEFT(U11)="*",RIGHT(U11)="*"),"ff",IF(CP11>CP26,"t",IF(CP11<CP26,"u","g")))) ->  | CQ41: =IF(OR(ISERROR(FIND("-",V11)),AJ11<='export html'!$AR$7),"",IF(AND(LEFT(V11)="*",RIGHT(V11)="*"),"ff",IF(CQ11>CQ26,"t",IF(CQ11<CQ26,"u","g")))) ->  | CS41: =IF(OR(ISERROR(FIND("-",X11)),AL11<='export html'!$AR$7),"",IF(AND(LEFT(X11)="*",RIGHT(X11)="*"),"ff",IF(CS11>CS26,"t",IF(CS11<CS26,"u","g")))) ->  | CT41: =IF(OR(ISERROR(FIND("-",Y11)),AM11<='export html'!$AR$7),"",IF(AND(LEFT(Y11)="*",RIGHT(Y11)="*"),"ff",IF(CT11>CT26,"t",IF(CT11<CT26,"u","g")))) ->  | CU41: =IF(OR(ISERROR(FIND("-",Z11)),AN11<='export html'!$AR$7),"",IF(AND(LEFT(Z11)="*",RIGHT(Z11)="*"),"ff",IF(CU11>CU26,"t",IF(CU11<CU26,"u","g")))) ->  | CV41: =IF(OR(ISERROR(FIND("-",AA11)),AO11<='export html'!$AR$7),"",IF(AND(LEFT(AA11)="*",RIGHT(AA11)="*"),"ff",IF(CV11>CV26,"t",IF(CV11<CV26,"u","g")))) ->  | CW41: =IF(OR(ISERROR(FIND("-",AB11)),AP11<='export html'!$AR$7),"",IF(AND(LEFT(AB11)="*",RIGHT(AB11)="*"),"ff",IF(CW11>CW26,"t",IF(CW11<CW26,"u","g")))) ->  | CX41: =IF(OR(ISERROR(FIND("-",AC11)),AQ11<='export html'!$AR$7),"",IF(AND(LEFT(AC11)="*",RIGHT(AC11)="*"),"ff",IF(CX11>CX26,"t",IF(CX11<CX26,"u","g")))) ->  | CY41: =IF(OR(ISERROR(FIND("-",AD11)),AR11<='export html'!$AR$7),"",IF(AND(LEFT(AD11)="*",RIGHT(AD11)="*"),"ff",IF(CY11>CY26,"t",IF(CY11<CY26,"u","g")))) ->  | CZ41: 7
BV42: 8 | BW42: =IF(OR(ISERROR(FIND("-",Q12)),AE12>'export html'!$AR$7),"",IF(AND(LEFT(Q12)="*",RIGHT(Q12)="*"),"ff",IF(BW12>BW27,"t",IF(BW12<BW27,"u","g")))) ->  | BX42: =IF(OR(ISERROR(FIND("-",R12)),AF12>'export html'!$AR$7),"",IF(AND(LEFT(R12)="*",RIGHT(R12)="*"),"ff",IF(BX12>BX27,"t",IF(BX12<BX27,"u","g")))) ->  | BY42: =IF(OR(ISERROR(FIND("-",S12)),AG12>'export html'!$AR$7),"",IF(AND(LEFT(S12)="*",RIGHT(S12)="*"),"ff",IF(BY12>BY27,"t",IF(BY12<BY27,"u","g")))) ->  | BZ42: =IF(OR(ISERROR(FIND("-",T12)),AH12>'export html'!$AR$7),"",IF(AND(LEFT(T12)="*",RIGHT(T12)="*"),"ff",IF(BZ12>BZ27,"t",IF(BZ12<BZ27,"u","g")))) ->  | CA42: =IF(OR(ISERROR(FIND("-",U12)),AI12>'export html'!$AR$7),"",IF(AND(LEFT(U12)="*",RIGHT(U12)="*"),"ff",IF(CA12>CA27,"t",IF(CA12<CA27,"u","g")))) ->  | CB42: =IF(OR(ISERROR(FIND("-",V12)),AJ12>'export html'!$AR$7),"",IF(AND(LEFT(V12)="*",RIGHT(V12)="*"),"ff",IF(CB12>CB27,"t",IF(CB12<CB27,"u","g")))) -> u | CC42: =IF(OR(ISERROR(FIND("-",W12)),AK12>'export html'!$AR$7),"",IF(AND(LEFT(W12)="*",RIGHT(W12)="*"),"ff",IF(CC12>CC27,"t",IF(CC12<CC27,"u","g")))) ->  | CE42: =IF(OR(ISERROR(FIND("-",Y12)),AM12>'export html'!$AR$7),"",IF(AND(LEFT(Y12)="*",RIGHT(Y12)="*"),"ff",IF(CE12>CE27,"t",IF(CE12<CE27,"u","g")))) ->  | CF42: =IF(OR(ISERROR(FIND("-",Z12)),AN12>'export html'!$AR$7),"",IF(AND(LEFT(Z12)="*",RIGHT(Z12)="*"),"ff",IF(CF12>CF27,"t",IF(CF12<CF27,"u","g")))) ->  | CG42: =IF(OR(ISERROR(FIND("-",AA12)),AO12>'export html'!$AR$7),"",IF(AND(LEFT(AA12)="*",RIGHT(AA12)="*"),"ff",IF(CG12>CG27,"t",IF(CG12<CG27,"u","g")))) ->  | CH42: =IF(OR(ISERROR(FIND("-",AB12)),AP12>'export html'!$AR$7),"",IF(AND(LEFT(AB12)="*",RIGHT(AB12)="*"),"ff",IF(CH12>CH27,"t",IF(CH12<CH27,"u","g")))) -> u | CI42: =IF(OR(ISERROR(FIND("-",AC12)),AQ12>'export html'!$AR$7),"",IF(AND(LEFT(AC12)="*",RIGHT(AC12)="*"),"ff",IF(CI12>CI27,"t",IF(CI12<CI27,"u","g")))) ->  | CJ42: =IF(OR(ISERROR(FIND("-",AD12)),AR12>'export html'!$AR$7),"",IF(AND(LEFT(AD12)="*",RIGHT(AD12)="*"),"ff",IF(CJ12>CJ27,"t",IF(CJ12<CJ27,"u","g")))) -> g | CK42: 8 | CL42: =IF(OR(ISERROR(FIND("-",Q12)),AE12<='export html'!$AR$7),"",IF(AND(LEFT(Q12)="*",RIGHT(Q12)="*"),"ff",IF(CL12>CL27,"t",IF(CL12<CL27,"u","g")))) ->  | CM42: =IF(OR(ISERROR(FIND("-",R12)),AF12<='export html'!$AR$7),"",IF(AND(LEFT(R12)="*",RIGHT(R12)="*"),"ff",IF(CM12>CM27,"t",IF(CM12<CM27,"u","g")))) ->  | CN42: =IF(OR(ISERROR(FIND("-",S12)),AG12<='export html'!$AR$7),"",IF(AND(LEFT(S12)="*",RIGHT(S12)="*"),"ff",IF(CN12>CN27,"t",IF(CN12<CN27,"u","g")))) ->  | CO42: =IF(OR(ISERROR(FIND("-",T12)),AH12<='export html'!$AR$7),"",IF(AND(LEFT(T12)="*",RIGHT(T12)="*"),"ff",IF(CO12>CO27,"t",IF(CO12<CO27,"u","g")))) ->  | CP42: =IF(OR(ISERROR(FIND("-",U12)),AI12<='export html'!$AR$7),"",IF(AND(LEFT(U12)="*",RIGHT(U12)="*"),"ff",IF(CP12>CP27,"t",IF(CP12<CP27,"u","g")))) ->  | CQ42: =IF(OR(ISERROR(FIND("-",V12)),AJ12<='export html'!$AR$7),"",IF(AND(LEFT(V12)="*",RIGHT(V12)="*"),"ff",IF(CQ12>CQ27,"t",IF(CQ12<CQ27,"u","g")))) ->  | CR42: =IF(OR(ISERROR(FIND("-",W12)),AK12<='export html'!$AR$7),"",IF(AND(LEFT(W12)="*",RIGHT(W12)="*"),"ff",IF(CR12>CR27,"t",IF(CR12<CR27,"u","g")))) ->  | CT42: =IF(OR(ISERROR(FIND("-",Y12)),AM12<='export html'!$AR$7),"",IF(AND(LEFT(Y12)="*",RIGHT(Y12)="*"),"ff",IF(CT12>CT27,"t",IF(CT12<CT27,"u","g")))) ->  | CU42: =IF(OR(ISERROR(FIND("-",Z12)),AN12<='export html'!$AR$7),"",IF(AND(LEFT(Z12)="*",RIGHT(Z12)="*"),"ff",IF(CU12>CU27,"t",IF(CU12<CU27,"u","g")))) ->  | CV42: =IF(OR(ISERROR(FIND("-",AA12)),AO12<='export html'!$AR$7),"",IF(AND(LEFT(AA12)="*",RIGHT(AA12)="*"),"ff",IF(CV12>CV27,"t",IF(CV12<CV27,"u","g")))) ->  | CW42: =IF(OR(ISERROR(FIND("-",AB12)),AP12<='export html'!$AR$7),"",IF(AND(LEFT(AB12)="*",RIGHT(AB12)="*"),"ff",IF(CW12>CW27,"t",IF(CW12<CW27,"u","g")))) ->  | CX42: =IF(OR(ISERROR(FIND("-",AC12)),AQ12<='export html'!$AR$7),"",IF(AND(LEFT(AC12)="*",RIGHT(AC12)="*"),"ff",IF(CX12>CX27,"t",IF(CX12<CX27,"u","g")))) ->  | CY42: =IF(OR(ISERROR(FIND("-",AD12)),AR12<='export html'!$AR$7),"",IF(AND(LEFT(AD12)="*",RIGHT(AD12)="*"),"ff",IF(CY12>CY27,"t",IF(CY12<CY27,"u","g")))) ->  | CZ42: 8
BV43: 9 | BW43: =IF(OR(ISERROR(FIND("-",Q13)),AE13>'export html'!$AR$7),"",IF(AND(LEFT(Q13)="*",RIGHT(Q13)="*"),"ff",IF(BW13>BW28,"t",IF(BW13<BW28,"u","g")))) ->  | BX43: =IF(OR(ISERROR(FIND("-",R13)),AF13>'export html'!$AR$7),"",IF(AND(LEFT(R13)="*",RIGHT(R13)="*"),"ff",IF(BX13>BX28,"t",IF(BX13<BX28,"u","g")))) ->  | BY43: =IF(OR(ISERROR(FIND("-",S13)),AG13>'export html'!$AR$7),"",IF(AND(LEFT(S13)="*",RIGHT(S13)="*"),"ff",IF(BY13>BY28,"t",IF(BY13<BY28,"u","g")))) ->  | BZ43: =IF(OR(ISERROR(FIND("-",T13)),AH13>'export html'!$AR$7),"",IF(AND(LEFT(T13)="*",RIGHT(T13)="*"),"ff",IF(BZ13>BZ28,"t",IF(BZ13<BZ28,"u","g")))) ->  | CA43: =IF(OR(ISERROR(FIND("-",U13)),AI13>'export html'!$AR$7),"",IF(AND(LEFT(U13)="*",RIGHT(U13)="*"),"ff",IF(CA13>CA28,"t",IF(CA13<CA28,"u","g")))) -> u | CB43: =IF(OR(ISERROR(FIND("-",V13)),AJ13>'export html'!$AR$7),"",IF(AND(LEFT(V13)="*",RIGHT(V13)="*"),"ff",IF(CB13>CB28,"t",IF(CB13<CB28,"u","g")))) -> u | CC43: =IF(OR(ISERROR(FIND("-",W13)),AK13>'export html'!$AR$7),"",IF(AND(LEFT(W13)="*",RIGHT(W13)="*"),"ff",IF(CC13>CC28,"t",IF(CC13<CC28,"u","g")))) ->  | CD43: =IF(OR(ISERROR(FIND("-",X13)),AL13>'export html'!$AR$7),"",IF(AND(LEFT(X13)="*",RIGHT(X13)="*"),"ff",IF(CD13>CD28,"t",IF(CD13<CD28,"u","g")))) -> u | CF43: =IF(OR(ISERROR(FIND("-",Z13)),AN13>'export html'!$AR$7),"",IF(AND(LEFT(Z13)="*",RIGHT(Z13)="*"),"ff",IF(CF13>CF28,"t",IF(CF13<CF28,"u","g")))) ->  | CG43: =IF(OR(ISERROR(FIND("-",AA13)),AO13>'export html'!$AR$7),"",IF(AND(LEFT(AA13)="*",RIGHT(AA13)="*"),"ff",IF(CG13>CG28,"t",IF(CG13<CG28,"u","g")))) ->  | CH43: =IF(OR(ISERROR(FIND("-",AB13)),AP13>'export html'!$AR$7),"",IF(AND(LEFT(AB13)="*",RIGHT(AB13)="*"),"ff",IF(CH13>CH28,"t",IF(CH13<CH28,"u","g")))) ->  | CI43: =IF(OR(ISERROR(FIND("-",AC13)),AQ13>'export html'!$AR$7),"",IF(AND(LEFT(AC13)="*",RIGHT(AC13)="*"),"ff",IF(CI13>CI28,"t",IF(CI13<CI28,"u","g")))) ->  | CJ43: =IF(OR(ISERROR(FIND("-",AD13)),AR13>'export html'!$AR$7),"",IF(AND(LEFT(AD13)="*",RIGHT(AD13)="*"),"ff",IF(CJ13>CJ28,"t",IF(CJ13<CJ28,"u","g")))) ->  | CK43: 9 | CL43: =IF(OR(ISERROR(FIND("-",Q13)),AE13<='export html'!$AR$7),"",IF(AND(LEFT(Q13)="*",RIGHT(Q13)="*"),"ff",IF(CL13>CL28,"t",IF(CL13<CL28,"u","g")))) ->  | CM43: =IF(OR(ISERROR(FIND("-",R13)),AF13<='export html'!$AR$7),"",IF(AND(LEFT(R13)="*",RIGHT(R13)="*"),"ff",IF(CM13>CM28,"t",IF(CM13<CM28,"u","g")))) ->  | CN43: =IF(OR(ISERROR(FIND("-",S13)),AG13<='export html'!$AR$7),"",IF(AND(LEFT(S13)="*",RIGHT(S13)="*"),"ff",IF(CN13>CN28,"t",IF(CN13<CN28,"u","g")))) ->  | CO43: =IF(OR(ISERROR(FIND("-",T13)),AH13<='export html'!$AR$7),"",IF(AND(LEFT(T13)="*",RIGHT(T13)="*"),"ff",IF(CO13>CO28,"t",IF(CO13<CO28,"u","g")))) ->  | CP43: =IF(OR(ISERROR(FIND("-",U13)),AI13<='export html'!$AR$7),"",IF(AND(LEFT(U13)="*",RIGHT(U13)="*"),"ff",IF(CP13>CP28,"t",IF(CP13<CP28,"u","g")))) ->  | CQ43: =IF(OR(ISERROR(FIND("-",V13)),AJ13<='export html'!$AR$7),"",IF(AND(LEFT(V13)="*",RIGHT(V13)="*"),"ff",IF(CQ13>CQ28,"t",IF(CQ13<CQ28,"u","g")))) ->  | CR43: =IF(OR(ISERROR(FIND("-",W13)),AK13<='export html'!$AR$7),"",IF(AND(LEFT(W13)="*",RIGHT(W13)="*"),"ff",IF(CR13>CR28,"t",IF(CR13<CR28,"u","g")))) ->  | CS43: =IF(OR(ISERROR(FIND("-",X13)),AL13<='export html'!$AR$7),"",IF(AND(LEFT(X13)="*",RIGHT(X13)="*"),"ff",IF(CS13>CS28,"t",IF(CS13<CS28,"u","g")))) ->  | CU43: =IF(OR(ISERROR(FIND("-",Z13)),AN13<='export html'!$AR$7),"",IF(AND(LEFT(Z13)="*",RIGHT(Z13)="*"),"ff",IF(CU13>CU28,"t",IF(CU13<CU28,"u","g")))) ->  | CV43: =IF(OR(ISERROR(FIND("-",AA13)),AO13<='export html'!$AR$7),"",IF(AND(LEFT(AA13)="*",RIGHT(AA13)="*"),"ff",IF(CV13>CV28,"t",IF(CV13<CV28,"u","g")))) ->  | CW43: =IF(OR(ISERROR(FIND("-",AB13)),AP13<='export html'!$AR$7),"",IF(AND(LEFT(AB13)="*",RIGHT(AB13)="*"),"ff",IF(CW13>CW28,"t",IF(CW13<CW28,"u","g")))) ->  | CX43: =IF(OR(ISERROR(FIND("-",AC13)),AQ13<='export html'!$AR$7),"",IF(AND(LEFT(AC13)="*",RIGHT(AC13)="*"),"ff",IF(CX13>CX28,"t",IF(CX13<CX28,"u","g")))) ->  | CY43: =IF(OR(ISERROR(FIND("-",AD13)),AR13<='export html'!$AR$7),"",IF(AND(LEFT(AD13)="*",RIGHT(AD13)="*"),"ff",IF(CY13>CY28,"t",IF(CY13<CY28,"u","g")))) ->  | CZ43: 9
BV44: 10 | BW44: =IF(OR(ISERROR(FIND("-",Q14)),AE14>'export html'!$AR$7),"",IF(AND(LEFT(Q14)="*",RIGHT(Q14)="*"),"ff",IF(BW14>BW29,"t",IF(BW14<BW29,"u","g")))) -> u | BX44: =IF(OR(ISERROR(FIND("-",R14)),AF14>'export html'!$AR$7),"",IF(AND(LEFT(R14)="*",RIGHT(R14)="*"),"ff",IF(BX14>BX29,"t",IF(BX14<BX29,"u","g")))) ->  | BY44: =IF(OR(ISERROR(FIND("-",S14)),AG14>'export html'!$AR$7),"",IF(AND(LEFT(S14)="*",RIGHT(S14)="*"),"ff",IF(BY14>BY29,"t",IF(BY14<BY29,"u","g")))) -> u | BZ44: =IF(OR(ISERROR(FIND("-",T14)),AH14>'export html'!$AR$7),"",IF(AND(LEFT(T14)="*",RIGHT(T14)="*"),"ff",IF(BZ14>BZ29,"t",IF(BZ14<BZ29,"u","g")))) ->  | CA44: =IF(OR(ISERROR(FIND("-",U14)),AI14>'export html'!$AR$7),"",IF(AND(LEFT(U14)="*",RIGHT(U14)="*"),"ff",IF(CA14>CA29,"t",IF(CA14<CA29,"u","g")))) ->  | CB44: =IF(OR(ISERROR(FIND("-",V14)),AJ14>'export html'!$AR$7),"",IF(AND(LEFT(V14)="*",RIGHT(V14)="*"),"ff",IF(CB14>CB29,"t",IF(CB14<CB29,"u","g")))) ->  | CC44: =IF(OR(ISERROR(FIND("-",W14)),AK14>'export html'!$AR$7),"",IF(AND(LEFT(W14)="*",RIGHT(W14)="*"),"ff",IF(CC14>CC29,"t",IF(CC14<CC29,"u","g")))) ->  | CD44: =IF(OR(ISERROR(FIND("-",X14)),AL14>'export html'!$AR$7),"",IF(AND(LEFT(X14)="*",RIGHT(X14)="*"),"ff",IF(CD14>CD29,"t",IF(CD14<CD29,"u","g")))) -> t | CE44: =IF(OR(ISERROR(FIND("-",Y14)),AM14>'export html'!$AR$7),"",IF(AND(LEFT(Y14)="*",RIGHT(Y14)="*"),"ff",IF(CE14>CE29,"t",IF(CE14<CE29,"u","g")))) ->  | CG44: =IF(OR(ISERROR(FIND("-",AA14)),AO14>'export html'!$AR$7),"",IF(AND(LEFT(AA14)="*",RIGHT(AA14)="*"),"ff",IF(CG14>CG29,"t",IF(CG14<CG29,"u","g")))) ->  | CH44: =IF(OR(ISERROR(FIND("-",AB14)),AP14>'export html'!$AR$7),"",IF(AND(LEFT(AB14)="*",RIGHT(AB14)="*"),"ff",IF(CH14>CH29,"t",IF(CH14<CH29,"u","g")))) ->  | CI44: =IF(OR(ISERROR(FIND("-",AC14)),AQ14>'export html'!$AR$7),"",IF(AND(LEFT(AC14)="*",RIGHT(AC14)="*"),"ff",IF(CI14>CI29,"t",IF(CI14<CI29,"u","g")))) ->  | CJ44: =IF(OR(ISERROR(FIND("-",AD14)),AR14>'export html'!$AR$7),"",IF(AND(LEFT(AD14)="*",RIGHT(AD14)="*"),"ff",IF(CJ14>CJ29,"t",IF(CJ14<CJ29,"u","g")))) ->  | CK44: 10 | CL44: =IF(OR(ISERROR(FIND("-",Q14)),AE14<='export html'!$AR$7),"",IF(AND(LEFT(Q14)="*",RIGHT(Q14)="*"),"ff",IF(CL14>CL29,"t",IF(CL14<CL29,"u","g")))) ->  | CM44: =IF(OR(ISERROR(FIND("-",R14)),AF14<='export html'!$AR$7),"",IF(AND(LEFT(R14)="*",RIGHT(R14)="*"),"ff",IF(CM14>CM29,"t",IF(CM14<CM29,"u","g")))) ->  | CN44: =IF(OR(ISERROR(FIND("-",S14)),AG14<='export html'!$AR$7),"",IF(AND(LEFT(S14)="*",RIGHT(S14)="*"),"ff",IF(CN14>CN29,"t",IF(CN14<CN29,"u","g")))) ->  | CO44: =IF(OR(ISERROR(FIND("-",T14)),AH14<='export html'!$AR$7),"",IF(AND(LEFT(T14)="*",RIGHT(T14)="*"),"ff",IF(CO14>CO29,"t",IF(CO14<CO29,"u","g")))) ->  | CP44: =IF(OR(ISERROR(FIND("-",U14)),AI14<='export html'!$AR$7),"",IF(AND(LEFT(U14)="*",RIGHT(U14)="*"),"ff",IF(CP14>CP29,"t",IF(CP14<CP29,"u","g")))) ->  | CQ44: =IF(OR(ISERROR(FIND("-",V14)),AJ14<='export html'!$AR$7),"",IF(AND(LEFT(V14)="*",RIGHT(V14)="*"),"ff",IF(CQ14>CQ29,"t",IF(CQ14<CQ29,"u","g")))) ->  | CR44: =IF(OR(ISERROR(FIND("-",W14)),AK14<='export html'!$AR$7),"",IF(AND(LEFT(W14)="*",RIGHT(W14)="*"),"ff",IF(CR14>CR29,"t",IF(CR14<CR29,"u","g")))) ->  | CS44: =IF(OR(ISERROR(FIND("-",X14)),AL14<='export html'!$AR$7),"",IF(AND(LEFT(X14)="*",RIGHT(X14)="*"),"ff",IF(CS14>CS29,"t",IF(CS14<CS29,"u","g")))) ->  | CT44: =IF(OR(ISERROR(FIND("-",Y14)),AM14<='export html'!$AR$7),"",IF(AND(LEFT(Y14)="*",RIGHT(Y14)="*"),"ff",IF(CT14>CT29,"t",IF(CT14<CT29,"u","g")))) ->  | CV44: =IF(OR(ISERROR(FIND("-",AA14)),AO14<='export html'!$AR$7),"",IF(AND(LEFT(AA14)="*",RIGHT(AA14)="*"),"ff",IF(CV14>CV29,"t",IF(CV14<CV29,"u","g")))) ->  | CW44: =IF(OR(ISERROR(FIND("-",AB14)),AP14<='export html'!$AR$7),"",IF(AND(LEFT(AB14)="*",RIGHT(AB14)="*"),"ff",IF(CW14>CW29,"t",IF(CW14<CW29,"u","g")))) ->  | CX44: =IF(OR(ISERROR(FIND("-",AC14)),AQ14<='export html'!$AR$7),"",IF(AND(LEFT(AC14)="*",RIGHT(AC14)="*"),"ff",IF(CX14>CX29,"t",IF(CX14<CX29,"u","g")))) ->  | CY44: =IF(OR(ISERROR(FIND("-",AD14)),AR14<='export html'!$AR$7),"",IF(AND(LEFT(AD14)="*",RIGHT(AD14)="*"),"ff",IF(CY14>CY29,"t",IF(CY14<CY29,"u","g")))) ->  | CZ44: 10
BV45: 11 | BW45: =IF(OR(ISERROR(FIND("-",Q15)),AE15>'export html'!$AR$7),"",IF(AND(LEFT(Q15)="*",RIGHT(Q15)="*"),"ff",IF(BW15>BW30,"t",IF(BW15<BW30,"u","g")))) ->  | BX45: =IF(OR(ISERROR(FIND("-",R15)),AF15>'export html'!$AR$7),"",IF(AND(LEFT(R15)="*",RIGHT(R15)="*"),"ff",IF(BX15>BX30,"t",IF(BX15<BX30,"u","g")))) ->  | BY45: =IF(OR(ISERROR(FIND("-",S15)),AG15>'export html'!$AR$7),"",IF(AND(LEFT(S15)="*",RIGHT(S15)="*"),"ff",IF(BY15>BY30,"t",IF(BY15<BY30,"u","g")))) -> t | BZ45: =IF(OR(ISERROR(FIND("-",T15)),AH15>'export html'!$AR$7),"",IF(AND(LEFT(T15)="*",RIGHT(T15)="*"),"ff",IF(BZ15>BZ30,"t",IF(BZ15<BZ30,"u","g")))) -> u | CA45: =IF(OR(ISERROR(FIND("-",U15)),AI15>'export html'!$AR$7),"",IF(AND(LEFT(U15)="*",RIGHT(U15)="*"),"ff",IF(CA15>CA30,"t",IF(CA15<CA30,"u","g")))) ->  | CB45: =IF(OR(ISERROR(FIND("-",V15)),AJ15>'export html'!$AR$7),"",IF(AND(LEFT(V15)="*",RIGHT(V15)="*"),"ff",IF(CB15>CB30,"t",IF(CB15<CB30,"u","g")))) ->  | CC45: =IF(OR(ISERROR(FIND("-",W15)),AK15>'export html'!$AR$7),"",IF(AND(LEFT(W15)="*",RIGHT(W15)="*"),"ff",IF(CC15>CC30,"t",IF(CC15<CC30,"u","g")))) ->  | CD45: =IF(OR(ISERROR(FIND("-",X15)),AL15>'export html'!$AR$7),"",IF(AND(LEFT(X15)="*",RIGHT(X15)="*"),"ff",IF(CD15>CD30,"t",IF(CD15<CD30,"u","g")))) ->  | CE45: =IF(OR(ISERROR(FIND("-",Y15)),AM15>'export html'!$AR$7),"",IF(AND(LEFT(Y15)="*",RIGHT(Y15)="*"),"ff",IF(CE15>CE30,"t",IF(CE15<CE30,"u","g")))) -> t | CF45: =IF(OR(ISERROR(FIND("-",Z15)),AN15>'export html'!$AR$7),"",IF(AND(LEFT(Z15)="*",RIGHT(Z15)="*"),"ff",IF(CF15>CF30,"t",IF(CF15<CF30,"u","g")))) ->  | CH45: =IF(OR(ISERROR(FIND("-",AB15)),AP15>'export html'!$AR$7),"",IF(AND(LEFT(AB15)="*",RIGHT(AB15)="*"),"ff",IF(CH15>CH30,"t",IF(CH15<CH30,"u","g")))) ->  | CI45: =IF(OR(ISERROR(FIND("-",AC15)),AQ15>'export html'!$AR$7),"",IF(AND(LEFT(AC15)="*",RIGHT(AC15)="*"),"ff",IF(CI15>CI30,"t",IF(CI15<CI30,"u","g")))) ->  | CJ45: =IF(OR(ISERROR(FIND("-",AD15)),AR15>'export html'!$AR$7),"",IF(AND(LEFT(AD15)="*",RIGHT(AD15)="*"),"ff",IF(CJ15>CJ30,"t",IF(CJ15<CJ30,"u","g")))) ->  | CK45: 11 | CL45: =IF(OR(ISERROR(FIND("-",Q15)),AE15<='export html'!$AR$7),"",IF(AND(LEFT(Q15)="*",RIGHT(Q15)="*"),"ff",IF(CL15>CL30,"t",IF(CL15<CL30,"u","g")))) ->  | CM45: =IF(OR(ISERROR(FIND("-",R15)),AF15<='export html'!$AR$7),"",IF(AND(LEFT(R15)="*",RIGHT(R15)="*"),"ff",IF(CM15>CM30,"t",IF(CM15<CM30,"u","g")))) ->  | CN45: =IF(OR(ISERROR(FIND("-",S15)),AG15<='export html'!$AR$7),"",IF(AND(LEFT(S15)="*",RIGHT(S15)="*"),"ff",IF(CN15>CN30,"t",IF(CN15<CN30,"u","g")))) ->  | CO45: =IF(OR(ISERROR(FIND("-",T15)),AH15<='export html'!$AR$7),"",IF(AND(LEFT(T15)="*",RIGHT(T15)="*"),"ff",IF(CO15>CO30,"t",IF(CO15<CO30,"u","g")))) ->  | CP45: =IF(OR(ISERROR(FIND("-",U15)),AI15<='export html'!$AR$7),"",IF(AND(LEFT(U15)="*",RIGHT(U15)="*"),"ff",IF(CP15>CP30,"t",IF(CP15<CP30,"u","g")))) ->  | CQ45: =IF(OR(ISERROR(FIND("-",V15)),AJ15<='export html'!$AR$7),"",IF(AND(LEFT(V15)="*",RIGHT(V15)="*"),"ff",IF(CQ15>CQ30,"t",IF(CQ15<CQ30,"u","g")))) ->  | CR45: =IF(OR(ISERROR(FIND("-",W15)),AK15<='export html'!$AR$7),"",IF(AND(LEFT(W15)="*",RIGHT(W15)="*"),"ff",IF(CR15>CR30,"t",IF(CR15<CR30,"u","g")))) ->  | CS45: =IF(OR(ISERROR(FIND("-",X15)),AL15<='export html'!$AR$7),"",IF(AND(LEFT(X15)="*",RIGHT(X15)="*"),"ff",IF(CS15>CS30,"t",IF(CS15<CS30,"u","g")))) ->  | CT45: =IF(OR(ISERROR(FIND("-",Y15)),AM15<='export html'!$AR$7),"",IF(AND(LEFT(Y15)="*",RIGHT(Y15)="*"),"ff",IF(CT15>CT30,"t",IF(CT15<CT30,"u","g")))) ->  | CU45: =IF(OR(ISERROR(FIND("-",Z15)),AN15<='export html'!$AR$7),"",IF(AND(LEFT(Z15)="*",RIGHT(Z15)="*"),"ff",IF(CU15>CU30,"t",IF(CU15<CU30,"u","g")))) ->  | CW45: =IF(OR(ISERROR(FIND("-",AB15)),AP15<='export html'!$AR$7),"",IF(AND(LEFT(AB15)="*",RIGHT(AB15)="*"),"ff",IF(CW15>CW30,"t",IF(CW15<CW30,"u","g")))) ->  | CX45: =IF(OR(ISERROR(FIND("-",AC15)),AQ15<='export html'!$AR$7),"",IF(AND(LEFT(AC15)="*",RIGHT(AC15)="*"),"ff",IF(CX15>CX30,"t",IF(CX15<CX30,"u","g")))) ->  | CY45: =IF(OR(ISERROR(FIND("-",AD15)),AR15<='export html'!$AR$7),"",IF(AND(LEFT(AD15)="*",RIGHT(AD15)="*"),"ff",IF(CY15>CY30,"t",IF(CY15<CY30,"u","g")))) ->  | CZ45: 11
BV46: 12 | BW46: =IF(OR(ISERROR(FIND("-",Q16)),AE16>'export html'!$AR$7),"",IF(AND(LEFT(Q16)="*",RIGHT(Q16)="*"),"ff",IF(BW16>BW31,"t",IF(BW16<BW31,"u","g")))) ->  | BX46: =IF(OR(ISERROR(FIND("-",R16)),AF16>'export html'!$AR$7),"",IF(AND(LEFT(R16)="*",RIGHT(R16)="*"),"ff",IF(BX16>BX31,"t",IF(BX16<BX31,"u","g")))) ->  | BY46: =IF(OR(ISERROR(FIND("-",S16)),AG16>'export html'!$AR$7),"",IF(AND(LEFT(S16)="*",RIGHT(S16)="*"),"ff",IF(BY16>BY31,"t",IF(BY16<BY31,"u","g")))) ->  | BZ46: =IF(OR(ISERROR(FIND("-",T16)),AH16>'export html'!$AR$7),"",IF(AND(LEFT(T16)="*",RIGHT(T16)="*"),"ff",IF(BZ16>BZ31,"t",IF(BZ16<BZ31,"u","g")))) ->  | CA46: =IF(OR(ISERROR(FIND("-",U16)),AI16>'export html'!$AR$7),"",IF(AND(LEFT(U16)="*",RIGHT(U16)="*"),"ff",IF(CA16>CA31,"t",IF(CA16<CA31,"u","g")))) ->  | CB46: =IF(OR(ISERROR(FIND("-",V16)),AJ16>'export html'!$AR$7),"",IF(AND(LEFT(V16)="*",RIGHT(V16)="*"),"ff",IF(CB16>CB31,"t",IF(CB16<CB31,"u","g")))) -> u | CC46: =IF(OR(ISERROR(FIND("-",W16)),AK16>'export html'!$AR$7),"",IF(AND(LEFT(W16)="*",RIGHT(W16)="*"),"ff",IF(CC16>CC31,"t",IF(CC16<CC31,"u","g")))) -> t | CD46: =IF(OR(ISERROR(FIND("-",X16)),AL16>'export html'!$AR$7),"",IF(AND(LEFT(X16)="*",RIGHT(X16)="*"),"ff",IF(CD16>CD31,"t",IF(CD16<CD31,"u","g")))) ->  | CE46: =IF(OR(ISERROR(FIND("-",Y16)),AM16>'export html'!$AR$7),"",IF(AND(LEFT(Y16)="*",RIGHT(Y16)="*"),"ff",IF(CE16>CE31,"t",IF(CE16<CE31,"u","g")))) ->  | CF46: =IF(OR(ISERROR(FIND("-",Z16)),AN16>'export html'!$AR$7),"",IF(AND(LEFT(Z16)="*",RIGHT(Z16)="*"),"ff",IF(CF16>CF31,"t",IF(CF16<CF31,"u","g")))) ->  | CG46: =IF(OR(ISERROR(FIND("-",AA16)),AO16>'export html'!$AR$7),"",IF(AND(LEFT(AA16)="*",RIGHT(AA16)="*"),"ff",IF(CG16>CG31,"t",IF(CG16<CG31,"u","g")))) ->  | CI46: =IF(OR(ISERROR(FIND("-",AC16)),AQ16>'export html'!$AR$7),"",IF(AND(LEFT(AC16)="*",RIGHT(AC16)="*"),"ff",IF(CI16>CI31,"t",IF(CI16<CI31,"u","g")))) -> t | CJ46: =IF(OR(ISERROR(FIND("-",AD16)),AR16>'export html'!$AR$7),"",IF(AND(LEFT(AD16)="*",RIGHT(AD16)="*"),"ff",IF(CJ16>CJ31,"t",IF(CJ16<CJ31,"u","g")))) ->  | CK46: 12 | CL46: =IF(OR(ISERROR(FIND("-",Q16)),AE16<='export html'!$AR$7),"",IF(AND(LEFT(Q16)="*",RIGHT(Q16)="*"),"ff",IF(CL16>CL31,"t",IF(CL16<CL31,"u","g")))) ->  | CM46: =IF(OR(ISERROR(FIND("-",R16)),AF16<='export html'!$AR$7),"",IF(AND(LEFT(R16)="*",RIGHT(R16)="*"),"ff",IF(CM16>CM31,"t",IF(CM16<CM31,"u","g")))) ->  | CN46: =IF(OR(ISERROR(FIND("-",S16)),AG16<='export html'!$AR$7),"",IF(AND(LEFT(S16)="*",RIGHT(S16)="*"),"ff",IF(CN16>CN31,"t",IF(CN16<CN31,"u","g")))) ->  | CO46: =IF(OR(ISERROR(FIND("-",T16)),AH16<='export html'!$AR$7),"",IF(AND(LEFT(T16)="*",RIGHT(T16)="*"),"ff",IF(CO16>CO31,"t",IF(CO16<CO31,"u","g")))) ->  | CP46: =IF(OR(ISERROR(FIND("-",U16)),AI16<='export html'!$AR$7),"",IF(AND(LEFT(U16)="*",RIGHT(U16)="*"),"ff",IF(CP16>CP31,"t",IF(CP16<CP31,"u","g")))) ->  | CQ46: =IF(OR(ISERROR(FIND("-",V16)),AJ16<='export html'!$AR$7),"",IF(AND(LEFT(V16)="*",RIGHT(V16)="*"),"ff",IF(CQ16>CQ31,"t",IF(CQ16<CQ31,"u","g")))) ->  | CR46: =IF(OR(ISERROR(FIND("-",W16)),AK16<='export html'!$AR$7),"",IF(AND(LEFT(W16)="*",RIGHT(W16)="*"),"ff",IF(CR16>CR31,"t",IF(CR16<CR31,"u","g")))) ->  | CS46: =IF(OR(ISERROR(FIND("-",X16)),AL16<='export html'!$AR$7),"",IF(AND(LEFT(X16)="*",RIGHT(X16)="*"),"ff",IF(CS16>CS31,"t",IF(CS16<CS31,"u","g")))) ->  | CT46: =IF(OR(ISERROR(FIND("-",Y16)),AM16<='export html'!$AR$7),"",IF(AND(LEFT(Y16)="*",RIGHT(Y16)="*"),"ff",IF(CT16>CT31,"t",IF(CT16<CT31,"u","g")))) ->  | CU46: =IF(OR(ISERROR(FIND("-",Z16)),AN16<='export html'!$AR$7),"",IF(AND(LEFT(Z16)="*",RIGHT(Z16)="*"),"ff",IF(CU16>CU31,"t",IF(CU16<CU31,"u","g")))) ->  | CV46: =IF(OR(ISERROR(FIND("-",AA16)),AO16<='export html'!$AR$7),"",IF(AND(LEFT(AA16)="*",RIGHT(AA16)="*"),"ff",IF(CV16>CV31,"t",IF(CV16<CV31,"u","g")))) ->  | CX46: =IF(OR(ISERROR(FIND("-",AC16)),AQ16<='export html'!$AR$7),"",IF(AND(LEFT(AC16)="*",RIGHT(AC16)="*"),"ff",IF(CX16>CX31,"t",IF(CX16<CX31,"u","g")))) ->  | CY46: =IF(OR(ISERROR(FIND("-",AD16)),AR16<='export html'!$AR$7),"",IF(AND(LEFT(AD16)="*",RIGHT(AD16)="*"),"ff",IF(CY16>CY31,"t",IF(CY16<CY31,"u","g")))) ->  | CZ46: 12
BV47: 13 | BW47: =IF(OR(ISERROR(FIND("-",Q17)),AE17>'export html'!$AR$7),"",IF(AND(LEFT(Q17)="*",RIGHT(Q17)="*"),"ff",IF(BW17>BW32,"t",IF(BW17<BW32,"u","g")))) ->  | BX47: =IF(OR(ISERROR(FIND("-",R17)),AF17>'export html'!$AR$7),"",IF(AND(LEFT(R17)="*",RIGHT(R17)="*"),"ff",IF(BX17>BX32,"t",IF(BX17<BX32,"u","g")))) ->  | BY47: =IF(OR(ISERROR(FIND("-",S17)),AG17>'export html'!$AR$7),"",IF(AND(LEFT(S17)="*",RIGHT(S17)="*"),"ff",IF(BY17>BY32,"t",IF(BY17<BY32,"u","g")))) ->  | BZ47: =IF(OR(ISERROR(FIND("-",T17)),AH17>'export html'!$AR$7),"",IF(AND(LEFT(T17)="*",RIGHT(T17)="*"),"ff",IF(BZ17>BZ32,"t",IF(BZ17<BZ32,"u","g")))) -> g | CA47: =IF(OR(ISERROR(FIND("-",U17)),AI17>'export html'!$AR$7),"",IF(AND(LEFT(U17)="*",RIGHT(U17)="*"),"ff",IF(CA17>CA32,"t",IF(CA17<CA32,"u","g")))) -> g | CB47: =IF(OR(ISERROR(FIND("-",V17)),AJ17>'export html'!$AR$7),"",IF(AND(LEFT(V17)="*",RIGHT(V17)="*"),"ff",IF(CB17>CB32,"t",IF(CB17<CB32,"u","g")))) ->  | CC47: =IF(OR(ISERROR(FIND("-",W17)),AK17>'export html'!$AR$7),"",IF(AND(LEFT(W17)="*",RIGHT(W17)="*"),"ff",IF(CC17>CC32,"t",IF(CC17<CC32,"u","g")))) ->  | CD47: =IF(OR(ISERROR(FIND("-",X17)),AL17>'export html'!$AR$7),"",IF(AND(LEFT(X17)="*",RIGHT(X17)="*"),"ff",IF(CD17>CD32,"t",IF(CD17<CD32,"u","g")))) ->  | CE47: =IF(OR(ISERROR(FIND("-",Y17)),AM17>'export html'!$AR$7),"",IF(AND(LEFT(Y17)="*",RIGHT(Y17)="*"),"ff",IF(CE17>CE32,"t",IF(CE17<CE32,"u","g")))) ->  | CF47: =IF(OR(ISERROR(FIND("-",Z17)),AN17>'export html'!$AR$7),"",IF(AND(LEFT(Z17)="*",RIGHT(Z17)="*"),"ff",IF(CF17>CF32,"t",IF(CF17<CF32,"u","g")))) -> t | CG47: =IF(OR(ISERROR(FIND("-",AA17)),AO17>'export html'!$AR$7),"",IF(AND(LEFT(AA17)="*",RIGHT(AA17)="*"),"ff",IF(CG17>CG32,"t",IF(CG17<CG32,"u","g")))) ->  | CH47: =IF(OR(ISERROR(FIND("-",AB17)),AP17>'export html'!$AR$7),"",IF(AND(LEFT(AB17)="*",RIGHT(AB17)="*"),"ff",IF(CH17>CH32,"t",IF(CH17<CH32,"u","g")))) ->  | CJ47: =IF(OR(ISERROR(FIND("-",AD17)),AR17>'export html'!$AR$7),"",IF(AND(LEFT(AD17)="*",RIGHT(AD17)="*"),"ff",IF(CJ17>CJ32,"t",IF(CJ17<CJ32,"u","g")))) ->  | CK47: 13 | CL47: =IF(OR(ISERROR(FIND("-",Q17)),AE17<='export html'!$AR$7),"",IF(AND(LEFT(Q17)="*",RIGHT(Q17)="*"),"ff",IF(CL17>CL32,"t",IF(CL17<CL32,"u","g")))) ->  | CM47: =IF(OR(ISERROR(FIND("-",R17)),AF17<='export html'!$AR$7),"",IF(AND(LEFT(R17)="*",RIGHT(R17)="*"),"ff",IF(CM17>CM32,"t",IF(CM17<CM32,"u","g")))) ->  | CN47: =IF(OR(ISERROR(FIND("-",S17)),AG17<='export html'!$AR$7),"",IF(AND(LEFT(S17)="*",RIGHT(S17)="*"),"ff",IF(CN17>CN32,"t",IF(CN17<CN32,"u","g")))) ->  | CO47: =IF(OR(ISERROR(FIND("-",T17)),AH17<='export html'!$AR$7),"",IF(AND(LEFT(T17)="*",RIGHT(T17)="*"),"ff",IF(CO17>CO32,"t",IF(CO17<CO32,"u","g")))) ->  | CP47: =IF(OR(ISERROR(FIND("-",U17)),AI17<='export html'!$AR$7),"",IF(AND(LEFT(U17)="*",RIGHT(U17)="*"),"ff",IF(CP17>CP32,"t",IF(CP17<CP32,"u","g")))) ->  | CQ47: =IF(OR(ISERROR(FIND("-",V17)),AJ17<='export html'!$AR$7),"",IF(AND(LEFT(V17)="*",RIGHT(V17)="*"),"ff",IF(CQ17>CQ32,"t",IF(CQ17<CQ32,"u","g")))) ->  | CR47: =IF(OR(ISERROR(FIND("-",W17)),AK17<='export html'!$AR$7),"",IF(AND(LEFT(W17)="*",RIGHT(W17)="*"),"ff",IF(CR17>CR32,"t",IF(CR17<CR32,"u","g")))) ->  | CS47: =IF(OR(ISERROR(FIND("-",X17)),AL17<='export html'!$AR$7),"",IF(AND(LEFT(X17)="*",RIGHT(X17)="*"),"ff",IF(CS17>CS32,"t",IF(CS17<CS32,"u","g")))) ->  | CT47: =IF(OR(ISERROR(FIND("-",Y17)),AM17<='export html'!$AR$7),"",IF(AND(LEFT(Y17)="*",RIGHT(Y17)="*"),"ff",IF(CT17>CT32,"t",IF(CT17<CT32,"u","g")))) ->  | CU47: =IF(OR(ISERROR(FIND("-",Z17)),AN17<='export html'!$AR$7),"",IF(AND(LEFT(Z17)="*",RIGHT(Z17)="*"),"ff",IF(CU17>CU32,"t",IF(CU17<CU32,"u","g")))) ->  | CV47: =IF(OR(ISERROR(FIND("-",AA17)),AO17<='export html'!$AR$7),"",IF(AND(LEFT(AA17)="*",RIGHT(AA17)="*"),"ff",IF(CV17>CV32,"t",IF(CV17<CV32,"u","g")))) ->  | CW47: =IF(OR(ISERROR(FIND("-",AB17)),AP17<='export html'!$AR$7),"",IF(AND(LEFT(AB17)="*",RIGHT(AB17)="*"),"ff",IF(CW17>CW32,"t",IF(CW17<CW32,"u","g")))) ->  | CY47: =IF(OR(ISERROR(FIND("-",AD17)),AR17<='export html'!$AR$7),"",IF(AND(LEFT(AD17)="*",RIGHT(AD17)="*"),"ff",IF(CY17>CY32,"t",IF(CY17<CY32,"u","g")))) ->  | CZ47: 13
BV48: 14 | BW48: =IF(OR(ISERROR(FIND("-",Q18)),AE18>'export html'!$AR$7),"",IF(AND(LEFT(Q18)="*",RIGHT(Q18)="*"),"ff",IF(BW18>BW33,"t",IF(BW18<BW33,"u","g")))) ->  | BX48: =IF(OR(ISERROR(FIND("-",R18)),AF18>'export html'!$AR$7),"",IF(AND(LEFT(R18)="*",RIGHT(R18)="*"),"ff",IF(BX18>BX33,"t",IF(BX18<BX33,"u","g")))) ->  | BY48: =IF(OR(ISERROR(FIND("-",S18)),AG18>'export html'!$AR$7),"",IF(AND(LEFT(S18)="*",RIGHT(S18)="*"),"ff",IF(BY18>BY33,"t",IF(BY18<BY33,"u","g")))) ->  | BZ48: =IF(OR(ISERROR(FIND("-",T18)),AH18>'export html'!$AR$7),"",IF(AND(LEFT(T18)="*",RIGHT(T18)="*"),"ff",IF(BZ18>BZ33,"t",IF(BZ18<BZ33,"u","g")))) ->  | CA48: =IF(OR(ISERROR(FIND("-",U18)),AI18>'export html'!$AR$7),"",IF(AND(LEFT(U18)="*",RIGHT(U18)="*"),"ff",IF(CA18>CA33,"t",IF(CA18<CA33,"u","g")))) ->  | CB48: =IF(OR(ISERROR(FIND("-",V18)),AJ18>'export html'!$AR$7),"",IF(AND(LEFT(V18)="*",RIGHT(V18)="*"),"ff",IF(CB18>CB33,"t",IF(CB18<CB33,"u","g")))) ->  | CC48: =IF(OR(ISERROR(FIND("-",W18)),AK18>'export html'!$AR$7),"",IF(AND(LEFT(W18)="*",RIGHT(W18)="*"),"ff",IF(CC18>CC33,"t",IF(CC18<CC33,"u","g")))) -> t | CD48: =IF(OR(ISERROR(FIND("-",X18)),AL18>'export html'!$AR$7),"",IF(AND(LEFT(X18)="*",RIGHT(X18)="*"),"ff",IF(CD18>CD33,"t",IF(CD18<CD33,"u","g")))) ->  | CE48: =IF(OR(ISERROR(FIND("-",Y18)),AM18>'export html'!$AR$7),"",IF(AND(LEFT(Y18)="*",RIGHT(Y18)="*"),"ff",IF(CE18>CE33,"t",IF(CE18<CE33,"u","g")))) ->  | CF48: =IF(OR(ISERROR(FIND("-",Z18)),AN18>'export html'!$AR$7),"",IF(AND(LEFT(Z18)="*",RIGHT(Z18)="*"),"ff",IF(CF18>CF33,"t",IF(CF18<CF33,"u","g")))) ->  | CG48: =IF(OR(ISERROR(FIND("-",AA18)),AO18>'export html'!$AR$7),"",IF(AND(LEFT(AA18)="*",RIGHT(AA18)="*"),"ff",IF(CG18>CG33,"t",IF(CG18<CG33,"u","g")))) -> t | CH48: =IF(OR(ISERROR(FIND("-",AB18)),AP18>'export html'!$AR$7),"",IF(AND(LEFT(AB18)="*",RIGHT(AB18)="*"),"ff",IF(CH18>CH33,"t",IF(CH18<CH33,"u","g")))) ->  | CI48: =IF(OR(ISERROR(FIND("-",AC18)),AQ18>'export html'!$AR$7),"",IF(AND(LEFT(AC18)="*",RIGHT(AC18)="*"),"ff",IF(CI18>CI33,"t",IF(CI18<CI33,"u","g")))) -> t | CK48: 14 | CL48: =IF(OR(ISERROR(FIND("-",Q18)),AE18<='export html'!$AR$7),"",IF(AND(LEFT(Q18)="*",RIGHT(Q18)="*"),"ff",IF(CL18>CL33,"t",IF(CL18<CL33,"u","g")))) ->  | CM48: =IF(OR(ISERROR(FIND("-",R18)),AF18<='export html'!$AR$7),"",IF(AND(LEFT(R18)="*",RIGHT(R18)="*"),"ff",IF(CM18>CM33,"t",IF(CM18<CM33,"u","g")))) ->  | CN48: =IF(OR(ISERROR(FIND("-",S18)),AG18<='export html'!$AR$7),"",IF(AND(LEFT(S18)="*",RIGHT(S18)="*"),"ff",IF(CN18>CN33,"t",IF(CN18<CN33,"u","g")))) ->  | CO48: =IF(OR(ISERROR(FIND("-",T18)),AH18<='export html'!$AR$7),"",IF(AND(LEFT(T18)="*",RIGHT(T18)="*"),"ff",IF(CO18>CO33,"t",IF(CO18<CO33,"u","g")))) ->  | CP48: =IF(OR(ISERROR(FIND("-",U18)),AI18<='export html'!$AR$7),"",IF(AND(LEFT(U18)="*",RIGHT(U18)="*"),"ff",IF(CP18>CP33,"t",IF(CP18<CP33,"u","g")))) ->  | CQ48: =IF(OR(ISERROR(FIND("-",V18)),AJ18<='export html'!$AR$7),"",IF(AND(LEFT(V18)="*",RIGHT(V18)="*"),"ff",IF(CQ18>CQ33,"t",IF(CQ18<CQ33,"u","g")))) ->  | CR48: =IF(OR(ISERROR(FIND("-",W18)),AK18<='export html'!$AR$7),"",IF(AND(LEFT(W18)="*",RIGHT(W18)="*"),"ff",IF(CR18>CR33,"t",IF(CR18<CR33,"u","g")))) ->  | CS48: =IF(OR(ISERROR(FIND("-",X18)),AL18<='export html'!$AR$7),"",IF(AND(LEFT(X18)="*",RIGHT(X18)="*"),"ff",IF(CS18>CS33,"t",IF(CS18<CS33,"u","g")))) ->  | CT48: =IF(OR(ISERROR(FIND("-",Y18)),AM18<='export html'!$AR$7),"",IF(AND(LEFT(Y18)="*",RIGHT(Y18)="*"),"ff",IF(CT18>CT33,"t",IF(CT18<CT33,"u","g")))) ->  | CU48: =IF(OR(ISERROR(FIND("-",Z18)),AN18<='export html'!$AR$7),"",IF(AND(LEFT(Z18)="*",RIGHT(Z18)="*"),"ff",IF(CU18>CU33,"t",IF(CU18<CU33,"u","g")))) ->  | CV48: =IF(OR(ISERROR(FIND("-",AA18)),AO18<='export html'!$AR$7),"",IF(AND(LEFT(AA18)="*",RIGHT(AA18)="*"),"ff",IF(CV18>CV33,"t",IF(CV18<CV33,"u","g")))) ->  | CW48: =IF(OR(ISERROR(FIND("-",AB18)),AP18<='export html'!$AR$7),"",IF(AND(LEFT(AB18)="*",RIGHT(AB18)="*"),"ff",IF(CW18>CW33,"t",IF(CW18<CW33,"u","g")))) ->  | CX48: =IF(OR(ISERROR(FIND("-",AC18)),AQ18<='export html'!$AR$7),"",IF(AND(LEFT(AC18)="*",RIGHT(AC18)="*"),"ff",IF(CX18>CX33,"t",IF(CX18<CX33,"u","g")))) ->  | CZ48: 14
BW49: 1 | BX49: 2 | BY49: 3 | BZ49: 4 | CA49: 5 | CB49: 6 | CC49: 7 | CD49: 8 | CE49: 9 | CF49: 10 | CG49: 11 | CH49: 12 | CI49: 13 | CJ49: 14 | CL49: 1 | CM49: 2 | CN49: 3 | CO49: 4 | CP49: 5 | CQ49: 6 | CR49: 7 | CS49: 8 | CT49: 9 | CU49: 10 | CV49: 11 | CW49: 12 | CX49: 13 | CY49: 14

Sheet kalender
B2: Spd. | C2: Datum | D2: Thuisploeg | F2: Uitploeg | G2: Uitslag
A3: Competitie | B3: =IF(LEN('export html'!BF3),'export html'!BF3,"") -> 1 | C3: =IF(LEN('export html'!BE3),'export html'!BE3,"") -> 2024-09-01 | D3: =IF(LEN('export html'!BI3),'export html'!BI3,"") -> Lucyvo | E3: =IF(LEN('export html'!BI3),"-","") -> - | F3: =IF(LEN('export html'!BJ3),'export html'!BJ3,"") -> Bar Patron | G3: =IF(LEN('export html'!BH3),'export html'!BH3,"") -> 2-4
B4: =IF(LEN('export html'!BF4),'export html'!BF4,"") -> 2 | C4: =IF(LEN('export html'!BE4),'export html'!BE4,"") -> 2024-09-08 | D4: =IF(LEN('export html'!BI4),'export html'!BI4,"") -> Goka | E4: =IF(LEN('export html'!BI4),"-","") -> - | F4: =IF(LEN('export html'!BJ4),'export html'!BJ4,"") -> Lucyvo | G4: =IF(LEN('export html'!BH4),'export html'!BH4,"") -> 3-0
B5: =IF(LEN('export html'!BF5),'export html'!BF5,"") -> 3 | C5: =IF(LEN('export html'!BE5),'export html'!BE5,"") -> 2024-09-15 | D5: =IF(LEN('export html'!BI5),'export html'!BI5,"") -> Lucyvo | E5: =IF(LEN('export html'!BI5),"-","") -> - | F5: =IF(LEN('export html'!BJ5),'export html'!BJ5,"") -> Alberta Schilde | G5: =IF(LEN('export html'!BH5),'export html'!BH5,"") -> 1-5
B6: =IF(LEN('export html'!BF6),'export html'!BF6,"") -> 4 | C6: =IF(LEN('export html'!BE6),'export html'!BE6,"") -> 2024-09-21 | D6: =IF(LEN('export html'!BI6),'export html'!BI6,"") -> SC Duffel | E6: =IF(LEN('export html'!BI6),"-","") -> - | F6: =IF(LEN('export html'!BJ6),'export html'!BJ6,"") -> Lucyvo | G6: =IF(LEN('export html'!BH6),'export html'!BH6,"") -> 3-1
B7: =IF(LEN('export html'!BF7),'export html'!BF7,"") -> 5 | C7: =IF(LEN('export html'!BE7),'export html'!BE7,"") -> 2024-09-29 | D7: =IF(LEN('export html'!BI7),'export html'!BI7,"") -> Lucyvo | E7: =IF(LEN('export html'!BI7),"-","") -> - | F7: =IF(LEN('export html'!BJ7),'export html'!BJ7,"") -> Hombeek | G7: =IF(LEN('export html'!BH7),'export html'!BH7,"") -> 5-1
B8: =IF(LEN('export html'!BF8),'export html'!BF8,"") -> 6 | C8: =IF(LEN('export html'!BE8),'export html'!BE8,"") -> 2024-10-06 | D8: =IF(LEN('export html'!BI8),'export html'!BI8,"") -> Daltons | E8: =IF(LEN('export html'!BI8),"-","") -> - | F8: =IF(LEN('export html'!BJ8),'export html'!BJ8,"") -> Lucyvo | G8: =IF(LEN('export html'!BH8),'export html'!BH8,"") -> 3-0
B9: =IF(LEN('export html'!BF9),'export html'!BF9,"") -> 7 | C9: =IF(LEN('export html'!BE9),'export html'!BE9,"") -> 2024-10-13 | D9: =IF(LEN('export html'!BI9),'export html'!BI9,"") -> Lucyvo | E9: =IF(LEN('export html'!BI9),"-","") -> - | F9: =IF(LEN('export html'!BJ9),'export html'!BJ9,"") -> Corum | G9: =IF(LEN('export html'!BH9),'export html'!BH9,"") -> 
B10: =IF(LEN('export html'!BF10),'export html'!BF10,"") -> 8 | C10: =IF(LEN('export html'!BE10),'export html'!BE10,"") -> 2024-10-20 | D10: =IF(LEN('export html'!BI10),'export html'!BI10,"") -> Sint Anneke | E10: =IF(LEN('export html'!BI10),"-","") -> - | F10: =IF(LEN('export html'!BJ10),'export html'!BJ10,"") -> Lucyvo | G10: =IF(LEN('export html'!BH10),'export html'!BH10,"") -> 
B11: =IF(LEN('export html'!BF11),'export html'!BF11,"") -> 9 | C11: =IF(LEN('export html'!BE11),'export html'!BE11,"") -> 2024-11-03 | D11: =IF(LEN('export html'!BI11),'export html'!BI11,"") -> Jolika | E11: =IF(LEN('export html'!BI11),"-","") -> - | F11: =IF(LEN('export html'!BJ11),'export html'!BJ11,"") -> Lucyvo | G11: =IF(LEN('export html'!BH11),'export html'!BH11,"") -> 
B12: =IF(LEN('export html'!BF12),'export html'!BF12,"") -> 10 | C12: =IF(LEN('export html'!BE12),'export html'!BE12,"") -> 2024-11-10 | D12: =IF(LEN('export html'!BI12),'export html'!BI12,"") -> Lucyvo | E12: =IF(LEN('export html'!BI12),"-","") -> - | F12: =IF(LEN('export html'!BJ12),'export html'!BJ12,"") -> Yerevan United | G12: =IF(LEN('export html'!BH12),'export html'!BH12,"") -> 
B13: =IF(LEN('export html'!BF13),'export html'!BF13,"") -> 11 | C13: =IF(LEN('export html'!BE13),'export html'!BE13,"") -> 2024-11-17 | D13: =IF(LEN('export html'!BI13),'export html'!BI13,"") -> Bariton | E13: =IF(LEN('export html'!BI13),"-","") -> - | F13: =IF(LEN('export html'!BJ13),'export html'!BJ13,"") -> Lucyvo | G13: =IF(LEN('export html'!BH13),'export html'!BH13,"") -> 
B14: =IF(LEN('export html'!BF14),'export html'!BF14,"") -> 12 | C14: =IF(LEN('export html'!BE14),'export html'!BE14,"") -> 2024-11-24 | D14: =IF(LEN('export html'!BI14),'export html'!BI14,"") -> Lucyvo | E14: =IF(LEN('export html'!BI14),"-","") -> - | F14: =IF(LEN('export html'!BJ14),'export html'!BJ14,"") -> Antwerp Global | G14: =IF(LEN('export html'!BH14),'export html'!BH14,"") -> 
B15: =IF(LEN('export html'!BF15),'export html'!BF15,"") -> 13 | C15: =IF(LEN('export html'!BE15),'export html'!BE15,"") -> 2024-12-01 | D15: =IF(LEN('export html'!BI15),'export html'!BI15,"") -> Racing Emblem | E15: =IF(LEN('export html'!BI15),"-","") -> - | F15: =IF(LEN('export html'!BJ15),'export html'!BJ15,"") -> Lucyvo | G15: =IF(LEN('export html'!BH15),'export html'!BH15,"") -> 
B16: =IF(LEN('export html'!BF16),'export html'!BF16,"") -> 14 | C16: =IF(LEN('export html'!BE16),'export html'!BE16,"") -> 2024-12-08 | D16: =IF(LEN('export html'!BI16),'export html'!BI16,"") -> Bar Patron | E16: =IF(LEN('export html'!BI16),"-","") -> - | F16: =IF(LEN('export html'!BJ16),'export html'!BJ16,"") -> Lucyvo | G16: =IF(LEN('export html'!BH16),'export html'!BH16,"") -> 
B17: =IF(LEN('export html'!BF17),'export html'!BF17,"") -> 17 | C17: =IF(LEN('export html'!BE17),'export html'!BE17,"") -> 2024-12-22 | D17: =IF(LEN('export html'!BI17),'export html'!BI17,"") -> Lucyvo | E17: =IF(LEN('export html'!BI17),"-","") -> - | F17: =IF(LEN('export html'!BJ17),'export html'!BJ17,"") -> SC Duffel | G17: =IF(LEN('export html'!BH17),'export html'!BH17,"") -> 
B18: =IF(LEN('export html'!BF18),'export html'!BF18,"") -> 15 | C18: =IF(LEN('export html'!BE18),'export html'!BE18,"") -> 2025-01-12 | D18: =IF(LEN('export html'!BI18),'export html'!BI18,"") -> Lucyvo | E18: =IF(LEN('export html'!BI18),"-","") -> - | F18: =IF(LEN('export html'!BJ18),'export html'!BJ18,"") -> Goka | G18: =IF(LEN('export html'!BH18),'export html'!BH18,"") -> 
B19: =IF(LEN('export html'!BF19),'export html'!BF19,"") -> 16 | C19: =IF(LEN('export html'!BE19),'export html'!BE19,"") -> 2025-01-19 | D19: =IF(LEN('export html'!BI19),'export html'!BI19,"") -> Alberta Schilde | E19: =IF(LEN('export html'!BI19),"-","") -> - | F19: =IF(LEN('export html'!BJ19),'export html'!BJ19,"") -> Lucyvo | G19: =IF(LEN('export html'!BH19),'export html'!BH19,"") -> 
B20: =IF(LEN('export html'!BF20),'export html'!BF20,"") -> 18 | C20: =IF(LEN('export html'!BE20),'export html'!BE20,"") -> 2025-02-02 | D20: =IF(LEN('export html'!BI20),'export html'!BI20,"") -> Hombeek | E20: =IF(LEN('export html'!BI20),"-","") -> - | F20: =IF(LEN('export html'!BJ20),'export html'!BJ20,"") -> Lucyvo | G20: =IF(LEN('export html'!BH20),'export html'!BH20,"") -> 
B21: =IF(LEN('export html'!BF21),'export html'!BF21,"") -> 19 | C21: =IF(LEN('export html'!BE21),'export html'!BE21,"") -> 2025-02-09 | D21: =IF(LEN('export html'!BI21),'export html'!BI21,"") -> Lucyvo | E21: =IF(LEN('export html'!BI21),"-","") -> - | F21: =IF(LEN('export html'!BJ21),'export html'!BJ21,"") -> Daltons | G21: =IF(LEN('export html'!BH21),'export html'!BH21,"") -> 
B22: =IF(LEN('export html'!BF22),'export html'!BF22,"") -> 20 | C22: =IF(LEN('export html'!BE22),'export html'!BE22,"") -> 2025-02-16 | D22: =IF(LEN('export html'!BI22),'export html'!BI22,"") -> Corum | E22: =IF(LEN('export html'!BI22),"-","") -> - | F22: =IF(LEN('export html'!BJ22),'export html'!BJ22,"") -> Lucyvo | G22: =IF(LEN('export html'!BH22),'export html'!BH22,"") -> 
B23: =IF(LEN('export html'!BF23),'export html'!BF23,"") -> 21 | C23: =IF(LEN('export html'!BE23),'export html'!BE23,"") -> 2025-02-23 | D23: =IF(LEN('export html'!BI23),'export html'!BI23,"") -> Lucyvo | E23: =IF(LEN('export html'!BI23),"-","") -> - | F23: =IF(LEN('export html'!BJ23),'export html'!BJ23,"") -> Sint Anneke | G23: =IF(LEN('export html'!BH23),'export html'!BH23,"") -> 
B24: =IF(LEN('export html'!BF24),'export html'!BF24,"") -> 22 | C24: =IF(LEN('export html'!BE24),'export html'!BE24,"") -> 2025-03-09 | D24: =IF(LEN('export html'!BI24),'export html'!BI24,"") -> Lucyvo | E24: =IF(LEN('export html'!BI24),"-","") -> - | F24: =IF(LEN('export html'!BJ24),'export html'!BJ24,"") -> Jolika | G24: =IF(LEN('export html'!BH24),'export html'!BH24,"") -> 
B25: =IF(LEN('export html'!BF25),'export html'!BF25,"") -> 23 | C25: =IF(LEN('export html'!BE25),'export html'!BE25,"") -> 2025-03-16 | D25: =IF(LEN('export html'!BI25),'export html'!BI25,"") -> Yerevan United | E25: =IF(LEN('export html'!BI25),"-","") -> - | F25: =IF(LEN('export html'!BJ25),'export html'!BJ25,"") -> Lucyvo | G25: =IF(LEN('export html'!BH25),'export html'!BH25,"") -> 
B26: =IF(LEN('export html'!BF26),'export html'!BF26,"") -> 24 | C26: =IF(LEN('export html'!BE26),'export html'!BE26,"") -> 2025-03-23 | D26: =IF(LEN('export html'!BI26),'export html'!BI26,"") -> Lucyvo | E26: =IF(LEN('export html'!BI26),"-","") -> - | F26: =IF(LEN('export html'!BJ26),'export html'!BJ26,"") -> Bariton | G26: =IF(LEN('export html'!BH26),'export html'!BH26,"") -> 
B27: =IF(LEN('export html'!BF27),'export html'!BF27,"") -> 25 | C27: =IF(LEN('export html'!BE27),'export html'!BE27,"") -> 2025-03-30 | D27: =IF(LEN('export html'!BI27),'export html'!BI27,"") -> Antwerp Global | E27: =IF(LEN('export html'!BI27),"-","") -> - | F27: =IF(LEN('export html'!BJ27),'export html'!BJ27,"") -> Lucyvo | G27: =IF(LEN('export html'!BH27),'export html'!BH27,"") -> 
B28: =IF(LEN('export html'!BF28),'export html'!BF28,"") -> 26 | C28: =IF(LEN('export html'!BE28),'export html'!BE28,"") -> 2025-04-06 | D28: =IF(LEN('export html'!BI28),'export html'!BI28,"") -> Lucyvo | E28: =IF(LEN('export html'!BI28),"-","") -> - | F28: =IF(LEN('export html'!BJ28),'export html'!BJ28,"") -> Racing Emblem | G28: =IF(LEN('export html'!BH28),'export html'!BH28,"") -> 
B29: =IF(LEN('export html'!BF29),'export html'!BF29,"") ->  | C29: =IF(LEN('export html'!BE29),'export html'!BE29,"") ->  | D29: =IF(LEN('export html'!BI29),'export html'!BI29,"") ->  | E29: =IF(LEN('export html'!BI29),"-","") ->  | F29: =IF(LEN('export html'!BJ29),'export html'!BJ29,"") ->  | G29: =IF(LEN('export html'!BH29),'export html'!BH29,"") -> 
B30: =IF(LEN('export html'!BF30),'export html'!BF30,"") ->  | C30: =IF(LEN('export html'!BE30),'export html'!BE30,"") ->  | D30: =IF(LEN('export html'!BI30),'export html'!BI30,"") ->  | E30: =IF(LEN('export html'!BI30),"-","") ->  | F30: =IF(LEN('export html'!BJ30),'export html'!BJ30,"") -> 
A34: Oefenmatchen | B34: 1 | E34: -
B35: 2 | E35: -
B36: 3 | E36: -
B37: 4 | E37: -
A39: Beker | B39: 1 | E39: -

Sheet export html (hidden)
A1: =MAX(1,COUNTA(A3:A20)) -> 7 | E1: hulp: thuis | F1: hulp: uit | G1: hulp: uitslag | I1: =MAX(1,COUNT(I3:I9)) -> 7 | M1: hulp: thuis | N1: hulp: uit | O1: hulp: uitslag | T1: =MAX(1,COUNT(T3:T20)) -> 5 | V1: Recentste duels op | W1: uitslag | Z1: =ROWS(_xlfn.ANCHORARRAY( Z3) ) -> 4 | AF1: =ROWS(_xlfn.ANCHORARRAY( AF3) ) -> 5 | AH1: Hulp: # goals | AJ1: =MAX(1,COUNTA(AJ3:AJ20)) -> 1 | AP1: =RANK(spelersstatistieken!AB5,INDIRECT("spelersstatistieken!$" & $AR$8 & "$5:$" & $AR$8 & "$" & 5+$AR$6-1))+ROW()/10^4 -> 7.0001 | AU1: =MAX(1,COUNTA(AU3:AU40)) -> 1 | BE1: =MAX(1,COUNT(BE3:BE30)) -> 26 | BI1: hulp: thuis | BJ1: hulp: uit
A2: Datum | B2: Speeldag | C2: ="Matchen van " & IF('rooster en stand'!$J$31=0,"speeldag " & 'rooster en stand'!$F$31,TEXT('rooster en stand'!$J$31,"dd/mm/jjjj")) -> Matchen van speeldag 6 | D2: Uitslag | I2: Datum | J2: Speeldag | K2: ="Matchen van " & IF('rooster en stand'!$J$31=0,"speeldag " & 'rooster en stand'!$F$31+1,TEXT('rooster en stand'!$J$31+'rooster en stand'!$K$31,"dd/mm/jjjj")) -> Matchen van speeldag 7 | L2: Uitslag / Plaatsen | T2: Datum | U2: Speeldag | V2: =V1 & TEXT('rooster en stand'!$F$21,"dd/mm/yyyy") -> Recentste duels op 08/10/2024 | Z2: Top-5 | AA2: Assists | AF2: Top-5 | AG2: Goals | AJ2: Ronde | AK2: Datum | AL2: Uur | AM2: Match | AN2: Uitslag | AP2: =RANK(spelersstatistieken!AB6,INDIRECT("spelersstatistieken!$" & $AR$8 & "$5:$" & $AR$8 & "$" & 5+$AR$6-1))+ROW()/10^4 -> 7.0002 | AR2: 1 | AS2: berekening stand | AU2: Jaar | AV2: ="Uit het verleden..." & IF(COUNTA(#REF!)>0," (" & AU1 & "x)","") -> Uit het verleden... (1x) | AW2: Uitslag | AX2: Datum | AY2: Speeldag | BE2: Datum | BF2: Speeldag | BG2: Kalender | BH2: Uitslag
A3: 2024-10-05 | B3: 6 | C3: SC Duffel - Bariton | D3: =IF(G3=0,"",G3) -> 1-1 | E3: SC Duffel | F3: Bariton | G3: 1-1 | I3: 2024-10-13 | J3: 7 | K3: Bariton - Hombeek | L3: =IF( O3 <> "", O3, "plaats " & MATCH( M3, 'rooster en stand'!$D$5:$D$18, 0 ) & " - plaats " & MATCH( N3, 'rooster en stand'!$D$5:$D$18, 0 ) ) -> plaats 9 - plaats 8 | M3: Bariton | N3: Hombeek | T3: 2024-10-06 | U3: 6 | V3: Daltons - Lucyvo | W3: 3-0 | Y3: =_xlfn.SEQUENCE(Z1) -> 1 | Z3: =_xlfn.ANCHORARRAY(spelersstatistieken!AK150) -> Glenn De Vinster | AA3: 2 | AE3: =_xlfn.SEQUENCE(AF1) -> 1 | AF3: =_xlfn.ANCHORARRAY(spelersstatistieken!AK100) -> Stijn Hofmans | AG3: 3 | AJ3: Ronde 1 | AP3: =RANK(spelersstatistieken!AB7,INDIRECT("spelersstatistieken!$" & $AR$8 & "$5:$" & $AR$8 & "$" & 5+$AR$6-1))+ROW()/10^4 -> 7.0003 | AR3: 2024-10-10 | AS3: VO kleurtje speeldag | AV3: Geen head-to-head met Corum | BE3: 2024-09-01 | BF3: 1 | BG3: Lucyvo - Bar Patron | BH3: 2-4 | BI3: Lucyvo | BJ3: Bar Patron
A4: 2024-10-06 | B4: 6 | C4: Alberta Schilde - Antwerp Global | D4: 2-0 | E4: Alberta Schilde | F4: Antwerp Global | G4: 2-0 | I4: 2024-10-13 | J4: 7 | K4: Racing Emblem - Alberta Schilde | L4: =IF( O4 <> "", O4, "plaats " & MATCH( M4, 'rooster en stand'!$D$5:$D$18, 0 ) & " - plaats " & MATCH( N4, 'rooster en stand'!$D$5:$D$18, 0 ) ) -> plaats 7 - plaats 3 | M4: Racing Emblem | N4: Alberta Schilde | T4: 2024-09-29 | U4: 5 | V4: Lucyvo - Hombeek | W4: 5-1 | Y4: 2 | Z4: Stijn Hofmans | AA4: 2 | AE4: 2 | AF4: Jorn Verhellen | AG4: 2 | AP4: =RANK(spelersstatistieken!AB8,INDIRECT("spelersstatistieken!$" & $AR$8 & "$5:$" & $AR$8 & "$" & 5+$AR$6-1))+ROW()/10^4 -> 3.0004 | AR4: =COUNTA( 'rooster en stand'!BI5:BI18 ) -> 14 | AS4: aantal ploegen | BE4: 2024-09-08 | BF4: 2 | BG4: Goka - Lucyvo | BH4: 3-0 | BI4: Goka | BJ4: Lucyvo
A5: 2024-10-06 | B5: 6 | C5: Bar Patron - Jolika | D5: 6-0 | E5: Bar Patron | F5: Jolika | G5: 6-0 | I5: 2024-10-13 | J5: 7 | K5: Antwerp Global - SC Duffel | L5: =IF( O5 <> "", O5, "plaats " & MATCH( M5, 'rooster en stand'!$D$5:$D$18, 0 ) & " - plaats " & MATCH( N5, 'rooster en stand'!$D$5:$D$18, 0 ) ) -> plaats 5 - plaats 11 | M5: Antwerp Global | N5: SC Duffel | T5: 2024-09-21 | U5: 4 | V5: SC Duffel - Lucyvo | W5: 3-1 | Y5: 3 | Z5: Stijn Verdickt | AA5: 2 | AE5: 3 | AF5: Wout Beirinckx | AG5: 1 | AP5: =RANK(spelersstatistieken!AB9,INDIRECT("spelersstatistieken!$" & $AR$8 & "$5:$" & $AR$8 & "$" & 5+$AR$6-1))+ROW()/10^4 -> 7.0005 | AR5: =2 * ( AR4 - 1 ) -> 26 | AS5: aantal matchen / ploeg | BE5: 2024-09-15 | BF5: 3 | BG5: Lucyvo - Alberta Schilde | BH5: 1-5 | BI5: Lucyvo | BJ5: Alberta Schilde
A6: 2024-10-06 | B6: 6 | C6: Corum - Sint Anneke | D6: 2-10 | E6: Corum | F6: Sint Anneke | G6: 2-10 | I6: 2024-10-13 | J6: 7 | K6: Bar Patron - Goka | L6: =IF( O6 <> "", O6, "plaats " & MATCH( M6, 'rooster en stand'!$D$5:$D$18, 0 ) & " - plaats " & MATCH( N6, 'rooster en stand'!$D$5:$D$18, 0 ) ) -> plaats 2 - plaats 10 | M6: Bar Patron | N6: Goka | T6: 2024-09-15 | U6: 3 | V6: Lucyvo - Alberta Schilde | W6: 1-5 | Y6: 4 | Z6: Kaïn Verlooy | AA6: 1 | AE6: 4 | AF6: Maarten De Groof | AG6: 1 | AP6: =RANK(spelersstatistieken!AB10,INDIRECT("spelersstatistieken!$" & $AR$8 & "$5:$" & $AR$8 & "$" & 5+$AR$6-1))+ROW()/10^4 -> 7.0006 | AR6: 32 | AS6: aantal spelers | BE6: 2024-09-21 | BF6: 4 | BG6: SC Duffel - Lucyvo | BH6: 3-1 | BI6: SC Duffel | BJ6: Lucyvo
A7: 2024-10-06 | B7: 6 | C7: Daltons - Lucyvo | D7: 3-0 | E7: Daltons | F7: Lucyvo | G7: 3-0 | I7: 2024-10-13 | J7: 7 | K7: Jolika - Sint Anneke | L7: =IF( O7 <> "", O7, "plaats " & MATCH( M7, 'rooster en stand'!$D$5:$D$18, 0 ) & " - plaats " & MATCH( N7, 'rooster en stand'!$D$5:$D$18, 0 ) ) -> plaats 14 - plaats 4 | M7: Jolika | N7: Sint Anneke | T7: 2024-09-08 | U7: 2 | V7: Goka - Lucyvo | W7: 3-0 | AE7: 5 | AF7: Glenn De Vinster | AG7: 1 | AP7: =RANK(spelersstatistieken!AB11,INDIRECT("spelersstatistieken!$" & $AR$8 & "$5:$" & $AR$8 & "$" & 5+$AR$6-1))+ROW()/10^4 -> 7.0007 | AR7: =MatchenPerPloeg / 2 + ( ISODD( AR4 )) -> 13 | AS7: speeldagen in heenronde | BE7: 2024-09-29 | BF7: 5 | BG7: Lucyvo - Hombeek | BH7: 5-1 | BI7: Lucyvo | BJ7: Hombeek
A8: 2024-10-06 | B8: 6 | C8: Hombeek - Yerevan United | D8: =IF(G8=0,"",G8) -> 1-1 | E8: Hombeek | F8: Yerevan United | G8: 1-1 | I8: 2024-10-13 | J8: 7 | K8: Lucyvo - Corum | L8: =IF( O8 <> "", O8, "plaats " & MATCH( M8, 'rooster en stand'!$D$5:$D$18, 0 ) & " - plaats " & MATCH( N8, 'rooster en stand'!$D$5:$D$18, 0 ) ) -> plaats 13 - plaats 12 | M8: Lucyvo | N8: Corum | AP8: =RANK(spelersstatistieken!AB12,INDIRECT("spelersstatistieken!$" & $AR$8 & "$5:$" & $AR$8 & "$" & 5+$AR$6-1))+ROW()/10^4 -> 7.0008 | AR8: =SUBSTITUTE( SUBSTITUTE( ADDRESS( 1, 1 + MatchenPerPloeg + 1 ), 1, "" ), "$", "" ) -> AB | AS8: Kolom van de goal totalen | BE8: 2024-10-06 | BF8: 6 | BG8: Daltons - Lucyvo | BH8: 3-0 | BI8: Daltons | BJ8: Lucyvo
A9: 2024-10-06 | B9: 6 | C9: Goka - Racing Emblem | D9: 2-5 | E9: Goka | F9: Racing Emblem | G9: 2-5 | I9: 2024-10-13 | J9: 7 | K9: Yerevan United - Daltons | L9: =IF( O9 <> "", O9, "plaats " & MATCH( M9, 'rooster en stand'!$D$5:$D$18, 0 ) & " - plaats " & MATCH( N9, 'rooster en stand'!$D$5:$D$18, 0 ) ) -> plaats 6 - plaats 1 | M9: Yerevan United | N9: Daltons | AP9: =RANK(spelersstatistieken!AB13,INDIRECT("spelersstatistieken!$" & $AR$8 & "$5:$" & $AR$8 & "$" & 5+$AR$6-1))+ROW()/10^4 -> 7.0009 | BE9: 2024-10-13 | BF9: 7 | BG9: Lucyvo - Corum | BI9: Lucyvo | BJ9: Corum
AP10: =RANK(spelersstatistieken!AB14,INDIRECT("spelersstatistieken!$" & $AR$8 & "$5:$" & $AR$8 & "$" & 5+$AR$6-1))+ROW()/10^4 -> 3.001 | BE10: 2024-10-20 | BF10: 8 | BG10: Sint Anneke - Lucyvo | BI10: Sint Anneke | BJ10: Lucyvo
AP11: =RANK(spelersstatistieken!AB15,INDIRECT("spelersstatistieken!$" & $AR$8 & "$5:$" & $AR$8 & "$" & 5+$AR$6-1))+ROW()/10^4 -> 7.0011 | BE11: 2024-11-03 | BF11: 9 | BG11: Jolika - Lucyvo | BI11: Jolika | BJ11: Lucyvo
AP12: =RANK(spelersstatistieken!AB16,INDIRECT("spelersstatistieken!$" & $AR$8 & "$5:$" & $AR$8 & "$" & 5+$AR$6-1))+ROW()/10^4 -> 7.0012 | BE12: 2024-11-10 | BF12: 10 | BG12: Lucyvo - Yerevan United | BI12: Lucyvo | BJ12: Yerevan United
AP13: =RANK(spelersstatistieken!AB17,INDIRECT("spelersstatistieken!$" & $AR$8 & "$5:$" & $AR$8 & "$" & 5+$AR$6-1))+ROW()/10^4 -> 3.0013 | BE13: 2024-11-17 | BF13: 11 | BG13: Bariton - Lucyvo | BI13: Bariton | BJ13: Lucyvo
AP14: =RANK(spelersstatistieken!AB18,INDIRECT("spelersstatistieken!$" & $AR$8 & "$5:$" & $AR$8 & "$" & 5+$AR$6-1))+ROW()/10^4 -> 7.0014 | BE14: 2024-11-24 | BF14: 12 | BG14: Lucyvo - Antwerp Global | BI14: Lucyvo | BJ14: Antwerp Global
AP15: =RANK(spelersstatistieken!AB19,INDIRECT("spelersstatistieken!$" & $AR$8 & "$5:$" & $AR$8 & "$" & 5+$AR$6-1))+ROW()/10^4 -> 7.0015 | BE15: 2024-12-01 | BF15: 13 | BG15: Racing Emblem - Lucyvo | BI15: Racing Emblem | BJ15: Lucyvo
AP16: =RANK(spelersstatistieken!AB20,INDIRECT("spelersstatistieken!$" & $AR$8 & "$5:$" & $AR$8 & "$" & 5+$AR$6-1))+ROW()/10^4 -> 7.0016 | BE16: 2024-12-08 | BF16: 14 | BG16: Bar Patron - Lucyvo | BI16: Bar Patron | BJ16: Lucyvo
AP17: =RANK(spelersstatistieken!AB21,INDIRECT("spelersstatistieken!$" & $AR$8 & "$5:$" & $AR$8 & "$" & 5+$AR$6-1))+ROW()/10^4 -> 7.0017 | AR17: =IF( O4 <> ""; O4; "Pl. 4 - pl. 5" ) | BE17: 2024-12-22 | BF17: 17 | BG17: Lucyvo - SC Duffel | BI17: Lucyvo | BJ17: SC Duffel
AP18: =RANK(spelersstatistieken!AB22,INDIRECT("spelersstatistieken!$" & $AR$8 & "$5:$" & $AR$8 & "$" & 5+$AR$6-1))+ROW()/10^4 -> 1.0018 | BE18: 2025-01-12 | BF18: 15 | BG18: Lucyvo - Goka | BI18: Lucyvo | BJ18: Goka
AP19: =RANK(spelersstatistieken!AB23,INDIRECT("spelersstatistieken!$" & $AR$8 & "$5:$" & $AR$8 & "$" & 5+$AR$6-1))+ROW()/10^4 -> 7.0019 | BE19: 2025-01-19 | BF19: 16 | BG19: Alberta Schilde - Lucyvo | BI19: Alberta Schilde | BJ19: Lucyvo
AP20: =RANK(spelersstatistieken!AB24,INDIRECT("spelersstatistieken!$" & $AR$8 & "$5:$" & $AR$8 & "$" & 5+$AR$6-1))+ROW()/10^4 -> 7.002 | BE20: 2025-02-02 | BF20: 18 | BG20: Hombeek - Lucyvo | BI20: Hombeek | BJ20: Lucyvo
AP21: =RANK(spelersstatistieken!AB25,INDIRECT("spelersstatistieken!$" & $AR$8 & "$5:$" & $AR$8 & "$" & 5+$AR$6-1))+ROW()/10^4 -> 7.0021 | BE21: 2025-02-09 | BF21: 19 | BG21: Lucyvo - Daltons | BI21: Lucyvo | BJ21: Daltons
AP22: =RANK(spelersstatistieken!AB26,INDIRECT("spelersstatistieken!$" & $AR$8 & "$5:$" & $AR$8 & "$" & 5+$AR$6-1))+ROW()/10^4 -> 7.0022 | BE22: 2025-02-16 | BF22: 20 | BG22: Corum - Lucyvo | BI22: Corum | BJ22: Lucyvo
AF23: #IF(OR($AE3#0;$AG3#"");"(Niemand)";OFFSET(spelersstatistieken!$A$4;MATCH(SMALL(coeffsspelers;AE3);coeffsspelers;0);0)) | AG23: #IF($AE3#0;"";IF(AH3#0;"";AH3)) | AH23: #OFFSET(spelersstatistieken!$A$4;MATCH(SMALL(coeffsspelers;AE3);coeffsspelers;0);MatchenPerPloeg+1) | AP23: =RANK(spelersstatistieken!AB27,INDIRECT("spelersstatistieken!$" & $AR$8 & "$5:$" & $AR$8 & "$" & 5+$AR$6-1))+ROW()/10^4 -> 7.0023 | BE23: 2025-02-23 | BF23: 21 | BG23: Lucyvo - Sint Anneke | BI23: Lucyvo | BJ23: Sint Anneke
AF24: #IF(OR($AE4#0;$AG4#"");"";OFFSET(spelersstatistieken!$A$4;MATCH(SMALL(coeffsspelers;AE4);coeffsspelers;0);0)) | AG24: #IF($AE4#0;"";IF(AH4#0;"";AH4)) | AH24: #OFFSET(spelersstatistieken!$A$4;MATCH(SMALL(coeffsspelers;AE4);coeffsspelers;0);MatchenPerPloeg+1) | AP24: =RANK(spelersstatistieken!AB28,INDIRECT("spelersstatistieken!$" & $AR$8 & "$5:$" & $AR$8 & "$" & 5+$AR$6-1))+ROW()/10^4 -> 7.0024 | BE24: 2025-03-09 | BF24: 22 | BG24: Lucyvo - Jolika | BI24: Lucyvo | BJ24: Jolika
AF25: #IF(OR($AE5#0;$AG5#"");"";OFFSET(spelersstatistieken!$A$4;MATCH(SMALL(coeffsspelers;AE5);coeffsspelers;0);0)) | AG25: #IF($AE5#0;"";IF(AH5#0;"";AH5)) | AH25: #OFFSET(spelersstatistieken!$A$4;MATCH(SMALL(coeffsspelers;AE5);coeffsspelers;0);MatchenPerPloeg+1) | AP25: =RANK(spelersstatistieken!AB29,INDIRECT("spelersstatistieken!$" & $AR$8 & "$5:$" & $AR$8 & "$" & 5+$AR$6-1))+ROW()/10^4 -> 7.0025 | BE25: 2025-03-16 | BF25: 23 | BG25: Yerevan United - Lucyvo | BI25: Yerevan United | BJ25: Lucyvo
AF26: #IF(OR($AE6#0;$AG6#"");"";OFFSET(spelersstatistieken!$A$4;MATCH(SMALL(coeffsspelers;AE6);coeffsspelers;0);0)) | AG26: #IF($AE6#0;"";IF(AH6#0;"";AH6)) | AH26: #OFFSET(spelersstatistieken!$A$4;MATCH(SMALL(coeffsspelers;AE6);coeffsspelers;0);MatchenPerPloeg+1) | AP26: =RANK(spelersstatistieken!AB30,INDIRECT("spelersstatistieken!$" & $AR$8 & "$5:$" & $AR$8 & "$" & 5+$AR$6-1))+ROW()/10^4 -> 7.0026 | BE26: 2025-03-23 | BF26: 24 | BG26: Lucyvo - Bariton | BI26: Lucyvo | BJ26: Bariton
AF27: #IF(OR($AE7#0;$AG7#"");"";OFFSET(spelersstatistieken!$A$4;MATCH(SMALL(coeffsspelers;AE7);coeffsspelers;0);0)) | AG27: #IF($AE7#0;"";IF(AH7#0;"";AH7)) | AH27: #OFFSET(spelersstatistieken!$A$4;MATCH(SMALL(coeffsspelers;AE7);coeffsspelers;0);MatchenPerPloeg+1) | AP27: =RANK(spelersstatistieken!AB31,INDIRECT("spelersstatistieken!$" & $AR$8 & "$5:$" & $AR$8 & "$" & 5+$AR$6-1))+ROW()/10^4 -> 7.0027 | BE27: 2025-03-30 | BF27: 25 | BG27: Antwerp Global - Lucyvo | BI27: Antwerp Global | BJ27: Lucyvo
AP28: =RANK(spelersstatistieken!AB32,INDIRECT("spelersstatistieken!$" & $AR$8 & "$5:$" & $AR$8 & "$" & 5+$AR$6-1))+ROW()/10^4 -> 7.0028 | BE28: 2025-04-06 | BF28: 26 | BG28: Lucyvo - Racing Emblem | BI28: Lucyvo | BJ28: Racing Emblem
AP29: =RANK(spelersstatistieken!AB33,INDIRECT("spelersstatistieken!$" & $AR$8 & "$5:$" & $AR$8 & "$" & 5+$AR$6-1))+ROW()/10^4 -> 2.0029
AP30: =RANK(spelersstatistieken!AB34,INDIRECT("spelersstatistieken!$" & $AR$8 & "$5:$" & $AR$8 & "$" & 5+$AR$6-1))+ROW()/10^4 -> 7.003
AP31: =RANK(spelersstatistieken!AB35,INDIRECT("spelersstatistieken!$" & $AR$8 & "$5:$" & $AR$8 & "$" & 5+$AR$6-1))+ROW()/10^4 -> 7.0031
AP32: =RANK(spelersstatistieken!AB36,INDIRECT("spelersstatistieken!$" & $AR$8 & "$5:$" & $AR$8 & "$" & 5+$AR$6-1))+ROW()/10^4 -> 3.0032

Sheet spelersstatistieken
B1: =IF(kalender!$D3='rooster en stand'!$C$3,kalender!$F3&" (T)",kalender!$D3&" (U)") -> Bar Patron (T) | C1: =IF(kalender!$D4='rooster en stand'!$C$3,kalender!$F4&" (T)",kalender!$D4&" (U)") -> Goka (U) | D1: =IF(kalender!$D5='rooster en stand'!$C$3,kalender!$F5&" (T)",kalender!$D5&" (U)") -> Alberta Schilde (T) | E1: =IF(kalender!$D6='rooster en stand'!$C$3,kalender!$F6&" (T)",kalender!$D6&" (U)") -> SC Duffel (U) | F1: =IF(kalender!$D7='rooster en stand'!$C$3,kalender!$F7&" (T)",kalender!$D7&" (U)") -> Hombeek (T) | G1: =IF(kalender!$D8='rooster en stand'!$C$3,kalender!$F8&" (T)",kalender!$D8&" (U)") -> Daltons (U) | H1: =IF(kalender!$D9='rooster en stand'!$C$3,kalender!$F9&" (T)",kalender!$D9&" (U)") -> Corum (T) | I1: =IF(kalender!$D10='rooster en stand'!$C$3,kalender!$F10&" (T)",kalender!$D10&" (U)") -> Sint Anneke (U) | J1: =IF(kalender!$D11='rooster en stand'!$C$3,kalender!$F11&" (T)",kalender!$D11&" (U)") -> Jolika (U) | K1: =IF(kalender!$D12='rooster en stand'!$C$3,kalender!$F12&" (T)",kalender!$D12&" (U)") -> Yerevan United (T) | L1: =IF(kalender!$D13='rooster en stand'!$C$3,kalender!$F13&" (T)",kalender!$D13&" (U)") -> Bariton (U) | M1: =IF(kalender!$D14='rooster en stand'!$C$3,kalender!$F14&" (T)",kalender!$D14&" (U)") -> Antwerp Global (T) | N1: =IF(kalender!$D15='rooster en stand'!$C$3,kalender!$F15&" (T)",kalender!$D15&" (U)") -> Racing Emblem (U) | O1: =IF(kalender!$D16='rooster en stand'!$C$3,kalender!$F16&" (T)",kalender!$D16&" (U)") -> Bar Patron (U) | P1: =IF(kalender!$D17='rooster en stand'!$C$3,kalender!$F17&" (T)",kalender!$D17&" (U)") -> SC Duffel (T) | Q1: =IF(kalender!$D18='rooster en stand'!$C$3,kalender!$F18&" (T)",kalender!$D18&" (U)") -> Goka (T) | R1: =IF(kalender!$D19='rooster en stand'!$C$3,kalender!$F19&" (T)",kalender!$D19&" (U)") -> Alberta Schilde (U) | S1: =IF(kalender!$D20='rooster en stand'!$C$3,kalender!$F20&" (T)",kalender!$D20&" (U)") -> Hombeek (U) | T1: =IF(kalender!$D21='rooster en stand'!$C$3,kalender!$F21&" (T)",kalender!$D21&" (U)") -> Daltons (T) | U1: =IF(kalender!$D22='rooster en stand'!$C$3,kalender!$F22&" (T)",kalender!$D22&" (U)") -> Corum (U) | V1: =IF(kalender!$D23='rooster en stand'!$C$3,kalender!$F23&" (T)",kalender!$D23&" (U)") -> Sint Anneke (T) | W1: =IF(kalender!$D24='rooster en stand'!$C$3,kalender!$F24&" (T)",kalender!$D24&" (U)") -> Jolika (T) | X1: =IF(kalender!$D25='rooster en stand'!$C$3,kalender!$F25&" (T)",kalender!$D25&" (U)") -> Yerevan United (U) | Y1: =IF(kalender!$D26='rooster en stand'!$C$3,kalender!$F26&" (T)",kalender!$D26&" (U)") -> Bariton (T) | Z1: =IF(kalender!$D27='rooster en stand'!$C$3,kalender!$F27&" (T)",kalender!$D27&" (U)") -> Antwerp Global (U) | AA1: =IF(kalender!$D28='rooster en stand'!$C$3,kalender!$F28&" (T)",kalender!$D28&" (U)") -> Racing Emblem (T) | AB1: Totaal # goals | AC1: # matchen | AD1: Gem. # goals | AE1: Afwezig | AF1: Blessure | AG1: Schorsing | AH1: Niet gespeeld totaal | AI1: Keeper | AM1: =IFERROR( _xlfn.XMATCH( AN2, B4:AA4, 0 ), 0 ) -> 6 | AN1: ="Hint: " & MAX(B4:AA4) -> Hint: 6 | AP1: =B1 -> Bar Patron (T) | AQ1: Goka (U) | AR1: Alberta Schilde (T) | AS1: SC Duffel (U) | AT1: Hombeek (T) | AU1: Daltons (U) | AV1: Corum (T) | AW1: Sint Anneke (U) | AX1: =J1 -> Jolika (U) | AY1: Yerevan United (T) | AZ1: Bariton (U) | BA1: Antwerp Global (T) | BB1: =N1 -> Racing Emblem (U) | BC1: Bar Patron (U) | BD1: SC Duffel (T) | BE1: Goka (T) | BF1: Alberta Schilde (U) | BG1: Hombeek (U) | BH1: Daltons (T) | BI1: Corum (U) | BJ1: Sint Anneke (T) | BK1: Jolika (T) | BL1: Yerevan United (U) | BM1: Bariton (T) | BN1: Antwerp Global (U) | BO1: Racing Emblem (T) | DD1: Maak dynamisch: CV5 / DE5
A2: Uitslag | B2: =TRANSPOSE( kalender!G3:G28 ) -> 2-4 | C2: 3-0 | D2: 1-5 | E2: 3-1 | F2: 5-1 | G2: 3-0 | AN2: 6 | BQ2: P | BR2: coeff | BS2: coeff aflopend | BU2: P | BV2: coeff | BW2: coeff aflopend | BY2: aantal | BZ2: coeff | CA2: coeff aflopend | CG2: =MAX( CG5:CG37 ) -> 14.28571429 | CH2: =MAX( 1, CE5:CE36, CL5:CL36 ) -> 24 | CN2: =MAX( CN5:CN37 ) -> 60.24183007 | CY2: =MAX( 1, CX5:CX36, DC5:DC36 ) -> 13 | DI2: =MAX( DI5:DI37 ) -> 6.00005 | DY2: =_xlfn.TAKE( _xlfn.SCAN( "", _xlfn._xlws.SORT( _xlfn.UNIQUE( _xlfn.TOCOL(_xlfn.ANCHORARRAY( DN5), 2 ))), _xlfn.LAMBDA(_xlpm.a,_xlpm.v, IF( COUNTIF( $CY$5:$CY$38, _xlpm.v ) > 0, _xlpm.a, _xlpm.a & " / " & _xlpm.v ))), -1 ) -> / Celis Ive / Coolsaet Joy / De Groof Maarten / De Groof Steven / De Vinster Glenn / Delen Robbe / Elst Pieter / Gielis Bernd / Hofmans Stijn / Jordens Koen / Langenaeker Maarten / Nyckees Wannes / Stevens Siebe
A3: Aanwezigen | B3: =IF(COUNTBLANK(B5:B36)='export html'!$AR$6,"",'export html'!$AR$6-COUNTIF(B5:B36,"a")-COUNTIF(B5:B36,"b")-COUNTIF(B5:B36,"s")) -> 19 | C3: =IF(COUNTBLANK(C5:C36)='export html'!$AR$6,"",'export html'!$AR$6-COUNTIF(C5:C36,"a")-COUNTIF(C5:C36,"b")-COUNTIF(C5:C36,"s")) -> 16 | D3: =IF(COUNTBLANK(D5:D36)='export html'!$AR$6,"",'export html'!$AR$6-COUNTIF(D5:D36,"a")-COUNTIF(D5:D36,"b")-COUNTIF(D5:D36,"s")) -> 21 | E3: =IF(COUNTBLANK(E5:E36)='export html'!$AR$6,"",'export html'!$AR$6-COUNTIF(E5:E36,"a")-COUNTIF(E5:E36,"b")-COUNTIF(E5:E36,"s")) -> 16 | F3: =IF(COUNTBLANK(F5:F36)='export html'!$AR$6,"",'export html'!$AR$6-COUNTIF(F5:F36,"a")-COUNTIF(F5:F36,"b")-COUNTIF(F5:F36,"s")) -> 17 | G3: =IF(COUNTBLANK(G5:G36)='export html'!$AR$6,"",'export html'!$AR$6-COUNTIF(G5:G36,"a")-COUNTIF(G5:G36,"b")-COUNTIF(G5:G36,"s")) -> 14 | H3: =IF(COUNTBLANK(H5:H36)='export html'!$AR$6,"",'export html'!$AR$6-COUNTIF(H5:H36,"a")-COUNTIF(H5:H36,"b")-COUNTIF(H5:H36,"s")) ->  | I3: =IF(COUNTBLANK(I5:I36)='export html'!$AR$6,"",'export html'!$AR$6-COUNTIF(I5:I36,"a")-COUNTIF(I5:I36,"b")-COUNTIF(I5:I36,"s")) ->  | J3: =IF(COUNTBLANK(J5:J36)='export html'!$AR$6,"",'export html'!$AR$6-COUNTIF(J5:J36,"a")-COUNTIF(J5:J36,"b")-COUNTIF(J5:J36,"s")) ->  | K3: =IF(COUNTBLANK(K5:K36)='export html'!$AR$6,"",'export html'!$AR$6-COUNTIF(K5:K36,"a")-COUNTIF(K5:K36,"b")-COUNTIF(K5:K36,"s")) ->  | L3: =IF(COUNTBLANK(L5:L36)='export html'!$AR$6,"",'export html'!$AR$6-COUNTIF(L5:L36,"a")-COUNTIF(L5:L36,"b")-COUNTIF(L5:L36,"s")) ->  | M3: =IF(COUNTBLANK(M5:M36)='export html'!$AR$6,"",'export html'!$AR$6-COUNTIF(M5:M36,"a")-COUNTIF(M5:M36,"b")-COUNTIF(M5:M36,"s")) ->  | N3: =IF(COUNTBLANK(N5:N36)='export html'!$AR$6,"",'export html'!$AR$6-COUNTIF(N5:N36,"a")-COUNTIF(N5:N36,"b")-COUNTIF(N5:N36,"s")) ->  | O3: =IF(COUNTBLANK(O5:O36)='export html'!$AR$6,"",'export html'!$AR$6-COUNTIF(O5:O36,"a")-COUNTIF(O5:O36,"b")-COUNTIF(O5:O36,"s")) ->  | P3: =IF(COUNTBLANK(P5:P36)='export html'!$AR$6,"",'export html'!$AR$6-COUNTIF(P5:P36,"a")-COUNTIF(P5:P36,"b")-COUNTIF(P5:P36,"s")) ->  | Q3: =IF(COUNTBLANK(Q5:Q36)='export html'!$AR$6,"",'export html'!$AR$6-COUNTIF(Q5:Q36,"a")-COUNTIF(Q5:Q36,"b")-COUNTIF(Q5:Q36,"s")) ->  | R3: =IF(COUNTBLANK(R5:R36)='export html'!$AR$6,"",'export html'!$AR$6-COUNTIF(R5:R36,"a")-COUNTIF(R5:R36,"b")-COUNTIF(R5:R36,"s")) ->  | S3: =IF(COUNTBLANK(S5:S36)='export html'!$AR$6,"",'export html'!$AR$6-COUNTIF(S5:S36,"a")-COUNTIF(S5:S36,"b")-COUNTIF(S5:S36,"s")) ->  | T3: =IF(COUNTBLANK(T5:T36)='export html'!$AR$6,"",'export html'!$AR$6-COUNTIF(T5:T36,"a")-COUNTIF(T5:T36,"b")-COUNTIF(T5:T36,"s")) ->  | U3: =IF(COUNTBLANK(U5:U36)='export html'!$AR$6,"",'export html'!$AR$6-COUNTIF(U5:U36,"a")-COUNTIF(U5:U36,"b")-COUNTIF(U5:U36,"s")) ->  | V3: =IF(COUNTBLANK(V5:V36)='export html'!$AR$6,"",'export html'!$AR$6-COUNTIF(V5:V36,"a")-COUNTIF(V5:V36,"b")-COUNTIF(V5:V36,"s")) ->  | W3: =IF(COUNTBLANK(W5:W36)='export html'!$AR$6,"",'export html'!$AR$6-COUNTIF(W5:W36,"a")-COUNTIF(W5:W36,"b")-COUNTIF(W5:W36,"s")) ->  | X3: =IF(COUNTBLANK(X5:X36)='export html'!$AR$6,"",'export html'!$AR$6-COUNTIF(X5:X36,"a")-COUNTIF(X5:X36,"b")-COUNTIF(X5:X36,"s")) ->  | Y3: =IF(COUNTBLANK(Y5:Y36)='export html'!$AR$6,"",'export html'!$AR$6-COUNTIF(Y5:Y36,"a")-COUNTIF(Y5:Y36,"b")-COUNTIF(Y5:Y36,"s")) ->  | Z3: =IF(COUNTBLANK(Z5:Z36)='export html'!$AR$6,"",'export html'!$AR$6-COUNTIF(Z5:Z36,"a")-COUNTIF(Z5:Z36,"b")-COUNTIF(Z5:Z36,"s")) ->  | AA3: =IF(COUNTBLANK(AA5:AA36)='export html'!$AR$6,"",'export html'!$AR$6-COUNTIF(AA5:AA36,"a")-COUNTIF(AA5:AA36,"b")-COUNTIF(AA5:AA36,"s")) ->  | AK3: Match van de Man | BQ3: DEZE WEEK | BU3: SEIZOEN | BY3: WEEKOVERWINNINGEN | DY3: =_xlfn.TEXTJOIN( "|",TRUE, _xlfn.DROP( _xlfn.TEXTSPLIT( DY2, , " / " ), 1 )) -> Celis Ive|Coolsaet Joy|De Groof Maarten|De Groof Steven|De Vinster Glenn|Delen Robbe|Elst Pieter|Gielis Bernd|Hofmans Stijn|Jordens Koen|Langenaeker Maarten|Nyckees Wannes|Stevens Siebe
A4: Speeldag | B4: =IF(COUNTBLANK(B5:B36)='export html'!$AR$6,"",kalender!$B3) -> 1 | C4: =IF(COUNTBLANK(C5:C36)='export html'!$AR$6,"",kalender!$B4) -> 2 | D4: =IF(COUNTBLANK(D5:D36)='export html'!$AR$6,"",kalender!$B5) -> 3 | E4: =IF(COUNTBLANK(E5:E36)='export html'!$AR$6,"",kalender!$B6) -> 4 | F4: =IF(COUNTBLANK(F5:F36)='export html'!$AR$6,"",kalender!$B7) -> 5 | G4: =IF(COUNTBLANK(G5:G36)='export html'!$AR$6,"",kalender!$B8) -> 6 | H4: =IF(COUNTBLANK(H5:H36)='export html'!$AR$6,"",kalender!$B9) ->  | I4: =IF(COUNTBLANK(I5:I36)='export html'!$AR$6,"",kalender!$B10) ->  | J4: =IF(COUNTBLANK(J5:J36)='export html'!$AR$6,"",kalender!$B11) ->  | K4: =IF(COUNTBLANK(K5:K36)='export html'!$AR$6,"",kalender!$B12) ->  | L4: =IF(COUNTBLANK(L5:L36)='export html'!$AR$6,"",kalender!$B13) ->  | M4: =IF(COUNTBLANK(M5:M36)='export html'!$AR$6,"",kalender!$B14) ->  | N4: =IF(COUNTBLANK(N5:N36)='export html'!$AR$6,"",kalender!$B15) ->  | O4: =IF(COUNTBLANK(O5:O36)='export html'!$AR$6,"",kalender!$B16) ->  | P4: =IF(COUNTBLANK(P5:P36)='export html'!$AR$6,"",kalender!$B17) ->  | Q4: =IF(COUNTBLANK(Q5:Q36)='export html'!$AR$6,"",kalender!$B18) ->  | R4: =IF(COUNTBLANK(R5:R36)='export html'!$AR$6,"",kalender!$B19) ->  | S4: =IF(COUNTBLANK(S5:S36)='export html'!$AR$6,"",kalender!$B20) ->  | T4: =IF(COUNTBLANK(T5:T36)='export html'!$AR$6,"",kalender!$B21) ->  | U4: =IF(COUNTBLANK(U5:U36)='export html'!$AR$6,"",kalender!$B22) ->  | V4: =IF(COUNTBLANK(V5:V36)='export html'!$AR$6,"",kalender!$B23) ->  | W4: =IF(COUNTBLANK(W5:W36)='export html'!$AR$6,"",kalender!$B24) ->  | X4: =IF(COUNTBLANK(X5:X36)='export html'!$AR$6,"",kalender!$B25) ->  | Y4: =IF(COUNTBLANK(Y5:Y36)='export html'!$AR$6,"",kalender!$B26) ->  | Z4: =IF(COUNTBLANK(Z5:Z36)='export html'!$AR$6,"",kalender!$B27) ->  | AA4: =IF(COUNTBLANK(AA5:AA36)='export html'!$AR$6,"",kalender!$B28) ->  | AK4: Speler | AL4: Totaal | AM4: Plaats | AN4: =INDEX( B1:AA1, 1, MATCH( AN2, B4:AA4, 0 )) -> Daltons (U) | AO4: Plaats | CF4: ="Match tegen " & AN4 -> Match tegen Daltons (U) | CG4: Punten - GEWOGEN | CH4: Punten - ONGEWOGEN | CM4: Seizoenstotaal | CN4: Punten - GEWOGEN | CO4: Punten - ONGEWOGEN | CP4: Matchen | CS4: HULP 1 | CT4: HULP 2 | CU4: HULP 3 | CV4: HULP 4 | CY4: Weekoverwinningen | CZ4: Aantal | DA4: Matchen | DD4: Podiumplaatsen | DE4: Goud | DF4: Zilver | DG4: Brons | DH4: Totaal | DI4: Goud = 3 Zilver = 2 Brons = 1 | DL4: Ook op het podium: | DR4: Speler | DS4: Plaats 1 | DT4: Plaats 2 | DU4: Plaats 3 | DV4: Totaal | DW4: Gewogen som
A5: Beckx Pieter-Alexander | B5: a | C5: a | D5: a | E5: 1 | F5: a | G5: a | AB5: =SUM( B102:AA102 ) -> 0 | AC5: =COUNTIF( B5:AA5, "k" ) + SUM( B5:AA5 ) -> 1 | AD5: =IFERROR( AB5 / COUNT($B$4:$AA$4), "" ) -> 0 | AE5: =COUNTIF( B5:AA5, "a" ) -> 5 | AF5: =COUNTIF( B5:AA5, "b" ) -> 0 | AG5: =COUNTIF( B5:AA5, "s" ) -> 0 | AH5: =COUNTIF( B5:AA5, "ng" ) + COUNTIF( B5:AA5, "na" ) + COUNTIF( B5:AA5, "p" ) + COUNTIF( B5:AA5, "t" ) -> 0 | AI5: =COUNTIF(B5:AA5,"k") -> 0 | AJ5: 1 | AK5: =A5 -> Beckx Pieter-Alexander | AL5: =IF(SUM(AP5:BO5)=0,"",SUM(AP5:BO5)) ->  | AM5: =IF(AL5="","",RANK(AL5,AL$5:AL$39)) ->  | AN5: =_xlfn.LET( _xlpm.i, INDEX($AP5:$BO5,1,MAX(1,MATCH($AN$2,$B$4:$AA$4,0))), IF( _xlpm.i = "", "", _xlpm.i )) -> 0 | AO5: =IF(AN5="","",RANK(AN5,AN$5:AN$39)) -> 12 | AP5: =B352 -> 0 | AQ5: =C352 -> 0 | AR5: =D352 -> 0 | AS5: =E352 -> 0 | AT5: =F352 -> 0 | AU5: =G352 -> 0 | AV5: =H352 -> 0 | AW5: =I352 -> 0 | AX5: =J352 -> 0 | AY5: =K352 -> 0 | AZ5: =L352 -> 0 | BA5: =M352 -> 0 | BB5: =N352 -> 0 | BC5: =O352 -> 0 | BD5: =P352 -> 0 | BE5: =Q352 -> 0 | BF5: =R352 -> 0 | BG5: =S352 -> 0 | BH5: =T352 -> 0 | BI5: =U352 -> 0 | BJ5: =V352 -> 0 | BK5: =W352 -> 0 | BL5: =X352 -> 0 | BM5: =Y352 -> 0 | BN5: =Z352 -> 0 | BO5: =AA352 -> 0 | BQ5: =INDEX($AP5:$BO5,1,MAX(1,MATCH($AN$2,$B$4:$AA$4,0))) -> 0 | BR5: =BQ5-CC5/100 -> -0.01 | BS5: =LARGE(BR$5:BR$38,CC5) -> 14.12571429 | BU5: =SUM(AP5:BO5) -> 0 | BV5: =BU5-CC5/100 -> -0.01 | BW5: =LARGE(BV$5:BV$38,CC5) -> 60.04183007 | BY5: =COUNTIF( $AP$43:$BO$43, "*" & AK5 & "*" ) -> 0 | BZ5: =1000*BY5+BU5-CC5/100 -> -0.01 | CA5: =LARGE(BZ$5:BZ$38,CC5) -> 2056.614164 | CC5: =_xlfn.SEQUENCE(33) -> 1 | CE5: =IF(CG5="","",CC5) -> 1 | CF5: =_xlfn.XLOOKUP( CS5, $DZ$5:$DZ$37, $EA$5:$EA$37, "" ) -> Bernd Gielis | CG5: =IF(INDEX($BQ$5:$BQ$38,MATCH(BS5,$BR$5:$BR$38,0))=0,"",INDEX($BQ$5:$BQ$38,MATCH(BS5,$BR$5:$BR$38,0))) -> 14.28571429 | CH5: =IF( CS5 = "", "", _xlfn.XLOOKUP( CS5, $A$302:$A$334, INDEX( $B$302:$AA$334, , $AM$1 ), "" )) -> 10 | CL5: =IF(CN5="","",CC5) -> 1 | CM5: =_xlfn.XLOOKUP( CT5, $DZ$5:$DZ$37, $EA$5:$EA$37, "" ) -> Maarten Langenaeker | CN5: =IF(INDEX($BU$5:$BU$38,MATCH(BW5,$BV$5:$BV$38,0))=0,"",INDEX($BU$5:$BU$38,MATCH(BW5,$BV$5:$BV$38,0))) -> 60.24183007 | CO5: =IF( CT5 = "", "", _xlfn.XLOOKUP( CT5, $A$302:$A$334, $AB$302:$AB$334, "" )) -> 50 | CP5: =_xlfn.LET( _xlpm.m, INDEX($AC$5:$AC$38,MATCH(CT5,$AK$5:$AK$38,0)), IF(CN5="","","(" & IF( _xlpm.m = "", 0, _xlpm.m ) & ")")) -> (6) | CQ5: =IFERROR(IF(CN5="","",ABS(CN5/CP5)),0) -> 10.04030501 | CS5: =IF(CG5="","",INDEX($AK$5:$AK$39,MATCH(BS5,$BR$5:$BR$38,0))) -> Gielis Bernd | CT5: =IF(CN5="","",INDEX($AK$5:$AK$38,MATCH(BW5,$BV$5:$BV$38,0))) -> Langenaeker Maarten | CU5: =IF(CZ5="","",INDEX($AK$5:$AK$38,MATCH(CA5,$BZ$5:$BZ$38,0))) -> De Vinster Glenn | CV5: =_xlfn.TAKE( _xlfn.SORTBY( DR5:DW17,_xlfn.ANCHORARRAY( DW5), -1 ), , 1 ) -> De Vinster Glenn | CX5: =IF(CZ5="","",CC5) -> 1 | CY5: =_xlfn.XLOOKUP( CU5, $DZ$5:$DZ$37, $EA$5:$EA$37, "" ) -> Glenn De Vinster | CZ5: =IF(INDEX($BY$5:$BY$38,MATCH(CA5,$BZ$5:$BZ$38,0))=0,"",INDEX($BY$5:$BY$38,MATCH(CA5,$BZ$5:$BZ$38,0))) -> 2 | DA5: =IF(CZ5="","","(" & INDEX($AC$5:$AC$38,MATCH(CU5,$AK$5:$AK$38,0)) & ")") -> (5) | DC5: =_xlfn.SEQUENCE( ROWS(_xlfn.ANCHORARRAY( DR5) )) -> 1 | DD5: =_xlfn.XLOOKUP(_xlfn.ANCHORARRAY( CV5), $DZ$5:$DZ$37, $EA$5:$EA$37, "" ) -> Glenn De Vinster | DE5: =_xlfn.DROP( _xlfn.SORTBY( DR5:DW17,_xlfn.ANCHORARRAY( DW5), -1 ), , 1 ) -> 2 | DF5: 0 | DG5: 0 | DH5: 2 | DI5: 6.00005 | DL5: =_xlfn.LET( _xlpm.n, _xlfn.TOCOL( AP43:BO45, 1 ), _xlfn._xlws.FILTER( _xlpm.n, _xlpm.n <> "", "Niets weer te geven." )) -> Nyckees Wannes | DN5: =_xlfn.LET( _xlpm.a,_xlfn.ANCHORARRAY( DL5), _xlpm.b, (LEN(_xlpm.a) - LEN(SUBSTITUTE(_xlpm.a, " / ",)))/LEN( " / " ) +1, _xlpm.c, _xlfn.SEQUENCE( , MAX(_xlpm.b)), IFERROR( _xlfn.TEXTSPLIT( _xlfn.TEXTAFTER( " / " & _xlpm.a & " / "," / ", _xlpm.c ), " / "), NA() )) -> Nyckees Wannes | DR5: =_xlfn.UNIQUE( _xlfn.TOCOL(_xlfn.ANCHORARRAY( DN5), 2 )) -> Nyckees Wannes | DS5: =COUNTIF( $AP$43:$BO$43, "*" &_xlfn.ANCHORARRAY( DR5) & "*" ) -> 1 | DT5: =COUNTIF( $AP$44:$BO$44, "*" &_xlfn.ANCHORARRAY( DR5) & "*" ) -> 1 | DU5: =COUNTIF( $AP$45:$BO$45, "*" &_xlfn.ANCHORARRAY( DR5) & "*" ) -> 0 | DV5: =_xlfn.ANCHORARRAY(DS5) +_xlfn.ANCHORARRAY( DT5) +_xlfn.ANCHORARRAY( DU5) -> 2 | DW5: =3 *_xlfn.ANCHORARRAY( DS5) + 2 *_xlfn.ANCHORARRAY( DT5) + 1 *_xlfn.ANCHORARRAY( DU5) + ROW()/100000 -> 5.00005 | DZ5: =A5 -> Beckx Pieter-Alexander | EA5: Pieter-Alexander Beckx
A6: Beirinckx Geert | B6: p | C6: a | D6: t | E6: t | F6: t | G6: a | AB6: 0 | AC6: 0 | AD6: 0 | AE6: 2 | AF6: 0 | AG6: 0 | AH6: 4 | AI6: =COUNTIF(B6:AA6,"k") -> 0 | AJ6: 0 | AK6: Beirinckx Geert | AL6: =IF(SUM(AP6:BO6)=0,"",SUM(AP6:BO6)) ->  | AN6: =_xlfn.LET( _xlpm.i, INDEX($AP6:$BO6,1,MAX(1,MATCH($AN$2,$B$4:$AA$4,0))), IF( _xlpm.i = "", "", _xlpm.i )) -> 0 | AO6: 12 | AP6: 0 | AQ6: 0 | AR6: 0 | AS6: 0 | AT6: 0 | AU6: 0 | AV6: 0 | AW6: 0 | AX6: 0 | AY6: 0 | AZ6: 0 | BA6: 0 | BB6: 0 | BC6: 0 | BD6: 0 | BE6: 0 | BF6: 0 | BG6: 0 | BH6: 0 | BI6: 0 | BJ6: 0 | BK6: 0 | BL6: 0 | BM6: 0 | BN6: 0 | BO6: 0 | BQ6: =INDEX($AP6:$BO6,1,MAX(1,MATCH($AN$2,$B$4:$AA$4,0))) -> 0 | BR6: -0.02 | BS6: =LARGE(BR$5:BR$38,CC6) -> 12.79714286 | BU6: 0 | BV6: =BU6-CC6/100 -> -0.02 | BW6: 56.61416433 | BY6: 0 | BZ6: =1000*BY6+BU6-CC6/100 -> -0.02 | CA6: 1060.04183 | CC6: 2 | CE6: =IF(CG6="","",CC6) -> 2 | CF6: Ive Celis | CG6: 12.85714286 | CH6: =IF( CS6 = "", "", _xlfn.XLOOKUP( CS6, $A$302:$A$334, INDEX( $B$302:$AA$334, , $AM$1 ), "" )) -> 9 | CL6: =IF(CN6="","",CC6) -> 2 | CM6: Glenn De Vinster | CN6: 56.74416433 | CO6: 47 | CP6: (5) | CQ6: 11.34883287 | CS6: Celis Ive | CT6: De Vinster Glenn | CU6: Langenaeker Maarten | CV6: Langenaeker Maarten | CX6: 2 | CY6: Maarten Langenaeker | CZ6: 1 | DA6: (6) | DC6: 2 | DD6: Maarten Langenaeker | DE6: 1 | DF6: 0 | DG6: 3 | DH6: 4 | DI6: 6.00005 | DL6: De Vinster Glenn | DN6: De Vinster Glenn | DR6: De Vinster Glenn | DS6: 2 | DT6: 0 | DU6: 0 | DV6: 2 | DW6: 6.00005 | DZ6: =A6 -> Beirinckx Geert | EA6: Geert Beirinckx
A7: Beirinckx Jurgen | B7: 1 | C7: ng | D7: ng | E7: 1 | F7: p | G7: p | AB7: 0 | AC7: 2 | AD7: 0 | AE7: 0 | AF7: 0 | AG7: 0 | AH7: 4 | AI7: 0 | AJ7: 2 | AK7: Beirinckx Jurgen | AL7: 2.222222222 | AM7: 24 | AN7: =_xlfn.LET( _xlpm.i, INDEX($AP7:$BO7,1,MAX(1,MATCH($AN$2,$B$4:$AA$4,0))), IF( _xlpm.i = "", "", _xlpm.i )) -> 0 | AO7: 12 | AP7: 2.222222222 | AQ7: 0 | AR7: 0 | AS7: 0 | AT7: 0 | AU7: 0 | AV7: 0 | AW7: 0 | AX7: 0 | AY7: 0 | AZ7: 0 | BA7: 0 | BB7: 0 | BC7: 0 | BD7: 0 | BE7: 0 | BF7: 0 | BG7: 0 | BH7: 0 | BI7: 0 | BJ7: 0 | BK7: 0 | BL7: 0 | BM7: 0 | BN7: 0 | BO7: 0 | BQ7: =INDEX($AP7:$BO7,1,MAX(1,MATCH($AN$2,$B$4:$AA$4,0))) -> 0 | BR7: -0.03 | BS7: 12.74714286 | BU7: 2.222222222 | BV7: =BU7-CC7/100 -> 2.192222222 | BW7: 47.36405229 | BY7: 0 | BZ7: =1000*BY7+BU7-CC7/100 -> 2.192222222 | CA7: 1038.002222 | CC7: 3 | CE7: 3 | CF7: Steven De Groof | CG7: 12.85714286 | CH7: =IF( CS7 = "", "", _xlfn.XLOOKUP( CS7, $A$302:$A$334, INDEX( $B$302:$AA$334, , $AM$1 ), "" )) -> 9 | CL7: 3 | CM7: Maarten De Groof | CN7: 47.46405229 | CO7: 41 | CP7: (5) | CQ7: 9.492810458 | CS7: De Groof Steven | CT7: De Groof Maarten | CU7: Nyckees Wannes | CV7: Nyckees Wannes | CX7: 3 | CY7: Wannes Nyckees | CZ7: 1 | DA7: (2) | DC7: 3 | DD7: Wannes Nyckees | DE7: 1 | DF7: 1 | DG7: 0 | DH7: 2 | DI7: 5.00005 | DL7: Delen Robbe | DN7: Delen Robbe | DR7: Delen Robbe | DS7: 1 | DT7: 0 | DU7: 0 | DV7: 1 | DW7: 3.00005 | DZ7: Beirinckx Jurgen | EA7: Jurgen Beirinckx
A8: Beirinckx Wout | B8: a | C8: 1 | D8: 1 | E8: 1 | F8: 1 | G8: 1 | AB8: 1 | AC8: 5 | AD8: 0.1666666667 | AE8: 1 | AF8: 0 | AG8: 0 | AH8: 0 | AI8: 0 | AJ8: 4 | AK8: Beirinckx Wout | AL8: 26.23809524 | AM8: 8 | AN8: =_xlfn.LET( _xlpm.i, INDEX($AP8:$BO8,1,MAX(1,MATCH($AN$2,$B$4:$AA$4,0))), IF( _xlpm.i = "", "", _xlpm.i )) -> 8.571428571 | AO8: 6 | AP8: 0 | AQ8: 9.333333333 | AR8: 7 | AS8: 1.333333333 | AT8: 0 | AU8: 8.571428571 | AV8: 0 | AW8: 0 | AX8: 0 | AY8: 0 | AZ8: 0 | BA8: 0 | BB8: 0 | BC8: 0 | BD8: 0 | BE8: 0 | BF8: 0 | BG8: 0 | BH8: 0 | BI8: 0 | BJ8: 0 | BK8: 0 | BL8: 0 | BM8: 0 | BN8: 0 | BO8: 0 | BQ8: =INDEX($AP8:$BO8,1,MAX(1,MATCH($AN$2,$B$4:$AA$4,0))) -> 8.571428571 | BR8: 8.531428571 | BS8: 9.93 | BU8: 26.23809524 | BV8: 26.19809524 | BW8: 40.62392157 | BY8: 0 | BZ8: 26.19809524 | CA8: 1019.86 | CC8: 4 | CE8: 4 | CF8: Joy Coolsaet | CG8: 10 | CH8: =IF( CS8 = "", "", _xlfn.XLOOKUP( CS8, $A$302:$A$334, INDEX( $B$302:$AA$334, , $AM$1 ), "" )) -> 7 | CL8: =IF(CN8="","",CC8) -> 4 | CM8: Stijn Hofmans | CN8: 40.80392157 | CO8: 35 | CP8: (4) | CQ8: 10.20098039 | CS8: Coolsaet Joy | CT8: Hofmans Stijn | CU8: Delen Robbe | CV8: Hofmans Stijn | CX8: 4 | CY8: Robbe Delen | CZ8: 1 | DA8: (1) | DC8: 4 | DD8: Stijn Hofmans | DE8: 0 | DF8: 2 | DG8: 0 | DH8: 2 | DI8: 4.00005 | DL8: Langenaeker Maarten | DN8: Langenaeker Maarten | DR8: Langenaeker Maarten | DS8: 1 | DT8: 0 | DU8: 3 | DV8: 4 | DW8: 6.00005 | DZ8: Beirinckx Wout | EA8: Wout Beirinckx
A9: Boes Dieuwer | B9: 1 | C9: 1 | D9: 1 | E9: 1 | F9: a | G9: 1 | AB9: 0 | AC9: 5 | AD9: 0 | AE9: 1 | AF9: 0 | AG9: 0 | AH9: 0 | AI9: 0 | AJ9: 4 | AK9: Boes Dieuwer | AL9: 18.9047619 | AM9: 14 | AN9: =_xlfn.LET( _xlpm.i, INDEX($AP9:$BO9,1,MAX(1,MATCH($AN$2,$B$4:$AA$4,0))), IF( _xlpm.i = "", "", _xlpm.i )) -> 8.571428571 | AO9: 6 | AP9: 0 | AQ9: 5.333333333 | AR9: 1 | AS9: 4 | AT9: 0 | AU9: 8.571428571 | AV9: 0 | AW9: 0 | AX9: 0 | AY9: 0 | AZ9: 0 | BA9: 0 | BB9: 0 | BC9: 0 | BD9: 0 | BE9: 0 | BF9: 0 | BG9: 0 | BH9: 0 | BI9: 0 | BJ9: 0 | BK9: 0 | BL9: 0 | BM9: 0 | BN9: 0 | BO9: 0 | BQ9: =INDEX($AP9:$BO9,1,MAX(1,MATCH($AN$2,$B$4:$AA$4,0))) -> 8.571428571 | BR9: 8.521428571 | BS9: 9.8 | BU9: 18.9047619 | BV9: 18.8547619 | BW9: 38.00222222 | BY9: 0 | BZ9: 18.8547619 | CA9: 1016.125714 | CC9: 5 | CE9: 5 | CF9: Maarten Langenaeker | CG9: 10 | CH9: =IF( CS9 = "", "", _xlfn.XLOOKUP( CS9, $A$302:$A$334, INDEX( $B$302:$AA$334, , $AM$1 ), "" )) -> 7 | CL9: 5 | CM9: Wannes Nyckees | CN9: 38.22222222 | CO9: 32 | CP9: (2) | CQ9: 19.11111111 | CS9: Langenaeker Maarten | CT9: Nyckees Wannes | CU9: Gielis Bernd | CV9: De Groof Maarten | CX9: 5 | CY9: Bernd Gielis | CZ9: 1 | DA9: (2) | DC9: 5 | DD9: Maarten De Groof | DE9: 0 | DF9: 2 | DG9: 0 | DH9: 2 | DI9: 4.00005 | DL9: De Vinster Glenn | DN9: De Vinster Glenn | DR9: Gielis Bernd | DS9: 1 | DT9: 0 | DU9: 0 | DV9: 1 | DW9: 3.00005 | DZ9: Boes Dieuwer | EA9: Dieuwer Boes
A10: Celis Ive | B10: a | C10: a | D10: 1 | E10: a | F10: 1 | G10: 1 | AB10: 0 | AC10: 3 | AD10: 0 | AE10: 3 | AF10: 0 | AG10: 0 | AH10: 0 | AI10: 0 | AJ10: 2 | AK10: Celis Ive | AL10: 28.79831933 | AM10: 7 | AN10: =_xlfn.LET( _xlpm.i, INDEX($AP10:$BO10,1,MAX(1,MATCH($AN$2,$B$4:$AA$4,0))), IF( _xlpm.i = "", "", _xlpm.i )) -> 12.85714286 | AO10: 2 | AP10: 0 | AQ10: 0 | AR10: 3 | AS10: 0 | AT10: 12.94117647 | AU10: 12.85714286 | AV10: 0 | AW10: 0 | AX10: 0 | AY10: 0 | AZ10: 0 | BA10: 0 | BB10: 0 | BC10: 0 | BD10: 0 | BE10: 0 | BF10: 0 | BG10: 0 | BH10: 0 | BI10: 0 | BJ10: 0 | BK10: 0 | BL10: 0 | BM10: 0 | BN10: 0 | BO10: 0 | BQ10: =INDEX($AP10:$BO10,1,MAX(1,MATCH($AN$2,$B$4:$AA$4,0))) -> 12.85714286 | BR10: 12.79714286 | BS10: 8.531428571 | BU10: 28.79831933 | BV10: 28.73831933 | BW10: 35.64738562 | BY10: 0 | BZ10: 28.73831933 | CA10: 47.36405229 | CC10: 6 | CE10: =IF(CG10="","",CC10) -> 6 | CF10: Wout Beirinckx | CG10: 8.571428571 | CH10: =IF( CS10 = "", "", _xlfn.XLOOKUP( CS10, $A$302:$A$334, INDEX( $B$302:$AA$334, , $AM$1 ), "" )) -> 6 | CL10: 6 | CM10: Pieter Elst | CN10: 35.79738562 | CO10: 31 | CP10: (4) | CQ10: 8.949346405 | CS10: Beirinckx Wout | CT10: Elst Pieter | CV10: Delen Robbe | DC10: 6 | DD10: Robbe Delen | DE10: 1 | DF10: 0 | DG10: 0 | DH10: 1 | DI10: 3.00005 | DL10: Gielis Bernd | DN10: Gielis Bernd | DR10: Hofmans Stijn | DS10: 0 | DT10: 2 | DU10: 0 | DV10: 2 | DW10: 4.00005 | DZ10: Celis Ive | EA10: Ive Celis
A11: Coolsaet Joy | B11: a | C11: a | D11: td | E11: 1 | F11: td | G11: 1 | AB11: 0 | AC11: 2 | AD11: 0 | AE11: 2 | AF11: 0 | AG11: 0 | AH11: 0 | AI11: 0 | AJ11: 1 | AK11: Coolsaet Joy | AL11: 20.33333333 | AM11: 12 | AN11: =_xlfn.LET( _xlpm.i, INDEX($AP11:$BO11,1,MAX(1,MATCH($AN$2,$B$4:$AA$4,0))), IF( _xlpm.i = "", "", _xlpm.i )) -> 10 | AO11: 4 | AP11: 0 | AQ11: 0 | AR11: 1 | AS11: 9.333333333 | AT11: 0 | AU11: 10 | AV11: 0 | AW11: 0 | AX11: 0 | AY11: 0 | AZ11: 0 | BA11: 0 | BB11: 0 | BC11: 0 | BD11: 0 | BE11: 0 | BF11: 0 | BG11: 0 | BH11: 0 | BI11: 0 | BJ11: 0 | BK11: 0 | BL11: 0 | BM11: 0 | BN11: 0 | BO11: 0 | BQ11: =INDEX($AP11:$BO11,1,MAX(1,MATCH($AN$2,$B$4:$AA$4,0))) -> 10 | BR11: 9.93 | BS11: 8.521428571 | BU11: 20.33333333 | BV11: 20.26333333 | BW11: 28.73831933 | BY11: 0 | BZ11: =1000*BY11+BU11-CC11/100 -> 20.26333333 | CA11: 40.62392157 | CC11: 7 | CE11: 7 | CF11: Dieuwer Boes | CG11: 8.571428571 | CH11: =IF( CS11 = "", "", _xlfn.XLOOKUP( CS11, $A$302:$A$334, INDEX( $B$302:$AA$334, , $AM$1 ), "" )) -> 6 | CL11: 7 | CM11: Ive Celis | CN11: 28.79831933 | CO11: 23 | CP11: (3) | CQ11: 9.599439776 | CS11: Boes Dieuwer | CT11: Celis Ive | CV11: Gielis Bernd | DC11: 7 | DD11: Bernd Gielis | DE11: 1 | DF11: 0 | DG11: 0 | DH11: 1 | DI11: 3.00005 | DL11: Hofmans Stijn | DN11: Hofmans Stijn | DR11: De Groof Maarten | DS11: 0 | DT11: 2 | DU11: 0 | DV11: 2 | DW11: 4.00005 | DZ11: Coolsaet Joy | EA11: Joy Coolsaet
A12: De Clerck Tom | B12: a | C12: a | D12: a | E12: a | F12: a | G12: a | AB12: 0 | AC12: 0 | AD12: 0 | AE12: 6 | AF12: 0 | AG12: 0 | AH12: 0 | AI12: 0 | AJ12: 0 | AK12: De Clerck Tom | AL12: =IF(SUM(AP12:BO12)=0,"",SUM(AP12:BO12)) ->  | AN12: =_xlfn.LET( _xlpm.i, INDEX($AP12:$BO12,1,MAX(1,MATCH($AN$2,$B$4:$AA$4,0))), IF( _xlpm.i = "", "", _xlpm.i )) -> 0 | AO12: 12 | AP12: 0 | AQ12: 0 | AR12: 0 | AS12: 0 | AT12: 0 | AU12: 0 | AV12: 0 | AW12: 0 | AX12: 0 | AY12: 0 | AZ12: 0 | BA12: 0 | BB12: 0 | BC12: 0 | BD12: 0 | BE12: 0 | BF12: 0 | BG12: 0 | BH12: 0 | BI12: 0 | BJ12: 0 | BK12: 0 | BL12: 0 | BM12: 0 | BN12: 0 | BO12: 0 | BQ12: =INDEX($AP12:$BO12,1,MAX(1,MATCH($AN$2,$B$4:$AA$4,0))) -> 0 | BR12: -0.08 | BS12: 7.012857143 | BU12: 0 | BV12: =BU12-CC12/100 -> -0.08 | BW12: 26.19809524 | BY12: 0 | BZ12: =1000*BY12+BU12-CC12/100 -> -0.08 | CA12: 35.64738562 | CC12: 8 | CE12: 8 | CF12: Glenn De Vinster | CG12: 7.142857143 | CH12: =IF( CS12 = "", "", _xlfn.XLOOKUP( CS12, $A$302:$A$334, INDEX( $B$302:$AA$334, , $AM$1 ), "" )) -> 5 | CL12: 8 | CM12: Wout Beirinckx | CN12: 26.23809524 | CO12: 21 | CP12: (5) | CQ12: 5.247619048 | CS12: De Vinster Glenn | CT12: Beirinckx Wout | CV12: Celis Ive | DC12: 8 | DD12: Ive Celis | DE12: 0 | DF12: 1 | DG12: 1 | DH12: 2 | DI12: 3.00005 | DL12: De Groof Maarten / Elst Pieter | DN12: De Groof Maarten | DO12: Elst Pieter | DR12: Elst Pieter | DS12: 0 | DT12: 1 | DU12: 0 | DV12: 1 | DW12: 2.00005 | DZ12: De Clerck Tom | EA12: Tom De Clerck
A13: De Graeve Robbe | B13: 1 | C13: 1 | D13: a | E13: a | F13: a | G13: a | AB13: 0 | AC13: 2 | AD13: 0 | AE13: 4 | AF13: 0 | AG13: 0 | AH13: 0 | AI13: 0 | AJ13: 2 | AK13: De Graeve Robbe | AL13: 7.111111111 | AM13: 22 | AN13: =_xlfn.LET( _xlpm.i, INDEX($AP13:$BO13,1,MAX(1,MATCH($AN$2,$B$4:$AA$4,0))), IF( _xlpm.i = "", "", _xlpm.i )) -> 0 | AO13: 12 | AP13: 4.444444444 | AQ13: 2.666666667 | AR13: 0 | AS13: 0 | AT13: 0 | AU13: 0 | AV13: 0 | AW13: 0 | AX13: 0 | AY13: 0 | AZ13: 0 | BA13: 0 | BB13: 0 | BC13: 0 | BD13: 0 | BE13: 0 | BF13: 0 | BG13: 0 | BH13: 0 | BI13: 0 | BJ13: 0 | BK13: 0 | BL13: 0 | BM13: 0 | BN13: 0 | BO13: 0 | BQ13: =INDEX($AP13:$BO13,1,MAX(1,MATCH($AN$2,$B$4:$AA$4,0))) -> 0 | BR13: -0.09 | BS13: 5.594285714 | BU13: =SUM(AP13:BO13) -> 7.111111111 | BV13: =BU13-CC13/100 -> 7.021111111 | BW13: 23.74650794 | BY13: 0 | BZ13: =1000*BY13+BU13-CC13/100 -> 7.021111111 | CA13: 28.73831933 | CC13: 9 | CE13: 9 | CF13: Erlend De Swert | CG13: 5.714285714 | CH13: =IF( CS13 = "", "", _xlfn.XLOOKUP( CS13, $A$302:$A$334, INDEX( $B$302:$AA$334, , $AM$1 ), "" )) -> 4 | CL13: 9 | CM13: Koen Jordens | CN13: 23.93650794 | CO13: 19 | CP13: (5) | CQ13: 4.787301587 | CS13: De Swert Erlend | CT13: Jordens Koen | CV13: Elst Pieter | DC13: 9 | DD13: Pieter Elst | DE13: 0 | DF13: 1 | DG13: 0 | DH13: 1 | DI13: 2.00005 | DL13: De Groof Maarten | DN13: De Groof Maarten | DR13: Celis Ive | DS13: 0 | DT13: 1 | DU13: 1 | DV13: 2 | DW13: 3.00005 | DZ13: De Graeve Robbe | EA13: Robbe De Graeve
A14: De Groof Maarten | B14: 1 | C14: 1 | D14: 1 | E14: 1 | F14: 1 | G14: t | AB14: 1 | AC14: 5 | AD14: 0.1666666667 | AE14: 0 | AF14: 0 | AG14: 0 | AH14: 1 | AI14: =COUNTIF(B14:AA14,"k") -> 0 | AJ14: 5 | AK14: De Groof Maarten | AL14: 47.46405229 | AM14: 3 | AN14: =_xlfn.LET( _xlpm.i, INDEX($AP14:$BO14,1,MAX(1,MATCH($AN$2,$B$4:$AA$4,0))), IF( _xlpm.i = "", "", _xlpm.i )) -> 0 | AO14: 12 | AP14: 7.777777778 | AQ14: 14.66666667 | AR14: 16 | AS14: 6.666666667 | AT14: 2.352941176 | AU14: 0 | AV14: 0 | AW14: 0 | AX14: 0 | AY14: 0 | AZ14: 0 | BA14: 0 | BB14: 0 | BC14: 0 | BD14: 0 | BE14: 0 | BF14: 0 | BG14: 0 | BH14: 0 | BI14: 0 | BJ14: 0 | BK14: 0 | BL14: 0 | BM14: 0 | BN14: 0 | BO14: 0 | BQ14: =INDEX($AP14:$BO14,1,MAX(1,MATCH($AN$2,$B$4:$AA$4,0))) -> 0 | BR14: -0.1 | BS14: 5.524285714 | BU14: 47.46405229 | BV14: 47.36405229 | BW14: 23.10176471 | BY14: 0 | BZ14: 47.36405229 | CA14: 26.19809524 | CC14: 10 | CE14: 10 | CF14: Koen Jordens | CG14: 5.714285714 | CH14: =IF( CS14 = "", "", _xlfn.XLOOKUP( CS14, $A$302:$A$334, INDEX( $B$302:$AA$334, , $AM$1 ), "" )) -> 4 | CL14: 10 | CM14: Kaïn Verlooy | CN14: 23.41176471 | CO14: 21 | CP14: (3) | CQ14: 7.803921569 | CS14: Jordens Koen | CT14: Verlooy Kaïn | CV14: De Groof Steven | DC14: 10 | DD14: Steven De Groof | DE14: 0 | DF14: 1 | DG14: 0 | DH14: 1 | DI14: 2.00005 | DL14: Nyckees Wannes | DN14: Nyckees Wannes | DR14: De Groof Steven | DS14: 0 | DT14: 1 | DU14: 0 | DV14: 1 | DW14: 2.00005 | DZ14: De Groof Maarten | EA14: Maarten De Groof
A15: De Groof Steven | B15: 1 | C15: b | D15: p | E15: 1 | F15: 1 | G15: 1 | AB15: 0 | AC15: 4 | AD15: 0 | AE15: 0 | AF15: 1 | AG15: 0 | AH15: 1 | AI15: 0 | AJ15: 3 | AK15: De Groof Steven | AL15: 15.07936508 | AM15: 16 | AN15: =_xlfn.LET( _xlpm.i, INDEX($AP15:$BO15,1,MAX(1,MATCH($AN$2,$B$4:$AA$4,0))), IF( _xlpm.i = "", "", _xlpm.i )) -> 12.85714286 | AO15: 2 | AP15: 2.222222222 | AQ15: 0 | AR15: 0 | AS15: 0 | AT15: 0 | AU15: 12.85714286 | AV15: 0 | AW15: 0 | AX15: 0 | AY15: 0 | AZ15: 0 | BA15: 0 | BB15: 0 | BC15: 0 | BD15: 0 | BE15: 0 | BF15: 0 | BG15: 0 | BH15: 0 | BI15: 0 | BJ15: 0 | BK15: 0 | BL15: 0 | BM15: 0 | BN15: 0 | BO15: 0 | BQ15: =INDEX($AP15:$BO15,1,MAX(1,MATCH($AN$2,$B$4:$AA$4,0))) -> 12.85714286 | BR15: 12.74714286 | BS15: 4.015714286 | BU15: 15.07936508 | BV15: 14.96936508 | BW15: 21.51898226 | BY15: 0 | BZ15: 14.96936508 | CA15: 23.74650794 | CC15: 11 | CE15: 11 | CF15: Dieter Van Dessel | CG15: 4.285714286 | CH15: =IF( CS15 = "", "", _xlfn.XLOOKUP( CS15, $A$302:$A$334, INDEX( $B$302:$AA$334, , $AM$1 ), "" )) -> 3 | CL15: 11 | CM15: Dieter Van Dessel | CN15: 21.78898226 | CO15: 18 | CP15: (5) | CQ15: 4.357796452 | CS15: Van Dessel Dieter | CT15: Van Dessel Dieter | CV15: Jordens Koen | DC15: 11 | DD15: Koen Jordens | DE15: 0 | DF15: 0 | DG15: 1 | DH15: 1 | DI15: 1.00005 | DL15: Hofmans Stijn | DN15: Hofmans Stijn | DR15: Jordens Koen | DS15: 0 | DT15: 0 | DU15: 1 | DV15: 1 | DW15: 1.00005 | DZ15: De Groof Steven | EA15: Steven De Groof
A16: De Swert Erlend | B16: a | C16: 1 | D16: a | E16: a | F16: a | G16: 1 | AB16: 0 | AC16: 2 | AD16: 0 | AE16: 4 | AF16: 0 | AG16: 0 | AH16: 0 | AI16: 0 | AJ16: 1 | AK16: De Swert Erlend | AL16: 12.38095238 | AM16: 17 | AN16: =_xlfn.LET( _xlpm.i, INDEX($AP16:$BO16,1,MAX(1,MATCH($AN$2,$B$4:$AA$4,0))), IF( _xlpm.i = "", "", _xlpm.i )) -> 5.714285714 | AO16: 9 | AP16: 0 | AQ16: 6.666666667 | AR16: 0 | AS16: 0 | AT16: 0 | AU16: 5.714285714 | AV16: 0 | AW16: 0 | AX16: 0 | AY16: 0 | AZ16: 0 | BA16: 0 | BB16: 0 | BC16: 0 | BD16: 0 | BE16: 0 | BF16: 0 | BG16: 0 | BH16: 0 | BI16: 0 | BJ16: 0 | BK16: 0 | BL16: 0 | BM16: 0 | BN16: 0 | BO16: 0 | BQ16: =INDEX($AP16:$BO16,1,MAX(1,MATCH($AN$2,$B$4:$AA$4,0))) -> 5.714285714 | BR16: 5.594285714 | BS16: -0.01 | BU16: 12.38095238 | BV16: 12.26095238 | BW16: 20.26333333 | BY16: 0 | BZ16: 12.26095238 | CA16: 23.10176471 | CC16: 12 | CH16: =IF( CS16 = "", "", _xlfn.XLOOKUP( CS16, $A$302:$A$334, INDEX( $B$302:$AA$334, , $AM$1 ), "" )) ->  | CL16: 12 | CM16: Joy Coolsaet | CN16: 20.33333333 | CO16: 15 | CP16: (2) | CQ16: 10.16666667 | CT16: Coolsaet Joy | CV16: Stevens Siebe | DC16: 12 | DD16: Siebe Stevens | DE16: 0 | DF16: 0 | DG16: 1 | DH16: 1 | DI16: 1.00005 | DL16: Celis Ive / De Groof Steven | DN16: Celis Ive | DO16: De Groof Steven | DR16: Stevens Siebe | DS16: 0 | DT16: 0 | DU16: 1 | DV16: 1 | DW16: 1.00005 | DZ16: De Swert Erlend | EA16: Erlend De Swert
A17: De Vinster Glenn | B17: 1 | C17: 1 | D17: 1 | E17: a | F17: 1 | G17: 1 | AB17: 1 | AC17: 5 | AD17: 0.1666666667 | AE17: 1 | AF17: 0 | AG17: 0 | AH17: 0 | AI17: 0 | AJ17: 4 | AK17: De Vinster Glenn | AL17: 56.74416433 | AM17: 2 | AN17: =_xlfn.LET( _xlpm.i, INDEX($AP17:$BO17,1,MAX(1,MATCH($AN$2,$B$4:$AA$4,0))), IF( _xlpm.i = "", "", _xlpm.i )) -> 7.142857143 | AO17: 8 | AP17: 7.777777778 | AQ17: 16 | AR17: 7 | AS17: 0 | AT17: 18.82352941 | AU17: 7.142857143 | AV17: 0 | AW17: 0 | AX17: 0 | AY17: 0 | AZ17: 0 | BA17: 0 | BB17: 0 | BC17: 0 | BD17: 0 | BE17: 0 | BF17: 0 | BG17: 0 | BH17: 0 | BI17: 0 | BJ17: 0 | BK17: 0 | BL17: 0 | BM17: 0 | BN17: 0 | BO17: 0 | BQ17: =INDEX($AP17:$BO17,1,MAX(1,MATCH($AN$2,$B$4:$AA$4,0))) -> 7.142857143 | BR17: 7.012857143 | BS17: -0.02 | BU17: 56.74416433 | BV17: 56.61416433 | BW17: 19.86 | BY17: 2 | BZ17: 2056.614164 | CA17: 21.51898226 | CC17: 13 | CH17: =IF( CS17 = "", "", _xlfn.XLOOKUP( CS17, $A$302:$A$334, INDEX( $B$302:$AA$334, , $AM$1 ), "" )) ->  | CL17: 13 | CM17: Robbe Delen | CN17: 20 | CO17: 20 | CP17: (1) | CQ17: 20 | CT17: Delen Robbe | CV17: Coolsaet Joy | DC17: 13 | DD17: Joy Coolsaet | DE17: 0 | DF17: 0 | DG17: 1 | DH17: 1 | DI17: 1.00005 | DL17: Langenaeker Maarten | DN17: Langenaeker Maarten | DR17: Coolsaet Joy | DS17: 0 | DT17: 0 | DU17: 1 | DV17: 1 | DW17: 1.00005 | DZ17: De Vinster Glenn | EA17: Glenn De Vinster
A18: Delen Robbe | B18: na | C18: a | D18: 1 | E18: a | F18: a | G18: a | AB18: 0 | AC18: =COUNTIF( B18:AA18, "k" ) + SUM( B18:AA18 ) -> 1 | AD18: =IFERROR( AB18 / COUNT($B$4:$AA$4), "" ) -> 0 | AE18: =COUNTIF( B18:AA18, "a" ) -> 4 | AF18: =COUNTIF( B18:AA18, "b" ) -> 0 | AG18: =COUNTIF( B18:AA18, "s" ) -> 0 | AH18: =COUNTIF( B18:AA18, "ng" ) + COUNTIF( B18:AA18, "na" ) + COUNTIF( B18:AA18, "p" ) + COUNTIF( B18:AA18, "t" ) -> 1 | AI18: =COUNTIF(B18:AA18,"k") -> 0 | AJ18: 1 | AK18: Delen Robbe | AL18: 20 | AM18: 13 | AN18: =_xlfn.LET( _xlpm.i, INDEX($AP18:$BO18,1,MAX(1,MATCH($AN$2,$B$4:$AA$4,0))), IF( _xlpm.i = "", "", _xlpm.i )) -> 0 | AO18: 12 | AP18: 0 | AQ18: 0 | AR18: 20 | AS18: 0 | AT18: 0 | AU18: 0 | AV18: 0 | AW18: 0 | AX18: 0 | AY18: 0 | AZ18: 0 | BA18: 0 | BB18: 0 | BC18: 0 | BD18: 0 | BE18: 0 | BF18: 0 | BG18: 0 | BH18: 0 | BI18: 0 | BJ18: 0 | BK18: 0 | BL18: 0 | BM18: 0 | BN18: 0 | BO18: 0 | BQ18: =INDEX($AP18:$BO18,1,MAX(1,MATCH($AN$2,$B$4:$AA$4,0))) -> 0 | BR18: -0.14 | BS18: -0.03 | BU18: =SUM(AP18:BO18) -> 20 | BV18: =BU18-CC18/100 -> 19.86 | BW18: 18.8547619 | BY18: 1 | BZ18: =1000*BY18+BU18-CC18/100 -> 1019.86 | CA18: 20.26333333 | CC18: 14 | CH18: =IF( CS18 = "", "", _xlfn.XLOOKUP( CS18, $A$302:$A$334, INDEX( $B$302:$AA$334, , $AM$1 ), "" )) ->  | CL18: =IF(CN18="","",CC18) -> 14 | CM18: Dieuwer Boes | CN18: 18.9047619 | CO18: 14 | CP18: (5) | CQ18: =IFERROR(IF(CN18="","",ABS(CN18/CP18)),0) -> 3.780952381 | CT18: Boes Dieuwer | CX18: =IF(CZ18="","",CC18) ->  | DL18: Jordens Koen | DN18: Jordens Koen | DZ18: Delen Robbe | EA18: Robbe Delen
A19: Elst Pieter | B19: 1 | C19: 1 | D19: 1 | E19: a | F19: 1 | G19: a | AB19: 0 | AC19: 4 | AD19: 0 | AE19: 2 | AF19: 0 | AG19: 0 | AH19: 0 | AI19: 0 | AJ19: 4 | AK19: Elst Pieter | AL19: 35.79738562 | AM19: 6 | AN19: =_xlfn.LET( _xlpm.i, INDEX($AP19:$BO19,1,MAX(1,MATCH($AN$2,$B$4:$AA$4,0))), IF( _xlpm.i = "", "", _xlpm.i )) -> 0 | AO19: 12 | AP19: 7.777777778 | AQ19: 14.66666667 | AR19: 11 | AS19: 0 | AT19: 2.352941176 | AU19: 0 | AV19: 0 | AW19: 0 | AX19: 0 | AY19: 0 | AZ19: 0 | BA19: 0 | BB19: 0 | BC19: 0 | BD19: 0 | BE19: 0 | BF19: 0 | BG19: 0 | BH19: 0 | BI19: 0 | BJ19: 0 | BK19: 0 | BL19: 0 | BM19: 0 | BN19: 0 | BO19: 0 | BQ19: =INDEX($AP19:$BO19,1,MAX(1,MATCH($AN$2,$B$4:$AA$4,0))) -> 0 | BR19: -0.15 | BS19: -0.08 | BU19: 35.79738562 | BV19: 35.64738562 | BW19: 16.12571429 | BY19: 0 | BZ19: 35.64738562 | CA19: 18.8547619 | CC19: 15 | CH19: =IF( CS19 = "", "", _xlfn.XLOOKUP( CS19, $A$302:$A$334, INDEX( $B$302:$AA$334, , $AM$1 ), "" )) ->  | CL19: 15 | CM19: Bernd Gielis | CN19: 16.28571429 | CO19: 12 | CP19: (2) | CQ19: 8.142857143 | CT19: Gielis Bernd | DL19: Langenaeker Maarten | DN19: Langenaeker Maarten | DZ19: Elst Pieter | EA19: Pieter Elst
A20: Gielis Bernd | B20: a | C20: a | D20: 1 | E20: b | F20: b | G20: 1 | AB20: 0 | AC20: 2 | AD20: 0 | AE20: 2 | AF20: 2 | AG20: 0 | AH20: 0 | AI20: 0 | AJ20: 1 | AK20: Gielis Bernd | AL20: 16.28571429 | AM20: 15 | AN20: =_xlfn.LET( _xlpm.i, INDEX($AP20:$BO20,1,MAX(1,MATCH($AN$2,$B$4:$AA$4,0))), IF( _xlpm.i = "", "", _xlpm.i )) -> 14.28571429 | AO20: 1 | AP20: 0 | AQ20: 0 | AR20: 2 | AS20: 0 | AT20: 0 | AU20: 14.28571429 | AV20: 0 | AW20: 0 | AX20: 0 | AY20: 0 | AZ20: 0 | BA20: 0 | BB20: 0 | BC20: 0 | BD20: 0 | BE20: 0 | BF20: 0 | BG20: 0 | BH20: 0 | BI20: 0 | BJ20: 0 | BK20: 0 | BL20: 0 | BM20: 0 | BN20: 0 | BO20: 0 | BQ20: =INDEX($AP20:$BO20,1,MAX(1,MATCH($AN$2,$B$4:$AA$4,0))) -> 14.28571429 | BR20: 14.12571429 | BS20: -0.09 | BU20: 16.28571429 | BV20: 16.12571429 | BW20: 14.96936508 | BY20: 1 | BZ20: 1016.125714 | CA20: 14.96936508 | CC20: 16 | CH20: =IF( CS20 = "", "", _xlfn.XLOOKUP( CS20, $A$302:$A$334, INDEX( $B$302:$AA$334, , $AM$1 ), "" )) ->  | CL20: 16 | CM20: Steven De Groof | CN20: 15.07936508 | CO20: 11 | CP20: (4) | CQ20: 3.76984127 | CT20: De Groof Steven | DL20: Stevens Siebe | DN20: Stevens Siebe | DZ20: Gielis Bernd | EA20: Bernd Gielis
A21: Gielis Wim | B21: 1 | C21: 1 | D21: 1 | E21: 1 | F21: b | G21: 1 | AB21: 0 | AC21: 5 | AD21: 0 | AE21: 0 | AF21: 1 | AG21: 0 | AH21: 0 | AI21: 0 | AJ21: 4 | AK21: Gielis Wim | AL21: 5 | AM21: 23 | AN21: =_xlfn.LET( _xlpm.i, INDEX($AP21:$BO21,1,MAX(1,MATCH($AN$2,$B$4:$AA$4,0))), IF( _xlpm.i = "", "", _xlpm.i )) -> 0 | AO21: 12 | AP21: 0 | AQ21: 4 | AR21: 1 | AS21: 0 | AT21: 0 | AU21: 0 | AV21: 0 | AW21: 0 | AX21: 0 | AY21: 0 | AZ21: 0 | BA21: 0 | BB21: 0 | BC21: 0 | BD21: 0 | BE21: 0 | BF21: 0 | BG21: 0 | BH21: 0 | BI21: 0 | BJ21: 0 | BK21: 0 | BL21: 0 | BM21: 0 | BN21: 0 | BO21: 0 | BQ21: =INDEX($AP21:$BO21,1,MAX(1,MATCH($AN$2,$B$4:$AA$4,0))) -> 0 | BR21: -0.17 | BS21: -0.1 | BU21: =SUM(AP21:BO21) -> 5 | BV21: =BU21-CC21/100 -> 4.83 | BW21: 12.26095238 | BY21: 0 | BZ21: =1000*BY21+BU21-CC21/100 -> 4.83 | CA21: 12.26095238 | CC21: 17 | CE21: =IF(CG21="","",CC21) ->  | CH21: =IF( CS21 = "", "", _xlfn.XLOOKUP( CS21, $A$302:$A$334, INDEX( $B$302:$AA$334, , $AM$1 ), "" )) ->  | CL21: =IF(CN21="","",CC21) -> 17 | CM21: Erlend De Swert | CN21: 12.38095238 | CO21: 9 | CP21: (2) | CQ21: =IFERROR(IF(CN21="","",ABS(CN21/CP21)),0) -> 6.19047619 | CT21: De Swert Erlend | DL21: Celis Ive | DN21: Celis Ive | DZ21: Gielis Wim | EA21: Wim Gielis
A22: Hofmans Stijn | B22: 1 | C22: 1 | D22: 1 | E22: a | F22: 1 | G22: a | AB22: 3 | AC22: =COUNTIF( B22:AA22, "k" ) + SUM( B22:AA22 ) -> 4 | AD22: =IFERROR( AB22 / COUNT($B$4:$AA$4), "" ) -> 0.5 | AE22: =COUNTIF( B22:AA22, "a" ) -> 2 | AF22: =COUNTIF( B22:AA22, "b" ) -> 0 | AG22: =COUNTIF( B22:AA22, "s" ) -> 0 | AH22: =COUNTIF( B22:AA22, "ng" ) + COUNTIF( B22:AA22, "na" ) + COUNTIF( B22:AA22, "p" ) + COUNTIF( B22:AA22, "t" ) -> 0 | AI22: =COUNTIF(B22:AA22,"k") -> 0 | AJ22: 4 | AK22: Hofmans Stijn | AL22: =IF(SUM(AP22:BO22)=0,"",SUM(AP22:BO22)) -> 40.80392157 | AM22: 4 | AN22: =_xlfn.LET( _xlpm.i, INDEX($AP22:$BO22,1,MAX(1,MATCH($AN$2,$B$4:$AA$4,0))), IF( _xlpm.i = "", "", _xlpm.i )) -> 0 | AO22: 12 | AP22: 13.33333333 | AQ22: 8 | AR22: 3 | AS22: 0 | AT22: 16.47058824 | AU22: 0 | AV22: 0 | AW22: 0 | AX22: 0 | AY22: 0 | AZ22: 0 | BA22: 0 | BB22: 0 | BC22: 0 | BD22: 0 | BE22: 0 | BF22: 0 | BG22: 0 | BH22: 0 | BI22: 0 | BJ22: 0 | BK22: 0 | BL22: 0 | BM22: 0 | BN22: 0 | BO22: 0 | BQ22: =INDEX($AP22:$BO22,1,MAX(1,MATCH($AN$2,$B$4:$AA$4,0))) -> 0 | BR22: -0.18 | BS22: -0.14 | BU22: 40.80392157 | BV22: 40.62392157 | BW22: 11.77 | BY22: 0 | BZ22: 40.62392157 | CA22: 11.77 | CC22: 18 | CH22: =IF( CS22 = "", "", _xlfn.XLOOKUP( CS22, $A$302:$A$334, INDEX( $B$302:$AA$334, , $AM$1 ), "" )) ->  | CL22: 18 | CM22: Siebe Stevens | CN22: 12 | CO22: 9 | CP22: (1) | CQ22: 12 | CT22: Stevens Siebe | DL22: Coolsaet Joy / Langenaeker Maarten | DN22: Coolsaet Joy | DO22: Langenaeker Maarten | DZ22: Hofmans Stijn | EA22: Stijn Hofmans
A23: Jordens Koen | B23: 1 | C23: 1 | D23: 1 | E23: a | F23: 1 | G23: 1 | AB23: 0 | AC23: 5 | AD23: 0 | AE23: 1 | AF23: 0 | AG23: 0 | AH23: 0 | AI23: 0 | AJ23: 4 | AK23: Jordens Koen | AL23: 23.93650794 | AM23: 9 | AN23: =_xlfn.LET( _xlpm.i, INDEX($AP23:$BO23,1,MAX(1,MATCH($AN$2,$B$4:$AA$4,0))), IF( _xlpm.i = "", "", _xlpm.i )) -> 5.714285714 | AO23: 9 | AP23: 5.555555556 | AQ23: 10.66666667 | AR23: 2 | AS23: 0 | AT23: 0 | AU23: 5.714285714 | AV23: 0 | AW23: 0 | AX23: 0 | AY23: 0 | AZ23: 0 | BA23: 0 | BB23: 0 | BC23: 0 | BD23: 0 | BE23: 0 | BF23: 0 | BG23: 0 | BH23: 0 | BI23: 0 | BJ23: 0 | BK23: 0 | BL23: 0 | BM23: 0 | BN23: 0 | BO23: 0 | BQ23: =INDEX($AP23:$BO23,1,MAX(1,MATCH($AN$2,$B$4:$AA$4,0))) -> 5.714285714 | BR23: 5.524285714 | BS23: -0.15 | BU23: 23.93650794 | BV23: 23.74650794 | BW23: 10.93222222 | BY23: 0 | BZ23: 23.74650794 | CA23: 10.93222222 | CC23: 19 | CH23: =IF( CS23 = "", "", _xlfn.XLOOKUP( CS23, $A$302:$A$334, INDEX( $B$302:$AA$334, , $AM$1 ), "" )) ->  | CL23: 19 | CM23: Stijn Verdickt | CN23: 11.22222222 | CO23: 9 | CP23: (4) | CQ23: 2.805555556 | CT23: Verdickt Stijn | DZ23: Jordens Koen | EA23: Koen Jordens
A24: Langenaeker Maarten | B24: k | C24: k | D24: k | E24: k | F24: k | G24: k | AB24: 0 | AC24: 6 | AD24: 0 | AE24: 0 | AF24: 0 | AG24: 0 | AH24: 0 | AI24: 6 | AJ24: 0 | AK24: Langenaeker Maarten | AL24: 60.24183007 | AM24: 1 | AN24: =_xlfn.LET( _xlpm.i, INDEX($AP24:$BO24,1,MAX(1,MATCH($AN$2,$B$4:$AA$4,0))), IF( _xlpm.i = "", "", _xlpm.i )) -> 10 | AO24: 4 | AP24: 12.22222222 | AQ24: 2.666666667 | AR24: 13 | AS24: 20 | AT24: 2.352941176 | AU24: 10 | AV24: 0 | AW24: 0 | AX24: 0 | AY24: 0 | AZ24: 0 | BA24: 0 | BB24: 0 | BC24: 0 | BD24: 0 | BE24: 0 | BF24: 0 | BG24: 0 | BH24: 0 | BI24: 0 | BJ24: 0 | BK24: 0 | BL24: 0 | BM24: 0 | BN24: 0 | BO24: 0 | BQ24: =INDEX($AP24:$BO24,1,MAX(1,MATCH($AN$2,$B$4:$AA$4,0))) -> 10 | BR24: 9.8 | BS24: -0.17 | BU24: 60.24183007 | BV24: 60.04183007 | BW24: 9.151764706 | BY24: 1 | BZ24: 1060.04183 | CA24: 9.151764706 | CC24: 20 | CH24: =IF( CS24 = "", "", _xlfn.XLOOKUP( CS24, $A$302:$A$334, INDEX( $B$302:$AA$334, , $AM$1 ), "" )) ->  | CL24: 20 | CM24: Brent Van Den Brande | CN24: 9.411764706 | CO24: 8 | CP24: (1) | CQ24: 9.411764706 | CT24: Van Den Brande Brent | DZ24: Langenaeker Maarten | EA24: Maarten Langenaeker
A25: Lenaerts Jordy | B25: a | C25: a | D25: a | E25: a | F25: a | G25: a | AB25: =SUM( B124:AA124 ) -> 0 | AC25: 0 | AD25: 0 | AE25: 6 | AF25: 0 | AG25: 0 | AH25: 0 | AI25: 0 | AJ25: 0 | AK25: Lenaerts Jordy | AN25: =_xlfn.LET( _xlpm.i, INDEX($AP25:$BO25,1,MAX(1,MATCH($AN$2,$B$4:$AA$4,0))), IF( _xlpm.i = "", "", _xlpm.i )) -> 0 | AO25: 12 | AP25: 0 | AQ25: 0 | AR25: 0 | AS25: 0 | AT25: 0 | AU25: 0 | AV25: 0 | AW25: 0 | AX25: 0 | AY25: 0 | AZ25: 0 | BA25: 0 | BB25: 0 | BC25: 0 | BD25: 0 | BE25: 0 | BF25: 0 | BG25: 0 | BH25: 0 | BI25: 0 | BJ25: 0 | BK25: 0 | BL25: 0 | BM25: 0 | BN25: 0 | BO25: 0 | BQ25: =INDEX($AP25:$BO25,1,MAX(1,MATCH($AN$2,$B$4:$AA$4,0))) -> 0 | BR25: -0.21 | BS25: -0.18 | BU25: 0 | BV25: -0.21 | BW25: 7.68 | BY25: 0 | BZ25: -0.21 | CA25: 7.68 | CC25: 21 | CH25: =IF( CS25 = "", "", _xlfn.XLOOKUP( CS25, $A$302:$A$334, INDEX( $B$302:$AA$334, , $AM$1 ), "" )) ->  | CL25: 21 | CM25: Jason Vermeylen | CN25: 8 | CO25: 7 | CP25: (2) | CQ25: 4 | CT25: Vermeylen Jason | DZ25: Lenaerts Jordy | EA25: Jordy Lenaerts
A26: Nyckees Wannes | B26: 1 | C26: b | D26: a | E26: 1 | F26: a | G26: a | AB26: 0 | AC26: 2 | AD26: 0 | AE26: 3 | AF26: 1 | AG26: 0 | AH26: 0 | AI26: 0 | AJ26: 2 | AK26: Nyckees Wannes | AL26: 38.22222222 | AM26: 5 | AN26: =_xlfn.LET( _xlpm.i, INDEX($AP26:$BO26,1,MAX(1,MATCH($AN$2,$B$4:$AA$4,0))), IF( _xlpm.i = "", "", _xlpm.i )) -> 0 | AO26: 12 | AP26: 22.22222222 | AQ26: 0 | AR26: 0 | AS26: 16 | AT26: 0 | AU26: 0 | AV26: 0 | AW26: 0 | AX26: 0 | AY26: 0 | AZ26: 0 | BA26: 0 | BB26: 0 | BC26: 0 | BD26: 0 | BE26: 0 | BF26: 0 | BG26: 0 | BH26: 0 | BI26: 0 | BJ26: 0 | BK26: 0 | BL26: 0 | BM26: 0 | BN26: 0 | BO26: 0 | BQ26: =INDEX($AP26:$BO26,1,MAX(1,MATCH($AN$2,$B$4:$AA$4,0))) -> 0 | BR26: -0.22 | BS26: -0.21 | BU26: 38.22222222 | BV26: 38.00222222 | BW26: 7.021111111 | BY26: 1 | BZ26: 1038.002222 | CA26: 7.021111111 | CC26: 22 | CH26: =IF( CS26 = "", "", _xlfn.XLOOKUP( CS26, $A$302:$A$334, INDEX( $B$302:$AA$334, , $AM$1 ), "" )) ->  | CL26: 22 | CM26: Robbe De Graeve | CN26: 7.111111111 | CO26: 6 | CP26: (2) | CQ26: 3.555555556 | CT26: De Graeve Robbe | DZ26: Nyckees Wannes | EA26: Wannes Nyckees
A27: Stevens Siebe | B27: b | C27: b | D27: b | E27: 1 | F27: a | G27: a | AB27: 0 | AC27: 1 | AD27: 0 | AE27: 2 | AF27: 3 | AG27: 0 | AH27: 0 | AI27: 0 | AJ27: 1 | AK27: Stevens Siebe | AL27: 12 | AM27: 18 | AN27: =_xlfn.LET( _xlpm.i, INDEX($AP27:$BO27,1,MAX(1,MATCH($AN$2,$B$4:$AA$4,0))), IF( _xlpm.i = "", "", _xlpm.i )) -> 0 | AO27: 12 | AP27: 0 | AQ27: 0 | AR27: 0 | AS27: 12 | AT27: 0 | AU27: 0 | AV27: 0 | AW27: 0 | AX27: 0 | AY27: 0 | AZ27: 0 | BA27: 0 | BB27: 0 | BC27: 0 | BD27: 0 | BE27: 0 | BF27: 0 | BG27: 0 | BH27: 0 | BI27: 0 | BJ27: 0 | BK27: 0 | BL27: 0 | BM27: 0 | BN27: 0 | BO27: 0 | BQ27: =INDEX($AP27:$BO27,1,MAX(1,MATCH($AN$2,$B$4:$AA$4,0))) -> 0 | BR27: -0.23 | BS27: -0.22 | BU27: 12 | BV27: 11.77 | BW27: 4.83 | BY27: 0 | BZ27: 11.77 | CA27: 4.83 | CC27: 23 | CH27: =IF( CS27 = "", "", _xlfn.XLOOKUP( CS27, $A$302:$A$334, INDEX( $B$302:$AA$334, , $AM$1 ), "" )) ->  | CL27: 23 | CM27: Wim Gielis | CN27: 5 | CO27: 4 | CP27: (5) | CQ27: 1 | CT27: Gielis Wim | CY27: =_xlfn.XLOOKUP( CU27, $DZ$5:$DZ$37, $EA$5:$EA$37, "" ) ->  | CZ27: =IF(INDEX($BY$5:$BY$38,MATCH(CA27,$BZ$5:$BZ$38,0))=0,"",INDEX($BY$5:$BY$38,MATCH(CA27,$BZ$5:$BZ$38,0))) ->  | DA27: =IF(CZ27="","","(" & INDEX($AC$5:$AC$38,MATCH(CU27,$AK$5:$AK$38,0)) & ")") ->  | DZ27: Stevens Siebe | EA27: Siebe Stevens
A28: Tielemans Tom | B28: a | C28: a | D28: a | E28: a | F28: a | G28: a | AB28: 0 | AC28: 0 | AD28: 0 | AE28: 6 | AF28: 0 | AG28: 0 | AH28: 0 | AI28: =COUNTIF(B28:AA28,"k") -> 0 | AJ28: 0 | AK28: Tielemans Tom | AN28: =_xlfn.LET( _xlpm.i, INDEX($AP28:$BO28,1,MAX(1,MATCH($AN$2,$B$4:$AA$4,0))), IF( _xlpm.i = "", "", _xlpm.i )) -> 0 | AO28: 12 | AP28: 0 | AQ28: 0 | AR28: 0 | AS28: 0 | AT28: 0 | AU28: 0 | AV28: 0 | AW28: 0 | AX28: 0 | AY28: 0 | AZ28: 0 | BA28: 0 | BB28: 0 | BC28: 0 | BD28: 0 | BE28: 0 | BF28: 0 | BG28: 0 | BH28: 0 | BI28: 0 | BJ28: 0 | BK28: 0 | BL28: 0 | BM28: 0 | BN28: 0 | BO28: 0 | BQ28: =INDEX($AP28:$BO28,1,MAX(1,MATCH($AN$2,$B$4:$AA$4,0))) -> 0 | BR28: -0.24 | BS28: -0.23 | BU28: 0 | BV28: =BU28-CC28/100 -> -0.24 | BW28: 2.192222222 | BY28: 0 | BZ28: =1000*BY28+BU28-CC28/100 -> -0.24 | CA28: 2.192222222 | CC28: 24 | CH28: =IF( CS28 = "", "", _xlfn.XLOOKUP( CS28, $A$302:$A$334, INDEX( $B$302:$AA$334, , $AM$1 ), "" )) ->  | CL28: 24 | CM28: Jurgen Beirinckx | CN28: 2.222222222 | CO28: 2 | CP28: (2) | CQ28: 1.111111111 | CT28: Beirinckx Jurgen | DZ28: Tielemans Tom | EA28: Tom Tielemans
A29: Van de Vondel Rob | B29: b | C29: b | D29: b | E29: b | F29: b | G29: b | AB29: 0 | AC29: 0 | AD29: 0 | AE29: 0 | AF29: 6 | AG29: 0 | AH29: 0 | AI29: 0 | AJ29: 0 | AK29: Van de Vondel Rob | AN29: =_xlfn.LET( _xlpm.i, INDEX($AP29:$BO29,1,MAX(1,MATCH($AN$2,$B$4:$AA$4,0))), IF( _xlpm.i = "", "", _xlpm.i )) -> 0 | AO29: 12 | AP29: 0 | AQ29: 0 | AR29: 0 | AS29: 0 | AT29: 0 | AU29: 0 | AV29: 0 | AW29: 0 | AX29: 0 | AY29: 0 | AZ29: 0 | BA29: 0 | BB29: 0 | BC29: 0 | BD29: 0 | BE29: 0 | BF29: 0 | BG29: 0 | BH29: 0 | BI29: 0 | BJ29: 0 | BK29: 0 | BL29: 0 | BM29: 0 | BN29: 0 | BO29: 0 | BQ29: =INDEX($AP29:$BO29,1,MAX(1,MATCH($AN$2,$B$4:$AA$4,0))) -> 0 | BR29: -0.25 | BS29: -0.24 | BU29: 0 | BV29: =BU29-CC29/100 -> -0.25 | BW29: -0.01 | BY29: 0 | BZ29: =1000*BY29+BU29-CC29/100 -> -0.25 | CA29: -0.01 | CC29: 25 | CH29: =IF( CS29 = "", "", _xlfn.XLOOKUP( CS29, $A$302:$A$334, INDEX( $B$302:$AA$334, , $AM$1 ), "" )) ->  | CY29: =_xlfn.XLOOKUP( CU29, $DZ$5:$DZ$37, $EA$5:$EA$37, "" ) ->  | DZ29: Van de Vondel Rob | EA29: Rob Van de Vondel
A30: Van Den Brande Brent | B30: ng | C30: ng | D30: na | E30: na | F30: 1 | G30: a | AB30: 0 | AC30: =COUNTIF( B30:AA30, "k" ) + SUM( B30:AA30 ) -> 1 | AD30: =IFERROR( AB30 / COUNT($B$4:$AA$4), "" ) -> 0 | AE30: =COUNTIF( B30:AA30, "a" ) -> 1 | AF30: =COUNTIF( B30:AA30, "b" ) -> 0 | AG30: =COUNTIF( B30:AA30, "s" ) -> 0 | AH30: =COUNTIF( B30:AA30, "ng" ) + COUNTIF( B30:AA30, "na" ) + COUNTIF( B30:AA30, "p" ) + COUNTIF( B30:AA30, "t" ) -> 4 | AI30: =COUNTIF(B30:AA30,"k") -> 0 | AJ30: 1 | AK30: Van Den Brande Brent | AL30: =IF(SUM(AP30:BO30)=0,"",SUM(AP30:BO30)) -> 9.411764706 | AM30: 20 | AN30: =_xlfn.LET( _xlpm.i, INDEX($AP30:$BO30,1,MAX(1,MATCH($AN$2,$B$4:$AA$4,0))), IF( _xlpm.i = "", "", _xlpm.i )) -> 0 | AO30: 12 | AP30: 0 | AQ30: 0 | AR30: 0 | AS30: 0 | AT30: 9.411764706 | AU30: 0 | AV30: 0 | AW30: 0 | AX30: 0 | AY30: 0 | AZ30: 0 | BA30: 0 | BB30: 0 | BC30: 0 | BD30: 0 | BE30: 0 | BF30: 0 | BG30: 0 | BH30: 0 | BI30: 0 | BJ30: 0 | BK30: 0 | BL30: 0 | BM30: 0 | BN30: 0 | BO30: 0 | BQ30: =INDEX($AP30:$BO30,1,MAX(1,MATCH($AN$2,$B$4:$AA$4,0))) -> 0 | BR30: -0.26 | BS30: -0.25 | BU30: =SUM(AP30:BO30) -> 9.411764706 | BV30: =BU30-CC30/100 -> 9.151764706 | BW30: -0.02 | BY30: 0 | BZ30: =1000*BY30+BU30-CC30/100 -> 9.151764706 | CA30: -0.02 | CC30: 26 | CE30: =IF(CG30="","",CC30) ->  | CH30: =IF( CS30 = "", "", _xlfn.XLOOKUP( CS30, $A$302:$A$334, INDEX( $B$302:$AA$334, , $AM$1 ), "" )) ->  | CL30: =IF(CN30="","",CC30) ->  | CQ30: =IFERROR(IF(CN30="","",ABS(CN30/CP30)),0) ->  | CX30: =IF(CZ30="","",CC30) ->  | DZ30: Van Den Brande Brent | EA30: Brent Van Den Brande
